Workbook

Sheet Formato a Dici 31 de 2016
A2: VEEDURIA DISTRITAL - RENDICION DE CUENTAS DE LA GESTION CONTRACTUAL EN EL DISTRITO CAPITAL (Acuerdo 380 de 2009)
A3: INFORMACION GENERAL DE CONTRATACION ENTIDADES DISTRITALES - ENERO 1 A DICIEMBRE 31 DE 2017
A4: 1, Entidad: | E4: ALCALDIA LOCAL DE LA CANDELARIA | H4: 2, Sector: | I4: GOBIERNO | U4: 9, Nombre de quien diligencia el formato:
A5: 3, Presupuesto Disponible Inversión directa PREDIS: | E5: 10766455097 | H5: 5, Presupuesto Disponible Funcionamiento PREDIS: | I5: 1389803187 | V5: XIOMARA MELISSA SIERRA OSPINA
A6: 4, Presupuesto comprometido de inversión según PREDIS : | E6: 9565844316 | H6: 6, Presupuesto comprometido funcionamiento según PREDIS | I6: 1289186851 | U6: Cargo: | V6: PROFESIONAL UNIVERSITARIO GRADO 18
U7: Dependencia | V7: OFICINA DE CONTRATACIÓN
A8: 7, Presupuesto Disponible Operación (Regimen Privado): | U8: Teléfono: | V8: 3416009 EXT. 127
A9: 8, Presupuesto comprometido operación mediante contratos: | U9: Correo Electrónico | V9: xiomara.sierra@gobiernobogota.gov.co
A10: 1- INFORMACION GENERAL | O10: 2- INFORMACION FINANCIERA | V10: 3 - PLAZOS | AA10: 4 - ESTADO | AF10: 5. % Avance y/o cumplimiento
A11: 1 | B11: 2 | C11: 3 | D11: 4 | F11: 5 | G11: 6 | H11: 7 | I11: 8 | L11: 9 | M11: 10 | O11: 11 | P11: 12 | Q11: 13 | R11: 14 | S11: 15 | T11: 16 | U11: 17 | V11: 18 | W11: 19 | X11: 20 | Y11: 21 | Z11: 22 | AA11: 23 | AF11: 24
A12: Número Contrato | C12: Número de proceso SECOP | D12: Tipo de Contrato | F12: Modalidad de Selección | H12: Objeto | J12: Presupuesto | M12: Contratista | O12: Valor Inicial del contrato | Q12: Valor total reducciones (En valor negativo) | S12: Valor total de adiciones | T12: Valor Final | U12: Giros (Valor en pesos) | V12: Fecha de suscripción (DD/MM/AAAA) | W12: Fecha de inicio (DD/MM/AAAA) | X12: Fecha de terminación (DD/MM/AAAA) | Y12: Plazo en días | Z12: Prórroga | AB12: Celebrado o por iniciar | AC12: En Ejecución | AD12: Terminado | AE12: Liquidado | AF12: % Avance y/o Cumplimiento
B13: Año | E13: Equivalencia Tipo de contrato | G13: Procedimiento o causal | I13: Afectación | J13: Número Programa | K13: Equivalencia número de programa | L13: Número Proyecto | M13: Número de Identificación del contratista | N13: Nombre del contratista | P13: Número de reducciones en valor | R13: Número de adiciones en valor | Z13: Prorroga en días | AA13: Anulado
A14: 10 | B14: 2016 | E14: CONTRATO DE PRESTACION DE SERVICIOS | F14: Licitación pública | G14: No aplica | H14: PRESTACIÓN DE SERVICIOS CUYO OBJETO ES: PRESTAR EL SERVICIO DE VIGILANCIA Y SEGURIDAD PRIVADA EN LA MODALIDAD DE VIGILANCIA FIJA CON ARMAS Y MEDIOS TECNOLÓGICOS EN LAS INSTALACIONES QUE DESIGNE EL FONDO DE DESARROLLO LOCAL DE LA CANDELARIA CON EL FIN DE ASEGURAR LA PROTECCIÓN DE LAS PERSONAS Y LOS BIENES MUEBLES E INMUEBLES DE PROPIEDAD DE LA ENTIDAD, Y DE LOS QUE LEGALMENTE SEA O LLEGARE A SER RESPONSABLE. | I14: Funcionamiento | K14: =IF(J14=1,'Equivalencia BH-BMPT'!$D$2,IF(J14=2,'Equivalencia BH-BMPT'!$D$3,IF(J14=3,'Equivalencia BH-BMPT'!$D$4,IF(J14=4,'Equivalencia BH-BMPT'!$D$5,IF(J14=5,'Equivalencia BH-BMPT'!$D$6,IF(J14=6,'Equivalencia BH-BMPT'!$D$7,IF(J14=7,'Equivalencia BH-BMPT'!$D$8,IF(J14=8,'Equivalencia BH-BMPT'!$D$9,IF(J14=9,'Equivalencia BH-BMPT'!$D$10,IF(J14=10,'Equivalencia BH-BMPT'!$D$11,IF(J14=11,'Equivalencia BH-BMPT'!$D$12,IF(J14=12,'Equivalencia BH-BMPT'!$D$13,IF(J14=13,'Equivalencia BH-BMPT'!$D$14,IF(J14=14,'Equivalencia BH-BMPT'!$D$15,IF(J14=15,'Equivalencia BH-BMPT'!$D$16,IF(J14=16,'Equivalencia BH-BMPT'!$D$17,IF(J14=17,'Equivalencia BH-BMPT'!$D$18,IF(J14=18,'Equivalencia BH-BMPT'!$D$19,IF(J14=19,'Equivalencia BH-BMPT'!$D$20,IF(J14=20,'Equivalencia BH-BMPT'!$D$21,IF(J14=21,'Equivalencia BH-BMPT'!$D$22,IF(J14=22,'Equivalencia BH-BMPT'!$D$23,IF(J14=23,'Equivalencia BH-BMPT'!#REF!,IF(J14=24,'Equivalencia BH-BMPT'!$D$25,IF(J14=25,'Equivalencia BH-BMPT'!$D$26,IF(J14=26,'Equivalencia BH-BMPT'!$D$27,IF(J14=27,'Equivalencia BH-BMPT'!$D$28,IF(J14=28,'Equivalencia BH-BMPT'!$D$29,IF(J14=29,'Equivalencia BH-BMPT'!$D$30,IF(J14=30,'Equivalencia BH-BMPT'!$D$31,IF(J14=31,'Equivalencia BH-BMPT'!$D$32,IF(J14=32,'Equivalencia BH-BMPT'!$D$33,IF(J14=33,'Equivalencia BH-BMPT'!$D$34,IF(J14=34,'Equivalencia BH-BMPT'!$D$35,IF(J14=35,'Equivalencia BH-BMPT'!$D$36,IF(J14=36,'Equivalencia BH-BMPT'!$D$37,IF(J14=37,'Equivalencia BH-BMPT'!$D$38,IF(J14=38,'Equivalencia BH-BMPT'!#REF!,IF(J14=39,'Equivalencia BH-BMPT'!$D$40,IF(J14=40,'Equivalencia BH-BMPT'!$D$41,IF(J14=41,'Equivalencia BH-BMPT'!$D$42,IF(J14=42,'Equivalencia BH-BMPT'!$D$43,IF(J14=43,'Equivalencia BH-BMPT'!$D$44,IF(J14=44,'Equivalencia BH-BMPT'!$D$45,IF(J14=45,'Equivalencia BH-BMPT'!$D$46,"No ha seleccionado un número de programa"))))))))))))))))))))))))))))))))))))))))))))) -> No ha seleccionado un número de programa | L14: 0000 | N14: SEGURIDAD PRIVADA ASESORIAS Y SERVICIOS LTDA VIGIASER LTDA | S14: 34963934 | T14: =O14+Q14+S14 -> 34963934 | U14: 33442277 | AD14: X | AF14: =SUM(U14/T14) -> 0.9564792394 | AG14: =IF(I14="Funcionamiento",J14=0,J14="") -> TRUE
A15: 44 | B15: 2017 | C15: 17-13-6072314 | D15: 10 | E15: =IF(D15=1,'[1]Tipo '!$B$2,IF(D15=2,'[1]Tipo '!$B$3,IF(D15=3,'[1]Tipo '!$B$4,IF(D15=4,'[1]Tipo '!$B$5,IF(D15=5,'[1]Tipo '!$B$6,IF(D15=6,'[1]Tipo '!$B$7,IF(D15=7,'[1]Tipo '!$B$8,IF(D15=8,'[1]Tipo '!$B$9,IF(D15=9,'[1]Tipo '!$B$10,IF(D15=10,'[1]Tipo '!$B$11,IF(D15=11,'[1]Tipo '!$B$12,IF(D15=12,'[1]Tipo '!$B$13,IF(D15=13,'[1]Tipo '!$B$14,IF(D15=14,'[1]Tipo '!$B$15,IF(D15=15,'[1]Tipo '!$B$16,IF(D15=16,'[1]Tipo '!$B$17,IF(D15=17,'[1]Tipo '!$B$18,IF(D15=18,'[1]Tipo '!$B$19,IF(D15=19,'[1]Tipo '!$B$20,"No ha seleccionado un tipo de contrato válido"))))))))))))))))))) -> SEGUROS | F15: Contratación mínima cuantia | G15: No aplica | H15: CONTRATAR EL PROGRAMA DE SEGUROS PARA AMPARAR LOS BIENES E INTERESES PATRIMONIALES DE PROPIEDAD DEL FONDO DE DESARROLLO LOCAL DE LA CANDELARIA y POR LOS QUE SEA O LLEGARE A SER RESPONSABLE | I15: Funcionamiento | J15: 45 | K15: =IF(J15=1,'[1]Equivalencia BH-BMPT'!$D$2,IF(J15=2,'[1]Equivalencia BH-BMPT'!$D$3,IF(J15=3,'[1]Equivalencia BH-BMPT'!$D$4,IF(J15=4,'[1]Equivalencia BH-BMPT'!$D$5,IF(J15=5,'[1]Equivalencia BH-BMPT'!$D$6,IF(J15=6,'[1]Equivalencia BH-BMPT'!$D$7,IF(J15=7,'[1]Equivalencia BH-BMPT'!$D$8,IF(J15=8,'[1]Equivalencia BH-BMPT'!$D$9,IF(J15=9,'[1]Equivalencia BH-BMPT'!$D$10,IF(J15=10,'[1]Equivalencia BH-BMPT'!$D$11,IF(J15=11,'[1]Equivalencia BH-BMPT'!$D$12,IF(J15=12,'[1]Equivalencia BH-BMPT'!$D$13,IF(J15=13,'[1]Equivalencia BH-BMPT'!$D$14,IF(J15=14,'[1]Equivalencia BH-BMPT'!$D$15,IF(J15=15,'[1]Equivalencia BH-BMPT'!$D$16,IF(J15=16,'[1]Equivalencia BH-BMPT'!$D$17,IF(J15=17,'[1]Equivalencia BH-BMPT'!$D$18,IF(J15=18,'[1]Equivalencia BH-BMPT'!$D$19,IF(J15=19,'[1]Equivalencia BH-BMPT'!$D$20,IF(J15=20,'[1]Equivalencia BH-BMPT'!$D$21,IF(J15=21,'[1]Equivalencia BH-BMPT'!$D$22,IF(J15=22,'[1]Equivalencia BH-BMPT'!$D$23,IF(J15=23,'[1]Equivalencia BH-BMPT'!#REF!,IF(J15=24,'[1]Equivalencia BH-BMPT'!$D$25,IF(J15=25,'[1]Equivalencia BH-BMPT'!$D$26,IF(J15=26,'[1]Equivalencia BH-BMPT'!$D$27,IF(J15=27,'[1]Equivalencia BH-BMPT'!$D$28,IF(J15=28,'[1]Equivalencia BH-BMPT'!$D$29,IF(J15=29,'[1]Equivalencia BH-BMPT'!$D$30,IF(J15=30,'[1]Equivalencia BH-BMPT'!$D$31,IF(J15=31,'[1]Equivalencia BH-BMPT'!$D$32,IF(J15=32,'[1]Equivalencia BH-BMPT'!$D$33,IF(J15=33,'[1]Equivalencia BH-BMPT'!$D$34,IF(J15=34,'[1]Equivalencia BH-BMPT'!$D$35,IF(J15=35,'[1]Equivalencia BH-BMPT'!$D$36,IF(J15=36,'[1]Equivalencia BH-BMPT'!$D$37,IF(J15=37,'[1]Equivalencia BH-BMPT'!$D$38,IF(J15=38,'[1]Equivalencia BH-BMPT'!#REF!,IF(J15=39,'[1]Equivalencia BH-BMPT'!$D$40,IF(J15=40,'[1]Equivalencia BH-BMPT'!$D$41,IF(J15=41,'[1]Equivalencia BH-BMPT'!$D$42,IF(J15=42,'[1]Equivalencia BH-BMPT'!$D$43,IF(J15=43,'[1]Equivalencia BH-BMPT'!$D$44,IF(J15=44,'[1]Equivalencia BH-BMPT'!$D$45,IF(J15=45,'[1]Equivalencia BH-BMPT'!$D$46,"No ha seleccionado un número de programa"))))))))))))))))))))))))))))))))))))))))))))) -> Gobernanza e influencia local, regional e internacional | L15: 0000 | M15: 8600021846 | N15: AXXA Colpatria S.A. | O15: 20624382 | S15: 10277485 | T15: =O15+Q15+S15 -> 30901867 | U15: 30901867 | V15: 2017-02-08 | W15: 2017-02-08 | X15: 2017-10-07 | Y15: 95 | AE15: X | AF15: 1 | AG15: FALSE
A16: 56 | B16: 2017 | C16: ORDEN DE COMPRA 14755 | D16: 11 | E16: =IF(D16=1,'[1]Tipo '!$B$2,IF(D16=2,'[1]Tipo '!$B$3,IF(D16=3,'[1]Tipo '!$B$4,IF(D16=4,'[1]Tipo '!$B$5,IF(D16=5,'[1]Tipo '!$B$6,IF(D16=6,'[1]Tipo '!$B$7,IF(D16=7,'[1]Tipo '!$B$8,IF(D16=8,'[1]Tipo '!$B$9,IF(D16=9,'[1]Tipo '!$B$10,IF(D16=10,'[1]Tipo '!$B$11,IF(D16=11,'[1]Tipo '!$B$12,IF(D16=12,'[1]Tipo '!$B$13,IF(D16=13,'[1]Tipo '!$B$14,IF(D16=14,'[1]Tipo '!$B$15,IF(D16=15,'[1]Tipo '!$B$16,IF(D16=16,'[1]Tipo '!$B$17,IF(D16=17,'[1]Tipo '!$B$18,IF(D16=18,'[1]Tipo '!$B$19,IF(D16=19,'[1]Tipo '!$B$20,"No ha seleccionado un tipo de contrato válido"))))))))))))))))))) -> SUMINISTRO | F16: Selección abreviada | G16: Acuerdo marco de precios | H16: CONTRATAR EL SUMINISTRO DE SERVICIO DE COMBUSTIBLE DE GASOLINA Y A.C.P PARA LOS VEHICULOS DE PROPIEDAD DEL FONDO DE DESARROLLO LOCAL DE LA CANDELARIA | I16: Funcionamiento | K16: =IF(J16=1,'[1]Equivalencia BH-BMPT'!$D$2,IF(J16=2,'[1]Equivalencia BH-BMPT'!$D$3,IF(J16=3,'[1]Equivalencia BH-BMPT'!$D$4,IF(J16=4,'[1]Equivalencia BH-BMPT'!$D$5,IF(J16=5,'[1]Equivalencia BH-BMPT'!$D$6,IF(J16=6,'[1]Equivalencia BH-BMPT'!$D$7,IF(J16=7,'[1]Equivalencia BH-BMPT'!$D$8,IF(J16=8,'[1]Equivalencia BH-BMPT'!$D$9,IF(J16=9,'[1]Equivalencia BH-BMPT'!$D$10,IF(J16=10,'[1]Equivalencia BH-BMPT'!$D$11,IF(J16=11,'[1]Equivalencia BH-BMPT'!$D$12,IF(J16=12,'[1]Equivalencia BH-BMPT'!$D$13,IF(J16=13,'[1]Equivalencia BH-BMPT'!$D$14,IF(J16=14,'[1]Equivalencia BH-BMPT'!$D$15,IF(J16=15,'[1]Equivalencia BH-BMPT'!$D$16,IF(J16=16,'[1]Equivalencia BH-BMPT'!$D$17,IF(J16=17,'[1]Equivalencia BH-BMPT'!$D$18,IF(J16=18,'[1]Equivalencia BH-BMPT'!$D$19,IF(J16=19,'[1]Equivalencia BH-BMPT'!$D$20,IF(J16=20,'[1]Equivalencia BH-BMPT'!$D$21,IF(J16=21,'[1]Equivalencia BH-BMPT'!$D$22,IF(J16=22,'[1]Equivalencia BH-BMPT'!$D$23,IF(J16=23,'[1]Equivalencia BH-BMPT'!#REF!,IF(J16=24,'[1]Equivalencia BH-BMPT'!$D$25,IF(J16=25,'[1]Equivalencia BH-BMPT'!$D$26,IF(J16=26,'[1]Equivalencia BH-BMPT'!$D$27,IF(J16=27,'[1]Equivalencia BH-BMPT'!$D$28,IF(J16=28,'[1]Equivalencia BH-BMPT'!$D$29,IF(J16=29,'[1]Equivalencia BH-BMPT'!$D$30,IF(J16=30,'[1]Equivalencia BH-BMPT'!$D$31,IF(J16=31,'[1]Equivalencia BH-BMPT'!$D$32,IF(J16=32,'[1]Equivalencia BH-BMPT'!$D$33,IF(J16=33,'[1]Equivalencia BH-BMPT'!$D$34,IF(J16=34,'[1]Equivalencia BH-BMPT'!$D$35,IF(J16=35,'[1]Equivalencia BH-BMPT'!$D$36,IF(J16=36,'[1]Equivalencia BH-BMPT'!$D$37,IF(J16=37,'[1]Equivalencia BH-BMPT'!$D$38,IF(J16=38,'[1]Equivalencia BH-BMPT'!#REF!,IF(J16=39,'[1]Equivalencia BH-BMPT'!$D$40,IF(J16=40,'[1]Equivalencia BH-BMPT'!$D$41,IF(J16=41,'[1]Equivalencia BH-BMPT'!$D$42,IF(J16=42,'[1]Equivalencia BH-BMPT'!$D$43,IF(J16=43,'[1]Equivalencia BH-BMPT'!$D$44,IF(J16=44,'[1]Equivalencia BH-BMPT'!$D$45,IF(J16=45,'[1]Equivalencia BH-BMPT'!$D$46,"No ha seleccionado un número de programa"))))))))))))))))))))))))))))))))))))))))))))) -> No ha seleccionado un número de programa | L16: 0000 | M16: 9004597375 | N16: GRUPO EDS AUTOGAS S.A.S | O16: 12000000 | T16: =O16+Q16+S16 -> 12000000 | U16: 8927200 | V16: 2017-03-03 | W16: 2017-03-03 | X16: 2018-02-28 | Y16: 360 | AC16: X | AF16: 0.7439333333 | AG16: TRUE
A17: 57 | B17: 2017 | C17: 17-12-6686271 | D17: 9 | E17: =IF(D17=1,'[1]Tipo '!$B$2,IF(D17=2,'[1]Tipo '!$B$3,IF(D17=3,'[1]Tipo '!$B$4,IF(D17=4,'[1]Tipo '!$B$5,IF(D17=5,'[1]Tipo '!$B$6,IF(D17=6,'[1]Tipo '!$B$7,IF(D17=7,'[1]Tipo '!$B$8,IF(D17=8,'[1]Tipo '!$B$9,IF(D17=9,'[1]Tipo '!$B$10,IF(D17=10,'[1]Tipo '!$B$11,IF(D17=11,'[1]Tipo '!$B$12,IF(D17=12,'[1]Tipo '!$B$13,IF(D17=13,'[1]Tipo '!$B$14,IF(D17=14,'[1]Tipo '!$B$15,IF(D17=15,'[1]Tipo '!$B$16,IF(D17=16,'[1]Tipo '!$B$17,IF(D17=17,'[1]Tipo '!$B$18,IF(D17=18,'[1]Tipo '!$B$19,IF(D17=19,'[1]Tipo '!$B$20,"No ha seleccionado un tipo de contrato válido"))))))))))))))))))) -> ARRENDAMIENTO DE BIENES INMUEBLES | F17: Contratación directa | G17: El arrendamiento o adquisición de inmuebles | H17: ARRENDAMIENTO DE INMUEBLE PARA EL DÉPOSITO DE BIENES INCAUTADOS | I17: Funcionamiento | K17: =IF(J17=1,'[1]Equivalencia BH-BMPT'!$D$2,IF(J17=2,'[1]Equivalencia BH-BMPT'!$D$3,IF(J17=3,'[1]Equivalencia BH-BMPT'!$D$4,IF(J17=4,'[1]Equivalencia BH-BMPT'!$D$5,IF(J17=5,'[1]Equivalencia BH-BMPT'!$D$6,IF(J17=6,'[1]Equivalencia BH-BMPT'!$D$7,IF(J17=7,'[1]Equivalencia BH-BMPT'!$D$8,IF(J17=8,'[1]Equivalencia BH-BMPT'!$D$9,IF(J17=9,'[1]Equivalencia BH-BMPT'!$D$10,IF(J17=10,'[1]Equivalencia BH-BMPT'!$D$11,IF(J17=11,'[1]Equivalencia BH-BMPT'!$D$12,IF(J17=12,'[1]Equivalencia BH-BMPT'!$D$13,IF(J17=13,'[1]Equivalencia BH-BMPT'!$D$14,IF(J17=14,'[1]Equivalencia BH-BMPT'!$D$15,IF(J17=15,'[1]Equivalencia BH-BMPT'!$D$16,IF(J17=16,'[1]Equivalencia BH-BMPT'!$D$17,IF(J17=17,'[1]Equivalencia BH-BMPT'!$D$18,IF(J17=18,'[1]Equivalencia BH-BMPT'!$D$19,IF(J17=19,'[1]Equivalencia BH-BMPT'!$D$20,IF(J17=20,'[1]Equivalencia BH-BMPT'!$D$21,IF(J17=21,'[1]Equivalencia BH-BMPT'!$D$22,IF(J17=22,'[1]Equivalencia BH-BMPT'!$D$23,IF(J17=23,'[1]Equivalencia BH-BMPT'!#REF!,IF(J17=24,'[1]Equivalencia BH-BMPT'!$D$25,IF(J17=25,'[1]Equivalencia BH-BMPT'!$D$26,IF(J17=26,'[1]Equivalencia BH-BMPT'!$D$27,IF(J17=27,'[1]Equivalencia BH-BMPT'!$D$28,IF(J17=28,'[1]Equivalencia BH-BMPT'!$D$29,IF(J17=29,'[1]Equivalencia BH-BMPT'!$D$30,IF(J17=30,'[1]Equivalencia BH-BMPT'!$D$31,IF(J17=31,'[1]Equivalencia BH-BMPT'!$D$32,IF(J17=32,'[1]Equivalencia BH-BMPT'!$D$33,IF(J17=33,'[1]Equivalencia BH-BMPT'!$D$34,IF(J17=34,'[1]Equivalencia BH-BMPT'!$D$35,IF(J17=35,'[1]Equivalencia BH-BMPT'!$D$36,IF(J17=36,'[1]Equivalencia BH-BMPT'!$D$37,IF(J17=37,'[1]Equivalencia BH-BMPT'!$D$38,IF(J17=38,'[1]Equivalencia BH-BMPT'!#REF!,IF(J17=39,'[1]Equivalencia BH-BMPT'!$D$40,IF(J17=40,'[1]Equivalencia BH-BMPT'!$D$41,IF(J17=41,'[1]Equivalencia BH-BMPT'!$D$42,IF(J17=42,'[1]Equivalencia BH-BMPT'!$D$43,IF(J17=43,'[1]Equivalencia BH-BMPT'!$D$44,IF(J17=44,'[1]Equivalencia BH-BMPT'!$D$45,IF(J17=45,'[1]Equivalencia BH-BMPT'!$D$46,"No ha seleccionado un número de programa"))))))))))))))))))))))))))))))))))))))))))))) -> No ha seleccionado un número de programa | L17: 0000 | M17: 79141451 | N17: Hugo Fidel Pineda | O17: 14400000 | T17: =O17+Q17+S17 -> 14400000 | U17: 14400000 | V17: 2017-03-10 | W17: 2017-03-10 | X17: 2017-12-11 | Y17: 270 | AD17: X | AF17: 1 | AG17: TRUE
A18: 59 | B18: 2017 | C18: 17-13-6348895 | D18: 11 | E18: =IF(D18=1,'[1]Tipo '!$B$2,IF(D18=2,'[1]Tipo '!$B$3,IF(D18=3,'[1]Tipo '!$B$4,IF(D18=4,'[1]Tipo '!$B$5,IF(D18=5,'[1]Tipo '!$B$6,IF(D18=6,'[1]Tipo '!$B$7,IF(D18=7,'[1]Tipo '!$B$8,IF(D18=8,'[1]Tipo '!$B$9,IF(D18=9,'[1]Tipo '!$B$10,IF(D18=10,'[1]Tipo '!$B$11,IF(D18=11,'[1]Tipo '!$B$12,IF(D18=12,'[1]Tipo '!$B$13,IF(D18=13,'[1]Tipo '!$B$14,IF(D18=14,'[1]Tipo '!$B$15,IF(D18=15,'[1]Tipo '!$B$16,IF(D18=16,'[1]Tipo '!$B$17,IF(D18=17,'[1]Tipo '!$B$18,IF(D18=18,'[1]Tipo '!$B$19,IF(D18=19,'[1]Tipo '!$B$20,"No ha seleccionado un tipo de contrato válido"))))))))))))))))))) -> SUMINISTRO | F18: Contratación mínima cuantia | G18: No aplica | H18: SUMINISTRO DE BIENES PARA EL FORTALECIMIENTO DE LAS ACTIVIDADES DE PROMOCIÓN INSTITUCIONAL DE LA ALCALDÍA LOCAL DE LA CANDELARIA | I18: Funcionamiento | J18: 43 | K18: =IF(J18=1,'[1]Equivalencia BH-BMPT'!$D$2,IF(J18=2,'[1]Equivalencia BH-BMPT'!$D$3,IF(J18=3,'[1]Equivalencia BH-BMPT'!$D$4,IF(J18=4,'[1]Equivalencia BH-BMPT'!$D$5,IF(J18=5,'[1]Equivalencia BH-BMPT'!$D$6,IF(J18=6,'[1]Equivalencia BH-BMPT'!$D$7,IF(J18=7,'[1]Equivalencia BH-BMPT'!$D$8,IF(J18=8,'[1]Equivalencia BH-BMPT'!$D$9,IF(J18=9,'[1]Equivalencia BH-BMPT'!$D$10,IF(J18=10,'[1]Equivalencia BH-BMPT'!$D$11,IF(J18=11,'[1]Equivalencia BH-BMPT'!$D$12,IF(J18=12,'[1]Equivalencia BH-BMPT'!$D$13,IF(J18=13,'[1]Equivalencia BH-BMPT'!$D$14,IF(J18=14,'[1]Equivalencia BH-BMPT'!$D$15,IF(J18=15,'[1]Equivalencia BH-BMPT'!$D$16,IF(J18=16,'[1]Equivalencia BH-BMPT'!$D$17,IF(J18=17,'[1]Equivalencia BH-BMPT'!$D$18,IF(J18=18,'[1]Equivalencia BH-BMPT'!$D$19,IF(J18=19,'[1]Equivalencia BH-BMPT'!$D$20,IF(J18=20,'[1]Equivalencia BH-BMPT'!$D$21,IF(J18=21,'[1]Equivalencia BH-BMPT'!$D$22,IF(J18=22,'[1]Equivalencia BH-BMPT'!$D$23,IF(J18=23,'[1]Equivalencia BH-BMPT'!#REF!,IF(J18=24,'[1]Equivalencia BH-BMPT'!$D$25,IF(J18=25,'[1]Equivalencia BH-BMPT'!$D$26,IF(J18=26,'[1]Equivalencia BH-BMPT'!$D$27,IF(J18=27,'[1]Equivalencia BH-BMPT'!$D$28,IF(J18=28,'[1]Equivalencia BH-BMPT'!$D$29,IF(J18=29,'[1]Equivalencia BH-BMPT'!$D$30,IF(J18=30,'[1]Equivalencia BH-BMPT'!$D$31,IF(J18=31,'[1]Equivalencia BH-BMPT'!$D$32,IF(J18=32,'[1]Equivalencia BH-BMPT'!$D$33,IF(J18=33,'[1]Equivalencia BH-BMPT'!$D$34,IF(J18=34,'[1]Equivalencia BH-BMPT'!$D$35,IF(J18=35,'[1]Equivalencia BH-BMPT'!$D$36,IF(J18=36,'[1]Equivalencia BH-BMPT'!$D$37,IF(J18=37,'[1]Equivalencia BH-BMPT'!$D$38,IF(J18=38,'[1]Equivalencia BH-BMPT'!#REF!,IF(J18=39,'[1]Equivalencia BH-BMPT'!$D$40,IF(J18=40,'[1]Equivalencia BH-BMPT'!$D$41,IF(J18=41,'[1]Equivalencia BH-BMPT'!$D$42,IF(J18=42,'[1]Equivalencia BH-BMPT'!$D$43,IF(J18=43,'[1]Equivalencia BH-BMPT'!$D$44,IF(J18=44,'[1]Equivalencia BH-BMPT'!$D$45,IF(J18=45,'[1]Equivalencia BH-BMPT'!$D$46,"No ha seleccionado un número de programa"))))))))))))))))))))))))))))))))))))))))))))) -> Modernización institucional | L18: 0000 | M18: 9002944159 | N18: FUNDACION JUVENTUD Y VIDA | O18: 12000000 | P18: 900 | T18: =O18+Q18+S18-P18 -> 11999100 | U18: 11999100 | V18: 2017-03-23 | W18: 2017-03-27 | X18: 2017-07-26 | Y18: 120 | AD18: X | AF18: 1 | AG18: FALSE
A19: 62 | B19: 2017 | C19: ORDEN DE COMPRA 15432 | D19: 4 | E19: =IF(D19=1,'[1]Tipo '!$B$2,IF(D19=2,'[1]Tipo '!$B$3,IF(D19=3,'[1]Tipo '!$B$4,IF(D19=4,'[1]Tipo '!$B$5,IF(D19=5,'[1]Tipo '!$B$6,IF(D19=6,'[1]Tipo '!$B$7,IF(D19=7,'[1]Tipo '!$B$8,IF(D19=8,'[1]Tipo '!$B$9,IF(D19=9,'[1]Tipo '!$B$10,IF(D19=10,'[1]Tipo '!$B$11,IF(D19=11,'[1]Tipo '!$B$12,IF(D19=12,'[1]Tipo '!$B$13,IF(D19=13,'[1]Tipo '!$B$14,IF(D19=14,'[1]Tipo '!$B$15,IF(D19=15,'[1]Tipo '!$B$16,IF(D19=16,'[1]Tipo '!$B$17,IF(D19=17,'[1]Tipo '!$B$18,IF(D19=18,'[1]Tipo '!$B$19,IF(D19=19,'[1]Tipo '!$B$20,"No ha seleccionado un tipo de contrato válido"))))))))))))))))))) -> CONTRATOS DE PRESTACIÓN DE SERVICIOS | F19: Selección abreviada | G19: Acuerdo marco de precios | H19: ADQUISICION DEL SERVICIO INTEGRAL DE ASEO Y CAFETERIA PARA LAS INSTALACIONES DE PROPIEDAD DEL FONDO DE DESARROLLO LOCAL DE LA ALCALDIA LOCALO DE LA CANDELARIA | I19: Funcionamiento | K19: =IF(J19=1,'[1]Equivalencia BH-BMPT'!$D$2,IF(J19=2,'[1]Equivalencia BH-BMPT'!$D$3,IF(J19=3,'[1]Equivalencia BH-BMPT'!$D$4,IF(J19=4,'[1]Equivalencia BH-BMPT'!$D$5,IF(J19=5,'[1]Equivalencia BH-BMPT'!$D$6,IF(J19=6,'[1]Equivalencia BH-BMPT'!$D$7,IF(J19=7,'[1]Equivalencia BH-BMPT'!$D$8,IF(J19=8,'[1]Equivalencia BH-BMPT'!$D$9,IF(J19=9,'[1]Equivalencia BH-BMPT'!$D$10,IF(J19=10,'[1]Equivalencia BH-BMPT'!$D$11,IF(J19=11,'[1]Equivalencia BH-BMPT'!$D$12,IF(J19=12,'[1]Equivalencia BH-BMPT'!$D$13,IF(J19=13,'[1]Equivalencia BH-BMPT'!$D$14,IF(J19=14,'[1]Equivalencia BH-BMPT'!$D$15,IF(J19=15,'[1]Equivalencia BH-BMPT'!$D$16,IF(J19=16,'[1]Equivalencia BH-BMPT'!$D$17,IF(J19=17,'[1]Equivalencia BH-BMPT'!$D$18,IF(J19=18,'[1]Equivalencia BH-BMPT'!$D$19,IF(J19=19,'[1]Equivalencia BH-BMPT'!$D$20,IF(J19=20,'[1]Equivalencia BH-BMPT'!$D$21,IF(J19=21,'[1]Equivalencia BH-BMPT'!$D$22,IF(J19=22,'[1]Equivalencia BH-BMPT'!$D$23,IF(J19=23,'[1]Equivalencia BH-BMPT'!#REF!,IF(J19=24,'[1]Equivalencia BH-BMPT'!$D$25,IF(J19=25,'[1]Equivalencia BH-BMPT'!$D$26,IF(J19=26,'[1]Equivalencia BH-BMPT'!$D$27,IF(J19=27,'[1]Equivalencia BH-BMPT'!$D$28,IF(J19=28,'[1]Equivalencia BH-BMPT'!$D$29,IF(J19=29,'[1]Equivalencia BH-BMPT'!$D$30,IF(J19=30,'[1]Equivalencia BH-BMPT'!$D$31,IF(J19=31,'[1]Equivalencia BH-BMPT'!$D$32,IF(J19=32,'[1]Equivalencia BH-BMPT'!$D$33,IF(J19=33,'[1]Equivalencia BH-BMPT'!$D$34,IF(J19=34,'[1]Equivalencia BH-BMPT'!$D$35,IF(J19=35,'[1]Equivalencia BH-BMPT'!$D$36,IF(J19=36,'[1]Equivalencia BH-BMPT'!$D$37,IF(J19=37,'[1]Equivalencia BH-BMPT'!$D$38,IF(J19=38,'[1]Equivalencia BH-BMPT'!#REF!,IF(J19=39,'[1]Equivalencia BH-BMPT'!$D$40,IF(J19=40,'[1]Equivalencia BH-BMPT'!$D$41,IF(J19=41,'[1]Equivalencia BH-BMPT'!$D$42,IF(J19=42,'[1]Equivalencia BH-BMPT'!$D$43,IF(J19=43,'[1]Equivalencia BH-BMPT'!$D$44,IF(J19=44,'[1]Equivalencia BH-BMPT'!$D$45,IF(J19=45,'[1]Equivalencia BH-BMPT'!$D$46,"No ha seleccionado un número de programa"))))))))))))))))))))))))))))))))))))))))))))) -> No ha seleccionado un número de programa | L19: 0000 | M19: 8600674792 | N19: SERVIASEO S.A. | O19: 130175191 | S19: 28926100 | T19: =O19+Q19+S19 -> 159101291 | U19: 96216494 | V19: 2017-03-28 | W19: 2017-04-03 | X19: 2018-03-02 | Y19: 330 | AC19: X | AF19: 0.6047499263 | AG19: TRUE
A20: 63 | B20: 2017 | C20: 17-1-168953 | D20: 4 | E20: =IF(D20=1,'[1]Tipo '!$B$2,IF(D20=2,'[1]Tipo '!$B$3,IF(D20=3,'[1]Tipo '!$B$4,IF(D20=4,'[1]Tipo '!$B$5,IF(D20=5,'[1]Tipo '!$B$6,IF(D20=6,'[1]Tipo '!$B$7,IF(D20=7,'[1]Tipo '!$B$8,IF(D20=8,'[1]Tipo '!$B$9,IF(D20=9,'[1]Tipo '!$B$10,IF(D20=10,'[1]Tipo '!$B$11,IF(D20=11,'[1]Tipo '!$B$12,IF(D20=12,'[1]Tipo '!$B$13,IF(D20=13,'[1]Tipo '!$B$14,IF(D20=14,'[1]Tipo '!$B$15,IF(D20=15,'[1]Tipo '!$B$16,IF(D20=16,'[1]Tipo '!$B$17,IF(D20=17,'[1]Tipo '!$B$18,IF(D20=18,'[1]Tipo '!$B$19,IF(D20=19,'[1]Tipo '!$B$20,"No ha seleccionado un tipo de contrato válido"))))))))))))))))))) -> CONTRATOS DE PRESTACIÓN DE SERVICIOS | F20: Licitación pública | G20: No aplica | H20: PRESTAR EL SERVICIO DE VIGILANCIA Y SEGURIDAD PRIVADA EN LA MODALIDAD DE VIGILANCIA FIJA CON ARMAS Y MEDIOS TECNOLOGICOS EN LAS INSTALACIONES QUE DESIGNE EL FONDO DE DESARROLLO LOCAL DE LA CANDELARIA CON EL FIN DE ASEGURAR LA PROTECCIÓN DE LAS PERSONAS Y DE LOS BIENES MUEBLES E INMUEBLES DE PROPIEDAD DE LA ENTIDAD, Y DE LOS QUE LEGALMENTE SEA O LLEGARE A SER RESPONSABLE | I20: Funcionamiento | K20: =IF(J20=1,'[1]Equivalencia BH-BMPT'!$D$2,IF(J20=2,'[1]Equivalencia BH-BMPT'!$D$3,IF(J20=3,'[1]Equivalencia BH-BMPT'!$D$4,IF(J20=4,'[1]Equivalencia BH-BMPT'!$D$5,IF(J20=5,'[1]Equivalencia BH-BMPT'!$D$6,IF(J20=6,'[1]Equivalencia BH-BMPT'!$D$7,IF(J20=7,'[1]Equivalencia BH-BMPT'!$D$8,IF(J20=8,'[1]Equivalencia BH-BMPT'!$D$9,IF(J20=9,'[1]Equivalencia BH-BMPT'!$D$10,IF(J20=10,'[1]Equivalencia BH-BMPT'!$D$11,IF(J20=11,'[1]Equivalencia BH-BMPT'!$D$12,IF(J20=12,'[1]Equivalencia BH-BMPT'!$D$13,IF(J20=13,'[1]Equivalencia BH-BMPT'!$D$14,IF(J20=14,'[1]Equivalencia BH-BMPT'!$D$15,IF(J20=15,'[1]Equivalencia BH-BMPT'!$D$16,IF(J20=16,'[1]Equivalencia BH-BMPT'!$D$17,IF(J20=17,'[1]Equivalencia BH-BMPT'!$D$18,IF(J20=18,'[1]Equivalencia BH-BMPT'!$D$19,IF(J20=19,'[1]Equivalencia BH-BMPT'!$D$20,IF(J20=20,'[1]Equivalencia BH-BMPT'!$D$21,IF(J20=21,'[1]Equivalencia BH-BMPT'!$D$22,IF(J20=22,'[1]Equivalencia BH-BMPT'!$D$23,IF(J20=23,'[1]Equivalencia BH-BMPT'!#REF!,IF(J20=24,'[1]Equivalencia BH-BMPT'!$D$25,IF(J20=25,'[1]Equivalencia BH-BMPT'!$D$26,IF(J20=26,'[1]Equivalencia BH-BMPT'!$D$27,IF(J20=27,'[1]Equivalencia BH-BMPT'!$D$28,IF(J20=28,'[1]Equivalencia BH-BMPT'!$D$29,IF(J20=29,'[1]Equivalencia BH-BMPT'!$D$30,IF(J20=30,'[1]Equivalencia BH-BMPT'!$D$31,IF(J20=31,'[1]Equivalencia BH-BMPT'!$D$32,IF(J20=32,'[1]Equivalencia BH-BMPT'!$D$33,IF(J20=33,'[1]Equivalencia BH-BMPT'!$D$34,IF(J20=34,'[1]Equivalencia BH-BMPT'!$D$35,IF(J20=35,'[1]Equivalencia BH-BMPT'!$D$36,IF(J20=36,'[1]Equivalencia BH-BMPT'!$D$37,IF(J20=37,'[1]Equivalencia BH-BMPT'!$D$38,IF(J20=38,'[1]Equivalencia BH-BMPT'!#REF!,IF(J20=39,'[1]Equivalencia BH-BMPT'!$D$40,IF(J20=40,'[1]Equivalencia BH-BMPT'!$D$41,IF(J20=41,'[1]Equivalencia BH-BMPT'!$D$42,IF(J20=42,'[1]Equivalencia BH-BMPT'!$D$43,IF(J20=43,'[1]Equivalencia BH-BMPT'!$D$44,IF(J20=44,'[1]Equivalencia BH-BMPT'!$D$45,IF(J20=45,'[1]Equivalencia BH-BMPT'!$D$46,"No ha seleccionado un número de programa"))))))))))))))))))))))))))))))))))))))))))))) -> No ha seleccionado un número de programa | L20: 0000 | M20: 8605175603 | N20: EMPRESA DE SEGURIDAD Y VIGILANCIA SERVICONFORD LIMITADA | O20: 753008774 | T20: 753008774 | U20: 547642744 | V20: 2017-03-28 | W20: 2017-04-01 | X20: 2018-02-28 | Y20: 330 | AC20: X | AF20: 0.7272727263 | AG20: TRUE
A21: 64 | B21: 2017 | C21: 17-13-6414134 | D21: 10 | E21: =IF(D21=1,'[1]Tipo '!$B$2,IF(D21=2,'[1]Tipo '!$B$3,IF(D21=3,'[1]Tipo '!$B$4,IF(D21=4,'[1]Tipo '!$B$5,IF(D21=5,'[1]Tipo '!$B$6,IF(D21=6,'[1]Tipo '!$B$7,IF(D21=7,'[1]Tipo '!$B$8,IF(D21=8,'[1]Tipo '!$B$9,IF(D21=9,'[1]Tipo '!$B$10,IF(D21=10,'[1]Tipo '!$B$11,IF(D21=11,'[1]Tipo '!$B$12,IF(D21=12,'[1]Tipo '!$B$13,IF(D21=13,'[1]Tipo '!$B$14,IF(D21=14,'[1]Tipo '!$B$15,IF(D21=15,'[1]Tipo '!$B$16,IF(D21=16,'[1]Tipo '!$B$17,IF(D21=17,'[1]Tipo '!$B$18,IF(D21=18,'[1]Tipo '!$B$19,IF(D21=19,'[1]Tipo '!$B$20,"No ha seleccionado un tipo de contrato válido"))))))))))))))))))) -> SEGUROS | F21: Contratación mínima cuantia | G21: No aplica | H21: CONTRATAR UN SEGURO DE VIDA-GRUPO QUE AMPARE A LOS SIETE (7) EDILES DE JUNTA ADMINISTRADORA LOCAL DE LA LOCALIDAD DE LA CANDELARIA | I21: Funcionamiento | K21: =IF(J21=1,'[1]Equivalencia BH-BMPT'!$D$2,IF(J21=2,'[1]Equivalencia BH-BMPT'!$D$3,IF(J21=3,'[1]Equivalencia BH-BMPT'!$D$4,IF(J21=4,'[1]Equivalencia BH-BMPT'!$D$5,IF(J21=5,'[1]Equivalencia BH-BMPT'!$D$6,IF(J21=6,'[1]Equivalencia BH-BMPT'!$D$7,IF(J21=7,'[1]Equivalencia BH-BMPT'!$D$8,IF(J21=8,'[1]Equivalencia BH-BMPT'!$D$9,IF(J21=9,'[1]Equivalencia BH-BMPT'!$D$10,IF(J21=10,'[1]Equivalencia BH-BMPT'!$D$11,IF(J21=11,'[1]Equivalencia BH-BMPT'!$D$12,IF(J21=12,'[1]Equivalencia BH-BMPT'!$D$13,IF(J21=13,'[1]Equivalencia BH-BMPT'!$D$14,IF(J21=14,'[1]Equivalencia BH-BMPT'!$D$15,IF(J21=15,'[1]Equivalencia BH-BMPT'!$D$16,IF(J21=16,'[1]Equivalencia BH-BMPT'!$D$17,IF(J21=17,'[1]Equivalencia BH-BMPT'!$D$18,IF(J21=18,'[1]Equivalencia BH-BMPT'!$D$19,IF(J21=19,'[1]Equivalencia BH-BMPT'!$D$20,IF(J21=20,'[1]Equivalencia BH-BMPT'!$D$21,IF(J21=21,'[1]Equivalencia BH-BMPT'!$D$22,IF(J21=22,'[1]Equivalencia BH-BMPT'!$D$23,IF(J21=23,'[1]Equivalencia BH-BMPT'!#REF!,IF(J21=24,'[1]Equivalencia BH-BMPT'!$D$25,IF(J21=25,'[1]Equivalencia BH-BMPT'!$D$26,IF(J21=26,'[1]Equivalencia BH-BMPT'!$D$27,IF(J21=27,'[1]Equivalencia BH-BMPT'!$D$28,IF(J21=28,'[1]Equivalencia BH-BMPT'!$D$29,IF(J21=29,'[1]Equivalencia BH-BMPT'!$D$30,IF(J21=30,'[1]Equivalencia BH-BMPT'!$D$31,IF(J21=31,'[1]Equivalencia BH-BMPT'!$D$32,IF(J21=32,'[1]Equivalencia BH-BMPT'!$D$33,IF(J21=33,'[1]Equivalencia BH-BMPT'!$D$34,IF(J21=34,'[1]Equivalencia BH-BMPT'!$D$35,IF(J21=35,'[1]Equivalencia BH-BMPT'!$D$36,IF(J21=36,'[1]Equivalencia BH-BMPT'!$D$37,IF(J21=37,'[1]Equivalencia BH-BMPT'!$D$38,IF(J21=38,'[1]Equivalencia BH-BMPT'!#REF!,IF(J21=39,'[1]Equivalencia BH-BMPT'!$D$40,IF(J21=40,'[1]Equivalencia BH-BMPT'!$D$41,IF(J21=41,'[1]Equivalencia BH-BMPT'!$D$42,IF(J21=42,'[1]Equivalencia BH-BMPT'!$D$43,IF(J21=43,'[1]Equivalencia BH-BMPT'!$D$44,IF(J21=44,'[1]Equivalencia BH-BMPT'!$D$45,IF(J21=45,'[1]Equivalencia BH-BMPT'!$D$46,"No ha seleccionado un número de programa"))))))))))))))))))))))))))))))))))))))))))))) -> No ha seleccionado un número de programa | L21: 0000 | M21: 8600024002 | N21: LA PREVISORA S.A | O21: 6000000 | T21: 6000000 | U21: 6000000 | V21: 2017-04-05 | W21: 2017-04-07 | X21: 2018-04-07 | Y21: 360 | AC21: X | AF21: 1 | AG21: TRUE
A22: 87 | B22: 2017 | C22: 17-12-7060169 | D22: 16 | E22: =IF(D22=1,'[2]Tipo '!$B$2,IF(D22=2,'[2]Tipo '!$B$3,IF(D22=3,'[2]Tipo '!$B$4,IF(D22=4,'[2]Tipo '!$B$5,IF(D22=5,'[2]Tipo '!$B$6,IF(D22=6,'[2]Tipo '!$B$7,IF(D22=7,'[2]Tipo '!$B$8,IF(D22=8,'[2]Tipo '!$B$9,IF(D22=9,'[2]Tipo '!$B$10,IF(D22=10,'[2]Tipo '!$B$11,IF(D22=11,'[2]Tipo '!$B$12,IF(D22=12,'[2]Tipo '!$B$13,IF(D22=13,'[2]Tipo '!$B$14,IF(D22=14,'[2]Tipo '!$B$15,IF(D22=15,'[2]Tipo '!$B$16,IF(D22=16,'[2]Tipo '!$B$17,IF(D22=17,'[2]Tipo '!$B$18,IF(D22=18,'[2]Tipo '!$B$19,IF(D22=19,'[2]Tipo '!$B$20,"No ha seleccionado un tipo de contrato válido"))))))))))))))))))) -> CONTRATOS INTERADMINISTRATIVOS | F22: Contratación directa | G22: Contratos interadministrativos | H22: REALIZAR EL PROCESO DE PREPRODUCCIÓN, PRODUCCIÓN Y POST PRODUCCIÓN DE PIEZAS AUDIOVISUALES Y EMISIÓN DE PROGRAMAS DE RADIO Y TELEVISIÓN QUE SE CONSIDEREN NECESARIAS E INHERENTES A LAS CAMPAÑAS DE COMUNICACIÓN Y DIVULGACIÓN DE LA ALCALDÍA LOCAL DE LA CANDELARIA | I22: Funcionamiento | J22: 36 | K22: =IF(J22=1,'[2]Equivalencia BH-BMPT'!$D$2,IF(J22=2,'[2]Equivalencia BH-BMPT'!$D$3,IF(J22=3,'[2]Equivalencia BH-BMPT'!$D$4,IF(J22=4,'[2]Equivalencia BH-BMPT'!$D$5,IF(J22=5,'[2]Equivalencia BH-BMPT'!$D$6,IF(J22=6,'[2]Equivalencia BH-BMPT'!$D$7,IF(J22=7,'[2]Equivalencia BH-BMPT'!$D$8,IF(J22=8,'[2]Equivalencia BH-BMPT'!$D$9,IF(J22=9,'[2]Equivalencia BH-BMPT'!$D$10,IF(J22=10,'[2]Equivalencia BH-BMPT'!$D$11,IF(J22=11,'[2]Equivalencia BH-BMPT'!$D$12,IF(J22=12,'[2]Equivalencia BH-BMPT'!$D$13,IF(J22=13,'[2]Equivalencia BH-BMPT'!$D$14,IF(J22=14,'[2]Equivalencia BH-BMPT'!$D$15,IF(J22=15,'[2]Equivalencia BH-BMPT'!$D$16,IF(J22=16,'[2]Equivalencia BH-BMPT'!$D$17,IF(J22=17,'[2]Equivalencia BH-BMPT'!$D$18,IF(J22=18,'[2]Equivalencia BH-BMPT'!$D$19,IF(J22=19,'[2]Equivalencia BH-BMPT'!$D$20,IF(J22=20,'[2]Equivalencia BH-BMPT'!$D$21,IF(J22=21,'[2]Equivalencia BH-BMPT'!$D$22,IF(J22=22,'[2]Equivalencia BH-BMPT'!$D$23,IF(J22=23,'[2]Equivalencia BH-BMPT'!#REF!,IF(J22=24,'[2]Equivalencia BH-BMPT'!$D$25,IF(J22=25,'[2]Equivalencia BH-BMPT'!$D$26,IF(J22=26,'[2]Equivalencia BH-BMPT'!$D$27,IF(J22=27,'[2]Equivalencia BH-BMPT'!$D$28,IF(J22=28,'[2]Equivalencia BH-BMPT'!$D$29,IF(J22=29,'[2]Equivalencia BH-BMPT'!$D$30,IF(J22=30,'[2]Equivalencia BH-BMPT'!$D$31,IF(J22=31,'[2]Equivalencia BH-BMPT'!$D$32,IF(J22=32,'[2]Equivalencia BH-BMPT'!$D$33,IF(J22=33,'[2]Equivalencia BH-BMPT'!$D$34,IF(J22=34,'[2]Equivalencia BH-BMPT'!$D$35,IF(J22=35,'[2]Equivalencia BH-BMPT'!$D$36,IF(J22=36,'[2]Equivalencia BH-BMPT'!$D$37,IF(J22=37,'[2]Equivalencia BH-BMPT'!$D$38,IF(J22=38,'[2]Equivalencia BH-BMPT'!#REF!,IF(J22=39,'[2]Equivalencia BH-BMPT'!$D$40,IF(J22=40,'[2]Equivalencia BH-BMPT'!$D$41,IF(J22=41,'[2]Equivalencia BH-BMPT'!$D$42,IF(J22=42,'[2]Equivalencia BH-BMPT'!$D$43,IF(J22=43,'[2]Equivalencia BH-BMPT'!$D$44,IF(J22=44,'[2]Equivalencia BH-BMPT'!$D$45,IF(J22=45,'[2]Equivalencia BH-BMPT'!$D$46,"No ha seleccionado un número de programa"))))))))))))))))))))))))))))))))))))))))))))) -> Bogotá, una ciudad digital | L22: 0000 | M22: 8300125874 | N22: CANAL CAPITAL | O22: 31837862 | T22: 31837862 | V22: 2017-08-24 | W22: 2017-09-14 | X22: 2018-02-02 | Y22: 140 | AC22: X | AF22: 0 | AG22: FALSE
A23: 95 | B23: 2017 | C23: SECOP II | D23: 11 | E23: =IF(D23=1,'[3]Tipo '!$B$2,IF(D23=2,'[3]Tipo '!$B$3,IF(D23=3,'[3]Tipo '!$B$4,IF(D23=4,'[3]Tipo '!$B$5,IF(D23=5,'[3]Tipo '!$B$6,IF(D23=6,'[3]Tipo '!$B$7,IF(D23=7,'[3]Tipo '!$B$8,IF(D23=8,'[3]Tipo '!$B$9,IF(D23=9,'[3]Tipo '!$B$10,IF(D23=10,'[3]Tipo '!$B$11,IF(D23=11,'[3]Tipo '!$B$12,IF(D23=12,'[3]Tipo '!$B$13,IF(D23=13,'[3]Tipo '!$B$14,IF(D23=14,'[3]Tipo '!$B$15,IF(D23=15,'[3]Tipo '!$B$16,IF(D23=16,'[3]Tipo '!$B$17,IF(D23=17,'[3]Tipo '!$B$18,IF(D23=18,'[3]Tipo '!$B$19,IF(D23=19,'[3]Tipo '!$B$20,"No ha seleccionado un tipo de contrato válido"))))))))))))))))))) -> SUMINISTRO | F23: Contratación mínima cuantia | G23: No aplica | H23: ADQUIRIR A TODO COSTO, EL SERVICIO DE MANTENIMIENTO PREVENTIVO Y CORRECTIVO INTEGRAL CON SUMINISTRO DE REPUESTOS Y MANO DE OBRA PARA LOS VEHÍCULOS QUE CONFORMAN EL PARQUE AUTOMOTOR DEL FONDO DE DESARROLLO LOCAL DE LA CANDELARIA | I23: Funcionamiento | K23: =IF(J23=1,'[3]Equivalencia BH-BMPT'!$D$2,IF(J23=2,'[3]Equivalencia BH-BMPT'!$D$3,IF(J23=3,'[3]Equivalencia BH-BMPT'!$D$4,IF(J23=4,'[3]Equivalencia BH-BMPT'!$D$5,IF(J23=5,'[3]Equivalencia BH-BMPT'!$D$6,IF(J23=6,'[3]Equivalencia BH-BMPT'!$D$7,IF(J23=7,'[3]Equivalencia BH-BMPT'!$D$8,IF(J23=8,'[3]Equivalencia BH-BMPT'!$D$9,IF(J23=9,'[3]Equivalencia BH-BMPT'!$D$10,IF(J23=10,'[3]Equivalencia BH-BMPT'!$D$11,IF(J23=11,'[3]Equivalencia BH-BMPT'!$D$12,IF(J23=12,'[3]Equivalencia BH-BMPT'!$D$13,IF(J23=13,'[3]Equivalencia BH-BMPT'!$D$14,IF(J23=14,'[3]Equivalencia BH-BMPT'!$D$15,IF(J23=15,'[3]Equivalencia BH-BMPT'!$D$16,IF(J23=16,'[3]Equivalencia BH-BMPT'!$D$17,IF(J23=17,'[3]Equivalencia BH-BMPT'!$D$18,IF(J23=18,'[3]Equivalencia BH-BMPT'!$D$19,IF(J23=19,'[3]Equivalencia BH-BMPT'!$D$20,IF(J23=20,'[3]Equivalencia BH-BMPT'!$D$21,IF(J23=21,'[3]Equivalencia BH-BMPT'!$D$22,IF(J23=22,'[3]Equivalencia BH-BMPT'!$D$23,IF(J23=23,'[3]Equivalencia BH-BMPT'!#REF!,IF(J23=24,'[3]Equivalencia BH-BMPT'!$D$25,IF(J23=25,'[3]Equivalencia BH-BMPT'!$D$26,IF(J23=26,'[3]Equivalencia BH-BMPT'!$D$27,IF(J23=27,'[3]Equivalencia BH-BMPT'!$D$28,IF(J23=28,'[3]Equivalencia BH-BMPT'!$D$29,IF(J23=29,'[3]Equivalencia BH-BMPT'!$D$30,IF(J23=30,'[3]Equivalencia BH-BMPT'!$D$31,IF(J23=31,'[3]Equivalencia BH-BMPT'!$D$32,IF(J23=32,'[3]Equivalencia BH-BMPT'!$D$33,IF(J23=33,'[3]Equivalencia BH-BMPT'!$D$34,IF(J23=34,'[3]Equivalencia BH-BMPT'!$D$35,IF(J23=35,'[3]Equivalencia BH-BMPT'!$D$36,IF(J23=36,'[3]Equivalencia BH-BMPT'!$D$37,IF(J23=37,'[3]Equivalencia BH-BMPT'!$D$38,IF(J23=38,'[3]Equivalencia BH-BMPT'!#REF!,IF(J23=39,'[3]Equivalencia BH-BMPT'!$D$40,IF(J23=40,'[3]Equivalencia BH-BMPT'!$D$41,IF(J23=41,'[3]Equivalencia BH-BMPT'!$D$42,IF(J23=42,'[3]Equivalencia BH-BMPT'!$D$43,IF(J23=43,'[3]Equivalencia BH-BMPT'!$D$44,IF(J23=44,'[3]Equivalencia BH-BMPT'!$D$45,IF(J23=45,'[3]Equivalencia BH-BMPT'!$D$46,"No ha seleccionado un número de programa"))))))))))))))))))))))))))))))))))))))))))))) -> No ha seleccionado un número de programa | L23: 0000 | M23: 8002505891 | N23: CENTRO CAR 19 LTDA | O23: 18540000 | T23: 18540000 | V23: 2017-10-13 | W23: 2017-10-24 | X23: 2017-04-23 | Y23: 180 | AD23: X | AF23: 0 | AG23: TRUE
A24: 96 | B24: 2017 | C24: 17-12-7395630 | D24: 4 | E24: =IF(D24=1,'[3]Tipo '!$B$2,IF(D24=2,'[3]Tipo '!$B$3,IF(D24=3,'[3]Tipo '!$B$4,IF(D24=4,'[3]Tipo '!$B$5,IF(D24=5,'[3]Tipo '!$B$6,IF(D24=6,'[3]Tipo '!$B$7,IF(D24=7,'[3]Tipo '!$B$8,IF(D24=8,'[3]Tipo '!$B$9,IF(D24=9,'[3]Tipo '!$B$10,IF(D24=10,'[3]Tipo '!$B$11,IF(D24=11,'[3]Tipo '!$B$12,IF(D24=12,'[3]Tipo '!$B$13,IF(D24=13,'[3]Tipo '!$B$14,IF(D24=14,'[3]Tipo '!$B$15,IF(D24=15,'[3]Tipo '!$B$16,IF(D24=16,'[3]Tipo '!$B$17,IF(D24=17,'[3]Tipo '!$B$18,IF(D24=18,'[3]Tipo '!$B$19,IF(D24=19,'[3]Tipo '!$B$20,"No ha seleccionado un tipo de contrato válido"))))))))))))))))))) -> CONTRATOS DE PRESTACIÓN DE SERVICIOS | F24: Contratación directa | G24: Prestación de servicios profesionales y de apoyo a la gestión, o para la ejecución de trabajos artísticos que sólo puedan encomendarse a determinadas personas naturales; | H24: PRESTACIÓN DE SERVICIOS DE RECOLECCIÓN, CURSOS Y ENTREGA DE CORRESPONDENCIA Y DEMÁS ENVÍOS POSTALES QUE REQUIERAN EL FONDO DE DESARROLLO LOCAL LA CANDELARIA | I24: Funcionamiento | K24: =IF(J24=1,'[3]Equivalencia BH-BMPT'!$D$2,IF(J24=2,'[3]Equivalencia BH-BMPT'!$D$3,IF(J24=3,'[3]Equivalencia BH-BMPT'!$D$4,IF(J24=4,'[3]Equivalencia BH-BMPT'!$D$5,IF(J24=5,'[3]Equivalencia BH-BMPT'!$D$6,IF(J24=6,'[3]Equivalencia BH-BMPT'!$D$7,IF(J24=7,'[3]Equivalencia BH-BMPT'!$D$8,IF(J24=8,'[3]Equivalencia BH-BMPT'!$D$9,IF(J24=9,'[3]Equivalencia BH-BMPT'!$D$10,IF(J24=10,'[3]Equivalencia BH-BMPT'!$D$11,IF(J24=11,'[3]Equivalencia BH-BMPT'!$D$12,IF(J24=12,'[3]Equivalencia BH-BMPT'!$D$13,IF(J24=13,'[3]Equivalencia BH-BMPT'!$D$14,IF(J24=14,'[3]Equivalencia BH-BMPT'!$D$15,IF(J24=15,'[3]Equivalencia BH-BMPT'!$D$16,IF(J24=16,'[3]Equivalencia BH-BMPT'!$D$17,IF(J24=17,'[3]Equivalencia BH-BMPT'!$D$18,IF(J24=18,'[3]Equivalencia BH-BMPT'!$D$19,IF(J24=19,'[3]Equivalencia BH-BMPT'!$D$20,IF(J24=20,'[3]Equivalencia BH-BMPT'!$D$21,IF(J24=21,'[3]Equivalencia BH-BMPT'!$D$22,IF(J24=22,'[3]Equivalencia BH-BMPT'!$D$23,IF(J24=23,'[3]Equivalencia BH-BMPT'!#REF!,IF(J24=24,'[3]Equivalencia BH-BMPT'!$D$25,IF(J24=25,'[3]Equivalencia BH-BMPT'!$D$26,IF(J24=26,'[3]Equivalencia BH-BMPT'!$D$27,IF(J24=27,'[3]Equivalencia BH-BMPT'!$D$28,IF(J24=28,'[3]Equivalencia BH-BMPT'!$D$29,IF(J24=29,'[3]Equivalencia BH-BMPT'!$D$30,IF(J24=30,'[3]Equivalencia BH-BMPT'!$D$31,IF(J24=31,'[3]Equivalencia BH-BMPT'!$D$32,IF(J24=32,'[3]Equivalencia BH-BMPT'!$D$33,IF(J24=33,'[3]Equivalencia BH-BMPT'!$D$34,IF(J24=34,'[3]Equivalencia BH-BMPT'!$D$35,IF(J24=35,'[3]Equivalencia BH-BMPT'!$D$36,IF(J24=36,'[3]Equivalencia BH-BMPT'!$D$37,IF(J24=37,'[3]Equivalencia BH-BMPT'!$D$38,IF(J24=38,'[3]Equivalencia BH-BMPT'!#REF!,IF(J24=39,'[3]Equivalencia BH-BMPT'!$D$40,IF(J24=40,'[3]Equivalencia BH-BMPT'!$D$41,IF(J24=41,'[3]Equivalencia BH-BMPT'!$D$42,IF(J24=42,'[3]Equivalencia BH-BMPT'!$D$43,IF(J24=43,'[3]Equivalencia BH-BMPT'!$D$44,IF(J24=44,'[3]Equivalencia BH-BMPT'!$D$45,IF(J24=45,'[3]Equivalencia BH-BMPT'!$D$46,"No ha seleccionado un número de programa"))))))))))))))))))))))))))))))))))))))))))))) -> No ha seleccionado un número de programa | L24: 0000 | M24: 9000629179 | N24: Servicios Postales Nacionales s.a | O24: 3105600 | T24: 3105600 | V24: 2017-11-02 | W24: 2017-11-02 | X24: 2018-11-15 | Y24: 360 | AC24: X | AF24: 0 | AG24: TRUE
A25: 102 | B25: 2017 | C25: SECOP II | D25: 11 | E25: =IF(D25=1,'[4]Tipo '!$B$2,IF(D25=2,'[4]Tipo '!$B$3,IF(D25=3,'[4]Tipo '!$B$4,IF(D25=4,'[4]Tipo '!$B$5,IF(D25=5,'[4]Tipo '!$B$6,IF(D25=6,'[4]Tipo '!$B$7,IF(D25=7,'[4]Tipo '!$B$8,IF(D25=8,'[4]Tipo '!$B$9,IF(D25=9,'[4]Tipo '!$B$10,IF(D25=10,'[4]Tipo '!$B$11,IF(D25=11,'[4]Tipo '!$B$12,IF(D25=12,'[4]Tipo '!$B$13,IF(D25=13,'[4]Tipo '!$B$14,IF(D25=14,'[4]Tipo '!$B$15,IF(D25=15,'[4]Tipo '!$B$16,IF(D25=16,'[4]Tipo '!$B$17,IF(D25=17,'[4]Tipo '!$B$18,IF(D25=18,'[4]Tipo '!$B$19,IF(D25=19,'[4]Tipo '!$B$20,"No ha seleccionado un tipo de contrato válido"))))))))))))))))))) -> SUMINISTRO | F25: Contratación mínima cuantia | G25: No aplica | H25: SUMINISTRO DE BIENES Y CONDECORACIONES Y MEDALLAS | I25: Funcionamiento | J25: 45 | K25: =IF(J25=1,'[4]Equivalencia BH-BMPT'!$D$2,IF(J25=2,'[4]Equivalencia BH-BMPT'!$D$3,IF(J25=3,'[4]Equivalencia BH-BMPT'!$D$4,IF(J25=4,'[4]Equivalencia BH-BMPT'!$D$5,IF(J25=5,'[4]Equivalencia BH-BMPT'!$D$6,IF(J25=6,'[4]Equivalencia BH-BMPT'!$D$7,IF(J25=7,'[4]Equivalencia BH-BMPT'!$D$8,IF(J25=8,'[4]Equivalencia BH-BMPT'!$D$9,IF(J25=9,'[4]Equivalencia BH-BMPT'!$D$10,IF(J25=10,'[4]Equivalencia BH-BMPT'!$D$11,IF(J25=11,'[4]Equivalencia BH-BMPT'!$D$12,IF(J25=12,'[4]Equivalencia BH-BMPT'!$D$13,IF(J25=13,'[4]Equivalencia BH-BMPT'!$D$14,IF(J25=14,'[4]Equivalencia BH-BMPT'!$D$15,IF(J25=15,'[4]Equivalencia BH-BMPT'!$D$16,IF(J25=16,'[4]Equivalencia BH-BMPT'!$D$17,IF(J25=17,'[4]Equivalencia BH-BMPT'!$D$18,IF(J25=18,'[4]Equivalencia BH-BMPT'!$D$19,IF(J25=19,'[4]Equivalencia BH-BMPT'!$D$20,IF(J25=20,'[4]Equivalencia BH-BMPT'!$D$21,IF(J25=21,'[4]Equivalencia BH-BMPT'!$D$22,IF(J25=22,'[4]Equivalencia BH-BMPT'!$D$23,IF(J25=23,'[4]Equivalencia BH-BMPT'!#REF!,IF(J25=24,'[4]Equivalencia BH-BMPT'!$D$25,IF(J25=25,'[4]Equivalencia BH-BMPT'!$D$26,IF(J25=26,'[4]Equivalencia BH-BMPT'!$D$27,IF(J25=27,'[4]Equivalencia BH-BMPT'!$D$28,IF(J25=28,'[4]Equivalencia BH-BMPT'!$D$29,IF(J25=29,'[4]Equivalencia BH-BMPT'!$D$30,IF(J25=30,'[4]Equivalencia BH-BMPT'!$D$31,IF(J25=31,'[4]Equivalencia BH-BMPT'!$D$32,IF(J25=32,'[4]Equivalencia BH-BMPT'!$D$33,IF(J25=33,'[4]Equivalencia BH-BMPT'!$D$34,IF(J25=34,'[4]Equivalencia BH-BMPT'!$D$35,IF(J25=35,'[4]Equivalencia BH-BMPT'!$D$36,IF(J25=36,'[4]Equivalencia BH-BMPT'!$D$37,IF(J25=37,'[4]Equivalencia BH-BMPT'!$D$38,IF(J25=38,'[4]Equivalencia BH-BMPT'!#REF!,IF(J25=39,'[4]Equivalencia BH-BMPT'!$D$40,IF(J25=40,'[4]Equivalencia BH-BMPT'!$D$41,IF(J25=41,'[4]Equivalencia BH-BMPT'!$D$42,IF(J25=42,'[4]Equivalencia BH-BMPT'!$D$43,IF(J25=43,'[4]Equivalencia BH-BMPT'!$D$44,IF(J25=44,'[4]Equivalencia BH-BMPT'!$D$45,IF(J25=45,'[4]Equivalencia BH-BMPT'!$D$46,"No ha seleccionado un número de programa"))))))))))))))))))))))))))))))))))))))))))))) -> Gobernanza e influencia local, regional e internacional | L25: 0000 | M25: 9010814892 | N25: METAL LINE SAS | O25: 7232000 | T25: 7232000 | U25: 7232000 | V25: 2017-11-16 | W25: 2017-11-20 | X25: 2017-12-19 | Y25: 30 | AE25: X | AF25: 1 | AG25: FALSE
A26: 103 | B26: 2017 | C26: SECOP II | D26: 6 | E26: COMPRAVENTA DE BIENES INMUEBLES | F26: Contratación mínima cuantia | G26: No aplica | H26: ADQUIRIR CARPA TIPO HANGAR Y PIE DE TARIMA PARA EL FONDO DE DESARROLLO LOCAL DE LA CANDELARIA DE LA ALCALDIA LOCAL LA CANDELARIA | I26: Funcionamiento | J26: 45 | K26: =IF(J26=1,'[4]Equivalencia BH-BMPT'!$D$2,IF(J26=2,'[4]Equivalencia BH-BMPT'!$D$3,IF(J26=3,'[4]Equivalencia BH-BMPT'!$D$4,IF(J26=4,'[4]Equivalencia BH-BMPT'!$D$5,IF(J26=5,'[4]Equivalencia BH-BMPT'!$D$6,IF(J26=6,'[4]Equivalencia BH-BMPT'!$D$7,IF(J26=7,'[4]Equivalencia BH-BMPT'!$D$8,IF(J26=8,'[4]Equivalencia BH-BMPT'!$D$9,IF(J26=9,'[4]Equivalencia BH-BMPT'!$D$10,IF(J26=10,'[4]Equivalencia BH-BMPT'!$D$11,IF(J26=11,'[4]Equivalencia BH-BMPT'!$D$12,IF(J26=12,'[4]Equivalencia BH-BMPT'!$D$13,IF(J26=13,'[4]Equivalencia BH-BMPT'!$D$14,IF(J26=14,'[4]Equivalencia BH-BMPT'!$D$15,IF(J26=15,'[4]Equivalencia BH-BMPT'!$D$16,IF(J26=16,'[4]Equivalencia BH-BMPT'!$D$17,IF(J26=17,'[4]Equivalencia BH-BMPT'!$D$18,IF(J26=18,'[4]Equivalencia BH-BMPT'!$D$19,IF(J26=19,'[4]Equivalencia BH-BMPT'!$D$20,IF(J26=20,'[4]Equivalencia BH-BMPT'!$D$21,IF(J26=21,'[4]Equivalencia BH-BMPT'!$D$22,IF(J26=22,'[4]Equivalencia BH-BMPT'!$D$23,IF(J26=23,'[4]Equivalencia BH-BMPT'!#REF!,IF(J26=24,'[4]Equivalencia BH-BMPT'!$D$25,IF(J26=25,'[4]Equivalencia BH-BMPT'!$D$26,IF(J26=26,'[4]Equivalencia BH-BMPT'!$D$27,IF(J26=27,'[4]Equivalencia BH-BMPT'!$D$28,IF(J26=28,'[4]Equivalencia BH-BMPT'!$D$29,IF(J26=29,'[4]Equivalencia BH-BMPT'!$D$30,IF(J26=30,'[4]Equivalencia BH-BMPT'!$D$31,IF(J26=31,'[4]Equivalencia BH-BMPT'!$D$32,IF(J26=32,'[4]Equivalencia BH-BMPT'!$D$33,IF(J26=33,'[4]Equivalencia BH-BMPT'!$D$34,IF(J26=34,'[4]Equivalencia BH-BMPT'!$D$35,IF(J26=35,'[4]Equivalencia BH-BMPT'!$D$36,IF(J26=36,'[4]Equivalencia BH-BMPT'!$D$37,IF(J26=37,'[4]Equivalencia BH-BMPT'!$D$38,IF(J26=38,'[4]Equivalencia BH-BMPT'!#REF!,IF(J26=39,'[4]Equivalencia BH-BMPT'!$D$40,IF(J26=40,'[4]Equivalencia BH-BMPT'!$D$41,IF(J26=41,'[4]Equivalencia BH-BMPT'!$D$42,IF(J26=42,'[4]Equivalencia BH-BMPT'!$D$43,IF(J26=43,'[4]Equivalencia BH-BMPT'!$D$44,IF(J26=44,'[4]Equivalencia BH-BMPT'!$D$45,IF(J26=45,'[4]Equivalencia BH-BMPT'!$D$46,"No ha seleccionado un número de programa"))))))))))))))))))))))))))))))))))))))))))))) -> Gobernanza e influencia local, regional e internacional | L26: 0000 | M26: 9002204760 | N26: CARPAS Y PROYECTOS ZEKO SAS | O26: 5804177 | T26: 5804177 | V26: 2017-11-21 | W26: 2017-11-24 | X26: 2017-01-23 | Y26: 60 | AD26: X | AF26: 0 | AG26: FALSE
A27: 110 | B27: 2017 | C27: 17-13-7438974 | D27: 10 | E27: =IF(D27=1,'[4]Tipo '!$B$2,IF(D27=2,'[4]Tipo '!$B$3,IF(D27=3,'[4]Tipo '!$B$4,IF(D27=4,'[4]Tipo '!$B$5,IF(D27=5,'[4]Tipo '!$B$6,IF(D27=6,'[4]Tipo '!$B$7,IF(D27=7,'[4]Tipo '!$B$8,IF(D27=8,'[4]Tipo '!$B$9,IF(D27=9,'[4]Tipo '!$B$10,IF(D27=10,'[4]Tipo '!$B$11,IF(D27=11,'[4]Tipo '!$B$12,IF(D27=12,'[4]Tipo '!$B$13,IF(D27=13,'[4]Tipo '!$B$14,IF(D27=14,'[4]Tipo '!$B$15,IF(D27=15,'[4]Tipo '!$B$16,IF(D27=16,'[4]Tipo '!$B$17,IF(D27=17,'[4]Tipo '!$B$18,IF(D27=18,'[4]Tipo '!$B$19,IF(D27=19,'[4]Tipo '!$B$20,"No ha seleccionado un tipo de contrato válido"))))))))))))))))))) -> SEGUROS | F27: Contratación mínima cuantia | G27: No aplica | H27: CONTRATAR EL PROGRAMA DE SEGUROS PARA AMPARAR LOS BIENES E INTERESES PATRIMONIALES DE PROPIEDAD DEL FONDO DE DESARROLLO LOCAL DE LA CANDELARIA y POR LOS QUE SEA O LLEGARE A SER RESPONSABLE | I27: Funcionamiento | K27: =IF(J27=1,'[4]Equivalencia BH-BMPT'!$D$2,IF(J27=2,'[4]Equivalencia BH-BMPT'!$D$3,IF(J27=3,'[4]Equivalencia BH-BMPT'!$D$4,IF(J27=4,'[4]Equivalencia BH-BMPT'!$D$5,IF(J27=5,'[4]Equivalencia BH-BMPT'!$D$6,IF(J27=6,'[4]Equivalencia BH-BMPT'!$D$7,IF(J27=7,'[4]Equivalencia BH-BMPT'!$D$8,IF(J27=8,'[4]Equivalencia BH-BMPT'!$D$9,IF(J27=9,'[4]Equivalencia BH-BMPT'!$D$10,IF(J27=10,'[4]Equivalencia BH-BMPT'!$D$11,IF(J27=11,'[4]Equivalencia BH-BMPT'!$D$12,IF(J27=12,'[4]Equivalencia BH-BMPT'!$D$13,IF(J27=13,'[4]Equivalencia BH-BMPT'!$D$14,IF(J27=14,'[4]Equivalencia BH-BMPT'!$D$15,IF(J27=15,'[4]Equivalencia BH-BMPT'!$D$16,IF(J27=16,'[4]Equivalencia BH-BMPT'!$D$17,IF(J27=17,'[4]Equivalencia BH-BMPT'!$D$18,IF(J27=18,'[4]Equivalencia BH-BMPT'!$D$19,IF(J27=19,'[4]Equivalencia BH-BMPT'!$D$20,IF(J27=20,'[4]Equivalencia BH-BMPT'!$D$21,IF(J27=21,'[4]Equivalencia BH-BMPT'!$D$22,IF(J27=22,'[4]Equivalencia BH-BMPT'!$D$23,IF(J27=23,'[4]Equivalencia BH-BMPT'!#REF!,IF(J27=24,'[4]Equivalencia BH-BMPT'!$D$25,IF(J27=25,'[4]Equivalencia BH-BMPT'!$D$26,IF(J27=26,'[4]Equivalencia BH-BMPT'!$D$27,IF(J27=27,'[4]Equivalencia BH-BMPT'!$D$28,IF(J27=28,'[4]Equivalencia BH-BMPT'!$D$29,IF(J27=29,'[4]Equivalencia BH-BMPT'!$D$30,IF(J27=30,'[4]Equivalencia BH-BMPT'!$D$31,IF(J27=31,'[4]Equivalencia BH-BMPT'!$D$32,IF(J27=32,'[4]Equivalencia BH-BMPT'!$D$33,IF(J27=33,'[4]Equivalencia BH-BMPT'!$D$34,IF(J27=34,'[4]Equivalencia BH-BMPT'!$D$35,IF(J27=35,'[4]Equivalencia BH-BMPT'!$D$36,IF(J27=36,'[4]Equivalencia BH-BMPT'!$D$37,IF(J27=37,'[4]Equivalencia BH-BMPT'!$D$38,IF(J27=38,'[4]Equivalencia BH-BMPT'!#REF!,IF(J27=39,'[4]Equivalencia BH-BMPT'!$D$40,IF(J27=40,'[4]Equivalencia BH-BMPT'!$D$41,IF(J27=41,'[4]Equivalencia BH-BMPT'!$D$42,IF(J27=42,'[4]Equivalencia BH-BMPT'!$D$43,IF(J27=43,'[4]Equivalencia BH-BMPT'!$D$44,IF(J27=44,'[4]Equivalencia BH-BMPT'!$D$45,IF(J27=45,'[4]Equivalencia BH-BMPT'!$D$46,"No ha seleccionado un número de programa"))))))))))))))))))))))))))))))))))))))))))))) -> No ha seleccionado un número de programa | L27: 0000 | M27: 8605246546 | N27: ASEGURADORA SOLIDARIA DE COLOMBIA | O27: 16856043 | T27: 16856043 | V27: 2017-12-26 | W27: 2017-12-26 | X27: 2018-06-03 | Y27: 159 | AD27: X | AF27: 0 | AG27: TRUE
A28: 114 | B28: 2017 | C28: SECOP II | D28: 4 | E28: =IF(D28=1,'[4]Tipo '!$B$2,IF(D28=2,'[4]Tipo '!$B$3,IF(D28=3,'[4]Tipo '!$B$4,IF(D28=4,'[4]Tipo '!$B$5,IF(D28=5,'[4]Tipo '!$B$6,IF(D28=6,'[4]Tipo '!$B$7,IF(D28=7,'[4]Tipo '!$B$8,IF(D28=8,'[4]Tipo '!$B$9,IF(D28=9,'[4]Tipo '!$B$10,IF(D28=10,'[4]Tipo '!$B$11,IF(D28=11,'[4]Tipo '!$B$12,IF(D28=12,'[4]Tipo '!$B$13,IF(D28=13,'[4]Tipo '!$B$14,IF(D28=14,'[4]Tipo '!$B$15,IF(D28=15,'[4]Tipo '!$B$16,IF(D28=16,'[4]Tipo '!$B$17,IF(D28=17,'[4]Tipo '!$B$18,IF(D28=18,'[4]Tipo '!$B$19,IF(D28=19,'[4]Tipo '!$B$20,"No ha seleccionado un tipo de contrato válido"))))))))))))))))))) -> CONTRATOS DE PRESTACIÓN DE SERVICIOS | F28: Contratación mínima cuantia | G28: No aplica | H28: Prestar el servicio de mantenimiento preventivo y correctivo, incluyendo repuestos, para las impresoras, fotocopiadoras, sistema ininterrumpido de potencia (UPS) y plotter de propiedad del Fondo de Desarrollo Local de La alcaldía local de La Candelaria. | I28: Funcionamiento | J28: 10 | K28: =IF(J28=1,'[4]Equivalencia BH-BMPT'!$D$2,IF(J28=2,'[4]Equivalencia BH-BMPT'!$D$3,IF(J28=3,'[4]Equivalencia BH-BMPT'!$D$4,IF(J28=4,'[4]Equivalencia BH-BMPT'!$D$5,IF(J28=5,'[4]Equivalencia BH-BMPT'!$D$6,IF(J28=6,'[4]Equivalencia BH-BMPT'!$D$7,IF(J28=7,'[4]Equivalencia BH-BMPT'!$D$8,IF(J28=8,'[4]Equivalencia BH-BMPT'!$D$9,IF(J28=9,'[4]Equivalencia BH-BMPT'!$D$10,IF(J28=10,'[4]Equivalencia BH-BMPT'!$D$11,IF(J28=11,'[4]Equivalencia BH-BMPT'!$D$12,IF(J28=12,'[4]Equivalencia BH-BMPT'!$D$13,IF(J28=13,'[4]Equivalencia BH-BMPT'!$D$14,IF(J28=14,'[4]Equivalencia BH-BMPT'!$D$15,IF(J28=15,'[4]Equivalencia BH-BMPT'!$D$16,IF(J28=16,'[4]Equivalencia BH-BMPT'!$D$17,IF(J28=17,'[4]Equivalencia BH-BMPT'!$D$18,IF(J28=18,'[4]Equivalencia BH-BMPT'!$D$19,IF(J28=19,'[4]Equivalencia BH-BMPT'!$D$20,IF(J28=20,'[4]Equivalencia BH-BMPT'!$D$21,IF(J28=21,'[4]Equivalencia BH-BMPT'!$D$22,IF(J28=22,'[4]Equivalencia BH-BMPT'!$D$23,IF(J28=23,'[4]Equivalencia BH-BMPT'!#REF!,IF(J28=24,'[4]Equivalencia BH-BMPT'!$D$25,IF(J28=25,'[4]Equivalencia BH-BMPT'!$D$26,IF(J28=26,'[4]Equivalencia BH-BMPT'!$D$27,IF(J28=27,'[4]Equivalencia BH-BMPT'!$D$28,IF(J28=28,'[4]Equivalencia BH-BMPT'!$D$29,IF(J28=29,'[4]Equivalencia BH-BMPT'!$D$30,IF(J28=30,'[4]Equivalencia BH-BMPT'!$D$31,IF(J28=31,'[4]Equivalencia BH-BMPT'!$D$32,IF(J28=32,'[4]Equivalencia BH-BMPT'!$D$33,IF(J28=33,'[4]Equivalencia BH-BMPT'!$D$34,IF(J28=34,'[4]Equivalencia BH-BMPT'!$D$35,IF(J28=35,'[4]Equivalencia BH-BMPT'!$D$36,IF(J28=36,'[4]Equivalencia BH-BMPT'!$D$37,IF(J28=37,'[4]Equivalencia BH-BMPT'!$D$38,IF(J28=38,'[4]Equivalencia BH-BMPT'!#REF!,IF(J28=39,'[4]Equivalencia BH-BMPT'!$D$40,IF(J28=40,'[4]Equivalencia BH-BMPT'!$D$41,IF(J28=41,'[4]Equivalencia BH-BMPT'!$D$42,IF(J28=42,'[4]Equivalencia BH-BMPT'!$D$43,IF(J28=43,'[4]Equivalencia BH-BMPT'!$D$44,IF(J28=44,'[4]Equivalencia BH-BMPT'!$D$45,IF(J28=45,'[4]Equivalencia BH-BMPT'!$D$46,"No ha seleccionado un número de programa"))))))))))))))))))))))))))))))))))))))))))))) -> Modernización de la infraestructura física y tecnológica en salud | L28: 0000 | M28: 9006863787 | N28: HELP SOLUCIONES INFORMATICAS HSI SAS | O28: 10641344 | T28: 10641344 | V28: 2017-12-29 | W28: 2018-01-15 | X28: 2019-01-14 | Y28: 360 | AC28: X | AF28: 0 | AG28: FALSE
A29: 115 | B29: 2017 | C29: SECOP II | D29: 6 | E29: COMPRAVENTA DE BIENES INMUEBLES | F29: Contratación mínima cuantia | G29: No aplica | H29: Adquisición de repuestos para computadores con el propósito de fortalecer las diferentes áreas de la alcaldía local de la candelaria | I29: Funcionamiento | J29: 10 | K29: =IF(J29=1,'[4]Equivalencia BH-BMPT'!$D$2,IF(J29=2,'[4]Equivalencia BH-BMPT'!$D$3,IF(J29=3,'[4]Equivalencia BH-BMPT'!$D$4,IF(J29=4,'[4]Equivalencia BH-BMPT'!$D$5,IF(J29=5,'[4]Equivalencia BH-BMPT'!$D$6,IF(J29=6,'[4]Equivalencia BH-BMPT'!$D$7,IF(J29=7,'[4]Equivalencia BH-BMPT'!$D$8,IF(J29=8,'[4]Equivalencia BH-BMPT'!$D$9,IF(J29=9,'[4]Equivalencia BH-BMPT'!$D$10,IF(J29=10,'[4]Equivalencia BH-BMPT'!$D$11,IF(J29=11,'[4]Equivalencia BH-BMPT'!$D$12,IF(J29=12,'[4]Equivalencia BH-BMPT'!$D$13,IF(J29=13,'[4]Equivalencia BH-BMPT'!$D$14,IF(J29=14,'[4]Equivalencia BH-BMPT'!$D$15,IF(J29=15,'[4]Equivalencia BH-BMPT'!$D$16,IF(J29=16,'[4]Equivalencia BH-BMPT'!$D$17,IF(J29=17,'[4]Equivalencia BH-BMPT'!$D$18,IF(J29=18,'[4]Equivalencia BH-BMPT'!$D$19,IF(J29=19,'[4]Equivalencia BH-BMPT'!$D$20,IF(J29=20,'[4]Equivalencia BH-BMPT'!$D$21,IF(J29=21,'[4]Equivalencia BH-BMPT'!$D$22,IF(J29=22,'[4]Equivalencia BH-BMPT'!$D$23,IF(J29=23,'[4]Equivalencia BH-BMPT'!#REF!,IF(J29=24,'[4]Equivalencia BH-BMPT'!$D$25,IF(J29=25,'[4]Equivalencia BH-BMPT'!$D$26,IF(J29=26,'[4]Equivalencia BH-BMPT'!$D$27,IF(J29=27,'[4]Equivalencia BH-BMPT'!$D$28,IF(J29=28,'[4]Equivalencia BH-BMPT'!$D$29,IF(J29=29,'[4]Equivalencia BH-BMPT'!$D$30,IF(J29=30,'[4]Equivalencia BH-BMPT'!$D$31,IF(J29=31,'[4]Equivalencia BH-BMPT'!$D$32,IF(J29=32,'[4]Equivalencia BH-BMPT'!$D$33,IF(J29=33,'[4]Equivalencia BH-BMPT'!$D$34,IF(J29=34,'[4]Equivalencia BH-BMPT'!$D$35,IF(J29=35,'[4]Equivalencia BH-BMPT'!$D$36,IF(J29=36,'[4]Equivalencia BH-BMPT'!$D$37,IF(J29=37,'[4]Equivalencia BH-BMPT'!$D$38,IF(J29=38,'[4]Equivalencia BH-BMPT'!#REF!,IF(J29=39,'[4]Equivalencia BH-BMPT'!$D$40,IF(J29=40,'[4]Equivalencia BH-BMPT'!$D$41,IF(J29=41,'[4]Equivalencia BH-BMPT'!$D$42,IF(J29=42,'[4]Equivalencia BH-BMPT'!$D$43,IF(J29=43,'[4]Equivalencia BH-BMPT'!$D$44,IF(J29=44,'[4]Equivalencia BH-BMPT'!$D$45,IF(J29=45,'[4]Equivalencia BH-BMPT'!$D$46,"No ha seleccionado un número de programa"))))))))))))))))))))))))))))))))))))))))))))) -> Modernización de la infraestructura física y tecnológica en salud | L29: 0000 | M29: 9001834231 | N29: QUALITY COPIERS SAS | O29: 11611736 | T29: 11611736 | V29: 2017-12-29 | W29: 2018-01-15 | X29: 2018-03-14 | Y29: 60 | AC29: X | AF29: 0 | AG29: FALSE
A30: 116 | B30: 2017 | C30: SECOP II | D30: 6 | E30: COMPRAVENTA DE BIENES INMUEBLES | F30: Contratación mínima cuantia | G30: No aplica | H30: ADQUIRIR LOS EQUIPOS DE VIDEO BEAM, SCANNER PARA EL FONDO DE DESARROLLO LOCAL DE LA CANDELARIA | I30: Funcionamiento | J30: 10 | K30: =IF(J30=1,'[4]Equivalencia BH-BMPT'!$D$2,IF(J30=2,'[4]Equivalencia BH-BMPT'!$D$3,IF(J30=3,'[4]Equivalencia BH-BMPT'!$D$4,IF(J30=4,'[4]Equivalencia BH-BMPT'!$D$5,IF(J30=5,'[4]Equivalencia BH-BMPT'!$D$6,IF(J30=6,'[4]Equivalencia BH-BMPT'!$D$7,IF(J30=7,'[4]Equivalencia BH-BMPT'!$D$8,IF(J30=8,'[4]Equivalencia BH-BMPT'!$D$9,IF(J30=9,'[4]Equivalencia BH-BMPT'!$D$10,IF(J30=10,'[4]Equivalencia BH-BMPT'!$D$11,IF(J30=11,'[4]Equivalencia BH-BMPT'!$D$12,IF(J30=12,'[4]Equivalencia BH-BMPT'!$D$13,IF(J30=13,'[4]Equivalencia BH-BMPT'!$D$14,IF(J30=14,'[4]Equivalencia BH-BMPT'!$D$15,IF(J30=15,'[4]Equivalencia BH-BMPT'!$D$16,IF(J30=16,'[4]Equivalencia BH-BMPT'!$D$17,IF(J30=17,'[4]Equivalencia BH-BMPT'!$D$18,IF(J30=18,'[4]Equivalencia BH-BMPT'!$D$19,IF(J30=19,'[4]Equivalencia BH-BMPT'!$D$20,IF(J30=20,'[4]Equivalencia BH-BMPT'!$D$21,IF(J30=21,'[4]Equivalencia BH-BMPT'!$D$22,IF(J30=22,'[4]Equivalencia BH-BMPT'!$D$23,IF(J30=23,'[4]Equivalencia BH-BMPT'!#REF!,IF(J30=24,'[4]Equivalencia BH-BMPT'!$D$25,IF(J30=25,'[4]Equivalencia BH-BMPT'!$D$26,IF(J30=26,'[4]Equivalencia BH-BMPT'!$D$27,IF(J30=27,'[4]Equivalencia BH-BMPT'!$D$28,IF(J30=28,'[4]Equivalencia BH-BMPT'!$D$29,IF(J30=29,'[4]Equivalencia BH-BMPT'!$D$30,IF(J30=30,'[4]Equivalencia BH-BMPT'!$D$31,IF(J30=31,'[4]Equivalencia BH-BMPT'!$D$32,IF(J30=32,'[4]Equivalencia BH-BMPT'!$D$33,IF(J30=33,'[4]Equivalencia BH-BMPT'!$D$34,IF(J30=34,'[4]Equivalencia BH-BMPT'!$D$35,IF(J30=35,'[4]Equivalencia BH-BMPT'!$D$36,IF(J30=36,'[4]Equivalencia BH-BMPT'!$D$37,IF(L129J129=37,'[4]Equivalencia BH-BMPT'!$D$38,IF(J30=38,'[4]Equivalencia BH-BMPT'!#REF!,IF(J30=39,'[4]Equivalencia BH-BMPT'!$D$40,IF(J30=40,'[4]Equivalencia BH-BMPT'!$D$41,IF(J30=41,'[4]Equivalencia BH-BMPT'!$D$42,IF(J30=42,'[4]Equivalencia BH-BMPT'!$D$43,IF(J30=43,'[4]Equivalencia BH-BMPT'!$D$44,IF(J30=44,'[4]Equivalencia BH-BMPT'!$D$45,IF(J30=45,'[4]Equivalencia BH-BMPT'!$D$46,"No ha seleccionado un número de programa"))))))))))))))))))))))))))))))))))))))))))))) -> Modernización de la infraestructura física y tecnológica en salud | L30: 0000 | M30: 9005644591 | N30: GRUPO EMPRESARIAL CREAR COLOMBIA S.A.S | O30: 9393319 | T30: 9393319 | V30: 2017-12-29 | W30: 2017-01-15 | X30: 2018-03-14 | Y30: 60 | AC30: X | AF30: 0 | AG30: FALSE
A31: 119 | B31: 2016 | D31: 11 | E31: =IF(D31=1,'Tipo '!$B$2,IF(D31=2,'Tipo '!$B$3,IF(D31=3,'Tipo '!$B$4,IF(D31=4,'Tipo '!$B$5,IF(D31=5,'Tipo '!$B$6,IF(D31=6,'Tipo '!$B$7,IF(D31=7,'Tipo '!$B$8,IF(D31=8,'Tipo '!$B$9,IF(D31=9,'Tipo '!$B$10,IF(D31=10,'Tipo '!$B$11,IF(D31=11,'Tipo '!$B$12,IF(D31=12,'Tipo '!$B$13,IF(D31=13,'Tipo '!$B$14,IF(D31=14,'Tipo '!$B$15,IF(D31=15,'Tipo '!$B$16,IF(D31=16,'Tipo '!$B$17,IF(D31=17,'Tipo '!$B$18,IF(D31=18,'Tipo '!$B$19,IF(D31=19,'Tipo '!$B$20,"No ha seleccionado un tipo de contrato válido"))))))))))))))))))) -> SUMINISTRO | F31: Contratación mínima cuantia | G31: No aplica | H31: SUMINISTRO DE ELEMENTOS Y MATERIALES DE FERRETERIA PARA EL MANTENIMIENTO DE LAS INSTALACIONES DE LA ALCALDIA LOCAL DE LA CANDELARIA Y LOS BIENES INMUBLES DE PROPIEDAD DEL FONDO DE DESARROLLO LOCAL | I31: Funcionamiento | K31: =IF(J31=1,'Equivalencia BH-BMPT'!$D$2,IF(J31=2,'Equivalencia BH-BMPT'!$D$3,IF(J31=3,'Equivalencia BH-BMPT'!$D$4,IF(J31=4,'Equivalencia BH-BMPT'!$D$5,IF(J31=5,'Equivalencia BH-BMPT'!$D$6,IF(J31=6,'Equivalencia BH-BMPT'!$D$7,IF(J31=7,'Equivalencia BH-BMPT'!$D$8,IF(J31=8,'Equivalencia BH-BMPT'!$D$9,IF(J31=9,'Equivalencia BH-BMPT'!$D$10,IF(J31=10,'Equivalencia BH-BMPT'!$D$11,IF(J31=11,'Equivalencia BH-BMPT'!$D$12,IF(J31=12,'Equivalencia BH-BMPT'!$D$13,IF(J31=13,'Equivalencia BH-BMPT'!$D$14,IF(J31=14,'Equivalencia BH-BMPT'!$D$15,IF(J31=15,'Equivalencia BH-BMPT'!$D$16,IF(J31=16,'Equivalencia BH-BMPT'!$D$17,IF(J31=17,'Equivalencia BH-BMPT'!$D$18,IF(J31=18,'Equivalencia BH-BMPT'!$D$19,IF(J31=19,'Equivalencia BH-BMPT'!$D$20,IF(J31=20,'Equivalencia BH-BMPT'!$D$21,IF(J31=21,'Equivalencia BH-BMPT'!$D$22,IF(J31=22,'Equivalencia BH-BMPT'!$D$23,IF(J31=23,'Equivalencia BH-BMPT'!#REF!,IF(J31=24,'Equivalencia BH-BMPT'!$D$25,IF(J31=25,'Equivalencia BH-BMPT'!$D$26,IF(J31=26,'Equivalencia BH-BMPT'!$D$27,IF(J31=27,'Equivalencia BH-BMPT'!$D$28,IF(J31=28,'Equivalencia BH-BMPT'!$D$29,IF(J31=29,'Equivalencia BH-BMPT'!$D$30,IF(J31=30,'Equivalencia BH-BMPT'!$D$31,IF(J31=31,'Equivalencia BH-BMPT'!$D$32,IF(J31=32,'Equivalencia BH-BMPT'!$D$33,IF(J31=33,'Equivalencia BH-BMPT'!$D$34,IF(J31=34,'Equivalencia BH-BMPT'!$D$35,IF(J31=35,'Equivalencia BH-BMPT'!$D$36,IF(J31=36,'Equivalencia BH-BMPT'!$D$37,IF(J31=37,'Equivalencia BH-BMPT'!$D$38,IF(J31=38,'Equivalencia BH-BMPT'!#REF!,IF(J31=39,'Equivalencia BH-BMPT'!$D$40,IF(J31=40,'Equivalencia BH-BMPT'!$D$41,IF(J31=41,'Equivalencia BH-BMPT'!$D$42,IF(J31=42,'Equivalencia BH-BMPT'!$D$43,IF(J31=43,'Equivalencia BH-BMPT'!$D$44,IF(J31=44,'Equivalencia BH-BMPT'!$D$45,IF(J31=45,'Equivalencia BH-BMPT'!$D$46,"No ha seleccionado un número de programa"))))))))))))))))))))))))))))))))))))))))))))) -> No ha seleccionado un número de programa | L31: 0000 | M31: 9002014611 | N31: ORION CONIC S.A.S | S31: 2500000 | T31: 2500000 | V31: 2016-12-13 | W31: 2017-01-16 | X31: 2017-03-15 | Y31: 420 | AC31: X | AF31: 0 | AG31: TRUE
B32: 2017 | C32: RESOLUCION | G32: No aplica | H32: CONSTITUCION DE LA CAJA MENOR DEL FONDO DE DESARROLLO LOCAL DE LA CANDELARIA | I32: Funcionamiento | K32: =IF(J32=1,'Equivalencia BH-BMPT'!$D$2,IF(J32=2,'Equivalencia BH-BMPT'!$D$3,IF(J32=3,'Equivalencia BH-BMPT'!$D$4,IF(J32=4,'Equivalencia BH-BMPT'!$D$5,IF(J32=5,'Equivalencia BH-BMPT'!$D$6,IF(J32=6,'Equivalencia BH-BMPT'!$D$7,IF(J32=7,'Equivalencia BH-BMPT'!$D$8,IF(J32=8,'Equivalencia BH-BMPT'!$D$9,IF(J32=9,'Equivalencia BH-BMPT'!$D$10,IF(J32=10,'Equivalencia BH-BMPT'!$D$11,IF(J32=11,'Equivalencia BH-BMPT'!$D$12,IF(J32=12,'Equivalencia BH-BMPT'!$D$13,IF(J32=13,'Equivalencia BH-BMPT'!$D$14,IF(J32=14,'Equivalencia BH-BMPT'!$D$15,IF(J32=15,'Equivalencia BH-BMPT'!$D$16,IF(J32=16,'Equivalencia BH-BMPT'!$D$17,IF(J32=17,'Equivalencia BH-BMPT'!$D$18,IF(J32=18,'Equivalencia BH-BMPT'!$D$19,IF(J32=19,'Equivalencia BH-BMPT'!$D$20,IF(J32=20,'Equivalencia BH-BMPT'!$D$21,IF(J32=21,'Equivalencia BH-BMPT'!$D$22,IF(J32=22,'Equivalencia BH-BMPT'!$D$23,IF(J32=23,'Equivalencia BH-BMPT'!#REF!,IF(J32=24,'Equivalencia BH-BMPT'!$D$25,IF(J32=25,'Equivalencia BH-BMPT'!$D$26,IF(J32=26,'Equivalencia BH-BMPT'!$D$27,IF(J32=27,'Equivalencia BH-BMPT'!$D$28,IF(J32=28,'Equivalencia BH-BMPT'!$D$29,IF(J32=29,'Equivalencia BH-BMPT'!$D$30,IF(J32=30,'Equivalencia BH-BMPT'!$D$31,IF(J32=31,'Equivalencia BH-BMPT'!$D$32,IF(J32=32,'Equivalencia BH-BMPT'!$D$33,IF(J32=33,'Equivalencia BH-BMPT'!$D$34,IF(J32=34,'Equivalencia BH-BMPT'!$D$35,IF(J32=35,'Equivalencia BH-BMPT'!$D$36,IF(J32=36,'Equivalencia BH-BMPT'!$D$37,IF(J32=37,'Equivalencia BH-BMPT'!$D$38,IF(J32=38,'Equivalencia BH-BMPT'!#REF!,IF(J32=39,'Equivalencia BH-BMPT'!$D$40,IF(J32=40,'Equivalencia BH-BMPT'!$D$41,IF(J32=41,'Equivalencia BH-BMPT'!$D$42,IF(J32=42,'Equivalencia BH-BMPT'!$D$43,IF(J32=43,'Equivalencia BH-BMPT'!$D$44,IF(J32=44,'Equivalencia BH-BMPT'!$D$45,IF(J32=45,'Equivalencia BH-BMPT'!$D$46,"No ha seleccionado un número de programa"))))))))))))))))))))))))))))))))))))))))))))) -> No ha seleccionado un número de programa | L32: 0000 | N32: FONDO DE DESARROLLO LOCAL DE LA CANDELARIA | S32: 2500000 | T32: 2500000 | U32: 2500000 | V32: 2017-01-20 | W32: 2017-01-20 | X32: 2018-01-19 | Y32: 365 | AD32: X | AF32: 1 | AG32: TRUE
C33: FACTURAS | E33: =IF(D33=1,'Tipo '!$B$2,IF(D33=2,'Tipo '!$B$3,IF(D33=3,'Tipo '!$B$4,IF(D33=4,'Tipo '!$B$5,IF(D33=5,'Tipo '!$B$6,IF(D33=6,'Tipo '!$B$7,IF(D33=7,'Tipo '!$B$8,IF(D33=8,'Tipo '!$B$9,IF(D33=9,'Tipo '!$B$10,IF(D33=10,'Tipo '!$B$11,IF(D33=11,'Tipo '!$B$12,IF(D33=12,'Tipo '!$B$13,IF(D33=13,'Tipo '!$B$14,IF(D33=14,'Tipo '!$B$15,IF(D33=15,'Tipo '!$B$16,IF(D33=16,'Tipo '!$B$17,IF(D33=17,'Tipo '!$B$18,IF(D33=18,'Tipo '!$B$19,IF(D33=19,'Tipo '!$B$20,"No ha seleccionado un tipo de contrato válido"))))))))))))))))))) -> No ha seleccionado un tipo de contrato válido | H33: SERVICIOS PUBLICOS | I33: Funcionamiento | K33: =IF(J33=1,'Equivalencia BH-BMPT'!$D$2,IF(J33=2,'Equivalencia BH-BMPT'!$D$3,IF(J33=3,'Equivalencia BH-BMPT'!$D$4,IF(J33=4,'Equivalencia BH-BMPT'!$D$5,IF(J33=5,'Equivalencia BH-BMPT'!$D$6,IF(J33=6,'Equivalencia BH-BMPT'!$D$7,IF(J33=7,'Equivalencia BH-BMPT'!$D$8,IF(J33=8,'Equivalencia BH-BMPT'!$D$9,IF(J33=9,'Equivalencia BH-BMPT'!$D$10,IF(J33=10,'Equivalencia BH-BMPT'!$D$11,IF(J33=11,'Equivalencia BH-BMPT'!$D$12,IF(J33=12,'Equivalencia BH-BMPT'!$D$13,IF(J33=13,'Equivalencia BH-BMPT'!$D$14,IF(J33=14,'Equivalencia BH-BMPT'!$D$15,IF(J33=15,'Equivalencia BH-BMPT'!$D$16,IF(J33=16,'Equivalencia BH-BMPT'!$D$17,IF(J33=17,'Equivalencia BH-BMPT'!$D$18,IF(J33=18,'Equivalencia BH-BMPT'!$D$19,IF(J33=19,'Equivalencia BH-BMPT'!$D$20,IF(J33=20,'Equivalencia BH-BMPT'!$D$21,IF(J33=21,'Equivalencia BH-BMPT'!$D$22,IF(J33=22,'Equivalencia BH-BMPT'!$D$23,IF(J33=23,'Equivalencia BH-BMPT'!#REF!,IF(J33=24,'Equivalencia BH-BMPT'!$D$25,IF(J33=25,'Equivalencia BH-BMPT'!$D$26,IF(J33=26,'Equivalencia BH-BMPT'!$D$27,IF(J33=27,'Equivalencia BH-BMPT'!$D$28,IF(J33=28,'Equivalencia BH-BMPT'!$D$29,IF(J33=29,'Equivalencia BH-BMPT'!$D$30,IF(J33=30,'Equivalencia BH-BMPT'!$D$31,IF(J33=31,'Equivalencia BH-BMPT'!$D$32,IF(J33=32,'Equivalencia BH-BMPT'!$D$33,IF(J33=33,'Equivalencia BH-BMPT'!$D$34,IF(J33=34,'Equivalencia BH-BMPT'!$D$35,IF(J33=35,'Equivalencia BH-BMPT'!$D$36,IF(J33=36,'Equivalencia BH-BMPT'!$D$37,IF(J33=37,'Equivalencia BH-BMPT'!$D$38,IF(J33=38,'Equivalencia BH-BMPT'!#REF!,IF(J33=39,'Equivalencia BH-BMPT'!$D$40,IF(J33=40,'Equivalencia BH-BMPT'!$D$41,IF(J33=41,'Equivalencia BH-BMPT'!$D$42,IF(J33=42,'Equivalencia BH-BMPT'!$D$43,IF(J33=43,'Equivalencia BH-BMPT'!$D$44,IF(J33=44,'Equivalencia BH-BMPT'!$D$45,IF(J33=45,'Equivalencia BH-BMPT'!$D$46,"No ha seleccionado un número de programa"))))))))))))))))))))))))))))))))))))))))))))) -> No ha seleccionado un número de programa | L33: 0000 | N33: PAGO DE SERVICIOS PUBLICOS | S33: 79211804 | T33: 79211804 | U33: 79211804 | AF33: 1 | AG33: TRUE
B34: 2017 | C34: RESOLUCION | E34: COSTOS OPERATIVOS PARA EL PAGO DEL SUBSIDIO BONO TIPO C VIGENCIA 2017 | F34: RESOLUCIÓN | G34: No aplica | H34: COSTOS OPERATIVOS PARA EL PAGO DEL SUBSIDIO BONO TIPO C VIGENCIA 2017 | I34: Inversión | J34: 3 | K34: =IF(J34=1,'Equivalencia BH-BMPT'!$D$2,IF(J34=2,'Equivalencia BH-BMPT'!$D$3,IF(J34=3,'Equivalencia BH-BMPT'!$D$4,IF(J34=4,'Equivalencia BH-BMPT'!$D$5,IF(J34=5,'Equivalencia BH-BMPT'!$D$6,IF(J34=6,'Equivalencia BH-BMPT'!$D$7,IF(J34=7,'Equivalencia BH-BMPT'!$D$8,IF(J34=8,'Equivalencia BH-BMPT'!$D$9,IF(J34=9,'Equivalencia BH-BMPT'!$D$10,IF(J34=10,'Equivalencia BH-BMPT'!$D$11,IF(J34=11,'Equivalencia BH-BMPT'!$D$12,IF(J34=12,'Equivalencia BH-BMPT'!$D$13,IF(J34=13,'Equivalencia BH-BMPT'!$D$14,IF(J34=14,'Equivalencia BH-BMPT'!$D$15,IF(J34=15,'Equivalencia BH-BMPT'!$D$16,IF(J34=16,'Equivalencia BH-BMPT'!$D$17,IF(J34=17,'Equivalencia BH-BMPT'!$D$18,IF(J34=18,'Equivalencia BH-BMPT'!$D$19,IF(J34=19,'Equivalencia BH-BMPT'!$D$20,IF(J34=20,'Equivalencia BH-BMPT'!$D$21,IF(J34=21,'Equivalencia BH-BMPT'!$D$22,IF(J34=22,'Equivalencia BH-BMPT'!$D$23,IF(J34=23,'Equivalencia BH-BMPT'!D92,IF(J34=24,'Equivalencia BH-BMPT'!$D$25,IF(J34=25,'Equivalencia BH-BMPT'!$D$26,IF(J34=26,'Equivalencia BH-BMPT'!$D$27,IF(J34=27,'Equivalencia BH-BMPT'!$D$28,IF(J34=28,'Equivalencia BH-BMPT'!$D$29,IF(J34=29,'Equivalencia BH-BMPT'!$D$30,IF(J34=30,'Equivalencia BH-BMPT'!$D$31,IF(J34=31,'Equivalencia BH-BMPT'!$D$32,IF(J34=32,'Equivalencia BH-BMPT'!$D$33,IF(J34=33,'Equivalencia BH-BMPT'!$D$34,IF(J34=34,'Equivalencia BH-BMPT'!$D$35,IF(J34=35,'Equivalencia BH-BMPT'!$D$36,IF(J34=36,'Equivalencia BH-BMPT'!$D$37,IF(J34=37,'Equivalencia BH-BMPT'!$D$38,IF(J34=38,'Equivalencia BH-BMPT'!D107,IF(J34=39,'Equivalencia BH-BMPT'!$D$40,IF(J34=40,'Equivalencia BH-BMPT'!$D$41,IF(J34=41,'Equivalencia BH-BMPT'!$D$42,IF(J34=42,'Equivalencia BH-BMPT'!$D$43,IF(J34=43,'Equivalencia BH-BMPT'!$D$44,IF(J34=44,'Equivalencia BH-BMPT'!$D$45,IF(J34=45,'Equivalencia BH-BMPT'!$D$46,"No ha seleccionado un número de programa"))))))))))))))))))))))))))))))))))))))))))))) -> Igualdad y autonomía para una Bogotá incluyente | L34: 1386 | N34: CAJA DE COMPENSACIÓN FAMILIAR | S34: 5966312 | T34: =O34+Q34+S34 -> 5966312 | U34: 5647880 | AF34: 0.9466283359 | AG34: FALSE
A35: 34 | B35: 2017 | C35: 17-12-6331865 | D35: 5 | E35: =IF(D35=1,'[1]Tipo '!$B$2,IF(D35=2,'[1]Tipo '!$B$3,IF(D35=3,'[1]Tipo '!$B$4,IF(D35=4,'[1]Tipo '!$B$5,IF(D35=5,'[1]Tipo '!$B$6,IF(D35=6,'[1]Tipo '!$B$7,IF(D35=7,'[1]Tipo '!$B$8,IF(D35=8,'[1]Tipo '!$B$9,IF(D35=9,'[1]Tipo '!$B$10,IF(D35=10,'[1]Tipo '!$B$11,IF(D35=11,'[1]Tipo '!$B$12,IF(D35=12,'[1]Tipo '!$B$13,IF(D35=13,'[1]Tipo '!$B$14,IF(D35=14,'[1]Tipo '!$B$15,IF(D35=15,'[1]Tipo '!$B$16,IF(D35=16,'[1]Tipo '!$B$17,IF(D35=17,'[1]Tipo '!$B$18,IF(D35=18,'[1]Tipo '!$B$19,IF(D35=19,'[1]Tipo '!$B$20,"No ha seleccionado un tipo de contrato válido"))))))))))))))))))) -> CONTRATOS DE PRESTACIÓN DE SERVICIOS PROFESIONALES Y DE APOYO A LA GESTIÓN | F35: Contratación directa | G35: Prestación de servicios profesionales y de apoyo a la gestión, o para la ejecución de trabajos artísticos que sólo puedan encomendarse a determinadas personas naturales; | H35: PRESTAR SERVICIOS PROFESIONALES EN LA ADMINISTRACIÓN DEL PROCESO DE FOCALIZACIÓN INICIAL DE LOS BENEFICIARIOS DEL SUBSIDIO TIPO C, EN EL MARCO DEL PROYECTO NO. 1386: SUBSIDIO BONO TIPO C, DE CONFORMIDAD CON LOS ESTUDIOS PREVIOS, DOCUMENTO QUE FORMA PARTE INTEGRAL DEL PROCESO | I35: Inversión | J35: 3 | K35: =IF(J35=1,'[1]Equivalencia BH-BMPT'!$D$2,IF(J35=2,'[1]Equivalencia BH-BMPT'!$D$3,IF(J35=3,'[1]Equivalencia BH-BMPT'!$D$4,IF(J35=4,'[1]Equivalencia BH-BMPT'!$D$5,IF(J35=5,'[1]Equivalencia BH-BMPT'!$D$6,IF(J35=6,'[1]Equivalencia BH-BMPT'!$D$7,IF(J35=7,'[1]Equivalencia BH-BMPT'!$D$8,IF(J35=8,'[1]Equivalencia BH-BMPT'!$D$9,IF(J35=9,'[1]Equivalencia BH-BMPT'!$D$10,IF(J35=10,'[1]Equivalencia BH-BMPT'!$D$11,IF(J35=11,'[1]Equivalencia BH-BMPT'!$D$12,IF(J35=12,'[1]Equivalencia BH-BMPT'!$D$13,IF(J35=13,'[1]Equivalencia BH-BMPT'!$D$14,IF(J35=14,'[1]Equivalencia BH-BMPT'!$D$15,IF(J35=15,'[1]Equivalencia BH-BMPT'!$D$16,IF(J35=16,'[1]Equivalencia BH-BMPT'!$D$17,IF(J35=17,'[1]Equivalencia BH-BMPT'!$D$18,IF(J35=18,'[1]Equivalencia BH-BMPT'!$D$19,IF(J35=19,'[1]Equivalencia BH-BMPT'!$D$20,IF(J35=20,'[1]Equivalencia BH-BMPT'!$D$21,IF(J35=21,'[1]Equivalencia BH-BMPT'!$D$22,IF(J35=22,'[1]Equivalencia BH-BMPT'!$D$23,IF(J35=23,'[1]Equivalencia BH-BMPT'!#REF!,IF(J35=24,'[1]Equivalencia BH-BMPT'!$D$25,IF(J35=25,'[1]Equivalencia BH-BMPT'!$D$26,IF(J35=26,'[1]Equivalencia BH-BMPT'!$D$27,IF(J35=27,'[1]Equivalencia BH-BMPT'!$D$28,IF(J35=28,'[1]Equivalencia BH-BMPT'!$D$29,IF(J35=29,'[1]Equivalencia BH-BMPT'!$D$30,IF(J35=30,'[1]Equivalencia BH-BMPT'!$D$31,IF(J35=31,'[1]Equivalencia BH-BMPT'!$D$32,IF(J35=32,'[1]Equivalencia BH-BMPT'!$D$33,IF(J35=33,'[1]Equivalencia BH-BMPT'!$D$34,IF(J35=34,'[1]Equivalencia BH-BMPT'!$D$35,IF(J35=35,'[1]Equivalencia BH-BMPT'!$D$36,IF(J35=36,'[1]Equivalencia BH-BMPT'!$D$37,IF(J35=37,'[1]Equivalencia BH-BMPT'!$D$38,IF(J35=38,'[1]Equivalencia BH-BMPT'!#REF!,IF(J35=39,'[1]Equivalencia BH-BMPT'!$D$40,IF(J35=40,'[1]Equivalencia BH-BMPT'!$D$41,IF(J35=41,'[1]Equivalencia BH-BMPT'!$D$42,IF(J35=42,'[1]Equivalencia BH-BMPT'!$D$43,IF(J35=43,'[1]Equivalencia BH-BMPT'!$D$44,IF(J35=44,'[1]Equivalencia BH-BMPT'!$D$45,IF(J35=45,'[1]Equivalencia BH-BMPT'!$D$46,"No ha seleccionado un número de programa"))))))))))))))))))))))))))))))))))))))))))))) -> Igualdad y autonomía para una Bogotá incluyente | L35: 1386 | M35: 52845870 | N35: JENNYFFER PAOLA GUIO VELOZA | O35: 44631879 | T35: =O35+Q35+S35 -> 44631879 | U35: 40980192 | V35: 2017-02-07 | W35: 2017-02-07 | X35: 2018-12-30 | Y35: 325 | AD35: X | AF35: 0.9181820913 | AG35: FALSE
A36: 35 | B36: 2017 | C36: 17-12-6332091 | D36: 5 | E36: =IF(D36=1,'[1]Tipo '!$B$2,IF(D36=2,'[1]Tipo '!$B$3,IF(D36=3,'[1]Tipo '!$B$4,IF(D36=4,'[1]Tipo '!$B$5,IF(D36=5,'[1]Tipo '!$B$6,IF(D36=6,'[1]Tipo '!$B$7,IF(D36=7,'[1]Tipo '!$B$8,IF(D36=8,'[1]Tipo '!$B$9,IF(D36=9,'[1]Tipo '!$B$10,IF(D36=10,'[1]Tipo '!$B$11,IF(D36=11,'[1]Tipo '!$B$12,IF(D36=12,'[1]Tipo '!$B$13,IF(D36=13,'[1]Tipo '!$B$14,IF(D36=14,'[1]Tipo '!$B$15,IF(D36=15,'[1]Tipo '!$B$16,IF(D36=16,'[1]Tipo '!$B$17,IF(D36=17,'[1]Tipo '!$B$18,IF(D36=18,'[1]Tipo '!$B$19,IF(D36=19,'[1]Tipo '!$B$20,"No ha seleccionado un tipo de contrato válido"))))))))))))))))))) -> CONTRATOS DE PRESTACIÓN DE SERVICIOS PROFESIONALES Y DE APOYO A LA GESTIÓN | F36: Contratación directa | G36: Prestación de servicios profesionales y de apoyo a la gestión, o para la ejecución de trabajos artísticos que sólo puedan encomendarse a determinadas personas naturales; | H36: PRESTAR SERVICIOS PROFESIONALES EN LA ADMINISTRACIÓN DEL PROCESO DE FOCALIZACIÓN INICIAL DE LOS BENEFICIARIOS DEL SUBSIDIO TIPO C, EN EL MARCO DEL PROYECTO NO. 1386: SUBSIDIO BONO TIPO C, DE CONFORMIDAD CON LOS ESTUDIOS PREVIOS, DOCUMENTO QUE FORMA PARTE INTEGRAL DEL PROCESO | I36: Inversión | J36: 3 | K36: =IF(J36=1,'[1]Equivalencia BH-BMPT'!$D$2,IF(J36=2,'[1]Equivalencia BH-BMPT'!$D$3,IF(J36=3,'[1]Equivalencia BH-BMPT'!$D$4,IF(J36=4,'[1]Equivalencia BH-BMPT'!$D$5,IF(J36=5,'[1]Equivalencia BH-BMPT'!$D$6,IF(J36=6,'[1]Equivalencia BH-BMPT'!$D$7,IF(J36=7,'[1]Equivalencia BH-BMPT'!$D$8,IF(J36=8,'[1]Equivalencia BH-BMPT'!$D$9,IF(J36=9,'[1]Equivalencia BH-BMPT'!$D$10,IF(J36=10,'[1]Equivalencia BH-BMPT'!$D$11,IF(J36=11,'[1]Equivalencia BH-BMPT'!$D$12,IF(J36=12,'[1]Equivalencia BH-BMPT'!$D$13,IF(J36=13,'[1]Equivalencia BH-BMPT'!$D$14,IF(J36=14,'[1]Equivalencia BH-BMPT'!$D$15,IF(J36=15,'[1]Equivalencia BH-BMPT'!$D$16,IF(J36=16,'[1]Equivalencia BH-BMPT'!$D$17,IF(J36=17,'[1]Equivalencia BH-BMPT'!$D$18,IF(J36=18,'[1]Equivalencia BH-BMPT'!$D$19,IF(J36=19,'[1]Equivalencia BH-BMPT'!$D$20,IF(J36=20,'[1]Equivalencia BH-BMPT'!$D$21,IF(J36=21,'[1]Equivalencia BH-BMPT'!$D$22,IF(J36=22,'[1]Equivalencia BH-BMPT'!$D$23,IF(J36=23,'[1]Equivalencia BH-BMPT'!#REF!,IF(J36=24,'[1]Equivalencia BH-BMPT'!$D$25,IF(J36=25,'[1]Equivalencia BH-BMPT'!$D$26,IF(J36=26,'[1]Equivalencia BH-BMPT'!$D$27,IF(J36=27,'[1]Equivalencia BH-BMPT'!$D$28,IF(J36=28,'[1]Equivalencia BH-BMPT'!$D$29,IF(J36=29,'[1]Equivalencia BH-BMPT'!$D$30,IF(J36=30,'[1]Equivalencia BH-BMPT'!$D$31,IF(J36=31,'[1]Equivalencia BH-BMPT'!$D$32,IF(J36=32,'[1]Equivalencia BH-BMPT'!$D$33,IF(J36=33,'[1]Equivalencia BH-BMPT'!$D$34,IF(J36=34,'[1]Equivalencia BH-BMPT'!$D$35,IF(J36=35,'[1]Equivalencia BH-BMPT'!$D$36,IF(J36=36,'[1]Equivalencia BH-BMPT'!$D$37,IF(J36=37,'[1]Equivalencia BH-BMPT'!$D$38,IF(J36=38,'[1]Equivalencia BH-BMPT'!#REF!,IF(J36=39,'[1]Equivalencia BH-BMPT'!$D$40,IF(J36=40,'[1]Equivalencia BH-BMPT'!$D$41,IF(J36=41,'[1]Equivalencia BH-BMPT'!$D$42,IF(J36=42,'[1]Equivalencia BH-BMPT'!$D$43,IF(J36=43,'[1]Equivalencia BH-BMPT'!$D$44,IF(J36=44,'[1]Equivalencia BH-BMPT'!$D$45,IF(J36=45,'[1]Equivalencia BH-BMPT'!$D$46,"No ha seleccionado un número de programa"))))))))))))))))))))))))))))))))))))))))))))) -> Igualdad y autonomía para una Bogotá incluyente | L36: 1386 | M36: 1110445974 | N36: DIANA CATALINA BONILLA ALCAZAR | O36: 44631879 | P36: 8385373 | T36: =O36+Q36+S36-P36 -> 36246506 | U36: 36246506 | V36: 2017-02-07 | W36: 2017-02-07 | X36: 2017-12-30 | Y36: 325 | AE36: X | AF36: 1 | AG36: FALSE
A37: 37 | B37: 2017 | C37: 17-12-6332604 | D37: 5 | E37: =IF(D37=1,'[1]Tipo '!$B$2,IF(D37=2,'[1]Tipo '!$B$3,IF(D37=3,'[1]Tipo '!$B$4,IF(D37=4,'[1]Tipo '!$B$5,IF(D37=5,'[1]Tipo '!$B$6,IF(D37=6,'[1]Tipo '!$B$7,IF(D37=7,'[1]Tipo '!$B$8,IF(D37=8,'[1]Tipo '!$B$9,IF(D37=9,'[1]Tipo '!$B$10,IF(D37=10,'[1]Tipo '!$B$11,IF(D37=11,'[1]Tipo '!$B$12,IF(D37=12,'[1]Tipo '!$B$13,IF(D37=13,'[1]Tipo '!$B$14,IF(D37=14,'[1]Tipo '!$B$15,IF(D37=15,'[1]Tipo '!$B$16,IF(D37=16,'[1]Tipo '!$B$17,IF(D37=17,'[1]Tipo '!$B$18,IF(D37=18,'[1]Tipo '!$B$19,IF(D37=19,'[1]Tipo '!$B$20,"No ha seleccionado un tipo de contrato válido"))))))))))))))))))) -> CONTRATOS DE PRESTACIÓN DE SERVICIOS PROFESIONALES Y DE APOYO A LA GESTIÓN | F37: Contratación directa | G37: Prestación de servicios profesionales y de apoyo a la gestión, o para la ejecución de trabajos artísticos que sólo puedan encomendarse a determinadas personas naturales; | H37: PRESTAR SERVICIOS PROFESIONALES EN EL PROCESO DE FOCALIZACIÓN INICIAL DE LOS BENEFICIARIOS DEL SUBSIDIO TIPO C, EN EL MARCO DEL PROYECTO NO. 1386: SUBSIDIO BONO TIPO C, DE CONFORMIDAD CON LOS ESTUDIOS PREVIOS, DOCUMENTO QUE FORMA PARTE INTEGRAL DEL PROCESO | I37: Inversión | J37: 3 | K37: =IF(J37=1,'[1]Equivalencia BH-BMPT'!$D$2,IF(J37=2,'[1]Equivalencia BH-BMPT'!$D$3,IF(J37=3,'[1]Equivalencia BH-BMPT'!$D$4,IF(J37=4,'[1]Equivalencia BH-BMPT'!$D$5,IF(J37=5,'[1]Equivalencia BH-BMPT'!$D$6,IF(J37=6,'[1]Equivalencia BH-BMPT'!$D$7,IF(J37=7,'[1]Equivalencia BH-BMPT'!$D$8,IF(J37=8,'[1]Equivalencia BH-BMPT'!$D$9,IF(J37=9,'[1]Equivalencia BH-BMPT'!$D$10,IF(J37=10,'[1]Equivalencia BH-BMPT'!$D$11,IF(J37=11,'[1]Equivalencia BH-BMPT'!$D$12,IF(J37=12,'[1]Equivalencia BH-BMPT'!$D$13,IF(J37=13,'[1]Equivalencia BH-BMPT'!$D$14,IF(J37=14,'[1]Equivalencia BH-BMPT'!$D$15,IF(J37=15,'[1]Equivalencia BH-BMPT'!$D$16,IF(J37=16,'[1]Equivalencia BH-BMPT'!$D$17,IF(J37=17,'[1]Equivalencia BH-BMPT'!$D$18,IF(J37=18,'[1]Equivalencia BH-BMPT'!$D$19,IF(J37=19,'[1]Equivalencia BH-BMPT'!$D$20,IF(J37=20,'[1]Equivalencia BH-BMPT'!$D$21,IF(J37=21,'[1]Equivalencia BH-BMPT'!$D$22,IF(J37=22,'[1]Equivalencia BH-BMPT'!$D$23,IF(J37=23,'[1]Equivalencia BH-BMPT'!#REF!,IF(J37=24,'[1]Equivalencia BH-BMPT'!$D$25,IF(J37=25,'[1]Equivalencia BH-BMPT'!$D$26,IF(J37=26,'[1]Equivalencia BH-BMPT'!$D$27,IF(J37=27,'[1]Equivalencia BH-BMPT'!$D$28,IF(J37=28,'[1]Equivalencia BH-BMPT'!$D$29,IF(J37=29,'[1]Equivalencia BH-BMPT'!$D$30,IF(J37=30,'[1]Equivalencia BH-BMPT'!$D$31,IF(J37=31,'[1]Equivalencia BH-BMPT'!$D$32,IF(J37=32,'[1]Equivalencia BH-BMPT'!$D$33,IF(J37=33,'[1]Equivalencia BH-BMPT'!$D$34,IF(J37=34,'[1]Equivalencia BH-BMPT'!$D$35,IF(J37=35,'[1]Equivalencia BH-BMPT'!$D$36,IF(J37=36,'[1]Equivalencia BH-BMPT'!$D$37,IF(J37=37,'[1]Equivalencia BH-BMPT'!$D$38,IF(J37=38,'[1]Equivalencia BH-BMPT'!#REF!,IF(J37=39,'[1]Equivalencia BH-BMPT'!$D$40,IF(J37=40,'[1]Equivalencia BH-BMPT'!$D$41,IF(J37=41,'[1]Equivalencia BH-BMPT'!$D$42,IF(J37=42,'[1]Equivalencia BH-BMPT'!$D$43,IF(J37=43,'[1]Equivalencia BH-BMPT'!$D$44,IF(J37=44,'[1]Equivalencia BH-BMPT'!$D$45,IF(J37=45,'[1]Equivalencia BH-BMPT'!$D$46,"No ha seleccionado un número de programa"))))))))))))))))))))))))))))))))))))))))))))) -> Igualdad y autonomía para una Bogotá incluyente | L37: 1386 | M37: 52760226 | N37: NUBIA CONSUELO CHAVARRO GALINDO | O37: 44631879 | T37: =O37+Q37+S37 -> 44631879 | U37: 41756954 | V37: 2017-02-07 | W37: 2017-02-07 | X37: 2017-12-30 | Y37: 325 | AD37: X | AF37: 0.9355858399 | AG37: FALSE
B38: 2017 | C38: RESOLUCION | E38: RESOLUCION | G38: No aplica | H38: PAGO SUBSIDIO TIPO C PARA EL ADULTO MAYOR DE LA LOCALIDAD DE LA CANDELARIA VIGENCIA 2016. REEMPLAZA EL RP No. 486 DEL 2016 POR CONSTITUIRSE COMO OBLIGACIONES POR PAGAR | I38: Inversión | J38: 3 | K38: =IF(J38=1,'Equivalencia BH-BMPT'!$D$2,IF(J38=2,'Equivalencia BH-BMPT'!$D$3,IF(J38=3,'Equivalencia BH-BMPT'!$D$4,IF(J38=4,'Equivalencia BH-BMPT'!$D$5,IF(J38=5,'Equivalencia BH-BMPT'!$D$6,IF(J38=6,'Equivalencia BH-BMPT'!$D$7,IF(J38=7,'Equivalencia BH-BMPT'!$D$8,IF(J38=8,'Equivalencia BH-BMPT'!$D$9,IF(J38=9,'Equivalencia BH-BMPT'!$D$10,IF(J38=10,'Equivalencia BH-BMPT'!$D$11,IF(J38=11,'Equivalencia BH-BMPT'!$D$12,IF(J38=12,'Equivalencia BH-BMPT'!$D$13,IF(J38=13,'Equivalencia BH-BMPT'!$D$14,IF(J38=14,'Equivalencia BH-BMPT'!$D$15,IF(J38=15,'Equivalencia BH-BMPT'!$D$16,IF(J38=16,'Equivalencia BH-BMPT'!$D$17,IF(J38=17,'Equivalencia BH-BMPT'!$D$18,IF(J38=18,'Equivalencia BH-BMPT'!$D$19,IF(J38=19,'Equivalencia BH-BMPT'!$D$20,IF(J38=20,'Equivalencia BH-BMPT'!$D$21,IF(J38=21,'Equivalencia BH-BMPT'!$D$22,IF(J38=22,'Equivalencia BH-BMPT'!$D$23,IF(J38=23,'Equivalencia BH-BMPT'!#REF!,IF(J38=24,'Equivalencia BH-BMPT'!$D$25,IF(J38=25,'Equivalencia BH-BMPT'!$D$26,IF(J38=26,'Equivalencia BH-BMPT'!$D$27,IF(J38=27,'Equivalencia BH-BMPT'!$D$28,IF(J38=28,'Equivalencia BH-BMPT'!$D$29,IF(J38=29,'Equivalencia BH-BMPT'!$D$30,IF(J38=30,'Equivalencia BH-BMPT'!$D$31,IF(J38=31,'Equivalencia BH-BMPT'!$D$32,IF(J38=32,'Equivalencia BH-BMPT'!$D$33,IF(J38=33,'Equivalencia BH-BMPT'!$D$34,IF(J38=34,'Equivalencia BH-BMPT'!$D$35,IF(J38=35,'Equivalencia BH-BMPT'!$D$36,IF(J38=36,'Equivalencia BH-BMPT'!$D$37,IF(J38=37,'Equivalencia BH-BMPT'!$D$38,IF(J38=38,'Equivalencia BH-BMPT'!#REF!,IF(J38=39,'Equivalencia BH-BMPT'!$D$40,IF(J38=40,'Equivalencia BH-BMPT'!$D$41,IF(J38=41,'Equivalencia BH-BMPT'!$D$42,IF(J38=42,'Equivalencia BH-BMPT'!$D$43,IF(J38=43,'Equivalencia BH-BMPT'!$D$44,IF(J38=44,'Equivalencia BH-BMPT'!$D$45,IF(J38=45,'Equivalencia BH-BMPT'!$D$46,"No ha seleccionado un número de programa"))))))))))))))))))))))))))))))))))))))))))))) -> Igualdad y autonomía para una Bogotá incluyente | L38: 1386 | N38: CAJA DE COMPENSACIÓN FAMILIAR | S38: 419760000 | T38: =O38+Q38+S38 -> 419760000 | U38: 311520000 | AF38: 0.7421383648 | AG38: FALSE
A39: 98 | B39: 2017 | C39: 17-12-7395063 | D39: 16 | E39: =IF(D39=1,'[3]Tipo '!$B$2,IF(D39=2,'[3]Tipo '!$B$3,IF(D39=3,'[3]Tipo '!$B$4,IF(D39=4,'[3]Tipo '!$B$5,IF(D39=5,'[3]Tipo '!$B$6,IF(D39=6,'[3]Tipo '!$B$7,IF(D39=7,'[3]Tipo '!$B$8,IF(D39=8,'[3]Tipo '!$B$9,IF(D39=9,'[3]Tipo '!$B$10,IF(D39=10,'[3]Tipo '!$B$11,IF(D39=11,'[3]Tipo '!$B$12,IF(D39=12,'[3]Tipo '!$B$13,IF(D39=13,'[3]Tipo '!$B$14,IF(D39=14,'[3]Tipo '!$B$15,IF(D39=15,'[3]Tipo '!$B$16,IF(D39=16,'[3]Tipo '!$B$17,IF(D39=17,'[3]Tipo '!$B$18,IF(D39=18,'[3]Tipo '!$B$19,IF(D39=19,'[3]Tipo '!$B$20,"No ha seleccionado un tipo de contrato válido"))))))))))))))))))) -> CONTRATOS INTERADMINISTRATIVOS | F39: Contratación directa | G39: Contratos interadministrativos | H39: AUNAR ESFUERZOS TÉCNICOS, ADMINISTRATIVOS Y ECONÓMICOS EN PROMOVER EL EJERCICIO Y LA RESTITUCIÓN DE LA AUTONOMÍA E INCLUSIÓN SOCIAL DE LAS PERSONAS CON DISCAPACIDAD POR MEDIO DEL OTORGAMIENTO DE AYUDAS TÉCNICAS DESDE UNA PERSPECTIVA DE DERECHOS HUMANOS QUE PERMITAN LA INCLUSIÓN SOCIAL EN LAS DIFERENTES ACCIONES DE LA VIDA COTIDIANA, DE CONFORMIDAD CON LA FORMULACIÓN DEL PROYECTO, ESTUDIOS PREVIOS, ANEXO TÉCNICO | I39: Inversión | J39: 3 | K39: =IF(J39=1,'[3]Equivalencia BH-BMPT'!$D$2,IF(J39=2,'[3]Equivalencia BH-BMPT'!$D$3,IF(J39=3,'[3]Equivalencia BH-BMPT'!$D$4,IF(J39=4,'[3]Equivalencia BH-BMPT'!$D$5,IF(J39=5,'[3]Equivalencia BH-BMPT'!$D$6,IF(J39=6,'[3]Equivalencia BH-BMPT'!$D$7,IF(J39=7,'[3]Equivalencia BH-BMPT'!$D$8,IF(J39=8,'[3]Equivalencia BH-BMPT'!$D$9,IF(J39=9,'[3]Equivalencia BH-BMPT'!$D$10,IF(J39=10,'[3]Equivalencia BH-BMPT'!$D$11,IF(J39=11,'[3]Equivalencia BH-BMPT'!$D$12,IF(J39=12,'[3]Equivalencia BH-BMPT'!$D$13,IF(J39=13,'[3]Equivalencia BH-BMPT'!$D$14,IF(J39=14,'[3]Equivalencia BH-BMPT'!$D$15,IF(J39=15,'[3]Equivalencia BH-BMPT'!$D$16,IF(J39=16,'[3]Equivalencia BH-BMPT'!$D$17,IF(J39=17,'[3]Equivalencia BH-BMPT'!$D$18,IF(J39=18,'[3]Equivalencia BH-BMPT'!$D$19,IF(J39=19,'[3]Equivalencia BH-BMPT'!$D$20,IF(J39=20,'[3]Equivalencia BH-BMPT'!$D$21,IF(J39=21,'[3]Equivalencia BH-BMPT'!$D$22,IF(J39=22,'[3]Equivalencia BH-BMPT'!$D$23,IF(J39=23,'[3]Equivalencia BH-BMPT'!#REF!,IF(J39=24,'[3]Equivalencia BH-BMPT'!$D$25,IF(J39=25,'[3]Equivalencia BH-BMPT'!$D$26,IF(J39=26,'[3]Equivalencia BH-BMPT'!$D$27,IF(J39=27,'[3]Equivalencia BH-BMPT'!$D$28,IF(J39=28,'[3]Equivalencia BH-BMPT'!$D$29,IF(J39=29,'[3]Equivalencia BH-BMPT'!$D$30,IF(J39=30,'[3]Equivalencia BH-BMPT'!$D$31,IF(J39=31,'[3]Equivalencia BH-BMPT'!$D$32,IF(J39=32,'[3]Equivalencia BH-BMPT'!$D$33,IF(J39=33,'[3]Equivalencia BH-BMPT'!$D$34,IF(J39=34,'[3]Equivalencia BH-BMPT'!$D$35,IF(J39=35,'[3]Equivalencia BH-BMPT'!$D$36,IF(J39=36,'[3]Equivalencia BH-BMPT'!$D$37,IF(J39=37,'[3]Equivalencia BH-BMPT'!$D$38,IF(J39=38,'[3]Equivalencia BH-BMPT'!#REF!,IF(J39=39,'[3]Equivalencia BH-BMPT'!$D$40,IF(J39=40,'[3]Equivalencia BH-BMPT'!$D$41,IF(J39=41,'[3]Equivalencia BH-BMPT'!$D$42,IF(J39=42,'[3]Equivalencia BH-BMPT'!$D$43,IF(J39=43,'[3]Equivalencia BH-BMPT'!$D$44,IF(J39=44,'[3]Equivalencia BH-BMPT'!$D$45,IF(J39=45,'[3]Equivalencia BH-BMPT'!$D$46,"No ha seleccionado un número de programa"))))))))))))))))))))))))))))))))))))))))))))) -> Igualdad y autonomía para una Bogotá incluyente | L39: 1387 | M39: 9009590517 | N39: SUBRED INTEGRADA DE SERVICIOS DE SALUD CENTRO ORIENTE ESE | O39: 63000000 | T39: =O39+Q39+S39 -> 63000000 | V39: 2017-11-07 | Y39: 120 | AB39: X | AF39: 0 | AG39: FALSE
A40: 112 | B40: 2017 | C40: 17-13-7441904 | D40: 3 | E40: =IF(D40=1,'[4]Tipo '!$B$2,IF(D40=2,'[4]Tipo '!$B$3,IF(D40=3,'[4]Tipo '!$B$4,IF(D40=4,'[4]Tipo '!$B$5,IF(D40=5,'[4]Tipo '!$B$6,IF(D40=6,'[4]Tipo '!$B$7,IF(D40=7,'[4]Tipo '!$B$8,IF(D40=8,'[4]Tipo '!$B$9,IF(D40=9,'[4]Tipo '!$B$10,IF(D40=10,'[4]Tipo '!$B$11,IF(D40=11,'[4]Tipo '!$B$12,IF(D40=12,'[4]Tipo '!$B$13,IF(D40=13,'[4]Tipo '!$B$14,IF(D40=14,'[4]Tipo '!$B$15,IF(D40=15,'[4]Tipo '!$B$16,IF(D40=16,'[4]Tipo '!$B$17,IF(D40=17,'[4]Tipo '!$B$18,IF(D40=18,'[4]Tipo '!$B$19,IF(D40=19,'[4]Tipo '!$B$20,"No ha seleccionado un tipo de contrato válido"))))))))))))))))))) -> INTERVENTORÍA | F40: Concurso de Méritos | G40: No aplica | H40: REALIZAR LA INTERVENTORIA TÉCNICA, ADMINISTRATIVA, FINANCIERA AL CONTRATO INTERADMINISTRATIVO SUSCRITO CON LA SUBRED INTEGRADA DE SERVICIOS DE SALUD CENTRO ORIENTE, CUYO OBJETO ES AUNAR ESFUERZOS TÉCNICOS, ADMINISTRATIVOS Y ECONÓMICOS EN PROMOVER EL EJERCICIO Y LA RESTITUCIÓN DE LA AUTONOMÍA E INCLUSIÓN SOCIAL DE LAS PERSONAS CON DISCAPACIDAD POR MEDIO DE OTORGAMIENTO DE AYUDAS TÉCNICAS DESDE UNA PERPESPECTIVA DE DERECHOS HUMANOS QUE PERMITAN LA INCLUSIÓN SOCIAL EN LAS DIFERENTES ACCIONES DE LA VIDA COTIDIANA, DE CONFORMIDAD CON LA FORMULACIÓN DEL PROYECTO, ESTUDIOS PREVIOS, ANEXO TÉCNICO | I40: Inversión | J40: 3 | K40: =IF(J40=1,'[4]Equivalencia BH-BMPT'!$D$2,IF(J40=2,'[4]Equivalencia BH-BMPT'!$D$3,IF(J40=3,'[4]Equivalencia BH-BMPT'!$D$4,IF(J40=4,'[4]Equivalencia BH-BMPT'!$D$5,IF(J40=5,'[4]Equivalencia BH-BMPT'!$D$6,IF(J40=6,'[4]Equivalencia BH-BMPT'!$D$7,IF(J40=7,'[4]Equivalencia BH-BMPT'!$D$8,IF(J40=8,'[4]Equivalencia BH-BMPT'!$D$9,IF(J40=9,'[4]Equivalencia BH-BMPT'!$D$10,IF(J40=10,'[4]Equivalencia BH-BMPT'!$D$11,IF(J40=11,'[4]Equivalencia BH-BMPT'!$D$12,IF(J40=12,'[4]Equivalencia BH-BMPT'!$D$13,IF(J40=13,'[4]Equivalencia BH-BMPT'!$D$14,IF(J40=14,'[4]Equivalencia BH-BMPT'!$D$15,IF(J40=15,'[4]Equivalencia BH-BMPT'!$D$16,IF(J40=16,'[4]Equivalencia BH-BMPT'!$D$17,IF(J40=17,'[4]Equivalencia BH-BMPT'!$D$18,IF(J40=18,'[4]Equivalencia BH-BMPT'!$D$19,IF(J40=19,'[4]Equivalencia BH-BMPT'!$D$20,IF(J40=20,'[4]Equivalencia BH-BMPT'!$D$21,IF(J40=21,'[4]Equivalencia BH-BMPT'!$D$22,IF(J40=22,'[4]Equivalencia BH-BMPT'!$D$23,IF(J40=23,'[4]Equivalencia BH-BMPT'!#REF!,IF(J40=24,'[4]Equivalencia BH-BMPT'!$D$25,IF(J40=25,'[4]Equivalencia BH-BMPT'!$D$26,IF(J40=26,'[4]Equivalencia BH-BMPT'!$D$27,IF(J40=27,'[4]Equivalencia BH-BMPT'!$D$28,IF(J40=28,'[4]Equivalencia BH-BMPT'!$D$29,IF(J40=29,'[4]Equivalencia BH-BMPT'!$D$30,IF(J40=30,'[4]Equivalencia BH-BMPT'!$D$31,IF(J40=31,'[4]Equivalencia BH-BMPT'!$D$32,IF(J40=32,'[4]Equivalencia BH-BMPT'!$D$33,IF(J40=33,'[4]Equivalencia BH-BMPT'!$D$34,IF(J40=34,'[4]Equivalencia BH-BMPT'!$D$35,IF(J40=35,'[4]Equivalencia BH-BMPT'!$D$36,IF(J40=36,'[4]Equivalencia BH-BMPT'!$D$37,IF(J40=37,'[4]Equivalencia BH-BMPT'!$D$38,IF(J40=38,'[4]Equivalencia BH-BMPT'!#REF!,IF(J40=39,'[4]Equivalencia BH-BMPT'!$D$40,IF(J40=40,'[4]Equivalencia BH-BMPT'!$D$41,IF(J40=41,'[4]Equivalencia BH-BMPT'!$D$42,IF(J40=42,'[4]Equivalencia BH-BMPT'!$D$43,IF(J40=43,'[4]Equivalencia BH-BMPT'!$D$44,IF(J40=44,'[4]Equivalencia BH-BMPT'!$D$45,IF(J40=45,'[4]Equivalencia BH-BMPT'!$D$46,"No ha seleccionado un número de programa"))))))))))))))))))))))))))))))))))))))))))))) -> Igualdad y autonomía para una Bogotá incluyente | L40: 1387 | M40: 8605246546 | N40: MONICA NATALIA BASTIDAS CUENCA | O40: 6000000 | T40: =O40+Q40+S40 -> 6000000 | V40: 2017-12-28 | Y40: 120 | AA40: X | AF40: 0 | AG40: FALSE
A41: 113 | B41: 2017 | C41: SECOP II | D41: 11 | E41: =IF(D41=1,'[4]Tipo '!$B$2,IF(D41=2,'[4]Tipo '!$B$3,IF(D41=3,'[4]Tipo '!$B$4,IF(D41=4,'[4]Tipo '!$B$5,IF(D41=5,'[4]Tipo '!$B$6,IF(D41=6,'[4]Tipo '!$B$7,IF(D41=7,'[4]Tipo '!$B$8,IF(D41=8,'[4]Tipo '!$B$9,IF(D41=9,'[4]Tipo '!$B$10,IF(D41=10,'[4]Tipo '!$B$11,IF(D41=11,'[4]Tipo '!$B$12,IF(D41=12,'[4]Tipo '!$B$13,IF(D41=13,'[4]Tipo '!$B$14,IF(D41=14,'[4]Tipo '!$B$15,IF(D41=15,'[4]Tipo '!$B$16,IF(D41=16,'[4]Tipo '!$B$17,IF(D41=17,'[4]Tipo '!$B$18,IF(D41=18,'[4]Tipo '!$B$19,IF(D41=19,'[4]Tipo '!$B$20,"No ha seleccionado un tipo de contrato válido"))))))))))))))))))) -> SUMINISTRO | F41: Contratación mínima cuantia | G41: No aplica | H41: Suministro de bienes y servicios logísticos para la Visibilización, reconocimiento e inclusión de las personas con Discapacidad de la Localidad de la Candelaria | I41: Inversión | J41: 3 | K41: =IF(J41=1,'[4]Equivalencia BH-BMPT'!$D$2,IF(J41=2,'[4]Equivalencia BH-BMPT'!$D$3,IF(J41=3,'[4]Equivalencia BH-BMPT'!$D$4,IF(J41=4,'[4]Equivalencia BH-BMPT'!$D$5,IF(J41=5,'[4]Equivalencia BH-BMPT'!$D$6,IF(J41=6,'[4]Equivalencia BH-BMPT'!$D$7,IF(J41=7,'[4]Equivalencia BH-BMPT'!$D$8,IF(J41=8,'[4]Equivalencia BH-BMPT'!$D$9,IF(J41=9,'[4]Equivalencia BH-BMPT'!$D$10,IF(J41=10,'[4]Equivalencia BH-BMPT'!$D$11,IF(J41=11,'[4]Equivalencia BH-BMPT'!$D$12,IF(J41=12,'[4]Equivalencia BH-BMPT'!$D$13,IF(J41=13,'[4]Equivalencia BH-BMPT'!$D$14,IF(J41=14,'[4]Equivalencia BH-BMPT'!$D$15,IF(J41=15,'[4]Equivalencia BH-BMPT'!$D$16,IF(J41=16,'[4]Equivalencia BH-BMPT'!$D$17,IF(J41=17,'[4]Equivalencia BH-BMPT'!$D$18,IF(J41=18,'[4]Equivalencia BH-BMPT'!$D$19,IF(J41=19,'[4]Equivalencia BH-BMPT'!$D$20,IF(J41=20,'[4]Equivalencia BH-BMPT'!$D$21,IF(J41=21,'[4]Equivalencia BH-BMPT'!$D$22,IF(J41=22,'[4]Equivalencia BH-BMPT'!$D$23,IF(J41=23,'[4]Equivalencia BH-BMPT'!#REF!,IF(J41=24,'[4]Equivalencia BH-BMPT'!$D$25,IF(J41=25,'[4]Equivalencia BH-BMPT'!$D$26,IF(J41=26,'[4]Equivalencia BH-BMPT'!$D$27,IF(J41=27,'[4]Equivalencia BH-BMPT'!$D$28,IF(J41=28,'[4]Equivalencia BH-BMPT'!$D$29,IF(J41=29,'[4]Equivalencia BH-BMPT'!$D$30,IF(J41=30,'[4]Equivalencia BH-BMPT'!$D$31,IF(J41=31,'[4]Equivalencia BH-BMPT'!$D$32,IF(J41=32,'[4]Equivalencia BH-BMPT'!$D$33,IF(J41=33,'[4]Equivalencia BH-BMPT'!$D$34,IF(J41=34,'[4]Equivalencia BH-BMPT'!$D$35,IF(J41=35,'[4]Equivalencia BH-BMPT'!$D$36,IF(J41=36,'[4]Equivalencia BH-BMPT'!$D$37,IF(J41=37,'[4]Equivalencia BH-BMPT'!$D$38,IF(J41=38,'[4]Equivalencia BH-BMPT'!#REF!,IF(J41=39,'[4]Equivalencia BH-BMPT'!$D$40,IF(J41=40,'[4]Equivalencia BH-BMPT'!$D$41,IF(J41=41,'[4]Equivalencia BH-BMPT'!$D$42,IF(J41=42,'[4]Equivalencia BH-BMPT'!$D$43,IF(J41=43,'[4]Equivalencia BH-BMPT'!$D$44,IF(J41=44,'[4]Equivalencia BH-BMPT'!$D$45,IF(J41=45,'[4]Equivalencia BH-BMPT'!$D$46,"No ha seleccionado un número de programa"))))))))))))))))))))))))))))))))))))))))))))) -> Igualdad y autonomía para una Bogotá incluyente | L41: 1387 | M41: 9000720408 | N41: CORPORACION PARA EL MEJORAMIENTO DE CALIDAD DE VIDA | O41: 15907768 | T41: =O41+Q41+S41 -> 15907768 | V41: 2017-12-29 | Y41: 60 | AA41: X | AF41: 0 | AG41: FALSE
A42: 109 | B42: 2016 | C42: 17-1-176042 | D42: 11 | E42: =IF(D42=1,'Tipo '!$B$2,IF(D42=2,'Tipo '!$B$3,IF(D42=3,'Tipo '!$B$4,IF(D42=4,'Tipo '!$B$5,IF(D42=5,'Tipo '!$B$6,IF(D42=6,'Tipo '!$B$7,IF(D42=7,'Tipo '!$B$8,IF(D42=8,'Tipo '!$B$9,IF(D42=9,'Tipo '!$B$10,IF(D42=10,'Tipo '!$B$11,IF(D42=11,'Tipo '!$B$12,IF(D42=12,'Tipo '!$B$13,IF(D42=13,'Tipo '!$B$14,IF(D42=14,'Tipo '!$B$15,IF(D42=15,'Tipo '!$B$16,IF(D42=16,'Tipo '!$B$17,IF(D42=17,'Tipo '!$B$18,IF(D42=18,'Tipo '!$B$19,IF(D42=19,'Tipo '!$B$20,"No ha seleccionado un tipo de contrato válido"))))))))))))))))))) -> SUMINISTRO | F42: Licitación pública | G42: No aplica | H42: CONMEMORACION DE LA FESTIVIDAD DE REYES MAGOS Y EPIFANIA EN EL BARRIO EGIPTO 2017 | I42: Inversión | J42: 11 | K42: =IF(J42=1,'Equivalencia BH-BMPT'!$D$2,IF(J42=2,'Equivalencia BH-BMPT'!$D$3,IF(J42=3,'Equivalencia BH-BMPT'!$D$4,IF(J42=4,'Equivalencia BH-BMPT'!$D$5,IF(J42=5,'Equivalencia BH-BMPT'!$D$6,IF(J42=6,'Equivalencia BH-BMPT'!$D$7,IF(J42=7,'Equivalencia BH-BMPT'!$D$8,IF(J42=8,'Equivalencia BH-BMPT'!$D$9,IF(J42=9,'Equivalencia BH-BMPT'!$D$10,IF(J42=10,'Equivalencia BH-BMPT'!$D$11,IF(J42=11,'Equivalencia BH-BMPT'!$D$12,IF(J42=12,'Equivalencia BH-BMPT'!$D$13,IF(J42=13,'Equivalencia BH-BMPT'!$D$14,IF(J42=14,'Equivalencia BH-BMPT'!$D$15,IF(J42=15,'Equivalencia BH-BMPT'!$D$16,IF(J42=16,'Equivalencia BH-BMPT'!$D$17,IF(J42=17,'Equivalencia BH-BMPT'!$D$18,IF(J42=18,'Equivalencia BH-BMPT'!$D$19,IF(J42=19,'Equivalencia BH-BMPT'!$D$20,IF(J42=20,'Equivalencia BH-BMPT'!$D$21,IF(J42=21,'Equivalencia BH-BMPT'!$D$22,IF(J42=22,'Equivalencia BH-BMPT'!$D$23,IF(J42=23,'Equivalencia BH-BMPT'!#REF!,IF(J42=24,'Equivalencia BH-BMPT'!$D$25,IF(J42=25,'Equivalencia BH-BMPT'!$D$26,IF(J42=26,'Equivalencia BH-BMPT'!$D$27,IF(J42=27,'Equivalencia BH-BMPT'!$D$28,IF(J42=28,'Equivalencia BH-BMPT'!$D$29,IF(J42=29,'Equivalencia BH-BMPT'!$D$30,IF(J42=30,'Equivalencia BH-BMPT'!$D$31,IF(J42=31,'Equivalencia BH-BMPT'!$D$32,IF(J42=32,'Equivalencia BH-BMPT'!$D$33,IF(J42=33,'Equivalencia BH-BMPT'!$D$34,IF(J42=34,'Equivalencia BH-BMPT'!$D$35,IF(J42=35,'Equivalencia BH-BMPT'!$D$36,IF(J42=36,'Equivalencia BH-BMPT'!$D$37,IF(J42=37,'Equivalencia BH-BMPT'!$D$38,IF(J42=38,'Equivalencia BH-BMPT'!#REF!,IF(J42=39,'Equivalencia BH-BMPT'!$D$40,IF(J42=40,'Equivalencia BH-BMPT'!$D$41,IF(J42=41,'Equivalencia BH-BMPT'!$D$42,IF(J42=42,'Equivalencia BH-BMPT'!$D$43,IF(J42=43,'Equivalencia BH-BMPT'!$D$44,IF(J42=44,'Equivalencia BH-BMPT'!$D$45,IF(J42=45,'Equivalencia BH-BMPT'!$D$46,"No ha seleccionado un número de programa"))))))))))))))))))))))))))))))))))))))))))))) -> Mejores oportunidades para el desarrollo a través de la cultura, la recreación y el deporte | L42: 1389 | N42: PLATINO ENTERTAINMENTS S.A.S | P42: 50000 | S42: 75568979 | T42: =O42+Q42+S42-P42 -> 75518979 | U42: 75518979 | AE42: X | AF42: 1 | AG42: FALSE
A43: 85 | B43: 2017 | C43: 17-1-176042 | D43: 11 | E43: =IF(D43=1,'[2]Tipo '!$B$2,IF(D43=2,'[2]Tipo '!$B$3,IF(D43=3,'[2]Tipo '!$B$4,IF(D43=4,'[2]Tipo '!$B$5,IF(D43=5,'[2]Tipo '!$B$6,IF(D43=6,'[2]Tipo '!$B$7,IF(D43=7,'[2]Tipo '!$B$8,IF(D43=8,'[2]Tipo '!$B$9,IF(D43=9,'[2]Tipo '!$B$10,IF(D43=10,'[2]Tipo '!$B$11,IF(D43=11,'[2]Tipo '!$B$12,IF(D43=12,'[2]Tipo '!$B$13,IF(D43=13,'[2]Tipo '!$B$14,IF(D43=14,'[2]Tipo '!$B$15,IF(D43=15,'[2]Tipo '!$B$16,IF(D43=16,'[2]Tipo '!$B$17,IF(D43=17,'[2]Tipo '!$B$18,IF(D43=18,'[2]Tipo '!$B$19,IF(D43=19,'[2]Tipo '!$B$20,"No ha seleccionado un tipo de contrato válido"))))))))))))))))))) -> SUMINISTRO | F43: Licitación pública | G43: No aplica | H43: PREPRODUCCION, PRODUCCION, REALIZACIÓN Y POSTPRODUCCION TECNICA Y LOGISTICA DE LOS EVENTOS Y FESTIVALES DE LA LOCALIDAD DE LA CANDELARIA, A TRAVES DEL ALQUILER Y SUMINISTRO LOS BIENES Y SERVICIOS NECESARIOS PARA SU DESARROLLO | I43: Inversión | J43: 11 | K43: =IF(J43=1,'[2]Equivalencia BH-BMPT'!$D$2,IF(J43=2,'[2]Equivalencia BH-BMPT'!$D$3,IF(J43=3,'[2]Equivalencia BH-BMPT'!$D$4,IF(J43=4,'[2]Equivalencia BH-BMPT'!$D$5,IF(J43=5,'[2]Equivalencia BH-BMPT'!$D$6,IF(J43=6,'[2]Equivalencia BH-BMPT'!$D$7,IF(J43=7,'[2]Equivalencia BH-BMPT'!$D$8,IF(J43=8,'[2]Equivalencia BH-BMPT'!$D$9,IF(J43=9,'[2]Equivalencia BH-BMPT'!$D$10,IF(J43=10,'[2]Equivalencia BH-BMPT'!$D$11,IF(J43=11,'[2]Equivalencia BH-BMPT'!$D$12,IF(J43=12,'[2]Equivalencia BH-BMPT'!$D$13,IF(J43=13,'[2]Equivalencia BH-BMPT'!$D$14,IF(J43=14,'[2]Equivalencia BH-BMPT'!$D$15,IF(J43=15,'[2]Equivalencia BH-BMPT'!$D$16,IF(J43=16,'[2]Equivalencia BH-BMPT'!$D$17,IF(J43=17,'[2]Equivalencia BH-BMPT'!$D$18,IF(J43=18,'[2]Equivalencia BH-BMPT'!$D$19,IF(J43=19,'[2]Equivalencia BH-BMPT'!$D$20,IF(J43=20,'[2]Equivalencia BH-BMPT'!$D$21,IF(J43=21,'[2]Equivalencia BH-BMPT'!$D$22,IF(J43=22,'[2]Equivalencia BH-BMPT'!$D$23,IF(J43=23,'[2]Equivalencia BH-BMPT'!#REF!,IF(J43=24,'[2]Equivalencia BH-BMPT'!$D$25,IF(J43=25,'[2]Equivalencia BH-BMPT'!$D$26,IF(J43=26,'[2]Equivalencia BH-BMPT'!$D$27,IF(J43=27,'[2]Equivalencia BH-BMPT'!$D$28,IF(J43=28,'[2]Equivalencia BH-BMPT'!$D$29,IF(J43=29,'[2]Equivalencia BH-BMPT'!$D$30,IF(J43=30,'[2]Equivalencia BH-BMPT'!$D$31,IF(J43=31,'[2]Equivalencia BH-BMPT'!$D$32,IF(J43=32,'[2]Equivalencia BH-BMPT'!$D$33,IF(J43=33,'[2]Equivalencia BH-BMPT'!$D$34,IF(J43=34,'[2]Equivalencia BH-BMPT'!$D$35,IF(J43=35,'[2]Equivalencia BH-BMPT'!$D$36,IF(J43=36,'[2]Equivalencia BH-BMPT'!$D$37,IF(J43=37,'[2]Equivalencia BH-BMPT'!$D$38,IF(J43=38,'[2]Equivalencia BH-BMPT'!#REF!,IF(J43=39,'[2]Equivalencia BH-BMPT'!$D$40,IF(J43=40,'[2]Equivalencia BH-BMPT'!$D$41,IF(J43=41,'[2]Equivalencia BH-BMPT'!$D$42,IF(J43=42,'[2]Equivalencia BH-BMPT'!$D$43,IF(J43=43,'[2]Equivalencia BH-BMPT'!$D$44,IF(J43=44,'[2]Equivalencia BH-BMPT'!$D$45,IF(J43=45,'[2]Equivalencia BH-BMPT'!$D$46,"No ha seleccionado un número de programa"))))))))))))))))))))))))))))))))))))))))))))) -> Mejores oportunidades para el desarrollo a través de la cultura, la recreación y el deporte | L43: 1389 | M43: 8300027821 | N43: ILUMINACIONES JAIME DUSSA SAS | O43: 693590328 | S43: 45613537 | T43: =O43+Q43+S43 -> 739203865 | U43: 26791610 | V43: 2017-08-22 | W43: 2017-08-25 | X43: 2017-02-24 | Y43: 180 | AC43: X | AF43: 0.03624387164 | AG43: FALSE
A44: 70 | B44: 2017 | C44: 17-13-6729563 | D44: 11 | E44: =IF(D44=1,'[1]Tipo '!$B$2,IF(D44=2,'[1]Tipo '!$B$3,IF(D44=3,'[1]Tipo '!$B$4,IF(D44=4,'[1]Tipo '!$B$5,IF(D44=5,'[1]Tipo '!$B$6,IF(D44=6,'[1]Tipo '!$B$7,IF(D44=7,'[1]Tipo '!$B$8,IF(D44=8,'[1]Tipo '!$B$9,IF(D44=9,'[1]Tipo '!$B$10,IF(D44=10,'[1]Tipo '!$B$11,IF(D44=11,'[1]Tipo '!$B$12,IF(D44=12,'[1]Tipo '!$B$13,IF(D44=13,'[1]Tipo '!$B$14,IF(D44=14,'[1]Tipo '!$B$15,IF(D44=15,'[1]Tipo '!$B$16,IF(D44=16,'[1]Tipo '!$B$17,IF(D44=17,'[1]Tipo '!$B$18,IF(D44=18,'[1]Tipo '!$B$19,IF(D44=19,'[1]Tipo '!$B$20,"No ha seleccionado un tipo de contrato válido"))))))))))))))))))) -> SUMINISTRO | F44: Contratación mínima cuantia | G44: No aplica | H44: SUMINISTRAR LOS BIENES Y SERVICIOS REQUERIDOS PARA LA CORRECTA REALIZACIÓN DE LAS VACACIONES RECREATIVAS DE LOS NIÑOS Y NIÑAS DE LA CANDELARIA 2017 | I44: Inversión | J44: 11 | K44: =IF(J44=1,'[1]Equivalencia BH-BMPT'!$D$2,IF(J44=2,'[1]Equivalencia BH-BMPT'!$D$3,IF(J44=3,'[1]Equivalencia BH-BMPT'!$D$4,IF(J44=4,'[1]Equivalencia BH-BMPT'!$D$5,IF(J44=5,'[1]Equivalencia BH-BMPT'!$D$6,IF(J44=6,'[1]Equivalencia BH-BMPT'!$D$7,IF(J44=7,'[1]Equivalencia BH-BMPT'!$D$8,IF(J44=8,'[1]Equivalencia BH-BMPT'!$D$9,IF(J44=9,'[1]Equivalencia BH-BMPT'!$D$10,IF(J44=10,'[1]Equivalencia BH-BMPT'!$D$11,IF(J44=11,'[1]Equivalencia BH-BMPT'!$D$12,IF(J44=12,'[1]Equivalencia BH-BMPT'!$D$13,IF(J44=13,'[1]Equivalencia BH-BMPT'!$D$14,IF(J44=14,'[1]Equivalencia BH-BMPT'!$D$15,IF(J44=15,'[1]Equivalencia BH-BMPT'!$D$16,IF(J44=16,'[1]Equivalencia BH-BMPT'!$D$17,IF(J44=17,'[1]Equivalencia BH-BMPT'!$D$18,IF(J44=18,'[1]Equivalencia BH-BMPT'!$D$19,IF(J44=19,'[1]Equivalencia BH-BMPT'!$D$20,IF(J44=20,'[1]Equivalencia BH-BMPT'!$D$21,IF(J44=21,'[1]Equivalencia BH-BMPT'!$D$22,IF(J44=22,'[1]Equivalencia BH-BMPT'!$D$23,IF(J44=23,'[1]Equivalencia BH-BMPT'!#REF!,IF(J44=24,'[1]Equivalencia BH-BMPT'!$D$25,IF(J44=25,'[1]Equivalencia BH-BMPT'!$D$26,IF(J44=26,'[1]Equivalencia BH-BMPT'!$D$27,IF(J44=27,'[1]Equivalencia BH-BMPT'!$D$28,IF(J44=28,'[1]Equivalencia BH-BMPT'!$D$29,IF(J44=29,'[1]Equivalencia BH-BMPT'!$D$30,IF(J44=30,'[1]Equivalencia BH-BMPT'!$D$31,IF(J44=31,'[1]Equivalencia BH-BMPT'!$D$32,IF(J44=32,'[1]Equivalencia BH-BMPT'!$D$33,IF(J44=33,'[1]Equivalencia BH-BMPT'!$D$34,IF(J44=34,'[1]Equivalencia BH-BMPT'!$D$35,IF(J44=35,'[1]Equivalencia BH-BMPT'!$D$36,IF(J44=36,'[1]Equivalencia BH-BMPT'!$D$37,IF(J44=37,'[1]Equivalencia BH-BMPT'!$D$38,IF(J44=38,'[1]Equivalencia BH-BMPT'!#REF!,IF(J44=39,'[1]Equivalencia BH-BMPT'!$D$40,IF(J44=40,'[1]Equivalencia BH-BMPT'!$D$41,IF(J44=41,'[1]Equivalencia BH-BMPT'!$D$42,IF(J44=42,'[1]Equivalencia BH-BMPT'!$D$43,IF(J44=43,'[1]Equivalencia BH-BMPT'!$D$44,IF(J44=44,'[1]Equivalencia BH-BMPT'!$D$45,IF(J44=45,'[1]Equivalencia BH-BMPT'!$D$46,"No ha seleccionado un número de programa"))))))))))))))))))))))))))))))))))))))))))))) -> Mejores oportunidades para el desarrollo a través de la cultura, la recreación y el deporte | L44: 1389 | M44: 9001099481 | N44: FUNDACIÓN DEPORTIVA ARNOLDO IGUARAN FUNDAI | O44: 11880000 | P44: 824000 | T44: =O44+Q44+S44-P44 -> 11056000 | U44: 11056000 | V44: 2017-06-30 | W44: 2017-07-07 | X44: 2017-09-06 | Y44: 60 | AC44: X | AF44: 1 | AG44: FALSE
A45: 2 | B45: 2017 | C45: 16-13-5982046 | D45: 7 | E45: =IF(D45=1,'[1]Tipo '!$B$2,IF(D45=2,'[1]Tipo '!$B$3,IF(D45=3,'[1]Tipo '!$B$4,IF(D45=4,'[1]Tipo '!$B$5,IF(D45=5,'[1]Tipo '!$B$6,IF(D45=6,'[1]Tipo '!$B$7,IF(D45=7,'[1]Tipo '!$B$8,IF(D45=8,'[1]Tipo '!$B$9,IF(D45=9,'[1]Tipo '!$B$10,IF(D45=10,'[1]Tipo '!$B$11,IF(D45=11,'[1]Tipo '!$B$12,IF(D45=12,'[1]Tipo '!$B$13,IF(D45=13,'[1]Tipo '!$B$14,IF(D45=14,'[1]Tipo '!$B$15,IF(D45=15,'[1]Tipo '!$B$16,IF(D45=16,'[1]Tipo '!$B$17,IF(D45=17,'[1]Tipo '!$B$18,IF(D45=18,'[1]Tipo '!$B$19,IF(D45=19,'[1]Tipo '!$B$20,"No ha seleccionado un tipo de contrato válido"))))))))))))))))))) -> COMPRAVENTA DE BIENES INMUEBLES | F45: Contratación mínima cuantia | G45: No aplica | H45: REALIZAR LA DOTACIÓN AL CENTRO ORQUESTAL LOCAL DE LA CANDELARIA DE ACCESORIOS E INSTRUMENTOS MUSICALES, CON EL FIN DE FORTALECER LOS PROCESOS DE FORMACIÓN MUSICAL DE NIÑOS, NIÑAS, ADOLESCENTES Y JÓVENES BENEFICIARIOS | I45: Inversión | J45: 11 | K45: =IF(J45=1,'[1]Equivalencia BH-BMPT'!$D$2,IF(J45=2,'[1]Equivalencia BH-BMPT'!$D$3,IF(J45=3,'[1]Equivalencia BH-BMPT'!$D$4,IF(J45=4,'[1]Equivalencia BH-BMPT'!$D$5,IF(J45=5,'[1]Equivalencia BH-BMPT'!$D$6,IF(J45=6,'[1]Equivalencia BH-BMPT'!$D$7,IF(J45=7,'[1]Equivalencia BH-BMPT'!$D$8,IF(J45=8,'[1]Equivalencia BH-BMPT'!$D$9,IF(J45=9,'[1]Equivalencia BH-BMPT'!$D$10,IF(J45=10,'[1]Equivalencia BH-BMPT'!$D$11,IF(J45=11,'[1]Equivalencia BH-BMPT'!$D$12,IF(J45=12,'[1]Equivalencia BH-BMPT'!$D$13,IF(J45=13,'[1]Equivalencia BH-BMPT'!$D$14,IF(J45=14,'[1]Equivalencia BH-BMPT'!$D$15,IF(J45=15,'[1]Equivalencia BH-BMPT'!$D$16,IF(J45=16,'[1]Equivalencia BH-BMPT'!$D$17,IF(J45=17,'[1]Equivalencia BH-BMPT'!$D$18,IF(J45=18,'[1]Equivalencia BH-BMPT'!$D$19,IF(J45=19,'[1]Equivalencia BH-BMPT'!$D$20,IF(J45=20,'[1]Equivalencia BH-BMPT'!$D$21,IF(J45=21,'[1]Equivalencia BH-BMPT'!$D$22,IF(J45=22,'[1]Equivalencia BH-BMPT'!$D$23,IF(J45=23,'[1]Equivalencia BH-BMPT'!#REF!,IF(J45=24,'[1]Equivalencia BH-BMPT'!$D$25,IF(J45=25,'[1]Equivalencia BH-BMPT'!$D$26,IF(J45=26,'[1]Equivalencia BH-BMPT'!$D$27,IF(J45=27,'[1]Equivalencia BH-BMPT'!$D$28,IF(J45=28,'[1]Equivalencia BH-BMPT'!$D$29,IF(J45=29,'[1]Equivalencia BH-BMPT'!$D$30,IF(J45=30,'[1]Equivalencia BH-BMPT'!$D$31,IF(J45=31,'[1]Equivalencia BH-BMPT'!$D$32,IF(J45=32,'[1]Equivalencia BH-BMPT'!$D$33,IF(J45=33,'[1]Equivalencia BH-BMPT'!$D$34,IF(J45=34,'[1]Equivalencia BH-BMPT'!$D$35,IF(J45=35,'[1]Equivalencia BH-BMPT'!$D$36,IF(J45=36,'[1]Equivalencia BH-BMPT'!$D$37,IF(J45=37,'[1]Equivalencia BH-BMPT'!$D$38,IF(J45=38,'[1]Equivalencia BH-BMPT'!#REF!,IF(J45=39,'[1]Equivalencia BH-BMPT'!$D$40,IF(J45=40,'[1]Equivalencia BH-BMPT'!$D$41,IF(J45=41,'[1]Equivalencia BH-BMPT'!$D$42,IF(J45=42,'[1]Equivalencia BH-BMPT'!$D$43,IF(J45=43,'[1]Equivalencia BH-BMPT'!$D$44,IF(J45=44,'[1]Equivalencia BH-BMPT'!$D$45,IF(J45=45,'[1]Equivalencia BH-BMPT'!$D$46,"No ha seleccionado un número de programa"))))))))))))))))))))))))))))))))))))))))))))) -> Mejores oportunidades para el desarrollo a través de la cultura, la recreación y el deporte | L45: 1389 | M45: 90007911084 | N45: AS INGENIEROS SAS | O45: 15800584 | P45: 97593 | T45: 15702901 | U45: 15702901 | V45: 2017-01-16 | W45: 2017-03-14 | X45: 2017-04-13 | Y45: 30 | AD45: X | AF45: 1 | AG45: FALSE
A46: 107 | B46: 2017 | C46: SECOP II | D46: 1 | E46: =IF(D46=1,'[4]Tipo '!$B$2,IF(D46=2,'[4]Tipo '!$B$3,IF(D46=3,'[4]Tipo '!$B$4,IF(D46=4,'[4]Tipo '!$B$5,IF(D46=5,'[4]Tipo '!$B$6,IF(D46=6,'[4]Tipo '!$B$7,IF(D46=7,'[4]Tipo '!$B$8,IF(D46=8,'[4]Tipo '!$B$9,IF(D46=9,'[4]Tipo '!$B$10,IF(D46=10,'[4]Tipo '!$B$11,IF(D46=11,'[4]Tipo '!$B$12,IF(D46=12,'[4]Tipo '!$B$13,IF(D46=13,'[4]Tipo '!$B$14,IF(D46=14,'[4]Tipo '!$B$15,IF(D46=15,'[4]Tipo '!$B$16,IF(D46=16,'[4]Tipo '!$B$17,IF(D46=17,'[4]Tipo '!$B$18,IF(D46=18,'[4]Tipo '!$B$19,IF(D46=19,'[4]Tipo '!$B$20,"No ha seleccionado un tipo de contrato válido"))))))))))))))))))) -> OBRA PÚBLICA | F46: Licitación pública | G46: No aplica | H46: REALIZAR A PRECIO UNITARIOS FIJOS CON FORMULA DE REAJUSTE, EL MANTENIMIENTO Y/O REHABILITACION DE PARQUES ZONALES, VECINALES, Y DE BOSILLO DE LA LOCALIDAD DE LA CANDELARIA EN BOGOTA D.C, DE CONFORMIDAD CON LA DESCRIPCIÓN, ESPECIFICACIONES TECNICAS Y DÉMAS CONDICIONES ESTABLECIDAS EN LOS ESTUDIOS PREVIOS, PLIEGO DE CONDICIONES Y ANEXOS | I46: Inversión | J46: 17 | K46: =IF(J46=1,'[4]Equivalencia BH-BMPT'!$D$2,IF(J46=2,'[4]Equivalencia BH-BMPT'!$D$3,IF(J46=3,'[4]Equivalencia BH-BMPT'!$D$4,IF(J46=4,'[4]Equivalencia BH-BMPT'!$D$5,IF(J46=5,'[4]Equivalencia BH-BMPT'!$D$6,IF(J46=6,'[4]Equivalencia BH-BMPT'!$D$7,IF(J46=7,'[4]Equivalencia BH-BMPT'!$D$8,IF(J46=8,'[4]Equivalencia BH-BMPT'!$D$9,IF(J46=9,'[4]Equivalencia BH-BMPT'!$D$10,IF(J46=10,'[4]Equivalencia BH-BMPT'!$D$11,IF(J46=11,'[4]Equivalencia BH-BMPT'!$D$12,IF(J46=12,'[4]Equivalencia BH-BMPT'!$D$13,IF(J46=13,'[4]Equivalencia BH-BMPT'!$D$14,IF(J46=14,'[4]Equivalencia BH-BMPT'!$D$15,IF(J46=15,'[4]Equivalencia BH-BMPT'!$D$16,IF(J46=16,'[4]Equivalencia BH-BMPT'!$D$17,IF(J46=17,'[4]Equivalencia BH-BMPT'!$D$18,IF(J46=18,'[4]Equivalencia BH-BMPT'!$D$19,IF(J46=19,'[4]Equivalencia BH-BMPT'!$D$20,IF(J46=20,'[4]Equivalencia BH-BMPT'!$D$21,IF(J46=21,'[4]Equivalencia BH-BMPT'!$D$22,IF(J46=22,'[4]Equivalencia BH-BMPT'!$D$23,IF(J46=23,'[4]Equivalencia BH-BMPT'!#REF!,IF(J46=24,'[4]Equivalencia BH-BMPT'!$D$25,IF(J46=25,'[4]Equivalencia BH-BMPT'!$D$26,IF(J46=26,'[4]Equivalencia BH-BMPT'!$D$27,IF(J46=27,'[4]Equivalencia BH-BMPT'!$D$28,IF(J46=28,'[4]Equivalencia BH-BMPT'!$D$29,IF(J46=29,'[4]Equivalencia BH-BMPT'!$D$30,IF(J46=30,'[4]Equivalencia BH-BMPT'!$D$31,IF(J46=31,'[4]Equivalencia BH-BMPT'!$D$32,IF(J46=32,'[4]Equivalencia BH-BMPT'!$D$33,IF(J46=33,'[4]Equivalencia BH-BMPT'!$D$34,IF(J46=34,'[4]Equivalencia BH-BMPT'!$D$35,IF(J46=35,'[4]Equivalencia BH-BMPT'!$D$36,IF(J46=36,'[4]Equivalencia BH-BMPT'!$D$37,IF(J46=37,'[4]Equivalencia BH-BMPT'!$D$38,IF(J46=38,'[4]Equivalencia BH-BMPT'!#REF!,IF(J46=39,'[4]Equivalencia BH-BMPT'!$D$40,IF(J46=40,'[4]Equivalencia BH-BMPT'!$D$41,IF(J46=41,'[4]Equivalencia BH-BMPT'!$D$42,IF(J46=42,'[4]Equivalencia BH-BMPT'!$D$43,IF(J46=43,'[4]Equivalencia BH-BMPT'!$D$44,IF(J46=44,'[4]Equivalencia BH-BMPT'!$D$45,IF(J46=45,'[4]Equivalencia BH-BMPT'!$D$46,"No ha seleccionado un número de programa"))))))))))))))))))))))))))))))))))))))))))))) -> Espacio público, derecho de todos | L46: 1390 | M46: 8300321021 | N46: ECOFLORA SAS | O46: 222023847 | T46: =O46+Q46+S46 -> 222023847 | V46: 2017-12-22 | Y46: 150 | AA46: X | AF46: =SUM(U46/T46) -> 0 | AG46: =IF(I46="Funcionamiento",J46=0,J46="") -> FALSE
A47: 39 | B47: 2017 | C47: 17-12-6332773 | D47: 5 | E47: =IF(D47=1,'[1]Tipo '!$B$2,IF(D47=2,'[1]Tipo '!$B$3,IF(D47=3,'[1]Tipo '!$B$4,IF(D47=4,'[1]Tipo '!$B$5,IF(D47=5,'[1]Tipo '!$B$6,IF(D47=6,'[1]Tipo '!$B$7,IF(D47=7,'[1]Tipo '!$B$8,IF(D47=8,'[1]Tipo '!$B$9,IF(D47=9,'[1]Tipo '!$B$10,IF(D47=10,'[1]Tipo '!$B$11,IF(D47=11,'[1]Tipo '!$B$12,IF(D47=12,'[1]Tipo '!$B$13,IF(D47=13,'[1]Tipo '!$B$14,IF(D47=14,'[1]Tipo '!$B$15,IF(D47=15,'[1]Tipo '!$B$16,IF(D47=16,'[1]Tipo '!$B$17,IF(D47=17,'[1]Tipo '!$B$18,IF(D47=18,'[1]Tipo '!$B$19,IF(D47=19,'[1]Tipo '!$B$20,"No ha seleccionado un tipo de contrato válido"))))))))))))))))))) -> CONTRATOS DE PRESTACIÓN DE SERVICIOS PROFESIONALES Y DE APOYO A LA GESTIÓN | F47: Contratación directa | G47: Prestación de servicios profesionales y de apoyo a la gestión, o para la ejecución de trabajos artísticos que sólo puedan encomendarse a determinadas personas naturales; | H47: PRESTAR SUS SERVICIOS PROFESIONALES PARA APOYAR AL GRUPO DE GESTIÓN DE DESARROLLO LOCAL DEL FONDO DE DESARROLLO LOCAL DE LA CANDELARIA, EN LOS PROCESOS DE FORMULACIÓN Y SEGUIMIENTO DE INFRAESTRUCTURA Y PATRIMONIO DEL PLAN DE DESARROLLO LOCAL CON ENFASIS EN MALLA VIAL, ESPACIO PÚBLICO Y PARQUES - PROYECTO 1390 “PARQUES MESJORES PARA TODOS” Y PROYECTO 1391 “MOVILIDAD Y ESPACIO PÚBLICO MEJOR PARA TODOS | I47: Inversión | J47: 18 | K47: =IF(J47=1,'[1]Equivalencia BH-BMPT'!$D$2,IF(J47=2,'[1]Equivalencia BH-BMPT'!$D$3,IF(J47=3,'[1]Equivalencia BH-BMPT'!$D$4,IF(J47=4,'[1]Equivalencia BH-BMPT'!$D$5,IF(J47=5,'[1]Equivalencia BH-BMPT'!$D$6,IF(J47=6,'[1]Equivalencia BH-BMPT'!$D$7,IF(J47=7,'[1]Equivalencia BH-BMPT'!$D$8,IF(J47=8,'[1]Equivalencia BH-BMPT'!$D$9,IF(J47=9,'[1]Equivalencia BH-BMPT'!$D$10,IF(J47=10,'[1]Equivalencia BH-BMPT'!$D$11,IF(J47=11,'[1]Equivalencia BH-BMPT'!$D$12,IF(J47=12,'[1]Equivalencia BH-BMPT'!$D$13,IF(J47=13,'[1]Equivalencia BH-BMPT'!$D$14,IF(J47=14,'[1]Equivalencia BH-BMPT'!$D$15,IF(J47=15,'[1]Equivalencia BH-BMPT'!$D$16,IF(J47=16,'[1]Equivalencia BH-BMPT'!$D$17,IF(J47=17,'[1]Equivalencia BH-BMPT'!$D$18,IF(J47=18,'[1]Equivalencia BH-BMPT'!$D$19,IF(J47=19,'[1]Equivalencia BH-BMPT'!$D$20,IF(J47=20,'[1]Equivalencia BH-BMPT'!$D$21,IF(J47=21,'[1]Equivalencia BH-BMPT'!$D$22,IF(J47=22,'[1]Equivalencia BH-BMPT'!$D$23,IF(J47=23,'[1]Equivalencia BH-BMPT'!#REF!,IF(J47=24,'[1]Equivalencia BH-BMPT'!$D$25,IF(J47=25,'[1]Equivalencia BH-BMPT'!$D$26,IF(J47=26,'[1]Equivalencia BH-BMPT'!$D$27,IF(J47=27,'[1]Equivalencia BH-BMPT'!$D$28,IF(J47=28,'[1]Equivalencia BH-BMPT'!$D$29,IF(J47=29,'[1]Equivalencia BH-BMPT'!$D$30,IF(J47=30,'[1]Equivalencia BH-BMPT'!$D$31,IF(J47=31,'[1]Equivalencia BH-BMPT'!$D$32,IF(J47=32,'[1]Equivalencia BH-BMPT'!$D$33,IF(J47=33,'[1]Equivalencia BH-BMPT'!$D$34,IF(J47=34,'[1]Equivalencia BH-BMPT'!$D$35,IF(J47=35,'[1]Equivalencia BH-BMPT'!$D$36,IF(J47=36,'[1]Equivalencia BH-BMPT'!$D$37,IF(J47=37,'[1]Equivalencia BH-BMPT'!$D$38,IF(J47=38,'[1]Equivalencia BH-BMPT'!#REF!,IF(J47=39,'[1]Equivalencia BH-BMPT'!$D$40,IF(J47=40,'[1]Equivalencia BH-BMPT'!$D$41,IF(J47=41,'[1]Equivalencia BH-BMPT'!$D$42,IF(J47=42,'[1]Equivalencia BH-BMPT'!$D$43,IF(J47=43,'[1]Equivalencia BH-BMPT'!$D$44,IF(J47=44,'[1]Equivalencia BH-BMPT'!$D$45,IF(J47=45,'[1]Equivalencia BH-BMPT'!$D$46,"No ha seleccionado un número de programa"))))))))))))))))))))))))))))))))))))))))))))) -> Mejor movilidad para todos | L47: 1391 | M47: 80056009 | N47: JOHE LOYS MOSQUERA PALACIO | O47: 49500811 | S47: 3750062 | T47: 53250873 | U47: 46350740 | V47: 2017-02-06 | W47: 2017-02-07 | X47: 2018-01-24 | Y47: 350 | AC47: X | AF47: 0.8704221619 | AG47: FALSE
A48: 42 | B48: 2017 | C48: 17-12-6333240 | D48: 5 | E48: =IF(D48=1,'[1]Tipo '!$B$2,IF(D48=2,'[1]Tipo '!$B$3,IF(D48=3,'[1]Tipo '!$B$4,IF(D48=4,'[1]Tipo '!$B$5,IF(D48=5,'[1]Tipo '!$B$6,IF(D48=6,'[1]Tipo '!$B$7,IF(D48=7,'[1]Tipo '!$B$8,IF(D48=8,'[1]Tipo '!$B$9,IF(D48=9,'[1]Tipo '!$B$10,IF(D48=10,'[1]Tipo '!$B$11,IF(D48=11,'[1]Tipo '!$B$12,IF(D48=12,'[1]Tipo '!$B$13,IF(D48=13,'[1]Tipo '!$B$14,IF(D48=14,'[1]Tipo '!$B$15,IF(D48=15,'[1]Tipo '!$B$16,IF(D48=16,'[1]Tipo '!$B$17,IF(D48=17,'[1]Tipo '!$B$18,IF(D48=18,'[1]Tipo '!$B$19,IF(D48=19,'[1]Tipo '!$B$20,"No ha seleccionado un tipo de contrato válido"))))))))))))))))))) -> CONTRATOS DE PRESTACIÓN DE SERVICIOS PROFESIONALES Y DE APOYO A LA GESTIÓN | F48: Contratación directa | G48: Prestación de servicios profesionales y de apoyo a la gestión, o para la ejecución de trabajos artísticos que sólo puedan encomendarse a determinadas personas naturales; | H48: PRESTAR SUS SERVICIOS PROFESIONALES PARA APOYAR AL GRUPO DE GESTIÓN DE DESARROLLO LOCAL DEL FONDO DE DESARROLLO LOCAL DE LA CANDELARIA, EN LOS PROCESOS DE FORMULACIÓN Y SEGUIMIENTO DE INFRAESTRUCTURA Y PATRIMONIO DEL PLAN DE DESARROLLO LOCAL CON ENFASIS EN MALLA VIAL, ESPACIO PÚBLICO Y PARQUES - PROYECTO 1390 ¿PARQUES MESJORES PARA TODOS¿ Y PROYECTO 1391 ¿MOVILIDAD Y ESPACIO PÚBLICO MEJOR PARA TODOS | I48: Inversión | J48: 18 | K48: =IF(J48=1,'[1]Equivalencia BH-BMPT'!$D$2,IF(J48=2,'[1]Equivalencia BH-BMPT'!$D$3,IF(J48=3,'[1]Equivalencia BH-BMPT'!$D$4,IF(J48=4,'[1]Equivalencia BH-BMPT'!$D$5,IF(J48=5,'[1]Equivalencia BH-BMPT'!$D$6,IF(J48=6,'[1]Equivalencia BH-BMPT'!$D$7,IF(J48=7,'[1]Equivalencia BH-BMPT'!$D$8,IF(J48=8,'[1]Equivalencia BH-BMPT'!$D$9,IF(J48=9,'[1]Equivalencia BH-BMPT'!$D$10,IF(J48=10,'[1]Equivalencia BH-BMPT'!$D$11,IF(J48=11,'[1]Equivalencia BH-BMPT'!$D$12,IF(J48=12,'[1]Equivalencia BH-BMPT'!$D$13,IF(J48=13,'[1]Equivalencia BH-BMPT'!$D$14,IF(J48=14,'[1]Equivalencia BH-BMPT'!$D$15,IF(J48=15,'[1]Equivalencia BH-BMPT'!$D$16,IF(J48=16,'[1]Equivalencia BH-BMPT'!$D$17,IF(J48=17,'[1]Equivalencia BH-BMPT'!$D$18,IF(J48=18,'[1]Equivalencia BH-BMPT'!$D$19,IF(J48=19,'[1]Equivalencia BH-BMPT'!$D$20,IF(J48=20,'[1]Equivalencia BH-BMPT'!$D$21,IF(J48=21,'[1]Equivalencia BH-BMPT'!$D$22,IF(J48=22,'[1]Equivalencia BH-BMPT'!$D$23,IF(J48=23,'[1]Equivalencia BH-BMPT'!#REF!,IF(J48=24,'[1]Equivalencia BH-BMPT'!$D$25,IF(J48=25,'[1]Equivalencia BH-BMPT'!$D$26,IF(J48=26,'[1]Equivalencia BH-BMPT'!$D$27,IF(J48=27,'[1]Equivalencia BH-BMPT'!$D$28,IF(J48=28,'[1]Equivalencia BH-BMPT'!$D$29,IF(J48=29,'[1]Equivalencia BH-BMPT'!$D$30,IF(J48=30,'[1]Equivalencia BH-BMPT'!$D$31,IF(J48=31,'[1]Equivalencia BH-BMPT'!$D$32,IF(J48=32,'[1]Equivalencia BH-BMPT'!$D$33,IF(J48=33,'[1]Equivalencia BH-BMPT'!$D$34,IF(J48=34,'[1]Equivalencia BH-BMPT'!$D$35,IF(J48=35,'[1]Equivalencia BH-BMPT'!$D$36,IF(J48=36,'[1]Equivalencia BH-BMPT'!$D$37,IF(J48=37,'[1]Equivalencia BH-BMPT'!$D$38,IF(J48=38,'[1]Equivalencia BH-BMPT'!#REF!,IF(J48=39,'[1]Equivalencia BH-BMPT'!$D$40,IF(J48=40,'[1]Equivalencia BH-BMPT'!$D$41,IF(J48=41,'[1]Equivalencia BH-BMPT'!$D$42,IF(J48=42,'[1]Equivalencia BH-BMPT'!$D$43,IF(J48=43,'[1]Equivalencia BH-BMPT'!$D$44,IF(J48=44,'[1]Equivalencia BH-BMPT'!$D$45,IF(J48=45,'[1]Equivalencia BH-BMPT'!$D$46,"No ha seleccionado un número de programa"))))))))))))))))))))))))))))))))))))))))))))) -> Mejor movilidad para todos | L48: 1391 | M48: 1049611949 | N48: CAMILO ANDRES RIAÑO RODRIGUEZ | O48: 47250774 | S48: 4500074 | T48: 51750848 | U48: 42450698 | V48: 2017-02-08 | W48: 2017-02-08 | X48: 2018-01-21 | Y48: 354 | AC48: X | AF48: 0.8202899013 | AG48: FALSE
A49: 106 | B49: 2017 | C49: 17-11-7308765 | D49: 11 | E49: =IF(D49=1,'[4]Tipo '!$B$2,IF(D49=2,'[4]Tipo '!$B$3,IF(D49=3,'[4]Tipo '!$B$4,IF(D49=4,'[4]Tipo '!$B$5,IF(D49=5,'[4]Tipo '!$B$6,IF(D49=6,'[4]Tipo '!$B$7,IF(D49=7,'[4]Tipo '!$B$8,IF(D49=8,'[4]Tipo '!$B$9,IF(D49=9,'[4]Tipo '!$B$10,IF(D49=10,'[4]Tipo '!$B$11,IF(D49=11,'[4]Tipo '!$B$12,IF(D49=12,'[4]Tipo '!$B$13,IF(D49=13,'[4]Tipo '!$B$14,IF(D49=14,'[4]Tipo '!$B$15,IF(D49=15,'[4]Tipo '!$B$16,IF(D49=16,'[4]Tipo '!$B$17,IF(D49=17,'[4]Tipo '!$B$18,IF(D49=18,'[4]Tipo '!$B$19,IF(D49=19,'[4]Tipo '!$B$20,"No ha seleccionado un tipo de contrato válido"))))))))))))))))))) -> SUMINISTRO | F49: Selección abreviada | G49: Selección abreviada por menor cuantía | H49: REALIZAR A MONTO AGOTABLE EL SUMINISTRO Y TRABAJO PARA EMBELLECIMIENTO Y ENLUCINAMIENTO DE FACHADAS DE LOS INMUEBLES PRIORIZADOS POR EL FDLC SITUADOS EN LOCALIDAD DE LA CANDELARIA CENTRO TRADICIONAL DE BOGOTÁ | I49: Inversión | J49: 18 | K49: =IF(J49=1,'[4]Equivalencia BH-BMPT'!$D$2,IF(J49=2,'[4]Equivalencia BH-BMPT'!$D$3,IF(J49=3,'[4]Equivalencia BH-BMPT'!$D$4,IF(J49=4,'[4]Equivalencia BH-BMPT'!$D$5,IF(J49=5,'[4]Equivalencia BH-BMPT'!$D$6,IF(J49=6,'[4]Equivalencia BH-BMPT'!$D$7,IF(J49=7,'[4]Equivalencia BH-BMPT'!$D$8,IF(J49=8,'[4]Equivalencia BH-BMPT'!$D$9,IF(J49=9,'[4]Equivalencia BH-BMPT'!$D$10,IF(J49=10,'[4]Equivalencia BH-BMPT'!$D$11,IF(J49=11,'[4]Equivalencia BH-BMPT'!$D$12,IF(J49=12,'[4]Equivalencia BH-BMPT'!$D$13,IF(J49=13,'[4]Equivalencia BH-BMPT'!$D$14,IF(J49=14,'[4]Equivalencia BH-BMPT'!$D$15,IF(J49=15,'[4]Equivalencia BH-BMPT'!$D$16,IF(J49=16,'[4]Equivalencia BH-BMPT'!$D$17,IF(J49=17,'[4]Equivalencia BH-BMPT'!$D$18,IF(J49=18,'[4]Equivalencia BH-BMPT'!$D$19,IF(J49=19,'[4]Equivalencia BH-BMPT'!$D$20,IF(J49=20,'[4]Equivalencia BH-BMPT'!$D$21,IF(J49=21,'[4]Equivalencia BH-BMPT'!$D$22,IF(J49=22,'[4]Equivalencia BH-BMPT'!$D$23,IF(J49=23,'[4]Equivalencia BH-BMPT'!#REF!,IF(J49=24,'[4]Equivalencia BH-BMPT'!$D$25,IF(J49=25,'[4]Equivalencia BH-BMPT'!$D$26,IF(J49=26,'[4]Equivalencia BH-BMPT'!$D$27,IF(J49=27,'[4]Equivalencia BH-BMPT'!$D$28,IF(J49=28,'[4]Equivalencia BH-BMPT'!$D$29,IF(J49=29,'[4]Equivalencia BH-BMPT'!$D$30,IF(J49=30,'[4]Equivalencia BH-BMPT'!$D$31,IF(J49=31,'[4]Equivalencia BH-BMPT'!$D$32,IF(J49=32,'[4]Equivalencia BH-BMPT'!$D$33,IF(J49=33,'[4]Equivalencia BH-BMPT'!$D$34,IF(J49=34,'[4]Equivalencia BH-BMPT'!$D$35,IF(J49=35,'[4]Equivalencia BH-BMPT'!$D$36,IF(J49=36,'[4]Equivalencia BH-BMPT'!$D$37,IF(J49=37,'[4]Equivalencia BH-BMPT'!$D$38,IF(J49=38,'[4]Equivalencia BH-BMPT'!#REF!,IF(J49=39,'[4]Equivalencia BH-BMPT'!$D$40,IF(J49=40,'[4]Equivalencia BH-BMPT'!$D$41,IF(J49=41,'[4]Equivalencia BH-BMPT'!$D$42,IF(J49=42,'[4]Equivalencia BH-BMPT'!$D$43,IF(J49=43,'[4]Equivalencia BH-BMPT'!$D$44,IF(J49=44,'[4]Equivalencia BH-BMPT'!$D$45,IF(J49=45,'[4]Equivalencia BH-BMPT'!$D$46,"No ha seleccionado un número de programa"))))))))))))))))))))))))))))))))))))))))))))) -> Mejor movilidad para todos | L49: 1391 | M49: 800121733 | N49: CBC INGENIERIA CIVIL Y MANTENIMIENTO SAS | O49: 189853500 | T49: 189853500 | V49: 2017-12-21 | Y49: 120 | AA49: X | AF49: 0 | AG49: FALSE
A50: 108 | B50: 2017 | C50: SECOP II | D50: 1 | E50: =IF(D50=1,'[4]Tipo '!$B$2,IF(D50=2,'[4]Tipo '!$B$3,IF(D50=3,'[4]Tipo '!$B$4,IF(D50=4,'[4]Tipo '!$B$5,IF(D50=5,'[4]Tipo '!$B$6,IF(D50=6,'[4]Tipo '!$B$7,IF(D50=7,'[4]Tipo '!$B$8,IF(D50=8,'[4]Tipo '!$B$9,IF(D50=9,'[4]Tipo '!$B$10,IF(D50=10,'[4]Tipo '!$B$11,IF(D50=11,'[4]Tipo '!$B$12,IF(D50=12,'[4]Tipo '!$B$13,IF(D50=13,'[4]Tipo '!$B$14,IF(D50=14,'[4]Tipo '!$B$15,IF(D50=15,'[4]Tipo '!$B$16,IF(D50=16,'[4]Tipo '!$B$17,IF(D50=17,'[4]Tipo '!$B$18,IF(D50=18,'[4]Tipo '!$B$19,IF(D50=19,'[4]Tipo '!$B$20,"No ha seleccionado un tipo de contrato válido"))))))))))))))))))) -> OBRA PÚBLICA | F50: Licitación pública | G50: No aplica | H50: REALIZAR A PRECIO UNITARIOS FIJOS CON FORMULA DE REAJUSTE, EL MANTENIMIENTO Y/O REHABILITACION DE PARQUES ZONALES, VECINALES, Y DE BOSILLO DE LA LOCALIDAD DE LA CANDELARIA EN BOGOTA D.C, DE CONFORMIDAD CON LA DESCRIPCIÓN, ESPECIFICACIONES TECNICAS Y DÉMAS CONDICIONES ESTABLECIDAS EN LOS ESTUDIOS PREVIOS, PLIEGO DE CONDICIONES Y ANEXOS | I50: Inversión | J50: 18 | K50: =IF(J50=1,'[4]Equivalencia BH-BMPT'!$D$2,IF(J50=2,'[4]Equivalencia BH-BMPT'!$D$3,IF(J50=3,'[4]Equivalencia BH-BMPT'!$D$4,IF(J50=4,'[4]Equivalencia BH-BMPT'!$D$5,IF(J50=5,'[4]Equivalencia BH-BMPT'!$D$6,IF(J50=6,'[4]Equivalencia BH-BMPT'!$D$7,IF(J50=7,'[4]Equivalencia BH-BMPT'!$D$8,IF(J50=8,'[4]Equivalencia BH-BMPT'!$D$9,IF(J50=9,'[4]Equivalencia BH-BMPT'!$D$10,IF(J50=10,'[4]Equivalencia BH-BMPT'!$D$11,IF(J50=11,'[4]Equivalencia BH-BMPT'!$D$12,IF(J50=12,'[4]Equivalencia BH-BMPT'!$D$13,IF(J50=13,'[4]Equivalencia BH-BMPT'!$D$14,IF(J50=14,'[4]Equivalencia BH-BMPT'!$D$15,IF(J50=15,'[4]Equivalencia BH-BMPT'!$D$16,IF(J50=16,'[4]Equivalencia BH-BMPT'!$D$17,IF(J50=17,'[4]Equivalencia BH-BMPT'!$D$18,IF(J50=18,'[4]Equivalencia BH-BMPT'!$D$19,IF(J50=19,'[4]Equivalencia BH-BMPT'!$D$20,IF(J50=20,'[4]Equivalencia BH-BMPT'!$D$21,IF(J50=21,'[4]Equivalencia BH-BMPT'!$D$22,IF(J50=22,'[4]Equivalencia BH-BMPT'!$D$23,IF(J50=23,'[4]Equivalencia BH-BMPT'!#REF!,IF(J50=24,'[4]Equivalencia BH-BMPT'!$D$25,IF(J50=25,'[4]Equivalencia BH-BMPT'!$D$26,IF(J50=26,'[4]Equivalencia BH-BMPT'!$D$27,IF(J50=27,'[4]Equivalencia BH-BMPT'!$D$28,IF(J50=28,'[4]Equivalencia BH-BMPT'!$D$29,IF(J50=29,'[4]Equivalencia BH-BMPT'!$D$30,IF(J50=30,'[4]Equivalencia BH-BMPT'!$D$31,IF(J50=31,'[4]Equivalencia BH-BMPT'!$D$32,IF(J50=32,'[4]Equivalencia BH-BMPT'!$D$33,IF(J50=33,'[4]Equivalencia BH-BMPT'!$D$34,IF(J50=34,'[4]Equivalencia BH-BMPT'!$D$35,IF(J50=35,'[4]Equivalencia BH-BMPT'!$D$36,IF(J50=36,'[4]Equivalencia BH-BMPT'!$D$37,IF(J50=37,'[4]Equivalencia BH-BMPT'!$D$38,IF(J50=38,'[4]Equivalencia BH-BMPT'!#REF!,IF(J50=39,'[4]Equivalencia BH-BMPT'!$D$40,IF(J50=40,'[4]Equivalencia BH-BMPT'!$D$41,IF(J50=41,'[4]Equivalencia BH-BMPT'!$D$42,IF(J50=42,'[4]Equivalencia BH-BMPT'!$D$43,IF(J50=43,'[4]Equivalencia BH-BMPT'!$D$44,IF(J50=44,'[4]Equivalencia BH-BMPT'!$D$45,IF(J50=45,'[4]Equivalencia BH-BMPT'!$D$46,"No ha seleccionado un número de programa"))))))))))))))))))))))))))))))))))))))))))))) -> Mejor movilidad para todos | L50: 1391 | M50: 8300414110 | N50: CONSULTORIA Y CONSTRUCCIÓN SAS | O50: 1463267831 | S50: 330810258 | T50: 1794078089 | V50: 2017-12-22 | W50: 2017-12-28 | X50: 2018-08-27 | Y50: 240 | AD50: X | AF50: 0 | AG50: FALSE
A51: 109 | B51: 2017 | C51: 17-15-7347685 | D51: 3 | E51: =IF(D51=1,'[4]Tipo '!$B$2,IF(D51=2,'[4]Tipo '!$B$3,IF(D51=3,'[4]Tipo '!$B$4,IF(D51=4,'[4]Tipo '!$B$5,IF(D51=5,'[4]Tipo '!$B$6,IF(D51=6,'[4]Tipo '!$B$7,IF(D51=7,'[4]Tipo '!$B$8,IF(D51=8,'[4]Tipo '!$B$9,IF(D51=9,'[4]Tipo '!$B$10,IF(D51=10,'[4]Tipo '!$B$11,IF(D51=11,'[4]Tipo '!$B$12,IF(D51=12,'[4]Tipo '!$B$13,IF(D51=13,'[4]Tipo '!$B$14,IF(D51=14,'[4]Tipo '!$B$15,IF(D51=15,'[4]Tipo '!$B$16,IF(D51=16,'[4]Tipo '!$B$17,IF(D51=17,'[4]Tipo '!$B$18,IF(D51=18,'[4]Tipo '!$B$19,IF(D51=19,'[4]Tipo '!$B$20,"No ha seleccionado un tipo de contrato válido"))))))))))))))))))) -> INTERVENTORÍA | F51: Concurso de Méritos | G51: No aplica | H51: REALIZAR LA INTERVENTORIA TÉCNICA, ADMINISTRATIVA, FINANCIERA, SOCIAL, AMBIENTAL, Y SISO DE LOS CONTRATOS CELEBRADOS PARA LA EJECUCIÓN DE OBRAS DE REHABILITACIÓN Y/O RECONSTRUCCIÓN Y/O MANTENIMIENTO Y/O SUMINISTRO DEL ESPACIO PUBLICO Y MOVILIDAD DE LA LOCALIDAD DE LA CANDELARIA | I51: Inversión | J51: 18 | K51: =IF(J51=1,'[4]Equivalencia BH-BMPT'!$D$2,IF(J51=2,'[4]Equivalencia BH-BMPT'!$D$3,IF(J51=3,'[4]Equivalencia BH-BMPT'!$D$4,IF(J51=4,'[4]Equivalencia BH-BMPT'!$D$5,IF(J51=5,'[4]Equivalencia BH-BMPT'!$D$6,IF(J51=6,'[4]Equivalencia BH-BMPT'!$D$7,IF(J51=7,'[4]Equivalencia BH-BMPT'!$D$8,IF(J51=8,'[4]Equivalencia BH-BMPT'!$D$9,IF(J51=9,'[4]Equivalencia BH-BMPT'!$D$10,IF(J51=10,'[4]Equivalencia BH-BMPT'!$D$11,IF(J51=11,'[4]Equivalencia BH-BMPT'!$D$12,IF(J51=12,'[4]Equivalencia BH-BMPT'!$D$13,IF(J51=13,'[4]Equivalencia BH-BMPT'!$D$14,IF(J51=14,'[4]Equivalencia BH-BMPT'!$D$15,IF(J51=15,'[4]Equivalencia BH-BMPT'!$D$16,IF(J51=16,'[4]Equivalencia BH-BMPT'!$D$17,IF(J51=17,'[4]Equivalencia BH-BMPT'!$D$18,IF(J51=18,'[4]Equivalencia BH-BMPT'!$D$19,IF(J51=19,'[4]Equivalencia BH-BMPT'!$D$20,IF(J51=20,'[4]Equivalencia BH-BMPT'!$D$21,IF(J51=21,'[4]Equivalencia BH-BMPT'!$D$22,IF(J51=22,'[4]Equivalencia BH-BMPT'!$D$23,IF(J51=23,'[4]Equivalencia BH-BMPT'!#REF!,IF(J51=24,'[4]Equivalencia BH-BMPT'!$D$25,IF(J51=25,'[4]Equivalencia BH-BMPT'!$D$26,IF(J51=26,'[4]Equivalencia BH-BMPT'!$D$27,IF(J51=27,'[4]Equivalencia BH-BMPT'!$D$28,IF(J51=28,'[4]Equivalencia BH-BMPT'!$D$29,IF(J51=29,'[4]Equivalencia BH-BMPT'!$D$30,IF(J51=30,'[4]Equivalencia BH-BMPT'!$D$31,IF(J51=31,'[4]Equivalencia BH-BMPT'!$D$32,IF(J51=32,'[4]Equivalencia BH-BMPT'!$D$33,IF(J51=33,'[4]Equivalencia BH-BMPT'!$D$34,IF(J51=34,'[4]Equivalencia BH-BMPT'!$D$35,IF(J51=35,'[4]Equivalencia BH-BMPT'!$D$36,IF(J51=36,'[4]Equivalencia BH-BMPT'!$D$37,IF(J51=37,'[4]Equivalencia BH-BMPT'!$D$38,IF(J51=38,'[4]Equivalencia BH-BMPT'!#REF!,IF(J51=39,'[4]Equivalencia BH-BMPT'!$D$40,IF(J51=40,'[4]Equivalencia BH-BMPT'!$D$41,IF(J51=41,'[4]Equivalencia BH-BMPT'!$D$42,IF(J51=42,'[4]Equivalencia BH-BMPT'!$D$43,IF(J51=43,'[4]Equivalencia BH-BMPT'!$D$44,IF(J51=44,'[4]Equivalencia BH-BMPT'!$D$45,IF(J51=45,'[4]Equivalencia BH-BMPT'!$D$46,"No ha seleccionado un número de programa"))))))))))))))))))))))))))))))))))))))))))))) -> Mejor movilidad para todos | L51: 1391 | M51: 901141577 | N51: CONSORCIO VIAS CANDELARIA 2017 | O51: 294859509 | T51: 294859509 | V51: 2017-12-26 | W51: 2017-12-28 | X51: 2018-12-27 | Y51: 360 | AD51: X | AF51: 0 | AG51: FALSE
A52: 112 | B52: 2016 | D52: 3 | E52: =IF(D52=1,'Tipo '!$B$2,IF(D52=2,'Tipo '!$B$3,IF(D52=3,'Tipo '!$B$4,IF(D52=4,'Tipo '!$B$5,IF(D52=5,'Tipo '!$B$6,IF(D52=6,'Tipo '!$B$7,IF(D52=7,'Tipo '!$B$8,IF(D52=8,'Tipo '!$B$9,IF(D52=9,'Tipo '!$B$10,IF(D52=10,'Tipo '!$B$11,IF(D52=11,'Tipo '!$B$12,IF(D52=12,'Tipo '!$B$13,IF(D52=13,'Tipo '!$B$14,IF(D52=14,'Tipo '!$B$15,IF(D52=15,'Tipo '!$B$16,IF(D52=16,'Tipo '!$B$17,IF(D52=17,'Tipo '!$B$18,IF(D52=18,'Tipo '!$B$19,IF(D52=19,'Tipo '!$B$20,"No ha seleccionado un tipo de contrato válido"))))))))))))))))))) -> INTERVENTORÍA | F52: CONCURSO DE MÉRITOS | G52: No aplica | H52: INTERVENTORÍA TÉCNICA, ADMINISTRATIVA, FINANCIERA, SOCIAL, AMBIENTAL Y SISO DEL CONTRATO DE OBRA QUE SE DERIVE DE LA LICITACIÓN PUBLICA FDLC LP 021 DE 2016 O LA QUE HAGA SUS VECES, QUE REFIERE A ¿PRECIOS UNITARIOS FIJOS SIN FÓRMULA DE REAJUSTE, EL DIAGNOSTICO, DISEÑO, Y EJECUCION DE OBRAS PARA LA ADECUACIÓN Y/O REHABILITACION, Y/O MANTENIMIENTO DE LA MALLA VIAL, PARQUES Y ANDENES DE LA LOCALIDAD DE CANDELARIA EN BOGOTÁ D.C, DE CONFORMIDAD CON LA DESCRIPCIÓN, ESPECIFICACIONES TÉCNICAS Y DEMÁS CONDICIONES ESTABLECIDAS EN LOS ESTUDIOS PREVIOS, PLIEGO DE CONDICIONES Y ANEXOS, DOCUMENTOS QUE HACEN PARTE INTEGRAL DEL PRESENTE PROCESO.” | I52: Inversión | J52: 18 | K52: =IF(J52=1,'Equivalencia BH-BMPT'!$D$2,IF(J52=2,'Equivalencia BH-BMPT'!$D$3,IF(J52=3,'Equivalencia BH-BMPT'!$D$4,IF(J52=4,'Equivalencia BH-BMPT'!$D$5,IF(J52=5,'Equivalencia BH-BMPT'!$D$6,IF(J52=6,'Equivalencia BH-BMPT'!$D$7,IF(J52=7,'Equivalencia BH-BMPT'!$D$8,IF(J52=8,'Equivalencia BH-BMPT'!$D$9,IF(J52=9,'Equivalencia BH-BMPT'!$D$10,IF(J52=10,'Equivalencia BH-BMPT'!$D$11,IF(J52=11,'Equivalencia BH-BMPT'!$D$12,IF(J52=12,'Equivalencia BH-BMPT'!$D$13,IF(J52=13,'Equivalencia BH-BMPT'!$D$14,IF(J52=14,'Equivalencia BH-BMPT'!$D$15,IF(J52=15,'Equivalencia BH-BMPT'!$D$16,IF(J52=16,'Equivalencia BH-BMPT'!$D$17,IF(J52=17,'Equivalencia BH-BMPT'!$D$18,IF(J52=18,'Equivalencia BH-BMPT'!$D$19,IF(J52=19,'Equivalencia BH-BMPT'!$D$20,IF(J52=20,'Equivalencia BH-BMPT'!$D$21,IF(J52=21,'Equivalencia BH-BMPT'!$D$22,IF(J52=22,'Equivalencia BH-BMPT'!$D$23,IF(J52=23,'Equivalencia BH-BMPT'!#REF!,IF(J52=24,'Equivalencia BH-BMPT'!$D$25,IF(J52=25,'Equivalencia BH-BMPT'!$D$26,IF(J52=26,'Equivalencia BH-BMPT'!$D$27,IF(J52=27,'Equivalencia BH-BMPT'!$D$28,IF(J52=28,'Equivalencia BH-BMPT'!$D$29,IF(J52=29,'Equivalencia BH-BMPT'!$D$30,IF(J52=30,'Equivalencia BH-BMPT'!$D$31,IF(J52=31,'Equivalencia BH-BMPT'!$D$32,IF(J52=32,'Equivalencia BH-BMPT'!$D$33,IF(J52=33,'Equivalencia BH-BMPT'!$D$34,IF(J52=34,'Equivalencia BH-BMPT'!$D$35,IF(J52=35,'Equivalencia BH-BMPT'!$D$36,IF(J52=36,'Equivalencia BH-BMPT'!$D$37,IF(J52=37,'Equivalencia BH-BMPT'!$D$38,IF(J52=38,'Equivalencia BH-BMPT'!#REF!,IF(J52=39,'Equivalencia BH-BMPT'!$D$40,IF(J52=40,'Equivalencia BH-BMPT'!$D$41,IF(J52=41,'Equivalencia BH-BMPT'!$D$42,IF(J52=42,'Equivalencia BH-BMPT'!$D$43,IF(J52=43,'Equivalencia BH-BMPT'!$D$44,IF(J52=44,'Equivalencia BH-BMPT'!$D$45,IF(J52=45,'Equivalencia BH-BMPT'!$D$46,"No ha seleccionado un número de programa"))))))))))))))))))))))))))))))))))))))))))))) -> Mejor movilidad para todos | L52: 1391 | N52: GNG INGENIERIA S.A.S | S52: 106957200 | T52: 106957200 | V52: 2016-12-20 | W52: 2017-02-13 | X52: 2018-04-05 | Y52: 270 | AC52: X | AF52: 0 | AG52: FALSE
A53: 113 | B53: 2016 | E53: CONTRATO DE OBRA PUBLICA | F53: Licitación pública | H53: REALIZAR A MONTO AGOTABLE A PRECIOS UNITARIOS FIJOS SIN FORMULA DE REAJUSTE EL DIAGNOSTICO , DISEÑOS Y EJECUCION DE OBRAS PARA LA ADECUACION Y/O REHABILITACION MANTENIMIENTO DE LA MALLA VIAL, ANDENES Y PARQUES DE LA LOCALIDAD DE LA CANDELARIA DE CONFORMIDAD CON LA DESCRIPCION ESPECIFICACIONES TECNICAS Y DEMAS CONDICIONES ESTABLECIDAD EN LOS ESTUDIOS PREVIOS PLIEGO DE CONDICIONES Y ANEXOS DOCUMENTOS QUE HACEN PARTE INTEGRAL DEL PRESENTE PROCESO | I53: Inversión | J53: 18 | K53: =IF(J53=1,'Equivalencia BH-BMPT'!$D$2,IF(J53=2,'Equivalencia BH-BMPT'!$D$3,IF(J53=3,'Equivalencia BH-BMPT'!$D$4,IF(J53=4,'Equivalencia BH-BMPT'!$D$5,IF(J53=5,'Equivalencia BH-BMPT'!$D$6,IF(J53=6,'Equivalencia BH-BMPT'!$D$7,IF(J53=7,'Equivalencia BH-BMPT'!$D$8,IF(J53=8,'Equivalencia BH-BMPT'!$D$9,IF(J53=9,'Equivalencia BH-BMPT'!$D$10,IF(J53=10,'Equivalencia BH-BMPT'!$D$11,IF(J53=11,'Equivalencia BH-BMPT'!$D$12,IF(J53=12,'Equivalencia BH-BMPT'!$D$13,IF(J53=13,'Equivalencia BH-BMPT'!$D$14,IF(J53=14,'Equivalencia BH-BMPT'!$D$15,IF(J53=15,'Equivalencia BH-BMPT'!$D$16,IF(J53=16,'Equivalencia BH-BMPT'!$D$17,IF(J53=17,'Equivalencia BH-BMPT'!$D$18,IF(J53=18,'Equivalencia BH-BMPT'!$D$19,IF(J53=19,'Equivalencia BH-BMPT'!$D$20,IF(J53=20,'Equivalencia BH-BMPT'!$D$21,IF(J53=21,'Equivalencia BH-BMPT'!$D$22,IF(J53=22,'Equivalencia BH-BMPT'!$D$23,IF(J53=23,'Equivalencia BH-BMPT'!#REF!,IF(J53=24,'Equivalencia BH-BMPT'!$D$25,IF(J53=25,'Equivalencia BH-BMPT'!$D$26,IF(J53=26,'Equivalencia BH-BMPT'!$D$27,IF(J53=27,'Equivalencia BH-BMPT'!$D$28,IF(J53=28,'Equivalencia BH-BMPT'!$D$29,IF(J53=29,'Equivalencia BH-BMPT'!$D$30,IF(J53=30,'Equivalencia BH-BMPT'!$D$31,IF(J53=31,'Equivalencia BH-BMPT'!$D$32,IF(J53=32,'Equivalencia BH-BMPT'!$D$33,IF(J53=33,'Equivalencia BH-BMPT'!$D$34,IF(J53=34,'Equivalencia BH-BMPT'!$D$35,IF(J53=35,'Equivalencia BH-BMPT'!$D$36,IF(J53=36,'Equivalencia BH-BMPT'!$D$37,IF(J53=37,'Equivalencia BH-BMPT'!$D$38,IF(J53=38,'Equivalencia BH-BMPT'!#REF!,IF(J53=39,'Equivalencia BH-BMPT'!$D$40,IF(J53=40,'Equivalencia BH-BMPT'!$D$41,IF(J53=41,'Equivalencia BH-BMPT'!$D$42,IF(J53=42,'Equivalencia BH-BMPT'!$D$43,IF(J53=43,'Equivalencia BH-BMPT'!$D$44,IF(J53=44,'Equivalencia BH-BMPT'!$D$45,IF(J53=45,'Equivalencia BH-BMPT'!$D$46,"No ha seleccionado un número de programa"))))))))))))))))))))))))))))))))))))))))))))) -> Mejor movilidad para todos | L53: 1391 | N53: UNION TEMPORAL CANDELARIA 2018 | S53: 1103000000 | T53: 1103000000 | AF53: 0 | AG53: FALSE
A54: 163 | B54: 2014 | E54: CONTRATO DE OBRA PUBLICA | F54: Licitación pública | G54: No aplica | H54: REALIZAR A MONTO AGOTABLE, A PRECIOS UNITARIOS FIJOS, SIN FÓRMULA DE REAJUSTE, EL DIAGNÓSTICO, LOS ESTUDIOS Y DISEÑOS, EL MANTENIMIENTO Y/O REHABILITACIÓN DE LA MALLA VIAL LOCAL DE LA LOCALIDAD DE LA CANDELARIA, DE CONFORMIDAD CON LOS PLIEGOS DE CONDICIONES, ESTUDIOS PREVIOS Y DEMÁS CONDICIONES ESTABLECIDAS EN EL ANEXO TÉCNICO.RADICADO 20176720003723 DEL 30-03-2017RADICADO CDP 20176720003763 DEL 03-04-2017. | I54: Inversión | J54: 18 | K54: =IF(J54=1,'Equivalencia BH-BMPT'!$D$2,IF(J54=2,'Equivalencia BH-BMPT'!$D$3,IF(J54=3,'Equivalencia BH-BMPT'!$D$4,IF(J54=4,'Equivalencia BH-BMPT'!$D$5,IF(J54=5,'Equivalencia BH-BMPT'!$D$6,IF(J54=6,'Equivalencia BH-BMPT'!$D$7,IF(J54=7,'Equivalencia BH-BMPT'!$D$8,IF(J54=8,'Equivalencia BH-BMPT'!$D$9,IF(J54=9,'Equivalencia BH-BMPT'!$D$10,IF(J54=10,'Equivalencia BH-BMPT'!$D$11,IF(J54=11,'Equivalencia BH-BMPT'!$D$12,IF(J54=12,'Equivalencia BH-BMPT'!$D$13,IF(J54=13,'Equivalencia BH-BMPT'!$D$14,IF(J54=14,'Equivalencia BH-BMPT'!$D$15,IF(J54=15,'Equivalencia BH-BMPT'!$D$16,IF(J54=16,'Equivalencia BH-BMPT'!$D$17,IF(J54=17,'Equivalencia BH-BMPT'!$D$18,IF(J54=18,'Equivalencia BH-BMPT'!$D$19,IF(J54=19,'Equivalencia BH-BMPT'!$D$20,IF(J54=20,'Equivalencia BH-BMPT'!$D$21,IF(J54=21,'Equivalencia BH-BMPT'!$D$22,IF(J54=22,'Equivalencia BH-BMPT'!$D$23,IF(J54=23,'Equivalencia BH-BMPT'!D91,IF(J54=24,'Equivalencia BH-BMPT'!$D$25,IF(J54=25,'Equivalencia BH-BMPT'!$D$26,IF(J54=26,'Equivalencia BH-BMPT'!$D$27,IF(J54=27,'Equivalencia BH-BMPT'!$D$28,IF(J54=28,'Equivalencia BH-BMPT'!$D$29,IF(J54=29,'Equivalencia BH-BMPT'!$D$30,IF(J54=30,'Equivalencia BH-BMPT'!$D$31,IF(J54=31,'Equivalencia BH-BMPT'!$D$32,IF(J54=32,'Equivalencia BH-BMPT'!$D$33,IF(J54=33,'Equivalencia BH-BMPT'!$D$34,IF(J54=34,'Equivalencia BH-BMPT'!$D$35,IF(J54=35,'Equivalencia BH-BMPT'!$D$36,IF(J54=36,'Equivalencia BH-BMPT'!$D$37,IF(J54=37,'Equivalencia BH-BMPT'!$D$38,IF(J54=38,'Equivalencia BH-BMPT'!D106,IF(J54=39,'Equivalencia BH-BMPT'!$D$40,IF(J54=40,'Equivalencia BH-BMPT'!$D$41,IF(J54=41,'Equivalencia BH-BMPT'!$D$42,IF(J54=42,'Equivalencia BH-BMPT'!$D$43,IF(J54=43,'Equivalencia BH-BMPT'!$D$44,IF(J54=44,'Equivalencia BH-BMPT'!$D$45,IF(J54=45,'Equivalencia BH-BMPT'!$D$46,"No ha seleccionado un número de programa"))))))))))))))))))))))))))))))))))))))))))))) -> Mejor movilidad para todos | L54: 1391 | N54: UNION TEMPORAL VIAS CANDELARIA 2015 | S54: 150914714 | T54: 150914714 | U54: 150914714 | AF54: 1 | AG54: FALSE
A55: 111 | B55: 2017 | C55: ACUERDO MARCO | D55: 6 | E55: COMPRAVENTA DE BIENES INMUEBLES | F55: Selección abreviada | G55: Acuerdo marco de precios | H55: ADQUISICIÓN DEL SISTEMAS DE VIDEO VIGILANCIA DEL DISTRITO A TRAVÉS DE LA OPERACIÓN SECUNDARIA DEL INSTRUMENTO DE AGREGACIÓN DE DEMANDA LP-151-AG-2017 DE COLOMBIA COMPRA EFICIENTE PARA LA LOCALIDAD DE LA CANDELARIA | I55: Inversión | J55: 19 | K55: =IF(J55=1,'[4]Equivalencia BH-BMPT'!$D$2,IF(J55=2,'[4]Equivalencia BH-BMPT'!$D$3,IF(J55=3,'[4]Equivalencia BH-BMPT'!$D$4,IF(J55=4,'[4]Equivalencia BH-BMPT'!$D$5,IF(J55=5,'[4]Equivalencia BH-BMPT'!$D$6,IF(J55=6,'[4]Equivalencia BH-BMPT'!$D$7,IF(J55=7,'[4]Equivalencia BH-BMPT'!$D$8,IF(J55=8,'[4]Equivalencia BH-BMPT'!$D$9,IF(J55=9,'[4]Equivalencia BH-BMPT'!$D$10,IF(J55=10,'[4]Equivalencia BH-BMPT'!$D$11,IF(J55=11,'[4]Equivalencia BH-BMPT'!$D$12,IF(J55=12,'[4]Equivalencia BH-BMPT'!$D$13,IF(J55=13,'[4]Equivalencia BH-BMPT'!$D$14,IF(J55=14,'[4]Equivalencia BH-BMPT'!$D$15,IF(J55=15,'[4]Equivalencia BH-BMPT'!$D$16,IF(J55=16,'[4]Equivalencia BH-BMPT'!$D$17,IF(J55=17,'[4]Equivalencia BH-BMPT'!$D$18,IF(J55=18,'[4]Equivalencia BH-BMPT'!$D$19,IF(J55=19,'[4]Equivalencia BH-BMPT'!$D$20,IF(J55=20,'[4]Equivalencia BH-BMPT'!$D$21,IF(J55=21,'[4]Equivalencia BH-BMPT'!$D$22,IF(J55=22,'[4]Equivalencia BH-BMPT'!$D$23,IF(J55=23,'[4]Equivalencia BH-BMPT'!#REF!,IF(J55=24,'[4]Equivalencia BH-BMPT'!$D$25,IF(J55=25,'[4]Equivalencia BH-BMPT'!$D$26,IF(J55=26,'[4]Equivalencia BH-BMPT'!$D$27,IF(J55=27,'[4]Equivalencia BH-BMPT'!$D$28,IF(J55=28,'[4]Equivalencia BH-BMPT'!$D$29,IF(J55=29,'[4]Equivalencia BH-BMPT'!$D$30,IF(J55=30,'[4]Equivalencia BH-BMPT'!$D$31,IF(J55=31,'[4]Equivalencia BH-BMPT'!$D$32,IF(J55=32,'[4]Equivalencia BH-BMPT'!$D$33,IF(J55=33,'[4]Equivalencia BH-BMPT'!$D$34,IF(J55=34,'[4]Equivalencia BH-BMPT'!$D$35,IF(J55=35,'[4]Equivalencia BH-BMPT'!$D$36,IF(J55=36,'[4]Equivalencia BH-BMPT'!$D$37,IF(J55=37,'[4]Equivalencia BH-BMPT'!$D$38,IF(J55=38,'[4]Equivalencia BH-BMPT'!#REF!,IF(J55=39,'[4]Equivalencia BH-BMPT'!$D$40,IF(J55=40,'[4]Equivalencia BH-BMPT'!$D$41,IF(J55=41,'[4]Equivalencia BH-BMPT'!$D$42,IF(J55=42,'[4]Equivalencia BH-BMPT'!$D$43,IF(J55=43,'[4]Equivalencia BH-BMPT'!$D$44,IF(J55=44,'[4]Equivalencia BH-BMPT'!$D$45,IF(J55=45,'[4]Equivalencia BH-BMPT'!$D$46,"No ha seleccionado un número de programa"))))))))))))))))))))))))))))))))))))))))))))) -> Seguridad y convivencia para todos | L55: 1392 | M55: 901134817 | N55: UNIÓN TEMPORAL BOGOTA ALCALDIAS SEGURIDAD CIUDADANA | O55: 474633000 | T55: 474633000 | V55: 2017-12-27 | Y55: 720 | AA55: X | AF55: 0 | AG55: FALSE
A56: 91 | B56: 2017 | C56: 17-15-6987218 | D56: 3 | E56: =IF(D56=1,'[3]Tipo '!$B$2,IF(D56=2,'[3]Tipo '!$B$3,IF(D56=3,'[3]Tipo '!$B$4,IF(D56=4,'[3]Tipo '!$B$5,IF(D56=5,'[3]Tipo '!$B$6,IF(D56=6,'[3]Tipo '!$B$7,IF(D56=7,'[3]Tipo '!$B$8,IF(D56=8,'[3]Tipo '!$B$9,IF(D56=9,'[3]Tipo '!$B$10,IF(D56=10,'[3]Tipo '!$B$11,IF(D56=11,'[3]Tipo '!$B$12,IF(D56=12,'[3]Tipo '!$B$13,IF(D56=13,'[3]Tipo '!$B$14,IF(D56=14,'[3]Tipo '!$B$15,IF(D56=15,'[3]Tipo '!$B$16,IF(D56=16,'[3]Tipo '!$B$17,IF(D56=17,'[3]Tipo '!$B$18,IF(D56=18,'[3]Tipo '!$B$19,IF(D56=19,'[3]Tipo '!$B$20,"No ha seleccionado un tipo de contrato válido"))))))))))))))))))) -> INTERVENTORÍA | F56: Concurso de Méritos | G56: No aplica | H56: EJECUTAR LA INTERVENTORIA TECNICA, ADMINISTRATIVA, FINANCIERA A EVENTOS CULTURALES Y/O FIESTAS Y/O AMBIENTAL Y/O INNOVACIÓN DEL FONDO DE DESARROLLO LOCAL DE LA CANDELARIA | I56: Inversión | J56: 11 | K56: =IF(J56=1,'[3]Equivalencia BH-BMPT'!$D$2,IF(J56=2,'[3]Equivalencia BH-BMPT'!$D$3,IF(J56=3,'[3]Equivalencia BH-BMPT'!$D$4,IF(J56=4,'[3]Equivalencia BH-BMPT'!$D$5,IF(J56=5,'[3]Equivalencia BH-BMPT'!$D$6,IF(J56=6,'[3]Equivalencia BH-BMPT'!$D$7,IF(J56=7,'[3]Equivalencia BH-BMPT'!$D$8,IF(J56=8,'[3]Equivalencia BH-BMPT'!$D$9,IF(J56=9,'[3]Equivalencia BH-BMPT'!$D$10,IF(J56=10,'[3]Equivalencia BH-BMPT'!$D$11,IF(J56=11,'[3]Equivalencia BH-BMPT'!$D$12,IF(J56=12,'[3]Equivalencia BH-BMPT'!$D$13,IF(J56=13,'[3]Equivalencia BH-BMPT'!$D$14,IF(J56=14,'[3]Equivalencia BH-BMPT'!$D$15,IF(J56=15,'[3]Equivalencia BH-BMPT'!$D$16,IF(J56=16,'[3]Equivalencia BH-BMPT'!$D$17,IF(J56=17,'[3]Equivalencia BH-BMPT'!$D$18,IF(J56=18,'[3]Equivalencia BH-BMPT'!$D$19,IF(J56=19,'[3]Equivalencia BH-BMPT'!$D$20,IF(J56=20,'[3]Equivalencia BH-BMPT'!$D$21,IF(J56=21,'[3]Equivalencia BH-BMPT'!$D$22,IF(J56=22,'[3]Equivalencia BH-BMPT'!$D$23,IF(J56=23,'[3]Equivalencia BH-BMPT'!#REF!,IF(J56=24,'[3]Equivalencia BH-BMPT'!$D$25,IF(J56=25,'[3]Equivalencia BH-BMPT'!$D$26,IF(J56=26,'[3]Equivalencia BH-BMPT'!$D$27,IF(J56=27,'[3]Equivalencia BH-BMPT'!$D$28,IF(J56=28,'[3]Equivalencia BH-BMPT'!$D$29,IF(J56=29,'[3]Equivalencia BH-BMPT'!$D$30,IF(J56=30,'[3]Equivalencia BH-BMPT'!$D$31,IF(J56=31,'[3]Equivalencia BH-BMPT'!$D$32,IF(J56=32,'[3]Equivalencia BH-BMPT'!$D$33,IF(J56=33,'[3]Equivalencia BH-BMPT'!$D$34,IF(J56=34,'[3]Equivalencia BH-BMPT'!$D$35,IF(J56=35,'[3]Equivalencia BH-BMPT'!$D$36,IF(J56=36,'[3]Equivalencia BH-BMPT'!$D$37,IF(J56=37,'[3]Equivalencia BH-BMPT'!$D$38,IF(J56=38,'[3]Equivalencia BH-BMPT'!#REF!,IF(J56=39,'[3]Equivalencia BH-BMPT'!$D$40,IF(J56=40,'[3]Equivalencia BH-BMPT'!$D$41,IF(J56=41,'[3]Equivalencia BH-BMPT'!$D$42,IF(J56=42,'[3]Equivalencia BH-BMPT'!$D$43,IF(J56=43,'[3]Equivalencia BH-BMPT'!$D$44,IF(J56=44,'[3]Equivalencia BH-BMPT'!$D$45,IF(J56=45,'[3]Equivalencia BH-BMPT'!$D$46,"No ha seleccionado un número de programa"))))))))))))))))))))))))))))))))))))))))))))) -> Mejores oportunidades para el desarrollo a través de la cultura, la recreación y el deporte | L56: 1389 | M56: 9006418412 | N56: SOLUCIONES AVANZADA DE INGENIERIA Y CONSTRUCCION SAS | O56: 69360054 | T56: 69360054 | U56: 29807120 | V56: 2017-09-27 | W56: 2017-10-05 | X56: 2018-05-04 | Y56: 210 | AC56: X | AF56: 0.4297447635 | AG56: FALSE
A57: 91 | B57: 2017 | C57: 17-15-6987218 | D57: 3 | E57: =IF(D57=1,'[3]Tipo '!$B$2,IF(D57=2,'[3]Tipo '!$B$3,IF(D57=3,'[3]Tipo '!$B$4,IF(D57=4,'[3]Tipo '!$B$5,IF(D57=5,'[3]Tipo '!$B$6,IF(D57=6,'[3]Tipo '!$B$7,IF(D57=7,'[3]Tipo '!$B$8,IF(D57=8,'[3]Tipo '!$B$9,IF(D57=9,'[3]Tipo '!$B$10,IF(D57=10,'[3]Tipo '!$B$11,IF(D57=11,'[3]Tipo '!$B$12,IF(D57=12,'[3]Tipo '!$B$13,IF(D57=13,'[3]Tipo '!$B$14,IF(D57=14,'[3]Tipo '!$B$15,IF(D57=15,'[3]Tipo '!$B$16,IF(D57=16,'[3]Tipo '!$B$17,IF(D57=17,'[3]Tipo '!$B$18,IF(D57=18,'[3]Tipo '!$B$19,IF(D57=19,'[3]Tipo '!$B$20,"No ha seleccionado un tipo de contrato válido"))))))))))))))))))) -> INTERVENTORÍA | F57: Concurso de Méritos | G57: No aplica | H57: EJECUTAR LA INTERVENTORIA TECNICA, ADMINISTRATIVA, FINANCIERA A EVENTOS CULTURALES Y/O FIESTAS Y/O AMBIENTAL Y/O INNOVACIÓN DEL FONDO DE DESARROLLO LOCAL DE LA CANDELARIA | I57: Inversión | J57: 37 | K57: =IF(J57=1,'[3]Equivalencia BH-BMPT'!$D$2,IF(J57=2,'[3]Equivalencia BH-BMPT'!$D$3,IF(J57=3,'[3]Equivalencia BH-BMPT'!$D$4,IF(J57=4,'[3]Equivalencia BH-BMPT'!$D$5,IF(J57=5,'[3]Equivalencia BH-BMPT'!$D$6,IF(J57=6,'[3]Equivalencia BH-BMPT'!$D$7,IF(J57=7,'[3]Equivalencia BH-BMPT'!$D$8,IF(J57=8,'[3]Equivalencia BH-BMPT'!$D$9,IF(J57=9,'[3]Equivalencia BH-BMPT'!$D$10,IF(J57=10,'[3]Equivalencia BH-BMPT'!$D$11,IF(J57=11,'[3]Equivalencia BH-BMPT'!$D$12,IF(J57=12,'[3]Equivalencia BH-BMPT'!$D$13,IF(J57=13,'[3]Equivalencia BH-BMPT'!$D$14,IF(J57=14,'[3]Equivalencia BH-BMPT'!$D$15,IF(J57=15,'[3]Equivalencia BH-BMPT'!$D$16,IF(J57=16,'[3]Equivalencia BH-BMPT'!$D$17,IF(J57=17,'[3]Equivalencia BH-BMPT'!$D$18,IF(J57=18,'[3]Equivalencia BH-BMPT'!$D$19,IF(J57=19,'[3]Equivalencia BH-BMPT'!$D$20,IF(J57=20,'[3]Equivalencia BH-BMPT'!$D$21,IF(J57=21,'[3]Equivalencia BH-BMPT'!$D$22,IF(J57=22,'[3]Equivalencia BH-BMPT'!$D$23,IF(J57=23,'[3]Equivalencia BH-BMPT'!#REF!,IF(J57=24,'[3]Equivalencia BH-BMPT'!$D$25,IF(J57=25,'[3]Equivalencia BH-BMPT'!$D$26,IF(J57=26,'[3]Equivalencia BH-BMPT'!$D$27,IF(J57=27,'[3]Equivalencia BH-BMPT'!$D$28,IF(J57=28,'[3]Equivalencia BH-BMPT'!$D$29,IF(J57=29,'[3]Equivalencia BH-BMPT'!$D$30,IF(J57=30,'[3]Equivalencia BH-BMPT'!$D$31,IF(J57=31,'[3]Equivalencia BH-BMPT'!$D$32,IF(J57=32,'[3]Equivalencia BH-BMPT'!$D$33,IF(J57=33,'[3]Equivalencia BH-BMPT'!$D$34,IF(J57=34,'[3]Equivalencia BH-BMPT'!$D$35,IF(J57=35,'[3]Equivalencia BH-BMPT'!$D$36,IF(J57=36,'[3]Equivalencia BH-BMPT'!$D$37,IF(J57=37,'[3]Equivalencia BH-BMPT'!$D$38,IF(J57=38,'[3]Equivalencia BH-BMPT'!#REF!,IF(J57=39,'[3]Equivalencia BH-BMPT'!$D$40,IF(J57=40,'[3]Equivalencia BH-BMPT'!$D$41,IF(J57=41,'[3]Equivalencia BH-BMPT'!$D$42,IF(J57=42,'[3]Equivalencia BH-BMPT'!$D$43,IF(J57=43,'[3]Equivalencia BH-BMPT'!$D$44,IF(J57=44,'[3]Equivalencia BH-BMPT'!$D$45,IF(J57=45,'[3]Equivalencia BH-BMPT'!$D$46,"No ha seleccionado un número de programa"))))))))))))))))))))))))))))))))))))))))))))) -> Consolidar el turismo como factor de desarrollo, confianza y felicidad para Bogotá Región | L57: 1394 | M57: 9006418412 | N57: SOLUCIONES AVANZADA DE INGENIERIA Y CONSTRUCCION SAS | O57: 17023726 | T57: 17023726 | V57: 2017-09-27 | W57: 2017-10-05 | X57: 2018-05-04 | Y57: 210 | AC57: X | AF57: 0 | AG57: FALSE
A58: 91 | B58: 2017 | C58: 17-15-6987218 | D58: 3 | E58: =IF(D58=1,'[3]Tipo '!$B$2,IF(D58=2,'[3]Tipo '!$B$3,IF(D58=3,'[3]Tipo '!$B$4,IF(D58=4,'[3]Tipo '!$B$5,IF(D58=5,'[3]Tipo '!$B$6,IF(D58=6,'[3]Tipo '!$B$7,IF(D58=7,'[3]Tipo '!$B$8,IF(D58=8,'[3]Tipo '!$B$9,IF(D58=9,'[3]Tipo '!$B$10,IF(D58=10,'[3]Tipo '!$B$11,IF(D58=11,'[3]Tipo '!$B$12,IF(D58=12,'[3]Tipo '!$B$13,IF(D58=13,'[3]Tipo '!$B$14,IF(D58=14,'[3]Tipo '!$B$15,IF(D58=15,'[3]Tipo '!$B$16,IF(D58=16,'[3]Tipo '!$B$17,IF(D58=17,'[3]Tipo '!$B$18,IF(D58=18,'[3]Tipo '!$B$19,IF(D58=19,'[3]Tipo '!$B$20,"No ha seleccionado un tipo de contrato válido"))))))))))))))))))) -> INTERVENTORÍA | F58: Concurso de Méritos | G58: No aplica | H58: EJECUTAR LA INTERVENTORIA TECNICA, ADMINISTRATIVA, FINANCIERA A EVENTOS CULTURALES Y/O FIESTAS Y/O AMBIENTAL Y/O INNOVACIÓN DEL FONDO DE DESARROLLO LOCAL DE LA CANDELARIA | I58: Inversión | J58: 39 | K58: =IF(J58=1,'[3]Equivalencia BH-BMPT'!$D$2,IF(J58=2,'[3]Equivalencia BH-BMPT'!$D$3,IF(J58=3,'[3]Equivalencia BH-BMPT'!$D$4,IF(J58=4,'[3]Equivalencia BH-BMPT'!$D$5,IF(J58=5,'[3]Equivalencia BH-BMPT'!$D$6,IF(J58=6,'[3]Equivalencia BH-BMPT'!$D$7,IF(J58=7,'[3]Equivalencia BH-BMPT'!$D$8,IF(J58=8,'[3]Equivalencia BH-BMPT'!$D$9,IF(J58=9,'[3]Equivalencia BH-BMPT'!$D$10,IF(J58=10,'[3]Equivalencia BH-BMPT'!$D$11,IF(J58=11,'[3]Equivalencia BH-BMPT'!$D$12,IF(J58=12,'[3]Equivalencia BH-BMPT'!$D$13,IF(J58=13,'[3]Equivalencia BH-BMPT'!$D$14,IF(J58=14,'[3]Equivalencia BH-BMPT'!$D$15,IF(J58=15,'[3]Equivalencia BH-BMPT'!$D$16,IF(J58=16,'[3]Equivalencia BH-BMPT'!$D$17,IF(J58=17,'[3]Equivalencia BH-BMPT'!$D$18,IF(J58=18,'[3]Equivalencia BH-BMPT'!$D$19,IF(J58=19,'[3]Equivalencia BH-BMPT'!$D$20,IF(J58=20,'[3]Equivalencia BH-BMPT'!$D$21,IF(J58=21,'[3]Equivalencia BH-BMPT'!$D$22,IF(J58=22,'[3]Equivalencia BH-BMPT'!$D$23,IF(J58=23,'[3]Equivalencia BH-BMPT'!#REF!,IF(J58=24,'[3]Equivalencia BH-BMPT'!$D$25,IF(J58=25,'[3]Equivalencia BH-BMPT'!$D$26,IF(J58=26,'[3]Equivalencia BH-BMPT'!$D$27,IF(J58=27,'[3]Equivalencia BH-BMPT'!$D$28,IF(J58=28,'[3]Equivalencia BH-BMPT'!$D$29,IF(J58=29,'[3]Equivalencia BH-BMPT'!$D$30,IF(J58=30,'[3]Equivalencia BH-BMPT'!$D$31,IF(J58=31,'[3]Equivalencia BH-BMPT'!$D$32,IF(J58=32,'[3]Equivalencia BH-BMPT'!$D$33,IF(J58=33,'[3]Equivalencia BH-BMPT'!$D$34,IF(J58=34,'[3]Equivalencia BH-BMPT'!$D$35,IF(J58=35,'[3]Equivalencia BH-BMPT'!$D$36,IF(J58=36,'[3]Equivalencia BH-BMPT'!$D$37,IF(J58=37,'[3]Equivalencia BH-BMPT'!$D$38,IF(J58=38,'[3]Equivalencia BH-BMPT'!#REF!,IF(J58=39,'[3]Equivalencia BH-BMPT'!$D$40,IF(J58=40,'[3]Equivalencia BH-BMPT'!$D$41,IF(J58=41,'[3]Equivalencia BH-BMPT'!$D$42,IF(J58=42,'[3]Equivalencia BH-BMPT'!$D$43,IF(J58=43,'[3]Equivalencia BH-BMPT'!$D$44,IF(J58=44,'[3]Equivalencia BH-BMPT'!$D$45,IF(J58=45,'[3]Equivalencia BH-BMPT'!$D$46,"No ha seleccionado un número de programa"))))))))))))))))))))))))))))))))))))))))))))) -> Ambiente sano para la equidad y disfrute del ciudadano | L58: 1393 | M58: 9006418412 | N58: SOLUCIONES AVANZADA DE INGENIERIA Y CONSTRUCCION SAS | O58: 17941140 | T58: 17941140 | V58: 2017-09-27 | W58: 2017-10-05 | X58: 2018-05-04 | Y58: 210 | AC58: X | AF58: 0 | AG58: FALSE
A59: 100 | B59: 2017 | C59: 17-12-7470011 | D59: 16 | E59: =IF(D59=1,'[4]Tipo '!$B$2,IF(D59=2,'[4]Tipo '!$B$3,IF(D59=3,'[4]Tipo '!$B$4,IF(D59=4,'[4]Tipo '!$B$5,IF(D59=5,'[4]Tipo '!$B$6,IF(D59=6,'[4]Tipo '!$B$7,IF(D59=7,'[4]Tipo '!$B$8,IF(D59=8,'[4]Tipo '!$B$9,IF(D59=9,'[4]Tipo '!$B$10,IF(D59=10,'[4]Tipo '!$B$11,IF(D59=11,'[4]Tipo '!$B$12,IF(D59=12,'[4]Tipo '!$B$13,IF(D59=13,'[4]Tipo '!$B$14,IF(D59=14,'[4]Tipo '!$B$15,IF(D59=15,'[4]Tipo '!$B$16,IF(D59=16,'[4]Tipo '!$B$17,IF(D59=17,'[4]Tipo '!$B$18,IF(D59=18,'[4]Tipo '!$B$19,IF(D59=19,'[4]Tipo '!$B$20,"No ha seleccionado un tipo de contrato válido"))))))))))))))))))) -> CONTRATOS INTERADMINISTRATIVOS | F59: Contratación directa | G59: Contratos interadministrativos | H59: REALIZAR LAS ACCIONES DE EMBELLECIMIENTO, RECUPERACIÓN Y MANTENIMIENTO DE ZONAS VERDES, PUNTOS CRITICOS, SANITARIOS Y ACUMULACIÓN, EN LA LOCALIDAD DE LA CANDELARIA | I59: Inversión | J59: 39 | K59: =IF(J59=1,'[4]Equivalencia BH-BMPT'!$D$2,IF(J59=2,'[4]Equivalencia BH-BMPT'!$D$3,IF(J59=3,'[4]Equivalencia BH-BMPT'!$D$4,IF(J59=4,'[4]Equivalencia BH-BMPT'!$D$5,IF(J59=5,'[4]Equivalencia BH-BMPT'!$D$6,IF(J59=6,'[4]Equivalencia BH-BMPT'!$D$7,IF(J59=7,'[4]Equivalencia BH-BMPT'!$D$8,IF(J59=8,'[4]Equivalencia BH-BMPT'!$D$9,IF(J59=9,'[4]Equivalencia BH-BMPT'!$D$10,IF(J59=10,'[4]Equivalencia BH-BMPT'!$D$11,IF(J59=11,'[4]Equivalencia BH-BMPT'!$D$12,IF(J59=12,'[4]Equivalencia BH-BMPT'!$D$13,IF(J59=13,'[4]Equivalencia BH-BMPT'!$D$14,IF(J59=14,'[4]Equivalencia BH-BMPT'!$D$15,IF(J59=15,'[4]Equivalencia BH-BMPT'!$D$16,IF(J59=16,'[4]Equivalencia BH-BMPT'!$D$17,IF(J59=17,'[4]Equivalencia BH-BMPT'!$D$18,IF(J59=18,'[4]Equivalencia BH-BMPT'!$D$19,IF(J59=19,'[4]Equivalencia BH-BMPT'!$D$20,IF(J59=20,'[4]Equivalencia BH-BMPT'!$D$21,IF(J59=21,'[4]Equivalencia BH-BMPT'!$D$22,IF(J59=22,'[4]Equivalencia BH-BMPT'!$D$23,IF(J59=23,'[4]Equivalencia BH-BMPT'!#REF!,IF(J59=24,'[4]Equivalencia BH-BMPT'!$D$25,IF(J59=25,'[4]Equivalencia BH-BMPT'!$D$26,IF(J59=26,'[4]Equivalencia BH-BMPT'!$D$27,IF(J59=27,'[4]Equivalencia BH-BMPT'!$D$28,IF(J59=28,'[4]Equivalencia BH-BMPT'!$D$29,IF(J59=29,'[4]Equivalencia BH-BMPT'!$D$30,IF(J59=30,'[4]Equivalencia BH-BMPT'!$D$31,IF(J59=31,'[4]Equivalencia BH-BMPT'!$D$32,IF(J59=32,'[4]Equivalencia BH-BMPT'!$D$33,IF(J59=33,'[4]Equivalencia BH-BMPT'!$D$34,IF(J59=34,'[4]Equivalencia BH-BMPT'!$D$35,IF(J59=35,'[4]Equivalencia BH-BMPT'!$D$36,IF(J59=36,'[4]Equivalencia BH-BMPT'!$D$37,IF(J59=37,'[4]Equivalencia BH-BMPT'!$D$38,IF(J59=38,'[4]Equivalencia BH-BMPT'!#REF!,IF(J59=39,'[4]Equivalencia BH-BMPT'!$D$40,IF(J59=40,'[4]Equivalencia BH-BMPT'!$D$41,IF(J59=41,'[4]Equivalencia BH-BMPT'!$D$42,IF(J59=42,'[4]Equivalencia BH-BMPT'!$D$43,IF(J59=43,'[4]Equivalencia BH-BMPT'!$D$44,IF(J59=44,'[4]Equivalencia BH-BMPT'!$D$45,IF(J59=45,'[4]Equivalencia BH-BMPT'!$D$46,"No ha seleccionado un número de programa"))))))))))))))))))))))))))))))))))))))))))))) -> Ambiente sano para la equidad y disfrute del ciudadano | L59: 1393 | M59: 830128286 | N59: AGUAS BOGOTA SA ESP | O59: 131626940 | T59: 131626940 | V59: 2017-10-10 | W59: 2018-01-15 | X59: 2018-03-14 | Y59: 90 | AB59: X | AF59: 0 | AG59: FALSE
A60: 105 | B60: 2016 | E60: INTERVENTORIA | F60: Concurso de Méritos | G60: No aplica | H60: EJECUTAR LA INTERVENTORIA TECNICA, ADMINISTRATIVA, FINANCIERA Y SISO A EVENTOS Y/O FIESTAS Y/O CUMBRES Y/O AMBIENTAL Y/O DEPORTES Y/O POBLACIONES DEL FDLLC. | I60: Inversión | J60: 39 | K60: Ambiente sano para la equidad y disfrute del ciudadano | L60: 1393 | N60: CONSORCIO INTER CANDELARIA 030 | S60: 49777920 | T60: 49777920 | U60: 49777920 | AF60: 1 | AG60: FALSE
A61: 82 | B61: 2017 | C61: 17-12-6978100 | D61: 5 | E61: =IF(D61=1,'[2]Tipo '!$B$2,IF(D61=2,'[2]Tipo '!$B$3,IF(D61=3,'[2]Tipo '!$B$4,IF(D61=4,'[2]Tipo '!$B$5,IF(D61=5,'[2]Tipo '!$B$6,IF(D61=6,'[2]Tipo '!$B$7,IF(D61=7,'[2]Tipo '!$B$8,IF(D61=8,'[2]Tipo '!$B$9,IF(D61=9,'[2]Tipo '!$B$10,IF(D61=10,'[2]Tipo '!$B$11,IF(D61=11,'[2]Tipo '!$B$12,IF(D61=12,'[2]Tipo '!$B$13,IF(D61=13,'[2]Tipo '!$B$14,IF(D61=14,'[2]Tipo '!$B$15,IF(D61=15,'[2]Tipo '!$B$16,IF(D61=16,'[2]Tipo '!$B$17,IF(D61=17,'[2]Tipo '!$B$18,IF(D61=18,'[2]Tipo '!$B$19,IF(D61=19,'[2]Tipo '!$B$20,"No ha seleccionado un tipo de contrato válido"))))))))))))))))))) -> CONTRATOS DE PRESTACIÓN DE SERVICIOS PROFESIONALES Y DE APOYO A LA GESTIÓN | F61: Contratación directa | G61: Prestación de servicios profesionales y de apoyo a la gestión, o para la ejecución de trabajos artísticos que sólo puedan encomendarse a determinadas personas naturales; | H61: PRESTACIÓN DE SERVICIOS PROFESIONALES PARA LA PROMOCIÓN Y FORTALECIMIENTO DEL TURISMO CULTURAL EN LA LOCALIDAD 17 DE LA CANDELARIA A TRAVÉS DE LA GESTIÓN, ARTICULACIÓN E INTERLOCUCIÓN CON CIUDADANÍA Y ENTIDADES PÚBLICAS Y PRIVADAS” | I61: Inversión | J61: 37 | K61: =IF(J61=1,'[2]Equivalencia BH-BMPT'!$D$2,IF(J61=2,'[2]Equivalencia BH-BMPT'!$D$3,IF(J61=3,'[2]Equivalencia BH-BMPT'!$D$4,IF(J61=4,'[2]Equivalencia BH-BMPT'!$D$5,IF(J61=5,'[2]Equivalencia BH-BMPT'!$D$6,IF(J61=6,'[2]Equivalencia BH-BMPT'!$D$7,IF(J61=7,'[2]Equivalencia BH-BMPT'!$D$8,IF(J61=8,'[2]Equivalencia BH-BMPT'!$D$9,IF(J61=9,'[2]Equivalencia BH-BMPT'!$D$10,IF(J61=10,'[2]Equivalencia BH-BMPT'!$D$11,IF(J61=11,'[2]Equivalencia BH-BMPT'!$D$12,IF(J61=12,'[2]Equivalencia BH-BMPT'!$D$13,IF(J61=13,'[2]Equivalencia BH-BMPT'!$D$14,IF(J61=14,'[2]Equivalencia BH-BMPT'!$D$15,IF(J61=15,'[2]Equivalencia BH-BMPT'!$D$16,IF(J61=16,'[2]Equivalencia BH-BMPT'!$D$17,IF(J61=17,'[2]Equivalencia BH-BMPT'!$D$18,IF(J61=18,'[2]Equivalencia BH-BMPT'!$D$19,IF(J61=19,'[2]Equivalencia BH-BMPT'!$D$20,IF(J61=20,'[2]Equivalencia BH-BMPT'!$D$21,IF(J61=21,'[2]Equivalencia BH-BMPT'!$D$22,IF(J61=22,'[2]Equivalencia BH-BMPT'!$D$23,IF(J61=23,'[2]Equivalencia BH-BMPT'!#REF!,IF(J61=24,'[2]Equivalencia BH-BMPT'!$D$25,IF(J61=25,'[2]Equivalencia BH-BMPT'!$D$26,IF(J61=26,'[2]Equivalencia BH-BMPT'!$D$27,IF(J61=27,'[2]Equivalencia BH-BMPT'!$D$28,IF(J61=28,'[2]Equivalencia BH-BMPT'!$D$29,IF(J61=29,'[2]Equivalencia BH-BMPT'!$D$30,IF(J61=30,'[2]Equivalencia BH-BMPT'!$D$31,IF(J61=31,'[2]Equivalencia BH-BMPT'!$D$32,IF(J61=32,'[2]Equivalencia BH-BMPT'!$D$33,IF(J61=33,'[2]Equivalencia BH-BMPT'!$D$34,IF(J61=34,'[2]Equivalencia BH-BMPT'!$D$35,IF(J61=35,'[2]Equivalencia BH-BMPT'!$D$36,IF(J61=36,'[2]Equivalencia BH-BMPT'!$D$37,IF(J61=37,'[2]Equivalencia BH-BMPT'!$D$38,IF(J61=38,'[2]Equivalencia BH-BMPT'!#REF!,IF(J61=39,'[2]Equivalencia BH-BMPT'!$D$40,IF(J61=40,'[2]Equivalencia BH-BMPT'!$D$41,IF(J61=41,'[2]Equivalencia BH-BMPT'!$D$42,IF(J61=42,'[2]Equivalencia BH-BMPT'!$D$43,IF(J61=43,'[2]Equivalencia BH-BMPT'!$D$44,IF(J61=44,'[2]Equivalencia BH-BMPT'!$D$45,IF(J61=45,'[2]Equivalencia BH-BMPT'!$D$46,"No ha seleccionado un número de programa"))))))))))))))))))))))))))))))))))))))))))))) -> Consolidar el turismo como factor de desarrollo, confianza y felicidad para Bogotá Región | L61: 1394 | M61: 1026580236 | N61: LAURA ESTHER NIETO ROMERO | O61: 17926524 | T61: 17926524 | U61: 14872375 | V61: 2017-08-17 | W61: 2017-08-24 | X61: 2017-12-30 | Y61: 126 | AD61: X | AF61: 0.8296296036 | AG61: FALSE
A62: 84 | B62: 2017 | C62: 17-13-6897075 | D62: 2 | E62: =IF(D62=1,'[2]Tipo '!$B$2,IF(D62=2,'[2]Tipo '!$B$3,IF(D62=3,'[2]Tipo '!$B$4,IF(D62=4,'[2]Tipo '!$B$5,IF(D62=5,'[2]Tipo '!$B$6,IF(D62=6,'[2]Tipo '!$B$7,IF(D62=7,'[2]Tipo '!$B$8,IF(D62=8,'[2]Tipo '!$B$9,IF(D62=9,'[2]Tipo '!$B$10,IF(D62=10,'[2]Tipo '!$B$11,IF(D62=11,'[2]Tipo '!$B$12,IF(D62=12,'[2]Tipo '!$B$13,IF(D62=13,'[2]Tipo '!$B$14,IF(D62=14,'[2]Tipo '!$B$15,IF(D62=15,'[2]Tipo '!$B$16,IF(D62=16,'[2]Tipo '!$B$17,IF(D62=17,'[2]Tipo '!$B$18,IF(D62=18,'[2]Tipo '!$B$19,IF(D62=19,'[2]Tipo '!$B$20,"No ha seleccionado un tipo de contrato válido"))))))))))))))))))) -> CONSULTORÍA | F62: Contratación mínima cuantia | G62: No aplica | H62: “REALIZAR EL RECONOCIMIENTO HISTÓRICO DE LAS CALLES PATRIMONIALES CON EL FIN DE PRESERVAR LA MEMORIA CULTURAL Y EL FOMENTAR EL TURISMO EN LA LOCALIDAD DE LA CANDELARIA” | I62: Inversión | J62: 37 | K62: =IF(J62=1,'[2]Equivalencia BH-BMPT'!$D$2,IF(J62=2,'[2]Equivalencia BH-BMPT'!$D$3,IF(J62=3,'[2]Equivalencia BH-BMPT'!$D$4,IF(J62=4,'[2]Equivalencia BH-BMPT'!$D$5,IF(J62=5,'[2]Equivalencia BH-BMPT'!$D$6,IF(J62=6,'[2]Equivalencia BH-BMPT'!$D$7,IF(J62=7,'[2]Equivalencia BH-BMPT'!$D$8,IF(J62=8,'[2]Equivalencia BH-BMPT'!$D$9,IF(J62=9,'[2]Equivalencia BH-BMPT'!$D$10,IF(J62=10,'[2]Equivalencia BH-BMPT'!$D$11,IF(J62=11,'[2]Equivalencia BH-BMPT'!$D$12,IF(J62=12,'[2]Equivalencia BH-BMPT'!$D$13,IF(J62=13,'[2]Equivalencia BH-BMPT'!$D$14,IF(J62=14,'[2]Equivalencia BH-BMPT'!$D$15,IF(J62=15,'[2]Equivalencia BH-BMPT'!$D$16,IF(J62=16,'[2]Equivalencia BH-BMPT'!$D$17,IF(J62=17,'[2]Equivalencia BH-BMPT'!$D$18,IF(J62=18,'[2]Equivalencia BH-BMPT'!$D$19,IF(J62=19,'[2]Equivalencia BH-BMPT'!$D$20,IF(J62=20,'[2]Equivalencia BH-BMPT'!$D$21,IF(J62=21,'[2]Equivalencia BH-BMPT'!$D$22,IF(J62=22,'[2]Equivalencia BH-BMPT'!$D$23,IF(J62=23,'[2]Equivalencia BH-BMPT'!#REF!,IF(J62=24,'[2]Equivalencia BH-BMPT'!$D$25,IF(J62=25,'[2]Equivalencia BH-BMPT'!$D$26,IF(J62=26,'[2]Equivalencia BH-BMPT'!$D$27,IF(J62=27,'[2]Equivalencia BH-BMPT'!$D$28,IF(J62=28,'[2]Equivalencia BH-BMPT'!$D$29,IF(J62=29,'[2]Equivalencia BH-BMPT'!$D$30,IF(J62=30,'[2]Equivalencia BH-BMPT'!$D$31,IF(J62=31,'[2]Equivalencia BH-BMPT'!$D$32,IF(J62=32,'[2]Equivalencia BH-BMPT'!$D$33,IF(J62=33,'[2]Equivalencia BH-BMPT'!$D$34,IF(J62=34,'[2]Equivalencia BH-BMPT'!$D$35,IF(J62=35,'[2]Equivalencia BH-BMPT'!$D$36,IF(J62=36,'[2]Equivalencia BH-BMPT'!$D$37,IF(J62=37,'[2]Equivalencia BH-BMPT'!$D$38,IF(J62=38,'[2]Equivalencia BH-BMPT'!#REF!,IF(J62=39,'[2]Equivalencia BH-BMPT'!$D$40,IF(J62=40,'[2]Equivalencia BH-BMPT'!$D$41,IF(J62=41,'[2]Equivalencia BH-BMPT'!$D$42,IF(J62=42,'[2]Equivalencia BH-BMPT'!$D$43,IF(J62=43,'[2]Equivalencia BH-BMPT'!$D$44,IF(J62=44,'[2]Equivalencia BH-BMPT'!$D$45,IF(J62=45,'[2]Equivalencia BH-BMPT'!$D$46,"No ha seleccionado un número de programa"))))))))))))))))))))))))))))))))))))))))))))) -> Consolidar el turismo como factor de desarrollo, confianza y felicidad para Bogotá Región | L62: 1394 | M62: 8301426547 | N62: FUNDACION AFFIC | O62: 16263250 | T62: 16263250 | V62: 2017-08-22 | W62: 2017-08-28 | X62: 2017-11-21 | Y62: 85 | AD62: X | AF62: 0 | AG62: FALSE
A63: 93 | B63: 2017 | C63: 17-116986615 | D63: 11 | E63: =IF(D63=1,'[3]Tipo '!$B$2,IF(D63=2,'[3]Tipo '!$B$3,IF(D63=3,'[3]Tipo '!$B$4,IF(D63=4,'[3]Tipo '!$B$5,IF(D63=5,'[3]Tipo '!$B$6,IF(D63=6,'[3]Tipo '!$B$7,IF(D63=7,'[3]Tipo '!$B$8,IF(D63=8,'[3]Tipo '!$B$9,IF(D63=9,'[3]Tipo '!$B$10,IF(D63=10,'[3]Tipo '!$B$11,IF(D63=11,'[3]Tipo '!$B$12,IF(D63=12,'[3]Tipo '!$B$13,IF(D63=13,'[3]Tipo '!$B$14,IF(D63=14,'[3]Tipo '!$B$15,IF(D63=15,'[3]Tipo '!$B$16,IF(D63=16,'[3]Tipo '!$B$17,IF(D63=17,'[3]Tipo '!$B$18,IF(D63=18,'[3]Tipo '!$B$19,IF(D63=19,'[3]Tipo '!$B$20,"No ha seleccionado un tipo de contrato válido"))))))))))))))))))) -> SUMINISTRO | F63: Selección abreviada | G63: Selección abreviada por menor cuantía | H63: DESARROLLAR EL LABORATORIO DE INNOVACIÓN LABITUR CANDELARIA PARA FORTALECER EL PROYECTO TURÍSTICO DE LA CANDELARIA | I63: Inversión | J63: 37 | K63: =IF(J63=1,'[3]Equivalencia BH-BMPT'!$D$2,IF(J63=2,'[3]Equivalencia BH-BMPT'!$D$3,IF(J63=3,'[3]Equivalencia BH-BMPT'!$D$4,IF(J63=4,'[3]Equivalencia BH-BMPT'!$D$5,IF(J63=5,'[3]Equivalencia BH-BMPT'!$D$6,IF(J63=6,'[3]Equivalencia BH-BMPT'!$D$7,IF(J63=7,'[3]Equivalencia BH-BMPT'!$D$8,IF(J63=8,'[3]Equivalencia BH-BMPT'!$D$9,IF(J63=9,'[3]Equivalencia BH-BMPT'!$D$10,IF(J63=10,'[3]Equivalencia BH-BMPT'!$D$11,IF(J63=11,'[3]Equivalencia BH-BMPT'!$D$12,IF(J63=12,'[3]Equivalencia BH-BMPT'!$D$13,IF(J63=13,'[3]Equivalencia BH-BMPT'!$D$14,IF(J63=14,'[3]Equivalencia BH-BMPT'!$D$15,IF(J63=15,'[3]Equivalencia BH-BMPT'!$D$16,IF(J63=16,'[3]Equivalencia BH-BMPT'!$D$17,IF(J63=17,'[3]Equivalencia BH-BMPT'!$D$18,IF(J63=18,'[3]Equivalencia BH-BMPT'!$D$19,IF(J63=19,'[3]Equivalencia BH-BMPT'!$D$20,IF(J63=20,'[3]Equivalencia BH-BMPT'!$D$21,IF(J63=21,'[3]Equivalencia BH-BMPT'!$D$22,IF(J63=22,'[3]Equivalencia BH-BMPT'!$D$23,IF(J63=23,'[3]Equivalencia BH-BMPT'!#REF!,IF(J63=24,'[3]Equivalencia BH-BMPT'!$D$25,IF(J63=25,'[3]Equivalencia BH-BMPT'!$D$26,IF(J63=26,'[3]Equivalencia BH-BMPT'!$D$27,IF(J63=27,'[3]Equivalencia BH-BMPT'!$D$28,IF(J63=28,'[3]Equivalencia BH-BMPT'!$D$29,IF(J63=29,'[3]Equivalencia BH-BMPT'!$D$30,IF(J63=30,'[3]Equivalencia BH-BMPT'!$D$31,IF(J63=31,'[3]Equivalencia BH-BMPT'!$D$32,IF(J63=32,'[3]Equivalencia BH-BMPT'!$D$33,IF(J63=33,'[3]Equivalencia BH-BMPT'!$D$34,IF(J63=34,'[3]Equivalencia BH-BMPT'!$D$35,IF(J63=35,'[3]Equivalencia BH-BMPT'!$D$36,IF(J63=36,'[3]Equivalencia BH-BMPT'!$D$37,IF(J63=37,'[3]Equivalencia BH-BMPT'!$D$38,IF(J63=38,'[3]Equivalencia BH-BMPT'!#REF!,IF(J63=39,'[3]Equivalencia BH-BMPT'!$D$40,IF(J63=40,'[3]Equivalencia BH-BMPT'!$D$41,IF(J63=41,'[3]Equivalencia BH-BMPT'!$D$42,IF(J63=42,'[3]Equivalencia BH-BMPT'!$D$43,IF(J63=43,'[3]Equivalencia BH-BMPT'!$D$44,IF(J63=44,'[3]Equivalencia BH-BMPT'!$D$45,IF(J63=45,'[3]Equivalencia BH-BMPT'!$D$46,"No ha seleccionado un número de programa"))))))))))))))))))))))))))))))))))))))))))))) -> Consolidar el turismo como factor de desarrollo, confianza y felicidad para Bogotá Región | L63: 1394 | M63: 8300896486 | N63: CORPORACION TOPOFILIA | O63: 172463000 | T63: 172463000 | V63: 2017-10-03 | W63: 2017-10-05 | X63: 2018-04-04 | Y63: 180 | AC63: X | AF63: 0 | AG63: FALSE
A64: 1 | B64: 2017 | C64: 16-13-5981831 | D64: 7 | E64: =IF(D64=1,'[1]Tipo '!$B$2,IF(D64=2,'[1]Tipo '!$B$3,IF(D64=3,'[1]Tipo '!$B$4,IF(D64=4,'[1]Tipo '!$B$5,IF(D64=5,'[1]Tipo '!$B$6,IF(D64=6,'[1]Tipo '!$B$7,IF(D64=7,'[1]Tipo '!$B$8,IF(D64=8,'[1]Tipo '!$B$9,IF(D64=9,'[1]Tipo '!$B$10,IF(D64=10,'[1]Tipo '!$B$11,IF(D64=11,'[1]Tipo '!$B$12,IF(D64=12,'[1]Tipo '!$B$13,IF(D64=13,'[1]Tipo '!$B$14,IF(D64=14,'[1]Tipo '!$B$15,IF(D64=15,'[1]Tipo '!$B$16,IF(D64=16,'[1]Tipo '!$B$17,IF(D64=17,'[1]Tipo '!$B$18,IF(D64=18,'[1]Tipo '!$B$19,IF(D64=19,'[1]Tipo '!$B$20,"No ha seleccionado un tipo de contrato válido"))))))))))))))))))) -> COMPRAVENTA DE BIENES INMUEBLES | F64: Contratación mínima cuantia | G64: No aplica | H64: ADQUISICIÓN Y ENTREGA DE DOTACIÓN PARA LA JUNTA ADMINISTRADORA LOCAL DE LA CANDELARIA | I64: Inversión | J64: 45 | K64: =IF(J64=1,'[1]Equivalencia BH-BMPT'!$D$2,IF(J64=2,'[1]Equivalencia BH-BMPT'!$D$3,IF(J64=3,'[1]Equivalencia BH-BMPT'!$D$4,IF(J64=4,'[1]Equivalencia BH-BMPT'!$D$5,IF(J64=5,'[1]Equivalencia BH-BMPT'!$D$6,IF(J64=6,'[1]Equivalencia BH-BMPT'!$D$7,IF(J64=7,'[1]Equivalencia BH-BMPT'!$D$8,IF(J64=8,'[1]Equivalencia BH-BMPT'!$D$9,IF(J64=9,'[1]Equivalencia BH-BMPT'!$D$10,IF(J64=10,'[1]Equivalencia BH-BMPT'!$D$11,IF(J64=11,'[1]Equivalencia BH-BMPT'!$D$12,IF(J64=12,'[1]Equivalencia BH-BMPT'!$D$13,IF(J64=13,'[1]Equivalencia BH-BMPT'!$D$14,IF(J64=14,'[1]Equivalencia BH-BMPT'!$D$15,IF(J64=15,'[1]Equivalencia BH-BMPT'!$D$16,IF(J64=16,'[1]Equivalencia BH-BMPT'!$D$17,IF(J64=17,'[1]Equivalencia BH-BMPT'!$D$18,IF(J64=18,'[1]Equivalencia BH-BMPT'!$D$19,IF(J64=19,'[1]Equivalencia BH-BMPT'!$D$20,IF(J64=20,'[1]Equivalencia BH-BMPT'!$D$21,IF(J64=21,'[1]Equivalencia BH-BMPT'!$D$22,IF(J64=22,'[1]Equivalencia BH-BMPT'!$D$23,IF(J64=23,'[1]Equivalencia BH-BMPT'!D24,IF(J64=24,'[1]Equivalencia BH-BMPT'!$D$25,IF(J64=25,'[1]Equivalencia BH-BMPT'!$D$26,IF(J64=26,'[1]Equivalencia BH-BMPT'!$D$27,IF(J64=27,'[1]Equivalencia BH-BMPT'!$D$28,IF(J64=28,'[1]Equivalencia BH-BMPT'!$D$29,IF(J64=29,'[1]Equivalencia BH-BMPT'!$D$30,IF(J64=30,'[1]Equivalencia BH-BMPT'!$D$31,IF(J64=31,'[1]Equivalencia BH-BMPT'!$D$32,IF(J64=32,'[1]Equivalencia BH-BMPT'!$D$33,IF(J64=33,'[1]Equivalencia BH-BMPT'!$D$34,IF(J64=34,'[1]Equivalencia BH-BMPT'!$D$35,IF(J64=35,'[1]Equivalencia BH-BMPT'!$D$36,IF(J64=36,'[1]Equivalencia BH-BMPT'!$D$37,IF(J64=37,'[1]Equivalencia BH-BMPT'!$D$38,IF(J64=38,'[1]Equivalencia BH-BMPT'!D39,IF(J64=39,'[1]Equivalencia BH-BMPT'!$D$40,IF(J64=40,'[1]Equivalencia BH-BMPT'!$D$41,IF(J64=41,'[1]Equivalencia BH-BMPT'!$D$42,IF(J64=42,'[1]Equivalencia BH-BMPT'!$D$43,IF(J64=43,'[1]Equivalencia BH-BMPT'!$D$44,IF(J64=44,'[1]Equivalencia BH-BMPT'!$D$45,IF(J64=45,'[1]Equivalencia BH-BMPT'!$D$46,"No ha seleccionado un número de programa"))))))))))))))))))))))))))))))))))))))))))))) -> Gobernanza e influencia local, regional e internacional | L64: 1395 | M64: 1010161089 | N64: JHONSON ALEXANDER PLAZAS | O64: 11577087 | T64: 11577087 | V64: 2017-01-16 | W64: 2017-02-16 | X64: 2017-03-15 | Y64: 30 | AD64: X | AF64: 0 | AG64: FALSE
A65: 3 | B65: 2017 | C65: 17-12-6298820 | D65: 5 | E65: =IF(D65=1,'[1]Tipo '!$B$2,IF(D65=2,'[1]Tipo '!$B$3,IF(D65=3,'[1]Tipo '!$B$4,IF(D65=4,'[1]Tipo '!$B$5,IF(D65=5,'[1]Tipo '!$B$6,IF(D65=6,'[1]Tipo '!$B$7,IF(D65=7,'[1]Tipo '!$B$8,IF(D65=8,'[1]Tipo '!$B$9,IF(D65=9,'[1]Tipo '!$B$10,IF(D65=10,'[1]Tipo '!$B$11,IF(D65=11,'[1]Tipo '!$B$12,IF(D65=12,'[1]Tipo '!$B$13,IF(D65=13,'[1]Tipo '!$B$14,IF(D65=14,'[1]Tipo '!$B$15,IF(D65=15,'[1]Tipo '!$B$16,IF(D65=16,'[1]Tipo '!$B$17,IF(D65=17,'[1]Tipo '!$B$18,IF(D65=18,'[1]Tipo '!$B$19,IF(D65=19,'[1]Tipo '!$B$20,"No ha seleccionado un tipo de contrato válido"))))))))))))))))))) -> CONTRATOS DE PRESTACIÓN DE SERVICIOS PROFESIONALES Y DE APOYO A LA GESTIÓN | F65: Contratación directa | G65: Prestación de servicios profesionales y de apoyo a la gestión, o para la ejecución de trabajos artísticos que sólo puedan encomendarse a determinadas personas naturales; | H65: PRESTAR SUS SERVICIOS PROFESIONALES A LA GESTIÓN DE LA LOCALIDAD DE LA CANDELARIA PARA LOGRAR LA SOSTENIBILIDAD EN LA IMPLEMENTACIÓN Y EVALUACIÓN DEL SISTEMA DE GESTIÓN DE CALIDAD Y PLANES DE MEJORAMIENTO | I65: Inversión | J65: 45 | K65: =IF(J65=1,'[1]Equivalencia BH-BMPT'!$D$2,IF(J65=2,'[1]Equivalencia BH-BMPT'!$D$3,IF(J65=3,'[1]Equivalencia BH-BMPT'!$D$4,IF(J65=4,'[1]Equivalencia BH-BMPT'!$D$5,IF(J65=5,'[1]Equivalencia BH-BMPT'!$D$6,IF(J65=6,'[1]Equivalencia BH-BMPT'!$D$7,IF(J65=7,'[1]Equivalencia BH-BMPT'!$D$8,IF(J65=8,'[1]Equivalencia BH-BMPT'!$D$9,IF(J65=9,'[1]Equivalencia BH-BMPT'!$D$10,IF(J65=10,'[1]Equivalencia BH-BMPT'!$D$11,IF(J65=11,'[1]Equivalencia BH-BMPT'!$D$12,IF(J65=12,'[1]Equivalencia BH-BMPT'!$D$13,IF(J65=13,'[1]Equivalencia BH-BMPT'!$D$14,IF(J65=14,'[1]Equivalencia BH-BMPT'!$D$15,IF(J65=15,'[1]Equivalencia BH-BMPT'!$D$16,IF(J65=16,'[1]Equivalencia BH-BMPT'!$D$17,IF(J65=17,'[1]Equivalencia BH-BMPT'!$D$18,IF(J65=18,'[1]Equivalencia BH-BMPT'!$D$19,IF(J65=19,'[1]Equivalencia BH-BMPT'!$D$20,IF(J65=20,'[1]Equivalencia BH-BMPT'!$D$21,IF(J65=21,'[1]Equivalencia BH-BMPT'!$D$22,IF(J65=22,'[1]Equivalencia BH-BMPT'!$D$23,IF(J65=23,'[1]Equivalencia BH-BMPT'!#REF!,IF(J65=24,'[1]Equivalencia BH-BMPT'!$D$25,IF(J65=25,'[1]Equivalencia BH-BMPT'!$D$26,IF(J65=26,'[1]Equivalencia BH-BMPT'!$D$27,IF(J65=27,'[1]Equivalencia BH-BMPT'!$D$28,IF(J65=28,'[1]Equivalencia BH-BMPT'!$D$29,IF(J65=29,'[1]Equivalencia BH-BMPT'!$D$30,IF(J65=30,'[1]Equivalencia BH-BMPT'!$D$31,IF(J65=31,'[1]Equivalencia BH-BMPT'!$D$32,IF(J65=32,'[1]Equivalencia BH-BMPT'!$D$33,IF(J65=33,'[1]Equivalencia BH-BMPT'!$D$34,IF(J65=34,'[1]Equivalencia BH-BMPT'!$D$35,IF(J65=35,'[1]Equivalencia BH-BMPT'!$D$36,IF(J65=36,'[1]Equivalencia BH-BMPT'!$D$37,IF(J65=37,'[1]Equivalencia BH-BMPT'!$D$38,IF(J65=38,'[1]Equivalencia BH-BMPT'!#REF!,IF(J65=39,'[1]Equivalencia BH-BMPT'!$D$40,IF(J65=40,'[1]Equivalencia BH-BMPT'!$D$41,IF(J65=41,'[1]Equivalencia BH-BMPT'!$D$42,IF(J65=42,'[1]Equivalencia BH-BMPT'!$D$43,IF(J65=43,'[1]Equivalencia BH-BMPT'!$D$44,IF(J65=44,'[1]Equivalencia BH-BMPT'!$D$45,IF(J65=45,'[1]Equivalencia BH-BMPT'!$D$46,"No ha seleccionado un número de programa"))))))))))))))))))))))))))))))))))))))))))))) -> Gobernanza e influencia local, regional e internacional | L65: 1395 | M65: 52960567 | N65: Dimelza Mendoza Rueda | O65: 50312299 | T65: 50312299 | U65: 32931684 | V65: 2017-02-01 | W65: 2017-02-02 | X65: 2018-05-17 | Y65: 330 | AC65: X | AF65: =SUM(U65/T65) -> 0.6545454025 | AG65: FALSE
A66: 4 | B66: 2017 | C66: 17-12-6298879 | D66: 5 | E66: =IF(D66=1,'[1]Tipo '!$B$2,IF(D66=2,'[1]Tipo '!$B$3,IF(D66=3,'[1]Tipo '!$B$4,IF(D66=4,'[1]Tipo '!$B$5,IF(D66=5,'[1]Tipo '!$B$6,IF(D66=6,'[1]Tipo '!$B$7,IF(D66=7,'[1]Tipo '!$B$8,IF(D66=8,'[1]Tipo '!$B$9,IF(D66=9,'[1]Tipo '!$B$10,IF(D66=10,'[1]Tipo '!$B$11,IF(D66=11,'[1]Tipo '!$B$12,IF(D66=12,'[1]Tipo '!$B$13,IF(D66=13,'[1]Tipo '!$B$14,IF(D66=14,'[1]Tipo '!$B$15,IF(D66=15,'[1]Tipo '!$B$16,IF(D66=16,'[1]Tipo '!$B$17,IF(D66=17,'[1]Tipo '!$B$18,IF(D66=18,'[1]Tipo '!$B$19,IF(D66=19,'[1]Tipo '!$B$20,"No ha seleccionado un tipo de contrato válido"))))))))))))))))))) -> CONTRATOS DE PRESTACIÓN DE SERVICIOS PROFESIONALES Y DE APOYO A LA GESTIÓN | F66: Contratación directa | G66: Prestación de servicios profesionales y de apoyo a la gestión, o para la ejecución de trabajos artísticos que sólo puedan encomendarse a determinadas personas naturales; | H66: "Contratar la prestación de servicios de un profesional para que coordine las instancias de participación y espacios que encuentren en cabeza del área de gestión de desarrollo local y gestión policial de la Candelaria y apoye los procesos de formulación y seguimiento de los programas y proyectos del plan de desarrollo local con énfasis en el programa "GOBERNANZA E INFLUENCIA LOCAL, REGIONAL E INTERNACIONAL - PROYECTO 1396 CANDELARIA MAS PARTICIPATIVA" | I66: Inversión | J66: 45 | K66: =IF(J66=1,'[1]Equivalencia BH-BMPT'!$D$2,IF(J66=2,'[1]Equivalencia BH-BMPT'!$D$3,IF(J66=3,'[1]Equivalencia BH-BMPT'!$D$4,IF(J66=4,'[1]Equivalencia BH-BMPT'!$D$5,IF(J66=5,'[1]Equivalencia BH-BMPT'!$D$6,IF(J66=6,'[1]Equivalencia BH-BMPT'!$D$7,IF(J66=7,'[1]Equivalencia BH-BMPT'!$D$8,IF(J66=8,'[1]Equivalencia BH-BMPT'!$D$9,IF(J66=9,'[1]Equivalencia BH-BMPT'!$D$10,IF(J66=10,'[1]Equivalencia BH-BMPT'!$D$11,IF(J66=11,'[1]Equivalencia BH-BMPT'!$D$12,IF(J66=12,'[1]Equivalencia BH-BMPT'!$D$13,IF(J66=13,'[1]Equivalencia BH-BMPT'!$D$14,IF(J66=14,'[1]Equivalencia BH-BMPT'!$D$15,IF(J66=15,'[1]Equivalencia BH-BMPT'!$D$16,IF(J66=16,'[1]Equivalencia BH-BMPT'!$D$17,IF(J66=17,'[1]Equivalencia BH-BMPT'!$D$18,IF(J66=18,'[1]Equivalencia BH-BMPT'!$D$19,IF(J66=19,'[1]Equivalencia BH-BMPT'!$D$20,IF(J66=20,'[1]Equivalencia BH-BMPT'!$D$21,IF(J66=21,'[1]Equivalencia BH-BMPT'!$D$22,IF(J66=22,'[1]Equivalencia BH-BMPT'!$D$23,IF(J66=23,'[1]Equivalencia BH-BMPT'!#REF!,IF(J66=24,'[1]Equivalencia BH-BMPT'!$D$25,IF(J66=25,'[1]Equivalencia BH-BMPT'!$D$26,IF(J66=26,'[1]Equivalencia BH-BMPT'!$D$27,IF(J66=27,'[1]Equivalencia BH-BMPT'!$D$28,IF(J66=28,'[1]Equivalencia BH-BMPT'!$D$29,IF(J66=29,'[1]Equivalencia BH-BMPT'!$D$30,IF(J66=30,'[1]Equivalencia BH-BMPT'!$D$31,IF(J66=31,'[1]Equivalencia BH-BMPT'!$D$32,IF(J66=32,'[1]Equivalencia BH-BMPT'!$D$33,IF(J66=33,'[1]Equivalencia BH-BMPT'!$D$34,IF(J66=34,'[1]Equivalencia BH-BMPT'!$D$35,IF(J66=35,'[1]Equivalencia BH-BMPT'!$D$36,IF(J66=36,'[1]Equivalencia BH-BMPT'!$D$37,IF(J66=37,'[1]Equivalencia BH-BMPT'!$D$38,IF(J66=38,'[1]Equivalencia BH-BMPT'!#REF!,IF(J66=39,'[1]Equivalencia BH-BMPT'!$D$40,IF(J66=40,'[1]Equivalencia BH-BMPT'!$D$41,IF(J66=41,'[1]Equivalencia BH-BMPT'!$D$42,IF(J66=42,'[1]Equivalencia BH-BMPT'!$D$43,IF(J66=43,'[1]Equivalencia BH-BMPT'!$D$44,IF(J66=44,'[1]Equivalencia BH-BMPT'!$D$45,IF(J66=45,'[1]Equivalencia BH-BMPT'!$D$46,"No ha seleccionado un número de programa"))))))))))))))))))))))))))))))))))))))))))))) -> Gobernanza e influencia local, regional e internacional | L66: 1395 | M66: 92533809 | N66: Julio Cesar García Sierra | O66: 55181232 | S66: 2508238 | T66: =O66+Q66+S66 -> 57689470 | U66: 51836919 | V66: 2017-02-01 | W66: 2017-02-06 | X66: 2018-01-14 | Y66: 345 | AD66: X | AF66: 0.8985507927 | AG66: FALSE
A67: 5 | B67: 2017 | C67: 17-12-6298937 | D67: 5 | E67: =IF(D67=1,'[1]Tipo '!$B$2,IF(D67=2,'[1]Tipo '!$B$3,IF(D67=3,'[1]Tipo '!$B$4,IF(D67=4,'[1]Tipo '!$B$5,IF(D67=5,'[1]Tipo '!$B$6,IF(D67=6,'[1]Tipo '!$B$7,IF(D67=7,'[1]Tipo '!$B$8,IF(D67=8,'[1]Tipo '!$B$9,IF(D67=9,'[1]Tipo '!$B$10,IF(D67=10,'[1]Tipo '!$B$11,IF(D67=11,'[1]Tipo '!$B$12,IF(D67=12,'[1]Tipo '!$B$13,IF(D67=13,'[1]Tipo '!$B$14,IF(D67=14,'[1]Tipo '!$B$15,IF(D67=15,'[1]Tipo '!$B$16,IF(D67=16,'[1]Tipo '!$B$17,IF(D67=17,'[1]Tipo '!$B$18,IF(D67=18,'[1]Tipo '!$B$19,IF(D67=19,'[1]Tipo '!$B$20,"No ha seleccionado un tipo de contrato válido"))))))))))))))))))) -> CONTRATOS DE PRESTACIÓN DE SERVICIOS PROFESIONALES Y DE APOYO A LA GESTIÓN | F67: Contratación directa | G67: Prestación de servicios profesionales y de apoyo a la gestión, o para la ejecución de trabajos artísticos que sólo puedan encomendarse a determinadas personas naturales; | H67: PRESTAR LOS SERVICIOS COMO CONDUCTOR DE APOYO DE LOS VEHICULOS DE PROPIEDAD DEL FONDO DE DESARROLLO LOCAL DE LA CANDELARIA | I67: Inversión | J67: 45 | K67: =IF(J67=1,'[1]Equivalencia BH-BMPT'!$D$2,IF(J67=2,'[1]Equivalencia BH-BMPT'!$D$3,IF(J67=3,'[1]Equivalencia BH-BMPT'!$D$4,IF(J67=4,'[1]Equivalencia BH-BMPT'!$D$5,IF(J67=5,'[1]Equivalencia BH-BMPT'!$D$6,IF(J67=6,'[1]Equivalencia BH-BMPT'!$D$7,IF(J67=7,'[1]Equivalencia BH-BMPT'!$D$8,IF(J67=8,'[1]Equivalencia BH-BMPT'!$D$9,IF(J67=9,'[1]Equivalencia BH-BMPT'!$D$10,IF(J67=10,'[1]Equivalencia BH-BMPT'!$D$11,IF(J67=11,'[1]Equivalencia BH-BMPT'!$D$12,IF(J67=12,'[1]Equivalencia BH-BMPT'!$D$13,IF(J67=13,'[1]Equivalencia BH-BMPT'!$D$14,IF(J67=14,'[1]Equivalencia BH-BMPT'!$D$15,IF(J67=15,'[1]Equivalencia BH-BMPT'!$D$16,IF(J67=16,'[1]Equivalencia BH-BMPT'!$D$17,IF(J67=17,'[1]Equivalencia BH-BMPT'!$D$18,IF(J67=18,'[1]Equivalencia BH-BMPT'!$D$19,IF(J67=19,'[1]Equivalencia BH-BMPT'!$D$20,IF(J67=20,'[1]Equivalencia BH-BMPT'!$D$21,IF(J67=21,'[1]Equivalencia BH-BMPT'!$D$22,IF(J67=22,'[1]Equivalencia BH-BMPT'!$D$23,IF(J67=23,'[1]Equivalencia BH-BMPT'!#REF!,IF(J67=24,'[1]Equivalencia BH-BMPT'!$D$25,IF(J67=25,'[1]Equivalencia BH-BMPT'!$D$26,IF(J67=26,'[1]Equivalencia BH-BMPT'!$D$27,IF(J67=27,'[1]Equivalencia BH-BMPT'!$D$28,IF(J67=28,'[1]Equivalencia BH-BMPT'!$D$29,IF(J67=29,'[1]Equivalencia BH-BMPT'!$D$30,IF(J67=30,'[1]Equivalencia BH-BMPT'!$D$31,IF(J67=31,'[1]Equivalencia BH-BMPT'!$D$32,IF(J67=32,'[1]Equivalencia BH-BMPT'!$D$33,IF(J67=33,'[1]Equivalencia BH-BMPT'!$D$34,IF(J67=34,'[1]Equivalencia BH-BMPT'!$D$35,IF(J67=35,'[1]Equivalencia BH-BMPT'!$D$36,IF(J67=36,'[1]Equivalencia BH-BMPT'!$D$37,IF(J67=37,'[1]Equivalencia BH-BMPT'!$D$38,IF(J67=38,'[1]Equivalencia BH-BMPT'!#REF!,IF(J67=39,'[1]Equivalencia BH-BMPT'!$D$40,IF(J67=40,'[1]Equivalencia BH-BMPT'!$D$41,IF(J67=41,'[1]Equivalencia BH-BMPT'!$D$42,IF(J67=42,'[1]Equivalencia BH-BMPT'!$D$43,IF(J67=43,'[1]Equivalencia BH-BMPT'!$D$44,IF(J67=44,'[1]Equivalencia BH-BMPT'!$D$45,IF(J67=45,'[1]Equivalencia BH-BMPT'!$D$46,"No ha seleccionado un número de programa"))))))))))))))))))))))))))))))))))))))))))))) -> Gobernanza e influencia local, regional e internacional | L67: 1395 | M67: 17956185 | N67: Carlos Arturo Cardenas | O67: 22721684 | S67: 1032804 | T67: 23754488 | U67: 21688884 | V67: 2017-02-01 | W67: 2017-02-01 | X67: 2018-01-14 | Y67: 345 | AD67: X | AF67: 0.913043632 | AG67: FALSE
A68: 6 | B68: 2017 | C68: 17-12-6298990 | D68: 5 | E68: =IF(D68=1,'[1]Tipo '!$B$2,IF(D68=2,'[1]Tipo '!$B$3,IF(D68=3,'[1]Tipo '!$B$4,IF(D68=4,'[1]Tipo '!$B$5,IF(D68=5,'[1]Tipo '!$B$6,IF(D68=6,'[1]Tipo '!$B$7,IF(D68=7,'[1]Tipo '!$B$8,IF(D68=8,'[1]Tipo '!$B$9,IF(D68=9,'[1]Tipo '!$B$10,IF(D68=10,'[1]Tipo '!$B$11,IF(D68=11,'[1]Tipo '!$B$12,IF(D68=12,'[1]Tipo '!$B$13,IF(D68=13,'[1]Tipo '!$B$14,IF(D68=14,'[1]Tipo '!$B$15,IF(D68=15,'[1]Tipo '!$B$16,IF(D68=16,'[1]Tipo '!$B$17,IF(D68=17,'[1]Tipo '!$B$18,IF(D68=18,'[1]Tipo '!$B$19,IF(D68=19,'[1]Tipo '!$B$20,"No ha seleccionado un tipo de contrato válido"))))))))))))))))))) -> CONTRATOS DE PRESTACIÓN DE SERVICIOS PROFESIONALES Y DE APOYO A LA GESTIÓN | F68: Contratación directa | G68: Prestación de servicios profesionales y de apoyo a la gestión, o para la ejecución de trabajos artísticos que sólo puedan encomendarse a determinadas personas naturales; | H68: PRESTAR SUS SERVICIOS PROFESIONALES PARA APOYAR AL GRUPO DE GESTIÓN DE DESARROLLO LOCAL DEL FONDO DE DESARROLLO LOCAL DE LA CANDELARIA, EN LOS PROCESOS DE FORMULACIÓN Y SEGUIMIENTO DE LOS PROGRAMAS Y PROYECTOS DEL PLAN DE DESARROLLO LOCAL CON ENFASIS EN EL PROGRAMA “SEGURIDAD Y CONVICENCIA PARA TODOS” - PROYECTO 1392 “CANDELARIA MAS SEGURA PARA TODOS | I68: Inversión | J68: 45 | K68: =IF(J68=1,'[1]Equivalencia BH-BMPT'!$D$2,IF(J68=2,'[1]Equivalencia BH-BMPT'!$D$3,IF(J68=3,'[1]Equivalencia BH-BMPT'!$D$4,IF(J68=4,'[1]Equivalencia BH-BMPT'!$D$5,IF(J68=5,'[1]Equivalencia BH-BMPT'!$D$6,IF(J68=6,'[1]Equivalencia BH-BMPT'!$D$7,IF(J68=7,'[1]Equivalencia BH-BMPT'!$D$8,IF(J68=8,'[1]Equivalencia BH-BMPT'!$D$9,IF(J68=9,'[1]Equivalencia BH-BMPT'!$D$10,IF(J68=10,'[1]Equivalencia BH-BMPT'!$D$11,IF(J68=11,'[1]Equivalencia BH-BMPT'!$D$12,IF(J68=12,'[1]Equivalencia BH-BMPT'!$D$13,IF(J68=13,'[1]Equivalencia BH-BMPT'!$D$14,IF(J68=14,'[1]Equivalencia BH-BMPT'!$D$15,IF(J68=15,'[1]Equivalencia BH-BMPT'!$D$16,IF(J68=16,'[1]Equivalencia BH-BMPT'!$D$17,IF(J68=17,'[1]Equivalencia BH-BMPT'!$D$18,IF(J68=18,'[1]Equivalencia BH-BMPT'!$D$19,IF(J68=19,'[1]Equivalencia BH-BMPT'!$D$20,IF(J68=20,'[1]Equivalencia BH-BMPT'!$D$21,IF(J68=21,'[1]Equivalencia BH-BMPT'!$D$22,IF(J68=22,'[1]Equivalencia BH-BMPT'!$D$23,IF(J68=23,'[1]Equivalencia BH-BMPT'!#REF!,IF(J68=24,'[1]Equivalencia BH-BMPT'!$D$25,IF(J68=25,'[1]Equivalencia BH-BMPT'!$D$26,IF(J68=26,'[1]Equivalencia BH-BMPT'!$D$27,IF(J68=27,'[1]Equivalencia BH-BMPT'!$D$28,IF(J68=28,'[1]Equivalencia BH-BMPT'!$D$29,IF(J68=29,'[1]Equivalencia BH-BMPT'!$D$30,IF(J68=30,'[1]Equivalencia BH-BMPT'!$D$31,IF(J68=31,'[1]Equivalencia BH-BMPT'!$D$32,IF(J68=32,'[1]Equivalencia BH-BMPT'!$D$33,IF(J68=33,'[1]Equivalencia BH-BMPT'!$D$34,IF(J68=34,'[1]Equivalencia BH-BMPT'!$D$35,IF(J68=35,'[1]Equivalencia BH-BMPT'!$D$36,IF(J68=36,'[1]Equivalencia BH-BMPT'!$D$37,IF(J68=37,'[1]Equivalencia BH-BMPT'!$D$38,IF(J68=38,'[1]Equivalencia BH-BMPT'!#REF!,IF(J68=39,'[1]Equivalencia BH-BMPT'!$D$40,IF(J68=40,'[1]Equivalencia BH-BMPT'!$D$41,IF(J68=41,'[1]Equivalencia BH-BMPT'!$D$42,IF(J68=42,'[1]Equivalencia BH-BMPT'!$D$43,IF(J68=43,'[1]Equivalencia BH-BMPT'!$D$44,IF(J68=44,'[1]Equivalencia BH-BMPT'!$D$45,IF(J68=45,'[1]Equivalencia BH-BMPT'!$D$46,"No ha seleccionado un número de programa"))))))))))))))))))))))))))))))))))))))))))))) -> Gobernanza e influencia local, regional e internacional | L68: 1395 | M68: 79753796 | N68: Ismael Alberto Rengifo Pelaez | O68: 55181232 | T68: 55181232 | U68: 52505538 | V68: 2017-02-01 | W68: 2017-02-02 | X68: 2017-12-30 | Y68: 330 | AD68: X | AF68: 0.9515107963 | AG68: FALSE
A69: 7 | B69: 2017 | C69: 17-12-6299063 | D69: 5 | E69: =IF(D69=1,'[1]Tipo '!$B$2,IF(D69=2,'[1]Tipo '!$B$3,IF(D69=3,'[1]Tipo '!$B$4,IF(D69=4,'[1]Tipo '!$B$5,IF(D69=5,'[1]Tipo '!$B$6,IF(D69=6,'[1]Tipo '!$B$7,IF(D69=7,'[1]Tipo '!$B$8,IF(D69=8,'[1]Tipo '!$B$9,IF(D69=9,'[1]Tipo '!$B$10,IF(D69=10,'[1]Tipo '!$B$11,IF(D69=11,'[1]Tipo '!$B$12,IF(D69=12,'[1]Tipo '!$B$13,IF(D69=13,'[1]Tipo '!$B$14,IF(D69=14,'[1]Tipo '!$B$15,IF(D69=15,'[1]Tipo '!$B$16,IF(D69=16,'[1]Tipo '!$B$17,IF(D69=17,'[1]Tipo '!$B$18,IF(D69=18,'[1]Tipo '!$B$19,IF(D69=19,'[1]Tipo '!$B$20,"No ha seleccionado un tipo de contrato válido"))))))))))))))))))) -> CONTRATOS DE PRESTACIÓN DE SERVICIOS PROFESIONALES Y DE APOYO A LA GESTIÓN | F69: Contratación directa | G69: Prestación de servicios profesionales y de apoyo a la gestión, o para la ejecución de trabajos artísticos que sólo puedan encomendarse a determinadas personas naturales; | H69: PRESTAR SUS SERVICIOS PROFESIONALES DE APOYO COMO ADMINISTRADOR DE VOZ Y DATOS Y DEMÁS INFRAESTRUCTURA TECNOLÓGICA EN LA ALCADÍA LOCAL DE LA CANDELARIA | I69: Inversión | J69: 45 | K69: =IF(J69=1,'[1]Equivalencia BH-BMPT'!$D$2,IF(J69=2,'[1]Equivalencia BH-BMPT'!$D$3,IF(J69=3,'[1]Equivalencia BH-BMPT'!$D$4,IF(J69=4,'[1]Equivalencia BH-BMPT'!$D$5,IF(J69=5,'[1]Equivalencia BH-BMPT'!$D$6,IF(J69=6,'[1]Equivalencia BH-BMPT'!$D$7,IF(J69=7,'[1]Equivalencia BH-BMPT'!$D$8,IF(J69=8,'[1]Equivalencia BH-BMPT'!$D$9,IF(J69=9,'[1]Equivalencia BH-BMPT'!$D$10,IF(J69=10,'[1]Equivalencia BH-BMPT'!$D$11,IF(J69=11,'[1]Equivalencia BH-BMPT'!$D$12,IF(J69=12,'[1]Equivalencia BH-BMPT'!$D$13,IF(J69=13,'[1]Equivalencia BH-BMPT'!$D$14,IF(J69=14,'[1]Equivalencia BH-BMPT'!$D$15,IF(J69=15,'[1]Equivalencia BH-BMPT'!$D$16,IF(J69=16,'[1]Equivalencia BH-BMPT'!$D$17,IF(J69=17,'[1]Equivalencia BH-BMPT'!$D$18,IF(J69=18,'[1]Equivalencia BH-BMPT'!$D$19,IF(J69=19,'[1]Equivalencia BH-BMPT'!$D$20,IF(J69=20,'[1]Equivalencia BH-BMPT'!$D$21,IF(J69=21,'[1]Equivalencia BH-BMPT'!$D$22,IF(J69=22,'[1]Equivalencia BH-BMPT'!$D$23,IF(J69=23,'[1]Equivalencia BH-BMPT'!#REF!,IF(J69=24,'[1]Equivalencia BH-BMPT'!$D$25,IF(J69=25,'[1]Equivalencia BH-BMPT'!$D$26,IF(J69=26,'[1]Equivalencia BH-BMPT'!$D$27,IF(J69=27,'[1]Equivalencia BH-BMPT'!$D$28,IF(J69=28,'[1]Equivalencia BH-BMPT'!$D$29,IF(J69=29,'[1]Equivalencia BH-BMPT'!$D$30,IF(J69=30,'[1]Equivalencia BH-BMPT'!$D$31,IF(J69=31,'[1]Equivalencia BH-BMPT'!$D$32,IF(J69=32,'[1]Equivalencia BH-BMPT'!$D$33,IF(J69=33,'[1]Equivalencia BH-BMPT'!$D$34,IF(J69=34,'[1]Equivalencia BH-BMPT'!$D$35,IF(J69=35,'[1]Equivalencia BH-BMPT'!$D$36,IF(J69=36,'[1]Equivalencia BH-BMPT'!$D$37,IF(J69=37,'[1]Equivalencia BH-BMPT'!$D$38,IF(J69=38,'[1]Equivalencia BH-BMPT'!#REF!,IF(J69=39,'[1]Equivalencia BH-BMPT'!$D$40,IF(J69=40,'[1]Equivalencia BH-BMPT'!$D$41,IF(J69=41,'[1]Equivalencia BH-BMPT'!$D$42,IF(J69=42,'[1]Equivalencia BH-BMPT'!$D$43,IF(J69=43,'[1]Equivalencia BH-BMPT'!$D$44,IF(J69=44,'[1]Equivalencia BH-BMPT'!$D$45,IF(J69=45,'[1]Equivalencia BH-BMPT'!$D$46,"No ha seleccionado un número de programa"))))))))))))))))))))))))))))))))))))))))))))) -> Gobernanza e influencia local, regional e internacional | L69: 1395 | M69: 79814029 | N69: Agustín Lara Beltrán | O69: 52746766 | S69: 3995968 | T69: 56742734 | U69: 50189352 | V69: 2017-02-01 | W69: 2017-02-02 | X69: 2018-01-24 | Y69: 355 | AC69: X | AF69: 0.8845071159 | AG69: FALSE
A70: 8 | B70: 2017 | C70: 17-12-6299101 | D70: 5 | E70: =IF(D70=1,'[1]Tipo '!$B$2,IF(D70=2,'[1]Tipo '!$B$3,IF(D70=3,'[1]Tipo '!$B$4,IF(D70=4,'[1]Tipo '!$B$5,IF(D70=5,'[1]Tipo '!$B$6,IF(D70=6,'[1]Tipo '!$B$7,IF(D70=7,'[1]Tipo '!$B$8,IF(D70=8,'[1]Tipo '!$B$9,IF(D70=9,'[1]Tipo '!$B$10,IF(D70=10,'[1]Tipo '!$B$11,IF(D70=11,'[1]Tipo '!$B$12,IF(D70=12,'[1]Tipo '!$B$13,IF(D70=13,'[1]Tipo '!$B$14,IF(D70=14,'[1]Tipo '!$B$15,IF(D70=15,'[1]Tipo '!$B$16,IF(D70=16,'[1]Tipo '!$B$17,IF(D70=17,'[1]Tipo '!$B$18,IF(D70=18,'[1]Tipo '!$B$19,IF(D70=19,'[1]Tipo '!$B$20,"No ha seleccionado un tipo de contrato válido"))))))))))))))))))) -> CONTRATOS DE PRESTACIÓN DE SERVICIOS PROFESIONALES Y DE APOYO A LA GESTIÓN | F70: Contratación directa | G70: Prestación de servicios profesionales y de apoyo a la gestión, o para la ejecución de trabajos artísticos que sólo puedan encomendarse a determinadas personas naturales; | H70: PRESTAR LOS SERVICIOS PROFESIONALES AL DESPACHO DE LA ALCALDÍA LOCAL COMO ENLACE EN TEMAS DE GESTIÓN DE RIESGOS A CARGO DE LA LOCALIDAD DE LA CANDELARIA DE CONFORMIDAD CON EL MARCO NORMATIVO APLICABLE PARA LA MATERIA | I70: Inversión | J70: 45 | K70: =IF(J70=1,'[1]Equivalencia BH-BMPT'!$D$2,IF(J70=2,'[1]Equivalencia BH-BMPT'!$D$3,IF(J70=3,'[1]Equivalencia BH-BMPT'!$D$4,IF(J70=4,'[1]Equivalencia BH-BMPT'!$D$5,IF(J70=5,'[1]Equivalencia BH-BMPT'!$D$6,IF(J70=6,'[1]Equivalencia BH-BMPT'!$D$7,IF(J70=7,'[1]Equivalencia BH-BMPT'!$D$8,IF(J70=8,'[1]Equivalencia BH-BMPT'!$D$9,IF(J70=9,'[1]Equivalencia BH-BMPT'!$D$10,IF(J70=10,'[1]Equivalencia BH-BMPT'!$D$11,IF(J70=11,'[1]Equivalencia BH-BMPT'!$D$12,IF(J70=12,'[1]Equivalencia BH-BMPT'!$D$13,IF(J70=13,'[1]Equivalencia BH-BMPT'!$D$14,IF(J70=14,'[1]Equivalencia BH-BMPT'!$D$15,IF(J70=15,'[1]Equivalencia BH-BMPT'!$D$16,IF(J70=16,'[1]Equivalencia BH-BMPT'!$D$17,IF(J70=17,'[1]Equivalencia BH-BMPT'!$D$18,IF(J70=18,'[1]Equivalencia BH-BMPT'!$D$19,IF(J70=19,'[1]Equivalencia BH-BMPT'!$D$20,IF(J70=20,'[1]Equivalencia BH-BMPT'!$D$21,IF(J70=21,'[1]Equivalencia BH-BMPT'!$D$22,IF(J70=22,'[1]Equivalencia BH-BMPT'!$D$23,IF(J70=23,'[1]Equivalencia BH-BMPT'!#REF!,IF(J70=24,'[1]Equivalencia BH-BMPT'!$D$25,IF(J70=25,'[1]Equivalencia BH-BMPT'!$D$26,IF(J70=26,'[1]Equivalencia BH-BMPT'!$D$27,IF(J70=27,'[1]Equivalencia BH-BMPT'!$D$28,IF(J70=28,'[1]Equivalencia BH-BMPT'!$D$29,IF(J70=29,'[1]Equivalencia BH-BMPT'!$D$30,IF(J70=30,'[1]Equivalencia BH-BMPT'!$D$31,IF(J70=31,'[1]Equivalencia BH-BMPT'!$D$32,IF(J70=32,'[1]Equivalencia BH-BMPT'!$D$33,IF(J70=33,'[1]Equivalencia BH-BMPT'!$D$34,IF(J70=34,'[1]Equivalencia BH-BMPT'!$D$35,IF(J70=35,'[1]Equivalencia BH-BMPT'!$D$36,IF(J70=36,'[1]Equivalencia BH-BMPT'!$D$37,IF(J70=37,'[1]Equivalencia BH-BMPT'!$D$38,IF(J70=38,'[1]Equivalencia BH-BMPT'!#REF!,IF(J70=39,'[1]Equivalencia BH-BMPT'!$D$40,IF(J70=40,'[1]Equivalencia BH-BMPT'!$D$41,IF(J70=41,'[1]Equivalencia BH-BMPT'!$D$42,IF(J70=42,'[1]Equivalencia BH-BMPT'!$D$43,IF(J70=43,'[1]Equivalencia BH-BMPT'!$D$44,IF(J70=44,'[1]Equivalencia BH-BMPT'!$D$45,IF(J70=45,'[1]Equivalencia BH-BMPT'!$D$46,"No ha seleccionado un número de programa"))))))))))))))))))))))))))))))))))))))))))))) -> Gobernanza e influencia local, regional e internacional | L70: 1395 | M70: 79186980 | N70: Luis Antonio Jaramillo Cuestas | O70: 62484630 | S70: 2840211 | T70: 65324841 | U70: 59455073 | V70: 2017-02-01 | W70: 2017-02-02 | X70: 2018-01-14 | Y70: 345 | AD70: X | AF70: 0.9101449325 | AG70: FALSE
A71: 9 | B71: 2017 | C71: 17-12-6299128 | D71: 5 | E71: =IF(D71=1,'[1]Tipo '!$B$2,IF(D71=2,'[1]Tipo '!$B$3,IF(D71=3,'[1]Tipo '!$B$4,IF(D71=4,'[1]Tipo '!$B$5,IF(D71=5,'[1]Tipo '!$B$6,IF(D71=6,'[1]Tipo '!$B$7,IF(D71=7,'[1]Tipo '!$B$8,IF(D71=8,'[1]Tipo '!$B$9,IF(D71=9,'[1]Tipo '!$B$10,IF(D71=10,'[1]Tipo '!$B$11,IF(D71=11,'[1]Tipo '!$B$12,IF(D71=12,'[1]Tipo '!$B$13,IF(D71=13,'[1]Tipo '!$B$14,IF(D71=14,'[1]Tipo '!$B$15,IF(D71=15,'[1]Tipo '!$B$16,IF(D71=16,'[1]Tipo '!$B$17,IF(D71=17,'[1]Tipo '!$B$18,IF(D71=18,'[1]Tipo '!$B$19,IF(D71=19,'[1]Tipo '!$B$20,"No ha seleccionado un tipo de contrato válido"))))))))))))))))))) -> CONTRATOS DE PRESTACIÓN DE SERVICIOS PROFESIONALES Y DE APOYO A LA GESTIÓN | F71: Contratación directa | G71: Prestación de servicios profesionales y de apoyo a la gestión, o para la ejecución de trabajos artísticos que sólo puedan encomendarse a determinadas personas naturales; | H71: PRESTAR LOS SERVICIOS PROFESIONALES AL DESPACHO DE LA ALCALDÍA LOCAL COMO ENLACE EN TEMAS DE GESTIÓN DE RIESGOS A CARGO DE LA LOCALIDAD DE LA CANDELARIA DE CONFORMIDAD CON EL MARCO NORMATIVO APLICABLE PARA LA MATERIA | I71: Inversión | J71: 39 | K71: =IF(J71=1,'[1]Equivalencia BH-BMPT'!$D$2,IF(J71=2,'[1]Equivalencia BH-BMPT'!$D$3,IF(J71=3,'[1]Equivalencia BH-BMPT'!$D$4,IF(J71=4,'[1]Equivalencia BH-BMPT'!$D$5,IF(J71=5,'[1]Equivalencia BH-BMPT'!$D$6,IF(J71=6,'[1]Equivalencia BH-BMPT'!$D$7,IF(J71=7,'[1]Equivalencia BH-BMPT'!$D$8,IF(J71=8,'[1]Equivalencia BH-BMPT'!$D$9,IF(J71=9,'[1]Equivalencia BH-BMPT'!$D$10,IF(J71=10,'[1]Equivalencia BH-BMPT'!$D$11,IF(J71=11,'[1]Equivalencia BH-BMPT'!$D$12,IF(J71=12,'[1]Equivalencia BH-BMPT'!$D$13,IF(J71=13,'[1]Equivalencia BH-BMPT'!$D$14,IF(J71=14,'[1]Equivalencia BH-BMPT'!$D$15,IF(J71=15,'[1]Equivalencia BH-BMPT'!$D$16,IF(J71=16,'[1]Equivalencia BH-BMPT'!$D$17,IF(J71=17,'[1]Equivalencia BH-BMPT'!$D$18,IF(J71=18,'[1]Equivalencia BH-BMPT'!$D$19,IF(J71=19,'[1]Equivalencia BH-BMPT'!$D$20,IF(J71=20,'[1]Equivalencia BH-BMPT'!$D$21,IF(J71=21,'[1]Equivalencia BH-BMPT'!$D$22,IF(J71=22,'[1]Equivalencia BH-BMPT'!$D$23,IF(J71=23,'[1]Equivalencia BH-BMPT'!#REF!,IF(J71=24,'[1]Equivalencia BH-BMPT'!$D$25,IF(J71=25,'[1]Equivalencia BH-BMPT'!$D$26,IF(J71=26,'[1]Equivalencia BH-BMPT'!$D$27,IF(J71=27,'[1]Equivalencia BH-BMPT'!$D$28,IF(J71=28,'[1]Equivalencia BH-BMPT'!$D$29,IF(J71=29,'[1]Equivalencia BH-BMPT'!$D$30,IF(J71=30,'[1]Equivalencia BH-BMPT'!$D$31,IF(J71=31,'[1]Equivalencia BH-BMPT'!$D$32,IF(J71=32,'[1]Equivalencia BH-BMPT'!$D$33,IF(J71=33,'[1]Equivalencia BH-BMPT'!$D$34,IF(J71=34,'[1]Equivalencia BH-BMPT'!$D$35,IF(J71=35,'[1]Equivalencia BH-BMPT'!$D$36,IF(J71=36,'[1]Equivalencia BH-BMPT'!$D$37,IF(J71=37,'[1]Equivalencia BH-BMPT'!$D$38,IF(J71=38,'[1]Equivalencia BH-BMPT'!#REF!,IF(J71=39,'[1]Equivalencia BH-BMPT'!$D$40,IF(J71=40,'[1]Equivalencia BH-BMPT'!$D$41,IF(J71=41,'[1]Equivalencia BH-BMPT'!$D$42,IF(J71=42,'[1]Equivalencia BH-BMPT'!$D$43,IF(J71=43,'[1]Equivalencia BH-BMPT'!$D$44,IF(J71=44,'[1]Equivalencia BH-BMPT'!$D$45,IF(J71=45,'[1]Equivalencia BH-BMPT'!$D$46,"No ha seleccionado un número de programa"))))))))))))))))))))))))))))))))))))))))))))) -> Ambiente sano para la equidad y disfrute del ciudadano | L71: 1395 | M71: 1074416048 | N71: LEIVER ALEXIS MORENO GUZMAN | O71: 50312299 | S71: 2286923 | T71: 52599222 | U71: 47872911 | V71: 2017-02-01 | W71: 2017-02-02 | X71: 2018-01-14 | Y71: 345 | AD71: X | AF71: 0.9101448497 | AG71: FALSE
A72: 10 | B72: 2017 | C72: 17-12-6299158 | D72: 5 | E72: =IF(D72=1,'[1]Tipo '!$B$2,IF(D72=2,'[1]Tipo '!$B$3,IF(D72=3,'[1]Tipo '!$B$4,IF(D72=4,'[1]Tipo '!$B$5,IF(D72=5,'[1]Tipo '!$B$6,IF(D72=6,'[1]Tipo '!$B$7,IF(D72=7,'[1]Tipo '!$B$8,IF(D72=8,'[1]Tipo '!$B$9,IF(D72=9,'[1]Tipo '!$B$10,IF(D72=10,'[1]Tipo '!$B$11,IF(D72=11,'[1]Tipo '!$B$12,IF(D72=12,'[1]Tipo '!$B$13,IF(D72=13,'[1]Tipo '!$B$14,IF(D72=14,'[1]Tipo '!$B$15,IF(D72=15,'[1]Tipo '!$B$16,IF(D72=16,'[1]Tipo '!$B$17,IF(D72=17,'[1]Tipo '!$B$18,IF(D72=18,'[1]Tipo '!$B$19,IF(D72=19,'[1]Tipo '!$B$20,"No ha seleccionado un tipo de contrato válido"))))))))))))))))))) -> CONTRATOS DE PRESTACIÓN DE SERVICIOS PROFESIONALES Y DE APOYO A LA GESTIÓN | F72: Contratación directa | G72: Prestación de servicios profesionales y de apoyo a la gestión, o para la ejecución de trabajos artísticos que sólo puedan encomendarse a determinadas personas naturales; | H72: PRESTAR SUS SERVICIOS PROFESIONALES AL ÁREA DE GESTIÓN DE DESARROLLO LOCAL BRINDANDO APOYO EN LA FORMULACIÓN Y SEGUIMIENTO PARA EL CUMPLIMIENTO DE LAS METAS ESTABLECIDAS EN EL PLAN DE DESARROLLO LOCAL DE LA CANDELARIA CON ENFASIS EN EL PROGRAMA “MEJORES OPORTUNIDADES PARA EL DESARROLLO A TRAVÉS DE LA CULTURA, LA RECREACIÓN Y EL DEPORTE” – PROYECTO 1398 “CANDELARIA CULTURAL Y DEPORTIVA PARA TODOS | I72: Inversión | J72: 45 | K72: =IF(J72=1,'[1]Equivalencia BH-BMPT'!$D$2,IF(J72=2,'[1]Equivalencia BH-BMPT'!$D$3,IF(J72=3,'[1]Equivalencia BH-BMPT'!$D$4,IF(J72=4,'[1]Equivalencia BH-BMPT'!$D$5,IF(J72=5,'[1]Equivalencia BH-BMPT'!$D$6,IF(J72=6,'[1]Equivalencia BH-BMPT'!$D$7,IF(J72=7,'[1]Equivalencia BH-BMPT'!$D$8,IF(J72=8,'[1]Equivalencia BH-BMPT'!$D$9,IF(J72=9,'[1]Equivalencia BH-BMPT'!$D$10,IF(J72=10,'[1]Equivalencia BH-BMPT'!$D$11,IF(J72=11,'[1]Equivalencia BH-BMPT'!$D$12,IF(J72=12,'[1]Equivalencia BH-BMPT'!$D$13,IF(J72=13,'[1]Equivalencia BH-BMPT'!$D$14,IF(J72=14,'[1]Equivalencia BH-BMPT'!$D$15,IF(J72=15,'[1]Equivalencia BH-BMPT'!$D$16,IF(J72=16,'[1]Equivalencia BH-BMPT'!$D$17,IF(J72=17,'[1]Equivalencia BH-BMPT'!$D$18,IF(J72=18,'[1]Equivalencia BH-BMPT'!$D$19,IF(J72=19,'[1]Equivalencia BH-BMPT'!$D$20,IF(J72=20,'[1]Equivalencia BH-BMPT'!$D$21,IF(J72=21,'[1]Equivalencia BH-BMPT'!$D$22,IF(J72=22,'[1]Equivalencia BH-BMPT'!$D$23,IF(J72=23,'[1]Equivalencia BH-BMPT'!#REF!,IF(J72=24,'[1]Equivalencia BH-BMPT'!$D$25,IF(J72=25,'[1]Equivalencia BH-BMPT'!$D$26,IF(J72=26,'[1]Equivalencia BH-BMPT'!$D$27,IF(J72=27,'[1]Equivalencia BH-BMPT'!$D$28,IF(J72=28,'[1]Equivalencia BH-BMPT'!$D$29,IF(J72=29,'[1]Equivalencia BH-BMPT'!$D$30,IF(J72=30,'[1]Equivalencia BH-BMPT'!$D$31,IF(J72=31,'[1]Equivalencia BH-BMPT'!$D$32,IF(J72=32,'[1]Equivalencia BH-BMPT'!$D$33,IF(J72=33,'[1]Equivalencia BH-BMPT'!$D$34,IF(J72=34,'[1]Equivalencia BH-BMPT'!$D$35,IF(J72=35,'[1]Equivalencia BH-BMPT'!$D$36,IF(J72=36,'[1]Equivalencia BH-BMPT'!$D$37,IF(J72=37,'[1]Equivalencia BH-BMPT'!$D$38,IF(J72=38,'[1]Equivalencia BH-BMPT'!#REF!,IF(J72=39,'[1]Equivalencia BH-BMPT'!$D$40,IF(J72=40,'[1]Equivalencia BH-BMPT'!$D$41,IF(J72=41,'[1]Equivalencia BH-BMPT'!$D$42,IF(J72=42,'[1]Equivalencia BH-BMPT'!$D$43,IF(J72=43,'[1]Equivalencia BH-BMPT'!$D$44,IF(J72=44,'[1]Equivalencia BH-BMPT'!$D$45,IF(J72=45,'[1]Equivalencia BH-BMPT'!$D$46,"No ha seleccionado un número de programa"))))))))))))))))))))))))))))))))))))))))))))) -> Gobernanza e influencia local, regional e internacional | L72: 1395 | M72: 1026557127 | N72: Juan Sebastián Sánchez Rodríguez | O72: 55181232 | T72: 55181232 | U72: 52338566 | V72: 2017-02-02 | W72: 2017-02-03 | X72: 2017-12-30 | Y72: 329 | AD72: X | AF72: 0.9484849124 | AG72: FALSE
A73: 11 | B73: 2017 | C73: 17-12-6299251 | D73: 5 | E73: =IF(D73=1,'[1]Tipo '!$B$2,IF(D73=2,'[1]Tipo '!$B$3,IF(D73=3,'[1]Tipo '!$B$4,IF(D73=4,'[1]Tipo '!$B$5,IF(D73=5,'[1]Tipo '!$B$6,IF(D73=6,'[1]Tipo '!$B$7,IF(D73=7,'[1]Tipo '!$B$8,IF(D73=8,'[1]Tipo '!$B$9,IF(D73=9,'[1]Tipo '!$B$10,IF(D73=10,'[1]Tipo '!$B$11,IF(D73=11,'[1]Tipo '!$B$12,IF(D73=12,'[1]Tipo '!$B$13,IF(D73=13,'[1]Tipo '!$B$14,IF(D73=14,'[1]Tipo '!$B$15,IF(D73=15,'[1]Tipo '!$B$16,IF(D73=16,'[1]Tipo '!$B$17,IF(D73=17,'[1]Tipo '!$B$18,IF(D73=18,'[1]Tipo '!$B$19,IF(D73=19,'[1]Tipo '!$B$20,"No ha seleccionado un tipo de contrato válido"))))))))))))))))))) -> CONTRATOS DE PRESTACIÓN DE SERVICIOS PROFESIONALES Y DE APOYO A LA GESTIÓN | F73: Contratación directa | G73: Prestación de servicios profesionales y de apoyo a la gestión, o para la ejecución de trabajos artísticos que sólo puedan encomendarse a determinadas personas naturales; | H73: PRESTAR SUS SERVICIOS PROFESIONALES ESPECIALIZADOS PARA APOYAR JURIDICAMENTE AL DESPACHO DEL ALCALDE LOCAL EN LOS ASUNTOS CONSTITUCIONALES, LEGALES Y REGLAMENTARIOS DE SU COMPETENCIA | I73: Inversión | J73: 45 | K73: =IF(J73=1,'[1]Equivalencia BH-BMPT'!$D$2,IF(J73=2,'[1]Equivalencia BH-BMPT'!$D$3,IF(J73=3,'[1]Equivalencia BH-BMPT'!$D$4,IF(J73=4,'[1]Equivalencia BH-BMPT'!$D$5,IF(J73=5,'[1]Equivalencia BH-BMPT'!$D$6,IF(J73=6,'[1]Equivalencia BH-BMPT'!$D$7,IF(J73=7,'[1]Equivalencia BH-BMPT'!$D$8,IF(J73=8,'[1]Equivalencia BH-BMPT'!$D$9,IF(J73=9,'[1]Equivalencia BH-BMPT'!$D$10,IF(J73=10,'[1]Equivalencia BH-BMPT'!$D$11,IF(J73=11,'[1]Equivalencia BH-BMPT'!$D$12,IF(J73=12,'[1]Equivalencia BH-BMPT'!$D$13,IF(J73=13,'[1]Equivalencia BH-BMPT'!$D$14,IF(J73=14,'[1]Equivalencia BH-BMPT'!$D$15,IF(J73=15,'[1]Equivalencia BH-BMPT'!$D$16,IF(J73=16,'[1]Equivalencia BH-BMPT'!$D$17,IF(J73=17,'[1]Equivalencia BH-BMPT'!$D$18,IF(J73=18,'[1]Equivalencia BH-BMPT'!$D$19,IF(J73=19,'[1]Equivalencia BH-BMPT'!$D$20,IF(J73=20,'[1]Equivalencia BH-BMPT'!$D$21,IF(J73=21,'[1]Equivalencia BH-BMPT'!$D$22,IF(J73=22,'[1]Equivalencia BH-BMPT'!$D$23,IF(J73=23,'[1]Equivalencia BH-BMPT'!#REF!,IF(J73=24,'[1]Equivalencia BH-BMPT'!$D$25,IF(J73=25,'[1]Equivalencia BH-BMPT'!$D$26,IF(J73=26,'[1]Equivalencia BH-BMPT'!$D$27,IF(J73=27,'[1]Equivalencia BH-BMPT'!$D$28,IF(J73=28,'[1]Equivalencia BH-BMPT'!$D$29,IF(J73=29,'[1]Equivalencia BH-BMPT'!$D$30,IF(J73=30,'[1]Equivalencia BH-BMPT'!$D$31,IF(J73=31,'[1]Equivalencia BH-BMPT'!$D$32,IF(J73=32,'[1]Equivalencia BH-BMPT'!$D$33,IF(J73=33,'[1]Equivalencia BH-BMPT'!$D$34,IF(J73=34,'[1]Equivalencia BH-BMPT'!$D$35,IF(J73=35,'[1]Equivalencia BH-BMPT'!$D$36,IF(J73=36,'[1]Equivalencia BH-BMPT'!$D$37,IF(J73=37,'[1]Equivalencia BH-BMPT'!$D$38,IF(J73=38,'[1]Equivalencia BH-BMPT'!#REF!,IF(J73=39,'[1]Equivalencia BH-BMPT'!$D$40,IF(J73=40,'[1]Equivalencia BH-BMPT'!$D$41,IF(J73=41,'[1]Equivalencia BH-BMPT'!$D$42,IF(J73=42,'[1]Equivalencia BH-BMPT'!$D$43,IF(J73=43,'[1]Equivalencia BH-BMPT'!$D$44,IF(J73=44,'[1]Equivalencia BH-BMPT'!$D$45,IF(J73=45,'[1]Equivalencia BH-BMPT'!$D$46,"No ha seleccionado un número de programa"))))))))))))))))))))))))))))))))))))))))))))) -> Gobernanza e influencia local, regional e internacional | L73: 1395 | M73: 80208621 | N73: Michael Oyuela Vargas | O73: 96567155 | T73: 96567155 | U73: 87203064 | V73: 2017-02-02 | W73: 2017-02-03 | X73: 2017-01-14 | Y73: 329 | AD73: X | AF73: 0.9030302695 | AG73: FALSE
A74: 12 | B74: 2017 | C74: 17-12-6299281 | D74: 5 | E74: =IF(D74=1,'[1]Tipo '!$B$2,IF(D74=2,'[1]Tipo '!$B$3,IF(D74=3,'[1]Tipo '!$B$4,IF(D74=4,'[1]Tipo '!$B$5,IF(D74=5,'[1]Tipo '!$B$6,IF(D74=6,'[1]Tipo '!$B$7,IF(D74=7,'[1]Tipo '!$B$8,IF(D74=8,'[1]Tipo '!$B$9,IF(D74=9,'[1]Tipo '!$B$10,IF(D74=10,'[1]Tipo '!$B$11,IF(D74=11,'[1]Tipo '!$B$12,IF(D74=12,'[1]Tipo '!$B$13,IF(D74=13,'[1]Tipo '!$B$14,IF(D74=14,'[1]Tipo '!$B$15,IF(D74=15,'[1]Tipo '!$B$16,IF(D74=16,'[1]Tipo '!$B$17,IF(D74=17,'[1]Tipo '!$B$18,IF(D74=18,'[1]Tipo '!$B$19,IF(D74=19,'[1]Tipo '!$B$20,"No ha seleccionado un tipo de contrato válido"))))))))))))))))))) -> CONTRATOS DE PRESTACIÓN DE SERVICIOS PROFESIONALES Y DE APOYO A LA GESTIÓN | F74: Contratación directa | G74: Prestación de servicios profesionales y de apoyo a la gestión, o para la ejecución de trabajos artísticos que sólo puedan encomendarse a determinadas personas naturales; | H74: PRESTAR LOS SERVICIOS PROFESIONALES AL DESPACHO DE LA ALCALDÍA LOCAL Y AL ÁREA DE GESTIÓN POLICIVA, EN TEMAS DE SEGURIDAD, PREVENCIÓN Y CONVIVENCIA CIUDADANA EN LA LOCALIDAD, DE CONFORMIDAD CON EL MARCO NORMATIVO APLICABLE PARA LA MATERIA | I74: Inversión | J74: 45 | K74: =IF(J74=1,'[1]Equivalencia BH-BMPT'!$D$2,IF(J74=2,'[1]Equivalencia BH-BMPT'!$D$3,IF(J74=3,'[1]Equivalencia BH-BMPT'!$D$4,IF(J74=4,'[1]Equivalencia BH-BMPT'!$D$5,IF(J74=5,'[1]Equivalencia BH-BMPT'!$D$6,IF(J74=6,'[1]Equivalencia BH-BMPT'!$D$7,IF(J74=7,'[1]Equivalencia BH-BMPT'!$D$8,IF(J74=8,'[1]Equivalencia BH-BMPT'!$D$9,IF(J74=9,'[1]Equivalencia BH-BMPT'!$D$10,IF(J74=10,'[1]Equivalencia BH-BMPT'!$D$11,IF(J74=11,'[1]Equivalencia BH-BMPT'!$D$12,IF(J74=12,'[1]Equivalencia BH-BMPT'!$D$13,IF(J74=13,'[1]Equivalencia BH-BMPT'!$D$14,IF(J74=14,'[1]Equivalencia BH-BMPT'!$D$15,IF(J74=15,'[1]Equivalencia BH-BMPT'!$D$16,IF(J74=16,'[1]Equivalencia BH-BMPT'!$D$17,IF(J74=17,'[1]Equivalencia BH-BMPT'!$D$18,IF(J74=18,'[1]Equivalencia BH-BMPT'!$D$19,IF(J74=19,'[1]Equivalencia BH-BMPT'!$D$20,IF(J74=20,'[1]Equivalencia BH-BMPT'!$D$21,IF(J74=21,'[1]Equivalencia BH-BMPT'!$D$22,IF(J74=22,'[1]Equivalencia BH-BMPT'!$D$23,IF(J74=23,'[1]Equivalencia BH-BMPT'!#REF!,IF(J74=24,'[1]Equivalencia BH-BMPT'!$D$25,IF(J74=25,'[1]Equivalencia BH-BMPT'!$D$26,IF(J74=26,'[1]Equivalencia BH-BMPT'!$D$27,IF(J74=27,'[1]Equivalencia BH-BMPT'!$D$28,IF(J74=28,'[1]Equivalencia BH-BMPT'!$D$29,IF(J74=29,'[1]Equivalencia BH-BMPT'!$D$30,IF(J74=30,'[1]Equivalencia BH-BMPT'!$D$31,IF(J74=31,'[1]Equivalencia BH-BMPT'!$D$32,IF(J74=32,'[1]Equivalencia BH-BMPT'!$D$33,IF(J74=33,'[1]Equivalencia BH-BMPT'!$D$34,IF(J74=34,'[1]Equivalencia BH-BMPT'!$D$35,IF(J74=35,'[1]Equivalencia BH-BMPT'!$D$36,IF(J74=36,'[1]Equivalencia BH-BMPT'!$D$37,IF(J74=37,'[1]Equivalencia BH-BMPT'!$D$38,IF(J74=38,'[1]Equivalencia BH-BMPT'!#REF!,IF(J74=39,'[1]Equivalencia BH-BMPT'!$D$40,IF(J74=40,'[1]Equivalencia BH-BMPT'!$D$41,IF(J74=41,'[1]Equivalencia BH-BMPT'!$D$42,IF(J74=42,'[1]Equivalencia BH-BMPT'!$D$43,IF(J74=43,'[1]Equivalencia BH-BMPT'!$D$44,IF(J74=44,'[1]Equivalencia BH-BMPT'!$D$45,IF(J74=45,'[1]Equivalencia BH-BMPT'!$D$46,"No ha seleccionado un número de programa"))))))))))))))))))))))))))))))))))))))))))))) -> Gobernanza e influencia local, regional e internacional | L74: 1395 | M74: 52198868 | N74: Zully Alejandra Cardozo Triana | O74: 49500811 | S74: 2250037 | T74: 51750848 | U74: 46950772 | V74: 2017-02-02 | W74: 2017-02-03 | X74: 2017-01-14 | Y74: 329 | AD74: X | AF74: 0.9072464281 | AG74: FALSE
A75: 13 | B75: 2017 | C75: 17-12-6299314 | D75: 5 | E75: =IF(D75=1,'[1]Tipo '!$B$2,IF(D75=2,'[1]Tipo '!$B$3,IF(D75=3,'[1]Tipo '!$B$4,IF(D75=4,'[1]Tipo '!$B$5,IF(D75=5,'[1]Tipo '!$B$6,IF(D75=6,'[1]Tipo '!$B$7,IF(D75=7,'[1]Tipo '!$B$8,IF(D75=8,'[1]Tipo '!$B$9,IF(D75=9,'[1]Tipo '!$B$10,IF(D75=10,'[1]Tipo '!$B$11,IF(D75=11,'[1]Tipo '!$B$12,IF(D75=12,'[1]Tipo '!$B$13,IF(D75=13,'[1]Tipo '!$B$14,IF(D75=14,'[1]Tipo '!$B$15,IF(D75=15,'[1]Tipo '!$B$16,IF(D75=16,'[1]Tipo '!$B$17,IF(D75=17,'[1]Tipo '!$B$18,IF(D75=18,'[1]Tipo '!$B$19,IF(D75=19,'[1]Tipo '!$B$20,"No ha seleccionado un tipo de contrato válido"))))))))))))))))))) -> CONTRATOS DE PRESTACIÓN DE SERVICIOS PROFESIONALES Y DE APOYO A LA GESTIÓN | F75: Contratación directa | G75: Prestación de servicios profesionales y de apoyo a la gestión, o para la ejecución de trabajos artísticos que sólo puedan encomendarse a determinadas personas naturales; | H75: PRESTAR LOS SERVICIOS DE APOYO AL ÁREA DE GESTIÓN DE DESARROLLO LOCAL, PARA EL FORTALECIMIENTO INSTITUCIONAL EN TEMAS DE CONTABILIDAD EN LA ALCALDÍA LOCAL DE LA CANDELARIA | I75: Inversión | J75: 45 | K75: =IF(J75=1,'[1]Equivalencia BH-BMPT'!$D$2,IF(J75=2,'[1]Equivalencia BH-BMPT'!$D$3,IF(J75=3,'[1]Equivalencia BH-BMPT'!$D$4,IF(J75=4,'[1]Equivalencia BH-BMPT'!$D$5,IF(J75=5,'[1]Equivalencia BH-BMPT'!$D$6,IF(J75=6,'[1]Equivalencia BH-BMPT'!$D$7,IF(J75=7,'[1]Equivalencia BH-BMPT'!$D$8,IF(J75=8,'[1]Equivalencia BH-BMPT'!$D$9,IF(J75=9,'[1]Equivalencia BH-BMPT'!$D$10,IF(J75=10,'[1]Equivalencia BH-BMPT'!$D$11,IF(J75=11,'[1]Equivalencia BH-BMPT'!$D$12,IF(J75=12,'[1]Equivalencia BH-BMPT'!$D$13,IF(J75=13,'[1]Equivalencia BH-BMPT'!$D$14,IF(J75=14,'[1]Equivalencia BH-BMPT'!$D$15,IF(J75=15,'[1]Equivalencia BH-BMPT'!$D$16,IF(J75=16,'[1]Equivalencia BH-BMPT'!$D$17,IF(J75=17,'[1]Equivalencia BH-BMPT'!$D$18,IF(J75=18,'[1]Equivalencia BH-BMPT'!$D$19,IF(J75=19,'[1]Equivalencia BH-BMPT'!$D$20,IF(J75=20,'[1]Equivalencia BH-BMPT'!$D$21,IF(J75=21,'[1]Equivalencia BH-BMPT'!$D$22,IF(J75=22,'[1]Equivalencia BH-BMPT'!$D$23,IF(J75=23,'[1]Equivalencia BH-BMPT'!#REF!,IF(J75=24,'[1]Equivalencia BH-BMPT'!$D$25,IF(J75=25,'[1]Equivalencia BH-BMPT'!$D$26,IF(J75=26,'[1]Equivalencia BH-BMPT'!$D$27,IF(J75=27,'[1]Equivalencia BH-BMPT'!$D$28,IF(J75=28,'[1]Equivalencia BH-BMPT'!$D$29,IF(J75=29,'[1]Equivalencia BH-BMPT'!$D$30,IF(J75=30,'[1]Equivalencia BH-BMPT'!$D$31,IF(J75=31,'[1]Equivalencia BH-BMPT'!$D$32,IF(J75=32,'[1]Equivalencia BH-BMPT'!$D$33,IF(J75=33,'[1]Equivalencia BH-BMPT'!$D$34,IF(J75=34,'[1]Equivalencia BH-BMPT'!$D$35,IF(J75=35,'[1]Equivalencia BH-BMPT'!$D$36,IF(J75=36,'[1]Equivalencia BH-BMPT'!$D$37,IF(J75=37,'[1]Equivalencia BH-BMPT'!$D$38,IF(J75=38,'[1]Equivalencia BH-BMPT'!#REF!,IF(J75=39,'[1]Equivalencia BH-BMPT'!$D$40,IF(J75=40,'[1]Equivalencia BH-BMPT'!$D$41,IF(J75=41,'[1]Equivalencia BH-BMPT'!$D$42,IF(J75=42,'[1]Equivalencia BH-BMPT'!$D$43,IF(J75=43,'[1]Equivalencia BH-BMPT'!$D$44,IF(J75=44,'[1]Equivalencia BH-BMPT'!$D$45,IF(J75=45,'[1]Equivalencia BH-BMPT'!$D$46,"No ha seleccionado un número de programa"))))))))))))))))))))))))))))))))))))))))))))) -> Gobernanza e influencia local, regional e internacional | L75: 1395 | M75: 11312151 | N75: LUIS CARLOS VANEGAS JIMENEZ | O75: 29434908 | T75: 29434908 | U75: 29248024 | V75: 2017-02-02 | W75: 2017-02-03 | X75: 2017-12-30 | Y75: 329 | AD75: X | AF75: 0.9936509399 | AG75: FALSE
A76: 14 | B76: 2017 | C76: 17-12-6315828 | D76: 5 | E76: =IF(D76=1,'[1]Tipo '!$B$2,IF(D76=2,'[1]Tipo '!$B$3,IF(D76=3,'[1]Tipo '!$B$4,IF(D76=4,'[1]Tipo '!$B$5,IF(D76=5,'[1]Tipo '!$B$6,IF(D76=6,'[1]Tipo '!$B$7,IF(D76=7,'[1]Tipo '!$B$8,IF(D76=8,'[1]Tipo '!$B$9,IF(D76=9,'[1]Tipo '!$B$10,IF(D76=10,'[1]Tipo '!$B$11,IF(D76=11,'[1]Tipo '!$B$12,IF(D76=12,'[1]Tipo '!$B$13,IF(D76=13,'[1]Tipo '!$B$14,IF(D76=14,'[1]Tipo '!$B$15,IF(D76=15,'[1]Tipo '!$B$16,IF(D76=16,'[1]Tipo '!$B$17,IF(D76=17,'[1]Tipo '!$B$18,IF(D76=18,'[1]Tipo '!$B$19,IF(D76=19,'[1]Tipo '!$B$20,"No ha seleccionado un tipo de contrato válido"))))))))))))))))))) -> CONTRATOS DE PRESTACIÓN DE SERVICIOS PROFESIONALES Y DE APOYO A LA GESTIÓN | F76: Contratación directa | G76: Prestación de servicios profesionales y de apoyo a la gestión, o para la ejecución de trabajos artísticos que sólo puedan encomendarse a determinadas personas naturales; | H76: Prestar los servicios de apoyo a la administración local en la gestión de las casas comunitarias de la localidad de la candelaria de conformidad con el Acuerdo local 006 de 2013 | I76: Inversión | J76: 45 | K76: =IF(J76=1,'[1]Equivalencia BH-BMPT'!$D$2,IF(J76=2,'[1]Equivalencia BH-BMPT'!$D$3,IF(J76=3,'[1]Equivalencia BH-BMPT'!$D$4,IF(J76=4,'[1]Equivalencia BH-BMPT'!$D$5,IF(J76=5,'[1]Equivalencia BH-BMPT'!$D$6,IF(J76=6,'[1]Equivalencia BH-BMPT'!$D$7,IF(J76=7,'[1]Equivalencia BH-BMPT'!$D$8,IF(J76=8,'[1]Equivalencia BH-BMPT'!$D$9,IF(J76=9,'[1]Equivalencia BH-BMPT'!$D$10,IF(J76=10,'[1]Equivalencia BH-BMPT'!$D$11,IF(J76=11,'[1]Equivalencia BH-BMPT'!$D$12,IF(J76=12,'[1]Equivalencia BH-BMPT'!$D$13,IF(J76=13,'[1]Equivalencia BH-BMPT'!$D$14,IF(J76=14,'[1]Equivalencia BH-BMPT'!$D$15,IF(J76=15,'[1]Equivalencia BH-BMPT'!$D$16,IF(J76=16,'[1]Equivalencia BH-BMPT'!$D$17,IF(J76=17,'[1]Equivalencia BH-BMPT'!$D$18,IF(J76=18,'[1]Equivalencia BH-BMPT'!$D$19,IF(J76=19,'[1]Equivalencia BH-BMPT'!$D$20,IF(J76=20,'[1]Equivalencia BH-BMPT'!$D$21,IF(J76=21,'[1]Equivalencia BH-BMPT'!$D$22,IF(J76=22,'[1]Equivalencia BH-BMPT'!$D$23,IF(J76=23,'[1]Equivalencia BH-BMPT'!#REF!,IF(J76=24,'[1]Equivalencia BH-BMPT'!$D$25,IF(J76=25,'[1]Equivalencia BH-BMPT'!$D$26,IF(J76=26,'[1]Equivalencia BH-BMPT'!$D$27,IF(J76=27,'[1]Equivalencia BH-BMPT'!$D$28,IF(J76=28,'[1]Equivalencia BH-BMPT'!$D$29,IF(J76=29,'[1]Equivalencia BH-BMPT'!$D$30,IF(J76=30,'[1]Equivalencia BH-BMPT'!$D$31,IF(J76=31,'[1]Equivalencia BH-BMPT'!$D$32,IF(J76=32,'[1]Equivalencia BH-BMPT'!$D$33,IF(J76=33,'[1]Equivalencia BH-BMPT'!$D$34,IF(J76=34,'[1]Equivalencia BH-BMPT'!$D$35,IF(J76=35,'[1]Equivalencia BH-BMPT'!$D$36,IF(J76=36,'[1]Equivalencia BH-BMPT'!$D$37,IF(J76=37,'[1]Equivalencia BH-BMPT'!$D$38,IF(J76=38,'[1]Equivalencia BH-BMPT'!#REF!,IF(J76=39,'[1]Equivalencia BH-BMPT'!$D$40,IF(J76=40,'[1]Equivalencia BH-BMPT'!$D$41,IF(J76=41,'[1]Equivalencia BH-BMPT'!$D$42,IF(J76=42,'[1]Equivalencia BH-BMPT'!$D$43,IF(J76=43,'[1]Equivalencia BH-BMPT'!$D$44,IF(J76=44,'[1]Equivalencia BH-BMPT'!$D$45,IF(J76=45,'[1]Equivalencia BH-BMPT'!$D$46,"No ha seleccionado un número de programa"))))))))))))))))))))))))))))))))))))))))))))) -> Gobernanza e influencia local, regional e internacional | L76: 1395 | M76: 52532222 | N76: ANGELA TATIANA ARDILA BOHORQUEZ | O76: 27590616 | S76: 1254119 | T76: 28844735 | U76: 26169283 | V76: 2017-02-03 | W76: 2017-02-03 | X76: 2018-01-14 | Y76: 229 | AD76: X | AF76: 0.9072464351 | AG76: FALSE
A77: 15 | B77: 2017 | C77: 17-12-6315988 | D77: 5 | E77: =IF(D77=1,'[1]Tipo '!$B$2,IF(D77=2,'[1]Tipo '!$B$3,IF(D77=3,'[1]Tipo '!$B$4,IF(D77=4,'[1]Tipo '!$B$5,IF(D77=5,'[1]Tipo '!$B$6,IF(D77=6,'[1]Tipo '!$B$7,IF(D77=7,'[1]Tipo '!$B$8,IF(D77=8,'[1]Tipo '!$B$9,IF(D77=9,'[1]Tipo '!$B$10,IF(D77=10,'[1]Tipo '!$B$11,IF(D77=11,'[1]Tipo '!$B$12,IF(D77=12,'[1]Tipo '!$B$13,IF(D77=13,'[1]Tipo '!$B$14,IF(D77=14,'[1]Tipo '!$B$15,IF(D77=15,'[1]Tipo '!$B$16,IF(D77=16,'[1]Tipo '!$B$17,IF(D77=17,'[1]Tipo '!$B$18,IF(D77=18,'[1]Tipo '!$B$19,IF(D77=19,'[1]Tipo '!$B$20,"No ha seleccionado un tipo de contrato válido"))))))))))))))))))) -> CONTRATOS DE PRESTACIÓN DE SERVICIOS PROFESIONALES Y DE APOYO A LA GESTIÓN | F77: Contratación directa | G77: Prestación de servicios profesionales y de apoyo a la gestión, o para la ejecución de trabajos artísticos que sólo puedan encomendarse a determinadas personas naturales; | H77: Prestar los servicios de apoyo a la administración local en la gestión de las casas comunitarias de la localidad de la candelaria de conformidad con el Acuerdo local 006 de 2013 | I77: Inversión | J77: 45 | K77: =IF(J77=1,'[1]Equivalencia BH-BMPT'!$D$2,IF(J77=2,'[1]Equivalencia BH-BMPT'!$D$3,IF(J77=3,'[1]Equivalencia BH-BMPT'!$D$4,IF(J77=4,'[1]Equivalencia BH-BMPT'!$D$5,IF(J77=5,'[1]Equivalencia BH-BMPT'!$D$6,IF(J77=6,'[1]Equivalencia BH-BMPT'!$D$7,IF(J77=7,'[1]Equivalencia BH-BMPT'!$D$8,IF(J77=8,'[1]Equivalencia BH-BMPT'!$D$9,IF(J77=9,'[1]Equivalencia BH-BMPT'!$D$10,IF(J77=10,'[1]Equivalencia BH-BMPT'!$D$11,IF(J77=11,'[1]Equivalencia BH-BMPT'!$D$12,IF(J77=12,'[1]Equivalencia BH-BMPT'!$D$13,IF(J77=13,'[1]Equivalencia BH-BMPT'!$D$14,IF(J77=14,'[1]Equivalencia BH-BMPT'!$D$15,IF(J77=15,'[1]Equivalencia BH-BMPT'!$D$16,IF(J77=16,'[1]Equivalencia BH-BMPT'!$D$17,IF(J77=17,'[1]Equivalencia BH-BMPT'!$D$18,IF(J77=18,'[1]Equivalencia BH-BMPT'!$D$19,IF(J77=19,'[1]Equivalencia BH-BMPT'!$D$20,IF(J77=20,'[1]Equivalencia BH-BMPT'!$D$21,IF(J77=21,'[1]Equivalencia BH-BMPT'!$D$22,IF(J77=22,'[1]Equivalencia BH-BMPT'!$D$23,IF(J77=23,'[1]Equivalencia BH-BMPT'!#REF!,IF(J77=24,'[1]Equivalencia BH-BMPT'!$D$25,IF(J77=25,'[1]Equivalencia BH-BMPT'!$D$26,IF(J77=26,'[1]Equivalencia BH-BMPT'!$D$27,IF(J77=27,'[1]Equivalencia BH-BMPT'!$D$28,IF(J77=28,'[1]Equivalencia BH-BMPT'!$D$29,IF(J77=29,'[1]Equivalencia BH-BMPT'!$D$30,IF(J77=30,'[1]Equivalencia BH-BMPT'!$D$31,IF(J77=31,'[1]Equivalencia BH-BMPT'!$D$32,IF(J77=32,'[1]Equivalencia BH-BMPT'!$D$33,IF(J77=33,'[1]Equivalencia BH-BMPT'!$D$34,IF(J77=34,'[1]Equivalencia BH-BMPT'!$D$35,IF(J77=35,'[1]Equivalencia BH-BMPT'!$D$36,IF(J77=36,'[1]Equivalencia BH-BMPT'!$D$37,IF(J77=37,'[1]Equivalencia BH-BMPT'!$D$38,IF(J77=38,'[1]Equivalencia BH-BMPT'!#REF!,IF(J77=39,'[1]Equivalencia BH-BMPT'!$D$40,IF(J77=40,'[1]Equivalencia BH-BMPT'!$D$41,IF(J77=41,'[1]Equivalencia BH-BMPT'!$D$42,IF(J77=42,'[1]Equivalencia BH-BMPT'!$D$43,IF(J77=43,'[1]Equivalencia BH-BMPT'!$D$44,IF(J77=44,'[1]Equivalencia BH-BMPT'!$D$45,IF(J77=45,'[1]Equivalencia BH-BMPT'!$D$46,"No ha seleccionado un número de programa"))))))))))))))))))))))))))))))))))))))))))))) -> Gobernanza e influencia local, regional e internacional | L77: 1395 | M77: 7729975 | N77: ENRIQUE PADILLA VEGA | O77: 27590616 | S77: 1254119 | T77: 28844735 | U77: 26169283 | V77: 2017-02-03 | W77: 2017-02-03 | X77: 2018-01-14 | Y77: 344 | AD77: X | AF77: 0.9072464351 | AG77: FALSE
A78: 16 | B78: 2017 | C78: 17-12-6316261 | D78: 5 | E78: =IF(D78=1,'[1]Tipo '!$B$2,IF(D78=2,'[1]Tipo '!$B$3,IF(D78=3,'[1]Tipo '!$B$4,IF(D78=4,'[1]Tipo '!$B$5,IF(D78=5,'[1]Tipo '!$B$6,IF(D78=6,'[1]Tipo '!$B$7,IF(D78=7,'[1]Tipo '!$B$8,IF(D78=8,'[1]Tipo '!$B$9,IF(D78=9,'[1]Tipo '!$B$10,IF(D78=10,'[1]Tipo '!$B$11,IF(D78=11,'[1]Tipo '!$B$12,IF(D78=12,'[1]Tipo '!$B$13,IF(D78=13,'[1]Tipo '!$B$14,IF(D78=14,'[1]Tipo '!$B$15,IF(D78=15,'[1]Tipo '!$B$16,IF(D78=16,'[1]Tipo '!$B$17,IF(D78=17,'[1]Tipo '!$B$18,IF(D78=18,'[1]Tipo '!$B$19,IF(D78=19,'[1]Tipo '!$B$20,"No ha seleccionado un tipo de contrato válido"))))))))))))))))))) -> CONTRATOS DE PRESTACIÓN DE SERVICIOS PROFESIONALES Y DE APOYO A LA GESTIÓN | F78: Contratación directa | G78: Prestación de servicios profesionales y de apoyo a la gestión, o para la ejecución de trabajos artísticos que sólo puedan encomendarse a determinadas personas naturales; | H78: PRESTAR SUS SERVICIOS PROFESIONALES EN LA ADMINISTRACIÓN DEL PUNTO VIVE DIGITAL DE ACCESO A LAS TECNOLOGÍAS DE INFORMACIÓN Y LAS COMUNICACIONES – TIC | I78: Inversión | J78: 45 | K78: =IF(J78=1,'[1]Equivalencia BH-BMPT'!$D$2,IF(J78=2,'[1]Equivalencia BH-BMPT'!$D$3,IF(J78=3,'[1]Equivalencia BH-BMPT'!$D$4,IF(J78=4,'[1]Equivalencia BH-BMPT'!$D$5,IF(J78=5,'[1]Equivalencia BH-BMPT'!$D$6,IF(J78=6,'[1]Equivalencia BH-BMPT'!$D$7,IF(J78=7,'[1]Equivalencia BH-BMPT'!$D$8,IF(J78=8,'[1]Equivalencia BH-BMPT'!$D$9,IF(J78=9,'[1]Equivalencia BH-BMPT'!$D$10,IF(J78=10,'[1]Equivalencia BH-BMPT'!$D$11,IF(J78=11,'[1]Equivalencia BH-BMPT'!$D$12,IF(J78=12,'[1]Equivalencia BH-BMPT'!$D$13,IF(J78=13,'[1]Equivalencia BH-BMPT'!$D$14,IF(J78=14,'[1]Equivalencia BH-BMPT'!$D$15,IF(J78=15,'[1]Equivalencia BH-BMPT'!$D$16,IF(J78=16,'[1]Equivalencia BH-BMPT'!$D$17,IF(J78=17,'[1]Equivalencia BH-BMPT'!$D$18,IF(J78=18,'[1]Equivalencia BH-BMPT'!$D$19,IF(J78=19,'[1]Equivalencia BH-BMPT'!$D$20,IF(J78=20,'[1]Equivalencia BH-BMPT'!$D$21,IF(J78=21,'[1]Equivalencia BH-BMPT'!$D$22,IF(J78=22,'[1]Equivalencia BH-BMPT'!$D$23,IF(J78=23,'[1]Equivalencia BH-BMPT'!#REF!,IF(J78=24,'[1]Equivalencia BH-BMPT'!$D$25,IF(J78=25,'[1]Equivalencia BH-BMPT'!$D$26,IF(J78=26,'[1]Equivalencia BH-BMPT'!$D$27,IF(J78=27,'[1]Equivalencia BH-BMPT'!$D$28,IF(J78=28,'[1]Equivalencia BH-BMPT'!$D$29,IF(J78=29,'[1]Equivalencia BH-BMPT'!$D$30,IF(J78=30,'[1]Equivalencia BH-BMPT'!$D$31,IF(J78=31,'[1]Equivalencia BH-BMPT'!$D$32,IF(J78=32,'[1]Equivalencia BH-BMPT'!$D$33,IF(J78=33,'[1]Equivalencia BH-BMPT'!$D$34,IF(J78=34,'[1]Equivalencia BH-BMPT'!$D$35,IF(J78=35,'[1]Equivalencia BH-BMPT'!$D$36,IF(J78=36,'[1]Equivalencia BH-BMPT'!$D$37,IF(J78=37,'[1]Equivalencia BH-BMPT'!$D$38,IF(J78=38,'[1]Equivalencia BH-BMPT'!#REF!,IF(J78=39,'[1]Equivalencia BH-BMPT'!$D$40,IF(J78=40,'[1]Equivalencia BH-BMPT'!$D$41,IF(J78=41,'[1]Equivalencia BH-BMPT'!$D$42,IF(J78=42,'[1]Equivalencia BH-BMPT'!$D$43,IF(J78=43,'[1]Equivalencia BH-BMPT'!$D$44,IF(J78=44,'[1]Equivalencia BH-BMPT'!$D$45,IF(J78=45,'[1]Equivalencia BH-BMPT'!$D$46,"No ha seleccionado un número de programa"))))))))))))))))))))))))))))))))))))))))))))) -> Gobernanza e influencia local, regional e internacional | L78: 1395 | M78: 11811455 | N78: AMANCIO VALOYES MOSQUERA | O78: 38951458 | S78: 1770521 | T78: 40721979 | U78: 36944871 | V78: 2017-02-03 | W78: 2017-02-03 | X78: 2018-01-14 | Y78: 344 | AD78: X | AF78: 0.9072464528 | AG78: =IF(I78="Funcionamiento",J78=0,J78="") -> FALSE
A79: 17 | B79: 2017 | C79: 17-12-6316568 | D79: 5 | E79: =IF(D79=1,'[1]Tipo '!$B$2,IF(D79=2,'[1]Tipo '!$B$3,IF(D79=3,'[1]Tipo '!$B$4,IF(D79=4,'[1]Tipo '!$B$5,IF(D79=5,'[1]Tipo '!$B$6,IF(D79=6,'[1]Tipo '!$B$7,IF(D79=7,'[1]Tipo '!$B$8,IF(D79=8,'[1]Tipo '!$B$9,IF(D79=9,'[1]Tipo '!$B$10,IF(D79=10,'[1]Tipo '!$B$11,IF(D79=11,'[1]Tipo '!$B$12,IF(D79=12,'[1]Tipo '!$B$13,IF(D79=13,'[1]Tipo '!$B$14,IF(D79=14,'[1]Tipo '!$B$15,IF(D79=15,'[1]Tipo '!$B$16,IF(D79=16,'[1]Tipo '!$B$17,IF(D79=17,'[1]Tipo '!$B$18,IF(D79=18,'[1]Tipo '!$B$19,IF(D79=19,'[1]Tipo '!$B$20,"No ha seleccionado un tipo de contrato válido"))))))))))))))))))) -> CONTRATOS DE PRESTACIÓN DE SERVICIOS PROFESIONALES Y DE APOYO A LA GESTIÓN | F79: Contratación directa | G79: Prestación de servicios profesionales y de apoyo a la gestión, o para la ejecución de trabajos artísticos que sólo puedan encomendarse a determinadas personas naturales; | H79: PRESTACIÓN DE SERVICIOS PROFESIONALES PARA EL APOYO A LA SUPERVISIÓN DE CONTRATOS Y/O CONVENIOS SUSCRITOS POR EL FONDO DE DESARROLLO LOCAL DE LA CANDELARIA | I79: Inversión | J79: 45 | K79: =IF(J79=1,'[1]Equivalencia BH-BMPT'!$D$2,IF(J79=2,'[1]Equivalencia BH-BMPT'!$D$3,IF(J79=3,'[1]Equivalencia BH-BMPT'!$D$4,IF(J79=4,'[1]Equivalencia BH-BMPT'!$D$5,IF(J79=5,'[1]Equivalencia BH-BMPT'!$D$6,IF(J79=6,'[1]Equivalencia BH-BMPT'!$D$7,IF(J79=7,'[1]Equivalencia BH-BMPT'!$D$8,IF(J79=8,'[1]Equivalencia BH-BMPT'!$D$9,IF(J79=9,'[1]Equivalencia BH-BMPT'!$D$10,IF(J79=10,'[1]Equivalencia BH-BMPT'!$D$11,IF(J79=11,'[1]Equivalencia BH-BMPT'!$D$12,IF(J79=12,'[1]Equivalencia BH-BMPT'!$D$13,IF(J79=13,'[1]Equivalencia BH-BMPT'!$D$14,IF(J79=14,'[1]Equivalencia BH-BMPT'!$D$15,IF(J79=15,'[1]Equivalencia BH-BMPT'!$D$16,IF(J79=16,'[1]Equivalencia BH-BMPT'!$D$17,IF(J79=17,'[1]Equivalencia BH-BMPT'!$D$18,IF(J79=18,'[1]Equivalencia BH-BMPT'!$D$19,IF(J79=19,'[1]Equivalencia BH-BMPT'!$D$20,IF(J79=20,'[1]Equivalencia BH-BMPT'!$D$21,IF(J79=21,'[1]Equivalencia BH-BMPT'!$D$22,IF(J79=22,'[1]Equivalencia BH-BMPT'!$D$23,IF(J79=23,'[1]Equivalencia BH-BMPT'!#REF!,IF(J79=24,'[1]Equivalencia BH-BMPT'!$D$25,IF(J79=25,'[1]Equivalencia BH-BMPT'!$D$26,IF(J79=26,'[1]Equivalencia BH-BMPT'!$D$27,IF(J79=27,'[1]Equivalencia BH-BMPT'!$D$28,IF(J79=28,'[1]Equivalencia BH-BMPT'!$D$29,IF(J79=29,'[1]Equivalencia BH-BMPT'!$D$30,IF(J79=30,'[1]Equivalencia BH-BMPT'!$D$31,IF(J79=31,'[1]Equivalencia BH-BMPT'!$D$32,IF(J79=32,'[1]Equivalencia BH-BMPT'!$D$33,IF(J79=33,'[1]Equivalencia BH-BMPT'!$D$34,IF(J79=34,'[1]Equivalencia BH-BMPT'!$D$35,IF(J79=35,'[1]Equivalencia BH-BMPT'!$D$36,IF(J79=36,'[1]Equivalencia BH-BMPT'!$D$37,IF(J79=37,'[1]Equivalencia BH-BMPT'!$D$38,IF(J79=38,'[1]Equivalencia BH-BMPT'!#REF!,IF(J79=39,'[1]Equivalencia BH-BMPT'!$D$40,IF(J79=40,'[1]Equivalencia BH-BMPT'!$D$41,IF(J79=41,'[1]Equivalencia BH-BMPT'!$D$42,IF(J79=42,'[1]Equivalencia BH-BMPT'!$D$43,IF(J79=43,'[1]Equivalencia BH-BMPT'!$D$44,IF(J79=44,'[1]Equivalencia BH-BMPT'!$D$45,IF(J79=45,'[1]Equivalencia BH-BMPT'!$D$46,"No ha seleccionado un número de programa"))))))))))))))))))))))))))))))))))))))))))))) -> Gobernanza e influencia local, regional e internacional | L79: 1395 | M79: 79652815 | N79: SANDRO WILLIAM GONZALEZ | O79: 44631879 | S79: 2028722 | T79: 46660601 | U79: 42332655 | V79: 2017-02-03 | W79: 2017-02-03 | X79: 2018-01-14 | Y79: 344 | AD79: X | AF79: 0.907246244 | AG79: FALSE
A80: 18 | B80: 2017 | C80: 17-12-6318409 | D80: 5 | E80: =IF(D80=1,'[1]Tipo '!$B$2,IF(D80=2,'[1]Tipo '!$B$3,IF(D80=3,'[1]Tipo '!$B$4,IF(D80=4,'[1]Tipo '!$B$5,IF(D80=5,'[1]Tipo '!$B$6,IF(D80=6,'[1]Tipo '!$B$7,IF(D80=7,'[1]Tipo '!$B$8,IF(D80=8,'[1]Tipo '!$B$9,IF(D80=9,'[1]Tipo '!$B$10,IF(D80=10,'[1]Tipo '!$B$11,IF(D80=11,'[1]Tipo '!$B$12,IF(D80=12,'[1]Tipo '!$B$13,IF(D80=13,'[1]Tipo '!$B$14,IF(D80=14,'[1]Tipo '!$B$15,IF(D80=15,'[1]Tipo '!$B$16,IF(D80=16,'[1]Tipo '!$B$17,IF(D80=17,'[1]Tipo '!$B$18,IF(D80=18,'[1]Tipo '!$B$19,IF(D80=19,'[1]Tipo '!$B$20,"No ha seleccionado un tipo de contrato válido"))))))))))))))))))) -> CONTRATOS DE PRESTACIÓN DE SERVICIOS PROFESIONALES Y DE APOYO A LA GESTIÓN | F80: Contratación directa | G80: Prestación de servicios profesionales y de apoyo a la gestión, o para la ejecución de trabajos artísticos que sólo puedan encomendarse a determinadas personas naturales; | H80: PRESTAR LOS SERVICIOS DE APOYO AL ÁREA DE GESTIÓN DE DESARROLLO LOCAL DE LA ALCALDÍA LOCAL DE LA CANDELARIA EN TEMAS CONCERNIENTES AL ALMACÉN | I80: Inversión | J80: 45 | K80: =IF(J80=1,'[1]Equivalencia BH-BMPT'!$D$2,IF(J80=2,'[1]Equivalencia BH-BMPT'!$D$3,IF(J80=3,'[1]Equivalencia BH-BMPT'!$D$4,IF(J80=4,'[1]Equivalencia BH-BMPT'!$D$5,IF(J80=5,'[1]Equivalencia BH-BMPT'!$D$6,IF(J80=6,'[1]Equivalencia BH-BMPT'!$D$7,IF(J80=7,'[1]Equivalencia BH-BMPT'!$D$8,IF(J80=8,'[1]Equivalencia BH-BMPT'!$D$9,IF(J80=9,'[1]Equivalencia BH-BMPT'!$D$10,IF(J80=10,'[1]Equivalencia BH-BMPT'!$D$11,IF(J80=11,'[1]Equivalencia BH-BMPT'!$D$12,IF(J80=12,'[1]Equivalencia BH-BMPT'!$D$13,IF(J80=13,'[1]Equivalencia BH-BMPT'!$D$14,IF(J80=14,'[1]Equivalencia BH-BMPT'!$D$15,IF(J80=15,'[1]Equivalencia BH-BMPT'!$D$16,IF(J80=16,'[1]Equivalencia BH-BMPT'!$D$17,IF(J80=17,'[1]Equivalencia BH-BMPT'!$D$18,IF(J80=18,'[1]Equivalencia BH-BMPT'!$D$19,IF(J80=19,'[1]Equivalencia BH-BMPT'!$D$20,IF(J80=20,'[1]Equivalencia BH-BMPT'!$D$21,IF(J80=21,'[1]Equivalencia BH-BMPT'!$D$22,IF(J80=22,'[1]Equivalencia BH-BMPT'!$D$23,IF(J80=23,'[1]Equivalencia BH-BMPT'!#REF!,IF(J80=24,'[1]Equivalencia BH-BMPT'!$D$25,IF(J80=25,'[1]Equivalencia BH-BMPT'!$D$26,IF(J80=26,'[1]Equivalencia BH-BMPT'!$D$27,IF(J80=27,'[1]Equivalencia BH-BMPT'!$D$28,IF(J80=28,'[1]Equivalencia BH-BMPT'!$D$29,IF(J80=29,'[1]Equivalencia BH-BMPT'!$D$30,IF(J80=30,'[1]Equivalencia BH-BMPT'!$D$31,IF(J80=31,'[1]Equivalencia BH-BMPT'!$D$32,IF(J80=32,'[1]Equivalencia BH-BMPT'!$D$33,IF(J80=33,'[1]Equivalencia BH-BMPT'!$D$34,IF(J80=34,'[1]Equivalencia BH-BMPT'!$D$35,IF(J80=35,'[1]Equivalencia BH-BMPT'!$D$36,IF(J80=36,'[1]Equivalencia BH-BMPT'!$D$37,IF(J80=37,'[1]Equivalencia BH-BMPT'!$D$38,IF(J80=38,'[1]Equivalencia BH-BMPT'!#REF!,IF(J80=39,'[1]Equivalencia BH-BMPT'!$D$40,IF(J80=40,'[1]Equivalencia BH-BMPT'!$D$41,IF(J80=41,'[1]Equivalencia BH-BMPT'!$D$42,IF(J80=42,'[1]Equivalencia BH-BMPT'!$D$43,IF(J80=43,'[1]Equivalencia BH-BMPT'!$D$44,IF(J80=44,'[1]Equivalencia BH-BMPT'!$D$45,IF(J80=45,'[1]Equivalencia BH-BMPT'!$D$46,"No ha seleccionado un número de programa"))))))))))))))))))))))))))))))))))))))))))))) -> Gobernanza e influencia local, regional e internacional | L80: 1395 | M80: 1019049295 | N80: KAROL LIZETH MORENO VALERO | O80: 33271037 | S80: 1512320 | T80: 34783357 | U80: 31557077 | V80: 2017-02-03 | W80: 2017-02-03 | X80: 2018-01-14 | Y80: 344 | AD80: X | AF80: 0.9072464455 | AG80: FALSE
A81: 19 | B81: 2017 | C81: 17-12-6318447 | D81: 5 | E81: =IF(D81=1,'[1]Tipo '!$B$2,IF(D81=2,'[1]Tipo '!$B$3,IF(D81=3,'[1]Tipo '!$B$4,IF(D81=4,'[1]Tipo '!$B$5,IF(D81=5,'[1]Tipo '!$B$6,IF(D81=6,'[1]Tipo '!$B$7,IF(D81=7,'[1]Tipo '!$B$8,IF(D81=8,'[1]Tipo '!$B$9,IF(D81=9,'[1]Tipo '!$B$10,IF(D81=10,'[1]Tipo '!$B$11,IF(D81=11,'[1]Tipo '!$B$12,IF(D81=12,'[1]Tipo '!$B$13,IF(D81=13,'[1]Tipo '!$B$14,IF(D81=14,'[1]Tipo '!$B$15,IF(D81=15,'[1]Tipo '!$B$16,IF(D81=16,'[1]Tipo '!$B$17,IF(D81=17,'[1]Tipo '!$B$18,IF(D81=18,'[1]Tipo '!$B$19,IF(D81=19,'[1]Tipo '!$B$20,"No ha seleccionado un tipo de contrato válido"))))))))))))))))))) -> CONTRATOS DE PRESTACIÓN DE SERVICIOS PROFESIONALES Y DE APOYO A LA GESTIÓN | F81: Contratación directa | G81: Prestación de servicios profesionales y de apoyo a la gestión, o para la ejecución de trabajos artísticos que sólo puedan encomendarse a determinadas personas naturales; | H81: PRESTACIÓN DE SERVICIOS PROFESIONALES PARA EL APOYO A LA SUPERVISIÓN DE CONTRATOS Y/O CONVENIOS SUSCRITOS POR EL FONDO DE DESARROLLO LOCAL DE LA CANDELARIA | I81: Inversión | J81: 45 | K81: =IF(J81=1,'[1]Equivalencia BH-BMPT'!$D$2,IF(J81=2,'[1]Equivalencia BH-BMPT'!$D$3,IF(J81=3,'[1]Equivalencia BH-BMPT'!$D$4,IF(J81=4,'[1]Equivalencia BH-BMPT'!$D$5,IF(J81=5,'[1]Equivalencia BH-BMPT'!$D$6,IF(J81=6,'[1]Equivalencia BH-BMPT'!$D$7,IF(J81=7,'[1]Equivalencia BH-BMPT'!$D$8,IF(J81=8,'[1]Equivalencia BH-BMPT'!$D$9,IF(J81=9,'[1]Equivalencia BH-BMPT'!$D$10,IF(J81=10,'[1]Equivalencia BH-BMPT'!$D$11,IF(J81=11,'[1]Equivalencia BH-BMPT'!$D$12,IF(J81=12,'[1]Equivalencia BH-BMPT'!$D$13,IF(J81=13,'[1]Equivalencia BH-BMPT'!$D$14,IF(J81=14,'[1]Equivalencia BH-BMPT'!$D$15,IF(J81=15,'[1]Equivalencia BH-BMPT'!$D$16,IF(J81=16,'[1]Equivalencia BH-BMPT'!$D$17,IF(J81=17,'[1]Equivalencia BH-BMPT'!$D$18,IF(J81=18,'[1]Equivalencia BH-BMPT'!$D$19,IF(J81=19,'[1]Equivalencia BH-BMPT'!$D$20,IF(J81=20,'[1]Equivalencia BH-BMPT'!$D$21,IF(J81=21,'[1]Equivalencia BH-BMPT'!$D$22,IF(J81=22,'[1]Equivalencia BH-BMPT'!$D$23,IF(J81=23,'[1]Equivalencia BH-BMPT'!#REF!,IF(J81=24,'[1]Equivalencia BH-BMPT'!$D$25,IF(J81=25,'[1]Equivalencia BH-BMPT'!$D$26,IF(J81=26,'[1]Equivalencia BH-BMPT'!$D$27,IF(J81=27,'[1]Equivalencia BH-BMPT'!$D$28,IF(J81=28,'[1]Equivalencia BH-BMPT'!$D$29,IF(J81=29,'[1]Equivalencia BH-BMPT'!$D$30,IF(J81=30,'[1]Equivalencia BH-BMPT'!$D$31,IF(J81=31,'[1]Equivalencia BH-BMPT'!$D$32,IF(J81=32,'[1]Equivalencia BH-BMPT'!$D$33,IF(J81=33,'[1]Equivalencia BH-BMPT'!$D$34,IF(J81=34,'[1]Equivalencia BH-BMPT'!$D$35,IF(J81=35,'[1]Equivalencia BH-BMPT'!$D$36,IF(J81=36,'[1]Equivalencia BH-BMPT'!$D$37,IF(J81=37,'[1]Equivalencia BH-BMPT'!$D$38,IF(J81=38,'[1]Equivalencia BH-BMPT'!#REF!,IF(J81=39,'[1]Equivalencia BH-BMPT'!$D$40,IF(J81=40,'[1]Equivalencia BH-BMPT'!$D$41,IF(J81=41,'[1]Equivalencia BH-BMPT'!$D$42,IF(J81=42,'[1]Equivalencia BH-BMPT'!$D$43,IF(J81=43,'[1]Equivalencia BH-BMPT'!$D$44,IF(J81=44,'[1]Equivalencia BH-BMPT'!$D$45,IF(J81=45,'[1]Equivalencia BH-BMPT'!$D$46,"No ha seleccionado un número de programa"))))))))))))))))))))))))))))))))))))))))))))) -> Gobernanza e influencia local, regional e internacional | L81: 1395 | M81: 52615874 | N81: TULIA HILDA SANCHEZ MUÑOZ | O81: 49500811 | T81: 49500811 | U81: 44250716 | V81: 2017-02-03 | W81: 2017-02-03 | X81: 2018-01-17 | Y81: 329 | AD81: X | AF81: 0.8939392124 | AG81: FALSE
A82: 20 | B82: 2017 | C82: 17-12-6318505 | D82: 5 | E82: =IF(D82=1,'[1]Tipo '!$B$2,IF(D82=2,'[1]Tipo '!$B$3,IF(D82=3,'[1]Tipo '!$B$4,IF(D82=4,'[1]Tipo '!$B$5,IF(D82=5,'[1]Tipo '!$B$6,IF(D82=6,'[1]Tipo '!$B$7,IF(D82=7,'[1]Tipo '!$B$8,IF(D82=8,'[1]Tipo '!$B$9,IF(D82=9,'[1]Tipo '!$B$10,IF(D82=10,'[1]Tipo '!$B$11,IF(D82=11,'[1]Tipo '!$B$12,IF(D82=12,'[1]Tipo '!$B$13,IF(D82=13,'[1]Tipo '!$B$14,IF(D82=14,'[1]Tipo '!$B$15,IF(D82=15,'[1]Tipo '!$B$16,IF(D82=16,'[1]Tipo '!$B$17,IF(D82=17,'[1]Tipo '!$B$18,IF(D82=18,'[1]Tipo '!$B$19,IF(D82=19,'[1]Tipo '!$B$20,"No ha seleccionado un tipo de contrato válido"))))))))))))))))))) -> CONTRATOS DE PRESTACIÓN DE SERVICIOS PROFESIONALES Y DE APOYO A LA GESTIÓN | F82: Contratación directa | G82: Prestación de servicios profesionales y de apoyo a la gestión, o para la ejecución de trabajos artísticos que sólo puedan encomendarse a determinadas personas naturales; | H82: PRESTAR LOS SERVICIOS DE APOYO AL DESPACHO DEL ALCALDE LOCAL DE LA CANDELARIA EN TEMAS ADMINISTRATIVOS, ASISTENCIALES Y DE INTERLOCUCIÓN CON LAS DEMÁS ÁREAS DE LA ALCALDÍA LOCAL | I82: Inversión | J82: 45 | K82: =IF(J82=1,'[1]Equivalencia BH-BMPT'!$D$2,IF(J82=2,'[1]Equivalencia BH-BMPT'!$D$3,IF(J82=3,'[1]Equivalencia BH-BMPT'!$D$4,IF(J82=4,'[1]Equivalencia BH-BMPT'!$D$5,IF(J82=5,'[1]Equivalencia BH-BMPT'!$D$6,IF(J82=6,'[1]Equivalencia BH-BMPT'!$D$7,IF(J82=7,'[1]Equivalencia BH-BMPT'!$D$8,IF(J82=8,'[1]Equivalencia BH-BMPT'!$D$9,IF(J82=9,'[1]Equivalencia BH-BMPT'!$D$10,IF(J82=10,'[1]Equivalencia BH-BMPT'!$D$11,IF(J82=11,'[1]Equivalencia BH-BMPT'!$D$12,IF(J82=12,'[1]Equivalencia BH-BMPT'!$D$13,IF(J82=13,'[1]Equivalencia BH-BMPT'!$D$14,IF(J82=14,'[1]Equivalencia BH-BMPT'!$D$15,IF(J82=15,'[1]Equivalencia BH-BMPT'!$D$16,IF(J82=16,'[1]Equivalencia BH-BMPT'!$D$17,IF(J82=17,'[1]Equivalencia BH-BMPT'!$D$18,IF(J82=18,'[1]Equivalencia BH-BMPT'!$D$19,IF(J82=19,'[1]Equivalencia BH-BMPT'!$D$20,IF(J82=20,'[1]Equivalencia BH-BMPT'!$D$21,IF(J82=21,'[1]Equivalencia BH-BMPT'!$D$22,IF(J82=22,'[1]Equivalencia BH-BMPT'!$D$23,IF(J82=23,'[1]Equivalencia BH-BMPT'!#REF!,IF(J82=24,'[1]Equivalencia BH-BMPT'!$D$25,IF(J82=25,'[1]Equivalencia BH-BMPT'!$D$26,IF(J82=26,'[1]Equivalencia BH-BMPT'!$D$27,IF(J82=27,'[1]Equivalencia BH-BMPT'!$D$28,IF(J82=28,'[1]Equivalencia BH-BMPT'!$D$29,IF(J82=29,'[1]Equivalencia BH-BMPT'!$D$30,IF(J82=30,'[1]Equivalencia BH-BMPT'!$D$31,IF(J82=31,'[1]Equivalencia BH-BMPT'!$D$32,IF(J82=32,'[1]Equivalencia BH-BMPT'!$D$33,IF(J82=33,'[1]Equivalencia BH-BMPT'!$D$34,IF(J82=34,'[1]Equivalencia BH-BMPT'!$D$35,IF(J82=35,'[1]Equivalencia BH-BMPT'!$D$36,IF(J82=36,'[1]Equivalencia BH-BMPT'!$D$37,IF(J82=37,'[1]Equivalencia BH-BMPT'!$D$38,IF(J82=38,'[1]Equivalencia BH-BMPT'!#REF!,IF(J82=39,'[1]Equivalencia BH-BMPT'!$D$40,IF(J82=40,'[1]Equivalencia BH-BMPT'!$D$41,IF(J82=41,'[1]Equivalencia BH-BMPT'!$D$42,IF(J82=42,'[1]Equivalencia BH-BMPT'!$D$43,IF(J82=43,'[1]Equivalencia BH-BMPT'!$D$44,IF(J82=44,'[1]Equivalencia BH-BMPT'!$D$45,IF(J82=45,'[1]Equivalencia BH-BMPT'!$D$46,"No ha seleccionado un número de programa"))))))))))))))))))))))))))))))))))))))))))))) -> Gobernanza e influencia local, regional e internacional | L82: 1395 | M82: 1023938431 | N82: LAURA PAOLA BORDA GOMEZ | O82: 23533172 | S82: 1069690 | T82: 24602862 | U82: 22320854 | V82: 2017-02-03 | W82: 2017-02-03 | X82: 2018-01-14 | Y82: 344 | AD82: X | AF82: 0.9072462383 | AG82: FALSE
A83: 21 | B83: 2017 | C83: 17-12-6318698 | D83: 5 | E83: =IF(D83=1,'[1]Tipo '!$B$2,IF(D83=2,'[1]Tipo '!$B$3,IF(D83=3,'[1]Tipo '!$B$4,IF(D83=4,'[1]Tipo '!$B$5,IF(D83=5,'[1]Tipo '!$B$6,IF(D83=6,'[1]Tipo '!$B$7,IF(D83=7,'[1]Tipo '!$B$8,IF(D83=8,'[1]Tipo '!$B$9,IF(D83=9,'[1]Tipo '!$B$10,IF(D83=10,'[1]Tipo '!$B$11,IF(D83=11,'[1]Tipo '!$B$12,IF(D83=12,'[1]Tipo '!$B$13,IF(D83=13,'[1]Tipo '!$B$14,IF(D83=14,'[1]Tipo '!$B$15,IF(D83=15,'[1]Tipo '!$B$16,IF(D83=16,'[1]Tipo '!$B$17,IF(D83=17,'[1]Tipo '!$B$18,IF(D83=18,'[1]Tipo '!$B$19,IF(D83=19,'[1]Tipo '!$B$20,"No ha seleccionado un tipo de contrato válido"))))))))))))))))))) -> CONTRATOS DE PRESTACIÓN DE SERVICIOS PROFESIONALES Y DE APOYO A LA GESTIÓN | F83: Contratación directa | G83: Prestación de servicios profesionales y de apoyo a la gestión, o para la ejecución de trabajos artísticos que sólo puedan encomendarse a determinadas personas naturales; | H83: PRESTAR SUS SERVICIOS PROFESIONALES DE APOYO JURIDÍCO DE LOS PROCESOS A CARGO DEL ÁREA DE GESTIÓN POLICIVA DE LA ALCALDÍA LOCAL DE LA CANDELARÍA PARA TEMAS DE ESTABLECIMIENTOS DE COMERCIO, PROPIEDAD HORIZONTAL, ACCIONES CONSTITUCIONALES, OBRAS Y DERECHO DE PETICIÓN SEGÚN REPARTO | I83: Inversión | J83: 45 | K83: =IF(J83=1,'[1]Equivalencia BH-BMPT'!$D$2,IF(J83=2,'[1]Equivalencia BH-BMPT'!$D$3,IF(J83=3,'[1]Equivalencia BH-BMPT'!$D$4,IF(J83=4,'[1]Equivalencia BH-BMPT'!$D$5,IF(J83=5,'[1]Equivalencia BH-BMPT'!$D$6,IF(J83=6,'[1]Equivalencia BH-BMPT'!$D$7,IF(J83=7,'[1]Equivalencia BH-BMPT'!$D$8,IF(J83=8,'[1]Equivalencia BH-BMPT'!$D$9,IF(J83=9,'[1]Equivalencia BH-BMPT'!$D$10,IF(J83=10,'[1]Equivalencia BH-BMPT'!$D$11,IF(J83=11,'[1]Equivalencia BH-BMPT'!$D$12,IF(J83=12,'[1]Equivalencia BH-BMPT'!$D$13,IF(J83=13,'[1]Equivalencia BH-BMPT'!$D$14,IF(J83=14,'[1]Equivalencia BH-BMPT'!$D$15,IF(J83=15,'[1]Equivalencia BH-BMPT'!$D$16,IF(J83=16,'[1]Equivalencia BH-BMPT'!$D$17,IF(J83=17,'[1]Equivalencia BH-BMPT'!$D$18,IF(J83=18,'[1]Equivalencia BH-BMPT'!$D$19,IF(J83=19,'[1]Equivalencia BH-BMPT'!$D$20,IF(J83=20,'[1]Equivalencia BH-BMPT'!$D$21,IF(J83=21,'[1]Equivalencia BH-BMPT'!$D$22,IF(J83=22,'[1]Equivalencia BH-BMPT'!$D$23,IF(J83=23,'[1]Equivalencia BH-BMPT'!#REF!,IF(J83=24,'[1]Equivalencia BH-BMPT'!$D$25,IF(J83=25,'[1]Equivalencia BH-BMPT'!$D$26,IF(J83=26,'[1]Equivalencia BH-BMPT'!$D$27,IF(J83=27,'[1]Equivalencia BH-BMPT'!$D$28,IF(J83=28,'[1]Equivalencia BH-BMPT'!$D$29,IF(J83=29,'[1]Equivalencia BH-BMPT'!$D$30,IF(J83=30,'[1]Equivalencia BH-BMPT'!$D$31,IF(J83=31,'[1]Equivalencia BH-BMPT'!$D$32,IF(J83=32,'[1]Equivalencia BH-BMPT'!$D$33,IF(J83=33,'[1]Equivalencia BH-BMPT'!$D$34,IF(J83=34,'[1]Equivalencia BH-BMPT'!$D$35,IF(J83=35,'[1]Equivalencia BH-BMPT'!$D$36,IF(J83=36,'[1]Equivalencia BH-BMPT'!$D$37,IF(J83=37,'[1]Equivalencia BH-BMPT'!$D$38,IF(J83=38,'[1]Equivalencia BH-BMPT'!#REF!,IF(J83=39,'[1]Equivalencia BH-BMPT'!$D$40,IF(J83=40,'[1]Equivalencia BH-BMPT'!$D$41,IF(J83=41,'[1]Equivalencia BH-BMPT'!$D$42,IF(J83=42,'[1]Equivalencia BH-BMPT'!$D$43,IF(J83=43,'[1]Equivalencia BH-BMPT'!$D$44,IF(J83=44,'[1]Equivalencia BH-BMPT'!$D$45,IF(J83=45,'[1]Equivalencia BH-BMPT'!$D$46,"No ha seleccionado un número de programa"))))))))))))))))))))))))))))))))))))))))))))) -> Gobernanza e influencia local, regional e internacional | L83: 1395 | M83: 93238085 | N83: Gadiel Fernando Carrillo Aldana | O83: 49500811 | S83: 2250037 | T83: 51750848 | U83: 46950772 | V83: 2017-02-03 | W83: 2017-02-03 | X83: 2018-01-14 | Y83: 344 | AD83: X | AF83: 0.9072464281 | AG83: FALSE
A84: 22 | B84: 2017 | C84: 17-12-6318831 | D84: 5 | E84: =IF(D84=1,'[1]Tipo '!$B$2,IF(D84=2,'[1]Tipo '!$B$3,IF(D84=3,'[1]Tipo '!$B$4,IF(D84=4,'[1]Tipo '!$B$5,IF(D84=5,'[1]Tipo '!$B$6,IF(D84=6,'[1]Tipo '!$B$7,IF(D84=7,'[1]Tipo '!$B$8,IF(D84=8,'[1]Tipo '!$B$9,IF(D84=9,'[1]Tipo '!$B$10,IF(D84=10,'[1]Tipo '!$B$11,IF(D84=11,'[1]Tipo '!$B$12,IF(D84=12,'[1]Tipo '!$B$13,IF(D84=13,'[1]Tipo '!$B$14,IF(D84=14,'[1]Tipo '!$B$15,IF(D84=15,'[1]Tipo '!$B$16,IF(D84=16,'[1]Tipo '!$B$17,IF(D84=17,'[1]Tipo '!$B$18,IF(D84=18,'[1]Tipo '!$B$19,IF(D84=19,'[1]Tipo '!$B$20,"No ha seleccionado un tipo de contrato válido"))))))))))))))))))) -> CONTRATOS DE PRESTACIÓN DE SERVICIOS PROFESIONALES Y DE APOYO A LA GESTIÓN | F84: Contratación directa | G84: Prestación de servicios profesionales y de apoyo a la gestión, o para la ejecución de trabajos artísticos que sólo puedan encomendarse a determinadas personas naturales; | H84: Prestar los servicios administrativos y asistenciales al área de gestión policiva de la alcaldía local de la candelaria en los temas concernientes a establecimientos de comercio, propiedad horizontal, acciones constitucionales, obras y derecho de petición | I84: Inversión | J84: 45 | K84: =IF(J84=1,'[1]Equivalencia BH-BMPT'!$D$2,IF(J84=2,'[1]Equivalencia BH-BMPT'!$D$3,IF(J84=3,'[1]Equivalencia BH-BMPT'!$D$4,IF(J84=4,'[1]Equivalencia BH-BMPT'!$D$5,IF(J84=5,'[1]Equivalencia BH-BMPT'!$D$6,IF(J84=6,'[1]Equivalencia BH-BMPT'!$D$7,IF(J84=7,'[1]Equivalencia BH-BMPT'!$D$8,IF(J84=8,'[1]Equivalencia BH-BMPT'!$D$9,IF(J84=9,'[1]Equivalencia BH-BMPT'!$D$10,IF(J84=10,'[1]Equivalencia BH-BMPT'!$D$11,IF(J84=11,'[1]Equivalencia BH-BMPT'!$D$12,IF(J84=12,'[1]Equivalencia BH-BMPT'!$D$13,IF(J84=13,'[1]Equivalencia BH-BMPT'!$D$14,IF(J84=14,'[1]Equivalencia BH-BMPT'!$D$15,IF(J84=15,'[1]Equivalencia BH-BMPT'!$D$16,IF(J84=16,'[1]Equivalencia BH-BMPT'!$D$17,IF(J84=17,'[1]Equivalencia BH-BMPT'!$D$18,IF(J84=18,'[1]Equivalencia BH-BMPT'!$D$19,IF(J84=19,'[1]Equivalencia BH-BMPT'!$D$20,IF(J84=20,'[1]Equivalencia BH-BMPT'!$D$21,IF(J84=21,'[1]Equivalencia BH-BMPT'!$D$22,IF(J84=22,'[1]Equivalencia BH-BMPT'!$D$23,IF(J84=23,'[1]Equivalencia BH-BMPT'!#REF!,IF(J84=24,'[1]Equivalencia BH-BMPT'!$D$25,IF(J84=25,'[1]Equivalencia BH-BMPT'!$D$26,IF(J84=26,'[1]Equivalencia BH-BMPT'!$D$27,IF(J84=27,'[1]Equivalencia BH-BMPT'!$D$28,IF(J84=28,'[1]Equivalencia BH-BMPT'!$D$29,IF(J84=29,'[1]Equivalencia BH-BMPT'!$D$30,IF(J84=30,'[1]Equivalencia BH-BMPT'!$D$31,IF(J84=31,'[1]Equivalencia BH-BMPT'!$D$32,IF(J84=32,'[1]Equivalencia BH-BMPT'!$D$33,IF(J84=33,'[1]Equivalencia BH-BMPT'!$D$34,IF(J84=34,'[1]Equivalencia BH-BMPT'!$D$35,IF(J84=35,'[1]Equivalencia BH-BMPT'!$D$36,IF(J84=36,'[1]Equivalencia BH-BMPT'!$D$37,IF(J84=37,'[1]Equivalencia BH-BMPT'!$D$38,IF(J84=38,'[1]Equivalencia BH-BMPT'!#REF!,IF(J84=39,'[1]Equivalencia BH-BMPT'!$D$40,IF(J84=40,'[1]Equivalencia BH-BMPT'!$D$41,IF(J84=41,'[1]Equivalencia BH-BMPT'!$D$42,IF(J84=42,'[1]Equivalencia BH-BMPT'!$D$43,IF(J84=43,'[1]Equivalencia BH-BMPT'!$D$44,IF(J84=44,'[1]Equivalencia BH-BMPT'!$D$45,IF(J84=45,'[1]Equivalencia BH-BMPT'!$D$46,"No ha seleccionado un número de programa"))))))))))))))))))))))))))))))))))))))))))))) -> Gobernanza e influencia local, regional e internacional | L84: 1395 | M84: 80442207 | N84: Leonardo Guerra Ramirez | O84: 27590616 | S84: 2090198 | T84: 29680814 | U84: 26169283 | V84: 2017-02-03 | W84: 2017-02-03 | X84: 2018-01-24 | Y84: 354 | AC84: X | AF84: 0.8816902057 | AG84: FALSE
A85: 23 | B85: 2017 | C85: 17-12-6319029 | D85: 5 | E85: =IF(D85=1,'[1]Tipo '!$B$2,IF(D85=2,'[1]Tipo '!$B$3,IF(D85=3,'[1]Tipo '!$B$4,IF(D85=4,'[1]Tipo '!$B$5,IF(D85=5,'[1]Tipo '!$B$6,IF(D85=6,'[1]Tipo '!$B$7,IF(D85=7,'[1]Tipo '!$B$8,IF(D85=8,'[1]Tipo '!$B$9,IF(D85=9,'[1]Tipo '!$B$10,IF(D85=10,'[1]Tipo '!$B$11,IF(D85=11,'[1]Tipo '!$B$12,IF(D85=12,'[1]Tipo '!$B$13,IF(D85=13,'[1]Tipo '!$B$14,IF(D85=14,'[1]Tipo '!$B$15,IF(D85=15,'[1]Tipo '!$B$16,IF(D85=16,'[1]Tipo '!$B$17,IF(D85=17,'[1]Tipo '!$B$18,IF(D85=18,'[1]Tipo '!$B$19,IF(D85=19,'[1]Tipo '!$B$20,"No ha seleccionado un tipo de contrato válido"))))))))))))))))))) -> CONTRATOS DE PRESTACIÓN DE SERVICIOS PROFESIONALES Y DE APOYO A LA GESTIÓN | F85: Contratación directa | G85: Prestación de servicios profesionales y de apoyo a la gestión, o para la ejecución de trabajos artísticos que sólo puedan encomendarse a determinadas personas naturales; | H85: PRESTAR LOS SERVICIOS ADMINISTRATIVOS Y ASISTENCIALES AL ÁREA DE GESTIÓN POLICIVA DE LA ALCALDÍA LOCAL DE LA CANDELARIA EN LOS TEMAS CONCERNIENTES A ESTABLECIMIENTOS DE COMERCIO, PROPIEDAD HORIZONTAL, ACCIONES CONSTITUCIONALES, OBRAS Y DERECHO DE PETICIÓN”, SEGÚN LOS ESTUDIOS PREVIOS Y LA PROPUESTA PRESENTADA QUE FORMAN PARTE INTEGRAL DEL PRESENTE CONTRATO | I85: Inversión | J85: 45 | K85: =IF(J85=1,'[1]Equivalencia BH-BMPT'!$D$2,IF(J85=2,'[1]Equivalencia BH-BMPT'!$D$3,IF(J85=3,'[1]Equivalencia BH-BMPT'!$D$4,IF(J85=4,'[1]Equivalencia BH-BMPT'!$D$5,IF(J85=5,'[1]Equivalencia BH-BMPT'!$D$6,IF(J85=6,'[1]Equivalencia BH-BMPT'!$D$7,IF(J85=7,'[1]Equivalencia BH-BMPT'!$D$8,IF(J85=8,'[1]Equivalencia BH-BMPT'!$D$9,IF(J85=9,'[1]Equivalencia BH-BMPT'!$D$10,IF(J85=10,'[1]Equivalencia BH-BMPT'!$D$11,IF(J85=11,'[1]Equivalencia BH-BMPT'!$D$12,IF(J85=12,'[1]Equivalencia BH-BMPT'!$D$13,IF(J85=13,'[1]Equivalencia BH-BMPT'!$D$14,IF(J85=14,'[1]Equivalencia BH-BMPT'!$D$15,IF(J85=15,'[1]Equivalencia BH-BMPT'!$D$16,IF(J85=16,'[1]Equivalencia BH-BMPT'!$D$17,IF(J85=17,'[1]Equivalencia BH-BMPT'!$D$18,IF(J85=18,'[1]Equivalencia BH-BMPT'!$D$19,IF(J85=19,'[1]Equivalencia BH-BMPT'!$D$20,IF(J85=20,'[1]Equivalencia BH-BMPT'!$D$21,IF(J85=21,'[1]Equivalencia BH-BMPT'!$D$22,IF(J85=22,'[1]Equivalencia BH-BMPT'!$D$23,IF(J85=23,'[1]Equivalencia BH-BMPT'!#REF!,IF(J85=24,'[1]Equivalencia BH-BMPT'!$D$25,IF(J85=25,'[1]Equivalencia BH-BMPT'!$D$26,IF(J85=26,'[1]Equivalencia BH-BMPT'!$D$27,IF(J85=27,'[1]Equivalencia BH-BMPT'!$D$28,IF(J85=28,'[1]Equivalencia BH-BMPT'!$D$29,IF(J85=29,'[1]Equivalencia BH-BMPT'!$D$30,IF(J85=30,'[1]Equivalencia BH-BMPT'!$D$31,IF(J85=31,'[1]Equivalencia BH-BMPT'!$D$32,IF(J85=32,'[1]Equivalencia BH-BMPT'!$D$33,IF(J85=33,'[1]Equivalencia BH-BMPT'!$D$34,IF(J85=34,'[1]Equivalencia BH-BMPT'!$D$35,IF(J85=35,'[1]Equivalencia BH-BMPT'!$D$36,IF(J85=36,'[1]Equivalencia BH-BMPT'!$D$37,IF(J85=37,'[1]Equivalencia BH-BMPT'!$D$38,IF(J85=38,'[1]Equivalencia BH-BMPT'!#REF!,IF(J85=39,'[1]Equivalencia BH-BMPT'!$D$40,IF(J85=40,'[1]Equivalencia BH-BMPT'!$D$41,IF(J85=41,'[1]Equivalencia BH-BMPT'!$D$42,IF(J85=42,'[1]Equivalencia BH-BMPT'!$D$43,IF(J85=43,'[1]Equivalencia BH-BMPT'!$D$44,IF(J85=44,'[1]Equivalencia BH-BMPT'!$D$45,IF(J85=45,'[1]Equivalencia BH-BMPT'!$D$46,"No ha seleccionado un número de programa"))))))))))))))))))))))))))))))))))))))))))))) -> Gobernanza e influencia local, regional e internacional | L85: 1395 | M85: 49729700 | N85: Nereida Hernández Flórez | O85: 26336497 | T85: 26336497 | U85: 26169283 | V85: 2017-02-03 | W85: 2017-02-03 | X85: 2017-12-30 | Y85: 329 | AD85: X | AF85: 0.993650864 | AG85: FALSE
A86: 24 | B86: 2017 | C86: 17-12-6329462 | D86: 5 | E86: =IF(D86=1,'[1]Tipo '!$B$2,IF(D86=2,'[1]Tipo '!$B$3,IF(D86=3,'[1]Tipo '!$B$4,IF(D86=4,'[1]Tipo '!$B$5,IF(D86=5,'[1]Tipo '!$B$6,IF(D86=6,'[1]Tipo '!$B$7,IF(D86=7,'[1]Tipo '!$B$8,IF(D86=8,'[1]Tipo '!$B$9,IF(D86=9,'[1]Tipo '!$B$10,IF(D86=10,'[1]Tipo '!$B$11,IF(D86=11,'[1]Tipo '!$B$12,IF(D86=12,'[1]Tipo '!$B$13,IF(D86=13,'[1]Tipo '!$B$14,IF(D86=14,'[1]Tipo '!$B$15,IF(D86=15,'[1]Tipo '!$B$16,IF(D86=16,'[1]Tipo '!$B$17,IF(D86=17,'[1]Tipo '!$B$18,IF(D86=18,'[1]Tipo '!$B$19,IF(D86=19,'[1]Tipo '!$B$20,"No ha seleccionado un tipo de contrato válido"))))))))))))))))))) -> CONTRATOS DE PRESTACIÓN DE SERVICIOS PROFESIONALES Y DE APOYO A LA GESTIÓN | F86: Contratación directa | G86: Prestación de servicios profesionales y de apoyo a la gestión, o para la ejecución de trabajos artísticos que sólo puedan encomendarse a determinadas personas naturales; | H86: “PRESTAR SUS SERVICIOS PROFESIONALES DE APOYO JURIDÍCO DE LOS PROCESOS A CARGO DEL ÁREA DE GESTIÓN POLICIVA DE LA ALCALDÍA LOCAL DE LA CANDELARÍA PARA TEMAS DE ESTABLECIMIENTOS DE COMERCIO, PROPIEDAD HORIZONTAL, ACCIONES CONSTITUCIONALES, OBRAS Y DERECHO DE PETICIÓN SEGUN REPARTO” | I86: Inversión | J86: 45 | K86: =IF(J86=1,'[1]Equivalencia BH-BMPT'!$D$2,IF(J86=2,'[1]Equivalencia BH-BMPT'!$D$3,IF(J86=3,'[1]Equivalencia BH-BMPT'!$D$4,IF(J86=4,'[1]Equivalencia BH-BMPT'!$D$5,IF(J86=5,'[1]Equivalencia BH-BMPT'!$D$6,IF(J86=6,'[1]Equivalencia BH-BMPT'!$D$7,IF(J86=7,'[1]Equivalencia BH-BMPT'!$D$8,IF(J86=8,'[1]Equivalencia BH-BMPT'!$D$9,IF(J86=9,'[1]Equivalencia BH-BMPT'!$D$10,IF(J86=10,'[1]Equivalencia BH-BMPT'!$D$11,IF(J86=11,'[1]Equivalencia BH-BMPT'!$D$12,IF(J86=12,'[1]Equivalencia BH-BMPT'!$D$13,IF(J86=13,'[1]Equivalencia BH-BMPT'!$D$14,IF(J86=14,'[1]Equivalencia BH-BMPT'!$D$15,IF(J86=15,'[1]Equivalencia BH-BMPT'!$D$16,IF(J86=16,'[1]Equivalencia BH-BMPT'!$D$17,IF(J86=17,'[1]Equivalencia BH-BMPT'!$D$18,IF(J86=18,'[1]Equivalencia BH-BMPT'!$D$19,IF(J86=19,'[1]Equivalencia BH-BMPT'!$D$20,IF(J86=20,'[1]Equivalencia BH-BMPT'!$D$21,IF(J86=21,'[1]Equivalencia BH-BMPT'!$D$22,IF(J86=22,'[1]Equivalencia BH-BMPT'!$D$23,IF(J86=23,'[1]Equivalencia BH-BMPT'!#REF!,IF(J86=24,'[1]Equivalencia BH-BMPT'!$D$25,IF(J86=25,'[1]Equivalencia BH-BMPT'!$D$26,IF(J86=26,'[1]Equivalencia BH-BMPT'!$D$27,IF(J86=27,'[1]Equivalencia BH-BMPT'!$D$28,IF(J86=28,'[1]Equivalencia BH-BMPT'!$D$29,IF(J86=29,'[1]Equivalencia BH-BMPT'!$D$30,IF(J86=30,'[1]Equivalencia BH-BMPT'!$D$31,IF(J86=31,'[1]Equivalencia BH-BMPT'!$D$32,IF(J86=32,'[1]Equivalencia BH-BMPT'!$D$33,IF(J86=33,'[1]Equivalencia BH-BMPT'!$D$34,IF(J86=34,'[1]Equivalencia BH-BMPT'!$D$35,IF(J86=35,'[1]Equivalencia BH-BMPT'!$D$36,IF(J86=36,'[1]Equivalencia BH-BMPT'!$D$37,IF(J86=37,'[1]Equivalencia BH-BMPT'!$D$38,IF(J86=38,'[1]Equivalencia BH-BMPT'!#REF!,IF(J86=39,'[1]Equivalencia BH-BMPT'!$D$40,IF(J86=40,'[1]Equivalencia BH-BMPT'!$D$41,IF(J86=41,'[1]Equivalencia BH-BMPT'!$D$42,IF(J86=42,'[1]Equivalencia BH-BMPT'!$D$43,IF(J86=43,'[1]Equivalencia BH-BMPT'!$D$44,IF(J86=44,'[1]Equivalencia BH-BMPT'!$D$45,IF(J86=45,'[1]Equivalencia BH-BMPT'!$D$46,"No ha seleccionado un número de programa"))))))))))))))))))))))))))))))))))))))))))))) -> Gobernanza e influencia local, regional e internacional | L86: 1395 | M86: 17344074 | N86: JOSE JAVIER MESA CESPEDES EL | O86: 49500811 | S86: 2250037 | T86: 51750848 | U86: 46950727 | V86: 2017-02-03 | W86: 2017-02-03 | X86: 2018-01-14 | Y86: 344 | AD86: X | AF86: 0.9072455586 | AG86: FALSE
A87: 25 | B87: 2017 | C87: 17-12-6329550 | D87: 5 | E87: =IF(D87=1,'[1]Tipo '!$B$2,IF(D87=2,'[1]Tipo '!$B$3,IF(D87=3,'[1]Tipo '!$B$4,IF(D87=4,'[1]Tipo '!$B$5,IF(D87=5,'[1]Tipo '!$B$6,IF(D87=6,'[1]Tipo '!$B$7,IF(D87=7,'[1]Tipo '!$B$8,IF(D87=8,'[1]Tipo '!$B$9,IF(D87=9,'[1]Tipo '!$B$10,IF(D87=10,'[1]Tipo '!$B$11,IF(D87=11,'[1]Tipo '!$B$12,IF(D87=12,'[1]Tipo '!$B$13,IF(D87=13,'[1]Tipo '!$B$14,IF(D87=14,'[1]Tipo '!$B$15,IF(D87=15,'[1]Tipo '!$B$16,IF(D87=16,'[1]Tipo '!$B$17,IF(D87=17,'[1]Tipo '!$B$18,IF(D87=18,'[1]Tipo '!$B$19,IF(D87=19,'[1]Tipo '!$B$20,"No ha seleccionado un tipo de contrato válido"))))))))))))))))))) -> CONTRATOS DE PRESTACIÓN DE SERVICIOS PROFESIONALES Y DE APOYO A LA GESTIÓN | F87: Contratación directa | G87: Prestación de servicios profesionales y de apoyo a la gestión, o para la ejecución de trabajos artísticos que sólo puedan encomendarse a determinadas personas naturales; | H87: PRESTAR SUS SERVICIOS PROFESIONALES ESPECIALIZADOS AL ÁREA DE GESTIÓN DE DESARROLLO LOCAL APOYANDO JURIDICAMENTE LOS TEMAS DE COMPETENCIA DE LA ALCALDÍA LOCAL Y EL FONDO DE DESARROLLO LOCAL DE LA CANDELARIA | I87: Inversión | J87: 45 | K87: =IF(J87=1,'[1]Equivalencia BH-BMPT'!$D$2,IF(J87=2,'[1]Equivalencia BH-BMPT'!$D$3,IF(J87=3,'[1]Equivalencia BH-BMPT'!$D$4,IF(J87=4,'[1]Equivalencia BH-BMPT'!$D$5,IF(J87=5,'[1]Equivalencia BH-BMPT'!$D$6,IF(J87=6,'[1]Equivalencia BH-BMPT'!$D$7,IF(J87=7,'[1]Equivalencia BH-BMPT'!$D$8,IF(J87=8,'[1]Equivalencia BH-BMPT'!$D$9,IF(J87=9,'[1]Equivalencia BH-BMPT'!$D$10,IF(J87=10,'[1]Equivalencia BH-BMPT'!$D$11,IF(J87=11,'[1]Equivalencia BH-BMPT'!$D$12,IF(J87=12,'[1]Equivalencia BH-BMPT'!$D$13,IF(J87=13,'[1]Equivalencia BH-BMPT'!$D$14,IF(J87=14,'[1]Equivalencia BH-BMPT'!$D$15,IF(J87=15,'[1]Equivalencia BH-BMPT'!$D$16,IF(J87=16,'[1]Equivalencia BH-BMPT'!$D$17,IF(J87=17,'[1]Equivalencia BH-BMPT'!$D$18,IF(J87=18,'[1]Equivalencia BH-BMPT'!$D$19,IF(J87=19,'[1]Equivalencia BH-BMPT'!$D$20,IF(J87=20,'[1]Equivalencia BH-BMPT'!$D$21,IF(J87=21,'[1]Equivalencia BH-BMPT'!$D$22,IF(J87=22,'[1]Equivalencia BH-BMPT'!$D$23,IF(J87=23,'[1]Equivalencia BH-BMPT'!#REF!,IF(J87=24,'[1]Equivalencia BH-BMPT'!$D$25,IF(J87=25,'[1]Equivalencia BH-BMPT'!$D$26,IF(J87=26,'[1]Equivalencia BH-BMPT'!$D$27,IF(J87=27,'[1]Equivalencia BH-BMPT'!$D$28,IF(J87=28,'[1]Equivalencia BH-BMPT'!$D$29,IF(J87=29,'[1]Equivalencia BH-BMPT'!$D$30,IF(J87=30,'[1]Equivalencia BH-BMPT'!$D$31,IF(J87=31,'[1]Equivalencia BH-BMPT'!$D$32,IF(J87=32,'[1]Equivalencia BH-BMPT'!$D$33,IF(J87=33,'[1]Equivalencia BH-BMPT'!$D$34,IF(J87=34,'[1]Equivalencia BH-BMPT'!$D$35,IF(J87=35,'[1]Equivalencia BH-BMPT'!$D$36,IF(J87=36,'[1]Equivalencia BH-BMPT'!$D$37,IF(J87=37,'[1]Equivalencia BH-BMPT'!$D$38,IF(J87=38,'[1]Equivalencia BH-BMPT'!#REF!,IF(J87=39,'[1]Equivalencia BH-BMPT'!$D$40,IF(J87=40,'[1]Equivalencia BH-BMPT'!$D$41,IF(J87=41,'[1]Equivalencia BH-BMPT'!$D$42,IF(J87=42,'[1]Equivalencia BH-BMPT'!$D$43,IF(J87=43,'[1]Equivalencia BH-BMPT'!$D$44,IF(J87=44,'[1]Equivalencia BH-BMPT'!$D$45,IF(J87=45,'[1]Equivalencia BH-BMPT'!$D$46,"No ha seleccionado un número de programa"))))))))))))))))))))))))))))))))))))))))))))) -> Gobernanza e influencia local, regional e internacional | L87: 1395 | M87: 79341582 | N87: Ricardo Ayerbe Pino | O87: 77902915 | S87: 3541042 | T87: 81443957 | U87: 73889733 | V87: 2017-02-03 | W87: 2017-02-03 | X87: 2018-01-14 | Y87: 344 | AD87: X | AF87: 0.9072463535 | AG87: FALSE
A88: 26 | B88: 2017 | C88: 17-12-6329610 | D88: 5 | E88: =IF(D88=1,'[1]Tipo '!$B$2,IF(D88=2,'[1]Tipo '!$B$3,IF(D88=3,'[1]Tipo '!$B$4,IF(D88=4,'[1]Tipo '!$B$5,IF(D88=5,'[1]Tipo '!$B$6,IF(D88=6,'[1]Tipo '!$B$7,IF(D88=7,'[1]Tipo '!$B$8,IF(D88=8,'[1]Tipo '!$B$9,IF(D88=9,'[1]Tipo '!$B$10,IF(D88=10,'[1]Tipo '!$B$11,IF(D88=11,'[1]Tipo '!$B$12,IF(D88=12,'[1]Tipo '!$B$13,IF(D88=13,'[1]Tipo '!$B$14,IF(D88=14,'[1]Tipo '!$B$15,IF(D88=15,'[1]Tipo '!$B$16,IF(D88=16,'[1]Tipo '!$B$17,IF(D88=17,'[1]Tipo '!$B$18,IF(D88=18,'[1]Tipo '!$B$19,IF(D88=19,'[1]Tipo '!$B$20,"No ha seleccionado un tipo de contrato válido"))))))))))))))))))) -> CONTRATOS DE PRESTACIÓN DE SERVICIOS PROFESIONALES Y DE APOYO A LA GESTIÓN | F88: Contratación directa | G88: Prestación de servicios profesionales y de apoyo a la gestión, o para la ejecución de trabajos artísticos que sólo puedan encomendarse a determinadas personas naturales; | H88: PRESTAR SERVICIOS PROFESIONALES PARA LA ESTRUCTURACIÓN DE LOS PROCESOS PRE-CONTRACTUALES, CONTRACTUALES, POS- CONTRACTUALES Y DEMÁS PROCEDIMIENTOS JURÍDICOS RELACIONADOS DEL FONDO DE DESARROLLO LOCAL DE LA CANDELARIA” | I88: Inversión | J88: 45 | K88: =IF(J88=1,'[1]Equivalencia BH-BMPT'!$D$2,IF(J88=2,'[1]Equivalencia BH-BMPT'!$D$3,IF(J88=3,'[1]Equivalencia BH-BMPT'!$D$4,IF(J88=4,'[1]Equivalencia BH-BMPT'!$D$5,IF(J88=5,'[1]Equivalencia BH-BMPT'!$D$6,IF(J88=6,'[1]Equivalencia BH-BMPT'!$D$7,IF(J88=7,'[1]Equivalencia BH-BMPT'!$D$8,IF(J88=8,'[1]Equivalencia BH-BMPT'!$D$9,IF(J88=9,'[1]Equivalencia BH-BMPT'!$D$10,IF(J88=10,'[1]Equivalencia BH-BMPT'!$D$11,IF(J88=11,'[1]Equivalencia BH-BMPT'!$D$12,IF(J88=12,'[1]Equivalencia BH-BMPT'!$D$13,IF(J88=13,'[1]Equivalencia BH-BMPT'!$D$14,IF(J88=14,'[1]Equivalencia BH-BMPT'!$D$15,IF(J88=15,'[1]Equivalencia BH-BMPT'!$D$16,IF(J88=16,'[1]Equivalencia BH-BMPT'!$D$17,IF(J88=17,'[1]Equivalencia BH-BMPT'!$D$18,IF(J88=18,'[1]Equivalencia BH-BMPT'!$D$19,IF(J88=19,'[1]Equivalencia BH-BMPT'!$D$20,IF(J88=20,'[1]Equivalencia BH-BMPT'!$D$21,IF(J88=21,'[1]Equivalencia BH-BMPT'!$D$22,IF(J88=22,'[1]Equivalencia BH-BMPT'!$D$23,IF(J88=23,'[1]Equivalencia BH-BMPT'!#REF!,IF(J88=24,'[1]Equivalencia BH-BMPT'!$D$25,IF(J88=25,'[1]Equivalencia BH-BMPT'!$D$26,IF(J88=26,'[1]Equivalencia BH-BMPT'!$D$27,IF(J88=27,'[1]Equivalencia BH-BMPT'!$D$28,IF(J88=28,'[1]Equivalencia BH-BMPT'!$D$29,IF(J88=29,'[1]Equivalencia BH-BMPT'!$D$30,IF(J88=30,'[1]Equivalencia BH-BMPT'!$D$31,IF(J88=31,'[1]Equivalencia BH-BMPT'!$D$32,IF(J88=32,'[1]Equivalencia BH-BMPT'!$D$33,IF(J88=33,'[1]Equivalencia BH-BMPT'!$D$34,IF(J88=34,'[1]Equivalencia BH-BMPT'!$D$35,IF(J88=35,'[1]Equivalencia BH-BMPT'!$D$36,IF(J88=36,'[1]Equivalencia BH-BMPT'!$D$37,IF(J88=37,'[1]Equivalencia BH-BMPT'!$D$38,IF(J88=38,'[1]Equivalencia BH-BMPT'!#REF!,IF(J88=39,'[1]Equivalencia BH-BMPT'!$D$40,IF(J88=40,'[1]Equivalencia BH-BMPT'!$D$41,IF(J88=41,'[1]Equivalencia BH-BMPT'!$D$42,IF(J88=42,'[1]Equivalencia BH-BMPT'!$D$43,IF(J88=43,'[1]Equivalencia BH-BMPT'!$D$44,IF(J88=44,'[1]Equivalencia BH-BMPT'!$D$45,IF(J88=45,'[1]Equivalencia BH-BMPT'!$D$46,"No ha seleccionado un número de programa"))))))))))))))))))))))))))))))))))))))))))))) -> Gobernanza e influencia local, regional e internacional | L88: 1395 | M88: 52966422 | N88: JHOANA ANDREA SALOMON CASTRO | O88: 49500811 | S88: 1800029 | T88: 51300840 | U88: 44250727 | V88: 2017-02-03 | W88: 2017-02-07 | X88: 2018-01-25 | Y88: 351 | AC88: X | AF88: 0.862573147 | AG88: FALSE
A89: 27 | B89: 2017 | C89: 17-12-6329675 | D89: 5 | E89: =IF(D89=1,'[1]Tipo '!$B$2,IF(D89=2,'[1]Tipo '!$B$3,IF(D89=3,'[1]Tipo '!$B$4,IF(D89=4,'[1]Tipo '!$B$5,IF(D89=5,'[1]Tipo '!$B$6,IF(D89=6,'[1]Tipo '!$B$7,IF(D89=7,'[1]Tipo '!$B$8,IF(D89=8,'[1]Tipo '!$B$9,IF(D89=9,'[1]Tipo '!$B$10,IF(D89=10,'[1]Tipo '!$B$11,IF(D89=11,'[1]Tipo '!$B$12,IF(D89=12,'[1]Tipo '!$B$13,IF(D89=13,'[1]Tipo '!$B$14,IF(D89=14,'[1]Tipo '!$B$15,IF(D89=15,'[1]Tipo '!$B$16,IF(D89=16,'[1]Tipo '!$B$17,IF(D89=17,'[1]Tipo '!$B$18,IF(D89=18,'[1]Tipo '!$B$19,IF(D89=19,'[1]Tipo '!$B$20,"No ha seleccionado un tipo de contrato válido"))))))))))))))))))) -> CONTRATOS DE PRESTACIÓN DE SERVICIOS PROFESIONALES Y DE APOYO A LA GESTIÓN | F89: Contratación directa | G89: Prestación de servicios profesionales y de apoyo a la gestión, o para la ejecución de trabajos artísticos que sólo puedan encomendarse a determinadas personas naturales; | H89: CONTRATAR LOS SERVICIOS DE UN BACHILLER QUE CONTRIBUYA CON EL CUMPLIMIENTO LEGAL Y REGLAMENTARIO EN EL ÁREA DE GESTIÓN DE DESARROLLO LOCAL EN TEMAS DE RECEPCIÓN Y CENTRO DE DOCUMENTACIÓN E INFORMACIÓN - CDI DE LA ALCALDÍA LOCAL DE LA CANDELARIA DE CONFORMIDAD CON LOS ESTUDIOS PREVIOS | I89: Inversión | J89: 45 | K89: =IF(J89=1,'[1]Equivalencia BH-BMPT'!$D$2,IF(J89=2,'[1]Equivalencia BH-BMPT'!$D$3,IF(J89=3,'[1]Equivalencia BH-BMPT'!$D$4,IF(J89=4,'[1]Equivalencia BH-BMPT'!$D$5,IF(J89=5,'[1]Equivalencia BH-BMPT'!$D$6,IF(J89=6,'[1]Equivalencia BH-BMPT'!$D$7,IF(J89=7,'[1]Equivalencia BH-BMPT'!$D$8,IF(J89=8,'[1]Equivalencia BH-BMPT'!$D$9,IF(J89=9,'[1]Equivalencia BH-BMPT'!$D$10,IF(J89=10,'[1]Equivalencia BH-BMPT'!$D$11,IF(J89=11,'[1]Equivalencia BH-BMPT'!$D$12,IF(J89=12,'[1]Equivalencia BH-BMPT'!$D$13,IF(J89=13,'[1]Equivalencia BH-BMPT'!$D$14,IF(J89=14,'[1]Equivalencia BH-BMPT'!$D$15,IF(J89=15,'[1]Equivalencia BH-BMPT'!$D$16,IF(J89=16,'[1]Equivalencia BH-BMPT'!$D$17,IF(J89=17,'[1]Equivalencia BH-BMPT'!$D$18,IF(J89=18,'[1]Equivalencia BH-BMPT'!$D$19,IF(J89=19,'[1]Equivalencia BH-BMPT'!$D$20,IF(J89=20,'[1]Equivalencia BH-BMPT'!$D$21,IF(J89=21,'[1]Equivalencia BH-BMPT'!$D$22,IF(J89=22,'[1]Equivalencia BH-BMPT'!$D$23,IF(J89=23,'[1]Equivalencia BH-BMPT'!#REF!,IF(J89=24,'[1]Equivalencia BH-BMPT'!$D$25,IF(J89=25,'[1]Equivalencia BH-BMPT'!$D$26,IF(J89=26,'[1]Equivalencia BH-BMPT'!$D$27,IF(J89=27,'[1]Equivalencia BH-BMPT'!$D$28,IF(J89=28,'[1]Equivalencia BH-BMPT'!$D$29,IF(J89=29,'[1]Equivalencia BH-BMPT'!$D$30,IF(J89=30,'[1]Equivalencia BH-BMPT'!$D$31,IF(J89=31,'[1]Equivalencia BH-BMPT'!$D$32,IF(J89=32,'[1]Equivalencia BH-BMPT'!$D$33,IF(J89=33,'[1]Equivalencia BH-BMPT'!$D$34,IF(J89=34,'[1]Equivalencia BH-BMPT'!$D$35,IF(J89=35,'[1]Equivalencia BH-BMPT'!$D$36,IF(J89=36,'[1]Equivalencia BH-BMPT'!$D$37,IF(J89=37,'[1]Equivalencia BH-BMPT'!$D$38,IF(J89=38,'[1]Equivalencia BH-BMPT'!#REF!,IF(J89=39,'[1]Equivalencia BH-BMPT'!$D$40,IF(J89=40,'[1]Equivalencia BH-BMPT'!$D$41,IF(J89=41,'[1]Equivalencia BH-BMPT'!$D$42,IF(J89=42,'[1]Equivalencia BH-BMPT'!$D$43,IF(J89=43,'[1]Equivalencia BH-BMPT'!$D$44,IF(J89=44,'[1]Equivalencia BH-BMPT'!$D$45,IF(J89=45,'[1]Equivalencia BH-BMPT'!$D$46,"No ha seleccionado un número de programa"))))))))))))))))))))))))))))))))))))))))))))) -> Gobernanza e influencia local, regional e internacional | L89: 1395 | M89: 1010227910 | N89: Carlos Armando Gonzalez Rasgo | O89: 23533172 | S89: 1069690 | T89: 24602862 | U89: 21964291 | V89: 2017-02-06 | W89: 2017-02-08 | X89: 2018-01-14 | Y89: 338 | AD89: X | AF89: 0.8927534935 | AG89: FALSE
A90: 28 | B90: 2017 | C90: 17-12-6329746 | D90: 5 | E90: =IF(D90=1,'[1]Tipo '!$B$2,IF(D90=2,'[1]Tipo '!$B$3,IF(D90=3,'[1]Tipo '!$B$4,IF(D90=4,'[1]Tipo '!$B$5,IF(D90=5,'[1]Tipo '!$B$6,IF(D90=6,'[1]Tipo '!$B$7,IF(D90=7,'[1]Tipo '!$B$8,IF(D90=8,'[1]Tipo '!$B$9,IF(D90=9,'[1]Tipo '!$B$10,IF(D90=10,'[1]Tipo '!$B$11,IF(D90=11,'[1]Tipo '!$B$12,IF(D90=12,'[1]Tipo '!$B$13,IF(D90=13,'[1]Tipo '!$B$14,IF(D90=14,'[1]Tipo '!$B$15,IF(D90=15,'[1]Tipo '!$B$16,IF(D90=16,'[1]Tipo '!$B$17,IF(D90=17,'[1]Tipo '!$B$18,IF(D90=18,'[1]Tipo '!$B$19,IF(D90=19,'[1]Tipo '!$B$20,"No ha seleccionado un tipo de contrato válido"))))))))))))))))))) -> CONTRATOS DE PRESTACIÓN DE SERVICIOS PROFESIONALES Y DE APOYO A LA GESTIÓN | F90: Contratación directa | G90: Prestación de servicios profesionales y de apoyo a la gestión, o para la ejecución de trabajos artísticos que sólo puedan encomendarse a determinadas personas naturales; | H90: PRESTAR LOS SERVICIOS TÉCNICOS AL ÁREA DE GESTIÓN DE DESARROLLO LOCAL PARA LA REVISIÓN Y ACTUALIZACIÓN DEL ARCHIVO DOCUMENTAL DE LA ALCALDÍA LOCA | I90: Inversión | J90: 45 | K90: =IF(J90=1,'[1]Equivalencia BH-BMPT'!$D$2,IF(J90=2,'[1]Equivalencia BH-BMPT'!$D$3,IF(J90=3,'[1]Equivalencia BH-BMPT'!$D$4,IF(J90=4,'[1]Equivalencia BH-BMPT'!$D$5,IF(J90=5,'[1]Equivalencia BH-BMPT'!$D$6,IF(J90=6,'[1]Equivalencia BH-BMPT'!$D$7,IF(J90=7,'[1]Equivalencia BH-BMPT'!$D$8,IF(J90=8,'[1]Equivalencia BH-BMPT'!$D$9,IF(J90=9,'[1]Equivalencia BH-BMPT'!$D$10,IF(J90=10,'[1]Equivalencia BH-BMPT'!$D$11,IF(J90=11,'[1]Equivalencia BH-BMPT'!$D$12,IF(J90=12,'[1]Equivalencia BH-BMPT'!$D$13,IF(J90=13,'[1]Equivalencia BH-BMPT'!$D$14,IF(J90=14,'[1]Equivalencia BH-BMPT'!$D$15,IF(J90=15,'[1]Equivalencia BH-BMPT'!$D$16,IF(J90=16,'[1]Equivalencia BH-BMPT'!$D$17,IF(J90=17,'[1]Equivalencia BH-BMPT'!$D$18,IF(J90=18,'[1]Equivalencia BH-BMPT'!$D$19,IF(J90=19,'[1]Equivalencia BH-BMPT'!$D$20,IF(J90=20,'[1]Equivalencia BH-BMPT'!$D$21,IF(J90=21,'[1]Equivalencia BH-BMPT'!$D$22,IF(J90=22,'[1]Equivalencia BH-BMPT'!$D$23,IF(J90=23,'[1]Equivalencia BH-BMPT'!#REF!,IF(J90=24,'[1]Equivalencia BH-BMPT'!$D$25,IF(J90=25,'[1]Equivalencia BH-BMPT'!$D$26,IF(J90=26,'[1]Equivalencia BH-BMPT'!$D$27,IF(J90=27,'[1]Equivalencia BH-BMPT'!$D$28,IF(J90=28,'[1]Equivalencia BH-BMPT'!$D$29,IF(J90=29,'[1]Equivalencia BH-BMPT'!$D$30,IF(J90=30,'[1]Equivalencia BH-BMPT'!$D$31,IF(J90=31,'[1]Equivalencia BH-BMPT'!$D$32,IF(J90=32,'[1]Equivalencia BH-BMPT'!$D$33,IF(J90=33,'[1]Equivalencia BH-BMPT'!$D$34,IF(J90=34,'[1]Equivalencia BH-BMPT'!$D$35,IF(J90=35,'[1]Equivalencia BH-BMPT'!$D$36,IF(J90=36,'[1]Equivalencia BH-BMPT'!$D$37,IF(J90=37,'[1]Equivalencia BH-BMPT'!$D$38,IF(J90=38,'[1]Equivalencia BH-BMPT'!#REF!,IF(J90=39,'[1]Equivalencia BH-BMPT'!$D$40,IF(J90=40,'[1]Equivalencia BH-BMPT'!$D$41,IF(J90=41,'[1]Equivalencia BH-BMPT'!$D$42,IF(J90=42,'[1]Equivalencia BH-BMPT'!$D$43,IF(J90=43,'[1]Equivalencia BH-BMPT'!$D$44,IF(J90=44,'[1]Equivalencia BH-BMPT'!$D$45,IF(J90=45,'[1]Equivalencia BH-BMPT'!$D$46,"No ha seleccionado un número de programa"))))))))))))))))))))))))))))))))))))))))))))) -> Gobernanza e influencia local, regional e internacional | L90: 1395 | M90: 1022352287 | N90: Cindy Catalina Ojeda Lopez | O90: 31758717 | S90: 3024640 | T90: 34783357 | U90: 31255117 | V90: 2017-02-06 | W90: 2017-02-06 | X90: 2018-01-19 | Y90: 356 | AC90: X | AF90: 0.8985652822 | AG90: FALSE
A91: 29 | B91: 2017 | C91: 17-12-6329805 | D91: 5 | E91: =IF(D91=1,'[1]Tipo '!$B$2,IF(D91=2,'[1]Tipo '!$B$3,IF(D91=3,'[1]Tipo '!$B$4,IF(D91=4,'[1]Tipo '!$B$5,IF(D91=5,'[1]Tipo '!$B$6,IF(D91=6,'[1]Tipo '!$B$7,IF(D91=7,'[1]Tipo '!$B$8,IF(D91=8,'[1]Tipo '!$B$9,IF(D91=9,'[1]Tipo '!$B$10,IF(D91=10,'[1]Tipo '!$B$11,IF(D91=11,'[1]Tipo '!$B$12,IF(D91=12,'[1]Tipo '!$B$13,IF(D91=13,'[1]Tipo '!$B$14,IF(D91=14,'[1]Tipo '!$B$15,IF(D91=15,'[1]Tipo '!$B$16,IF(D91=16,'[1]Tipo '!$B$17,IF(D91=17,'[1]Tipo '!$B$18,IF(D91=18,'[1]Tipo '!$B$19,IF(D91=19,'[1]Tipo '!$B$20,"No ha seleccionado un tipo de contrato válido"))))))))))))))))))) -> CONTRATOS DE PRESTACIÓN DE SERVICIOS PROFESIONALES Y DE APOYO A LA GESTIÓN | F91: Contratación directa | G91: Prestación de servicios profesionales y de apoyo a la gestión, o para la ejecución de trabajos artísticos que sólo puedan encomendarse a determinadas personas naturales; | H91: Prestar los servicios de apoyo logístico en todos los eventos y actividades de la administración local de la localidad 17 de La Candelaria | I91: Inversión | J91: 45 | K91: =IF(J91=1,'[1]Equivalencia BH-BMPT'!$D$2,IF(J91=2,'[1]Equivalencia BH-BMPT'!$D$3,IF(J91=3,'[1]Equivalencia BH-BMPT'!$D$4,IF(J91=4,'[1]Equivalencia BH-BMPT'!$D$5,IF(J91=5,'[1]Equivalencia BH-BMPT'!$D$6,IF(J91=6,'[1]Equivalencia BH-BMPT'!$D$7,IF(J91=7,'[1]Equivalencia BH-BMPT'!$D$8,IF(J91=8,'[1]Equivalencia BH-BMPT'!$D$9,IF(J91=9,'[1]Equivalencia BH-BMPT'!$D$10,IF(J91=10,'[1]Equivalencia BH-BMPT'!$D$11,IF(J91=11,'[1]Equivalencia BH-BMPT'!$D$12,IF(J91=12,'[1]Equivalencia BH-BMPT'!$D$13,IF(J91=13,'[1]Equivalencia BH-BMPT'!$D$14,IF(J91=14,'[1]Equivalencia BH-BMPT'!$D$15,IF(J91=15,'[1]Equivalencia BH-BMPT'!$D$16,IF(J91=16,'[1]Equivalencia BH-BMPT'!$D$17,IF(J91=17,'[1]Equivalencia BH-BMPT'!$D$18,IF(J91=18,'[1]Equivalencia BH-BMPT'!$D$19,IF(J91=19,'[1]Equivalencia BH-BMPT'!$D$20,IF(J91=20,'[1]Equivalencia BH-BMPT'!$D$21,IF(J91=21,'[1]Equivalencia BH-BMPT'!$D$22,IF(J91=22,'[1]Equivalencia BH-BMPT'!$D$23,IF(J91=23,'[1]Equivalencia BH-BMPT'!#REF!,IF(J91=24,'[1]Equivalencia BH-BMPT'!$D$25,IF(J91=25,'[1]Equivalencia BH-BMPT'!$D$26,IF(J91=26,'[1]Equivalencia BH-BMPT'!$D$27,IF(J91=27,'[1]Equivalencia BH-BMPT'!$D$28,IF(J91=28,'[1]Equivalencia BH-BMPT'!$D$29,IF(J91=29,'[1]Equivalencia BH-BMPT'!$D$30,IF(J91=30,'[1]Equivalencia BH-BMPT'!$D$31,IF(J91=31,'[1]Equivalencia BH-BMPT'!$D$32,IF(J91=32,'[1]Equivalencia BH-BMPT'!$D$33,IF(J91=33,'[1]Equivalencia BH-BMPT'!$D$34,IF(J91=34,'[1]Equivalencia BH-BMPT'!$D$35,IF(J91=35,'[1]Equivalencia BH-BMPT'!$D$36,IF(J91=36,'[1]Equivalencia BH-BMPT'!$D$37,IF(J91=37,'[1]Equivalencia BH-BMPT'!$D$38,IF(J91=38,'[1]Equivalencia BH-BMPT'!#REF!,IF(J91=39,'[1]Equivalencia BH-BMPT'!$D$40,IF(J91=40,'[1]Equivalencia BH-BMPT'!$D$41,IF(J91=41,'[1]Equivalencia BH-BMPT'!$D$42,IF(J91=42,'[1]Equivalencia BH-BMPT'!$D$43,IF(J91=43,'[1]Equivalencia BH-BMPT'!$D$44,IF(J91=44,'[1]Equivalencia BH-BMPT'!$D$45,IF(J91=45,'[1]Equivalencia BH-BMPT'!$D$46,"No ha seleccionado un número de programa"))))))))))))))))))))))))))))))))))))))))))))) -> Gobernanza e influencia local, regional e internacional | L91: 1395 | M91: 1010200869 | N91: Johan Steven Robles Sandoval | O91: 22143000 | S91: 1006500 | T91: 23149500 | U91: 20801000 | V91: 2017-02-06 | W91: 2017-02-06 | X91: 2018-01-14 | Y91: 341 | AD91: X | AF91: 0.8985507246 | AG91: FALSE
A92: 30 | B92: 2017 | C92: 17-12-6331062 | D92: 5 | E92: =IF(D92=1,'[1]Tipo '!$B$2,IF(D92=2,'[1]Tipo '!$B$3,IF(D92=3,'[1]Tipo '!$B$4,IF(D92=4,'[1]Tipo '!$B$5,IF(D92=5,'[1]Tipo '!$B$6,IF(D92=6,'[1]Tipo '!$B$7,IF(D92=7,'[1]Tipo '!$B$8,IF(D92=8,'[1]Tipo '!$B$9,IF(D92=9,'[1]Tipo '!$B$10,IF(D92=10,'[1]Tipo '!$B$11,IF(D92=11,'[1]Tipo '!$B$12,IF(D92=12,'[1]Tipo '!$B$13,IF(D92=13,'[1]Tipo '!$B$14,IF(D92=14,'[1]Tipo '!$B$15,IF(D92=15,'[1]Tipo '!$B$16,IF(D92=16,'[1]Tipo '!$B$17,IF(D92=17,'[1]Tipo '!$B$18,IF(D92=18,'[1]Tipo '!$B$19,IF(D92=19,'[1]Tipo '!$B$20,"No ha seleccionado un tipo de contrato válido"))))))))))))))))))) -> CONTRATOS DE PRESTACIÓN DE SERVICIOS PROFESIONALES Y DE APOYO A LA GESTIÓN | F92: Contratación directa | G92: Prestación de servicios profesionales y de apoyo a la gestión, o para la ejecución de trabajos artísticos que sólo puedan encomendarse a determinadas personas naturales; | H92: Prestar los servicios de apoyo logístico en todos los eventos y actividades de la administración local de la localidad 17 de La Candelaria | I92: Inversión | J92: 45 | K92: =IF(J92=1,'[1]Equivalencia BH-BMPT'!$D$2,IF(J92=2,'[1]Equivalencia BH-BMPT'!$D$3,IF(J92=3,'[1]Equivalencia BH-BMPT'!$D$4,IF(J92=4,'[1]Equivalencia BH-BMPT'!$D$5,IF(J92=5,'[1]Equivalencia BH-BMPT'!$D$6,IF(J92=6,'[1]Equivalencia BH-BMPT'!$D$7,IF(J92=7,'[1]Equivalencia BH-BMPT'!$D$8,IF(J92=8,'[1]Equivalencia BH-BMPT'!$D$9,IF(J92=9,'[1]Equivalencia BH-BMPT'!$D$10,IF(J92=10,'[1]Equivalencia BH-BMPT'!$D$11,IF(J92=11,'[1]Equivalencia BH-BMPT'!$D$12,IF(J92=12,'[1]Equivalencia BH-BMPT'!$D$13,IF(J92=13,'[1]Equivalencia BH-BMPT'!$D$14,IF(J92=14,'[1]Equivalencia BH-BMPT'!$D$15,IF(J92=15,'[1]Equivalencia BH-BMPT'!$D$16,IF(J92=16,'[1]Equivalencia BH-BMPT'!$D$17,IF(J92=17,'[1]Equivalencia BH-BMPT'!$D$18,IF(J92=18,'[1]Equivalencia BH-BMPT'!$D$19,IF(J92=19,'[1]Equivalencia BH-BMPT'!$D$20,IF(J92=20,'[1]Equivalencia BH-BMPT'!$D$21,IF(J92=21,'[1]Equivalencia BH-BMPT'!$D$22,IF(J92=22,'[1]Equivalencia BH-BMPT'!$D$23,IF(J92=23,'[1]Equivalencia BH-BMPT'!#REF!,IF(J92=24,'[1]Equivalencia BH-BMPT'!$D$25,IF(J92=25,'[1]Equivalencia BH-BMPT'!$D$26,IF(J92=26,'[1]Equivalencia BH-BMPT'!$D$27,IF(J92=27,'[1]Equivalencia BH-BMPT'!$D$28,IF(J92=28,'[1]Equivalencia BH-BMPT'!$D$29,IF(J92=29,'[1]Equivalencia BH-BMPT'!$D$30,IF(J92=30,'[1]Equivalencia BH-BMPT'!$D$31,IF(J92=31,'[1]Equivalencia BH-BMPT'!$D$32,IF(J92=32,'[1]Equivalencia BH-BMPT'!$D$33,IF(J92=33,'[1]Equivalencia BH-BMPT'!$D$34,IF(J92=34,'[1]Equivalencia BH-BMPT'!$D$35,IF(J92=35,'[1]Equivalencia BH-BMPT'!$D$36,IF(J92=36,'[1]Equivalencia BH-BMPT'!$D$37,IF(J92=37,'[1]Equivalencia BH-BMPT'!$D$38,IF(J92=38,'[1]Equivalencia BH-BMPT'!#REF!,IF(J92=39,'[1]Equivalencia BH-BMPT'!$D$40,IF(J92=40,'[1]Equivalencia BH-BMPT'!$D$41,IF(J92=41,'[1]Equivalencia BH-BMPT'!$D$42,IF(J92=42,'[1]Equivalencia BH-BMPT'!$D$43,IF(J92=43,'[1]Equivalencia BH-BMPT'!$D$44,IF(J92=44,'[1]Equivalencia BH-BMPT'!$D$45,IF(J92=45,'[1]Equivalencia BH-BMPT'!$D$46,"No ha seleccionado un número de programa"))))))))))))))))))))))))))))))))))))))))))))) -> Gobernanza e influencia local, regional e internacional | L92: 1395 | M92: 1085280532 | N92: DEIVIS ARAVIT GORDILLO GUTIERREZ | O92: 22143000 | S92: 1006984 | T92: 23149984 | U92: 20197100 | V92: 2017-02-06 | W92: 2017-02-13 | X92: 2018-01-14 | Y92: 334 | AD92: X | AF92: 0.8724455274 | AG92: FALSE
A93: 31 | B93: 2017 | C93: 17-12-6331391 | D93: 5 | E93: =IF(D93=1,'[1]Tipo '!$B$2,IF(D93=2,'[1]Tipo '!$B$3,IF(D93=3,'[1]Tipo '!$B$4,IF(D93=4,'[1]Tipo '!$B$5,IF(D93=5,'[1]Tipo '!$B$6,IF(D93=6,'[1]Tipo '!$B$7,IF(D93=7,'[1]Tipo '!$B$8,IF(D93=8,'[1]Tipo '!$B$9,IF(D93=9,'[1]Tipo '!$B$10,IF(D93=10,'[1]Tipo '!$B$11,IF(D93=11,'[1]Tipo '!$B$12,IF(D93=12,'[1]Tipo '!$B$13,IF(D93=13,'[1]Tipo '!$B$14,IF(D93=14,'[1]Tipo '!$B$15,IF(D93=15,'[1]Tipo '!$B$16,IF(D93=16,'[1]Tipo '!$B$17,IF(D93=17,'[1]Tipo '!$B$18,IF(D93=18,'[1]Tipo '!$B$19,IF(D93=19,'[1]Tipo '!$B$20,"No ha seleccionado un tipo de contrato válido"))))))))))))))))))) -> CONTRATOS DE PRESTACIÓN DE SERVICIOS PROFESIONALES Y DE APOYO A LA GESTIÓN | F93: Contratación directa | G93: Prestación de servicios profesionales y de apoyo a la gestión, o para la ejecución de trabajos artísticos que sólo puedan encomendarse a determinadas personas naturales; | H93: PRESTAR LOS SERVICIOS TÉCNICOS AL ÁREA DE GESTIÓN DE DESARROLLO LOCAL PARA LA REVISIÓN Y ACTUALIZACIÓN DEL ARCHIVO DOCUMENTAL DE LA ALCALDÍA LOCAL | I93: Inversión | J93: 45 | K93: =IF(J93=1,'[1]Equivalencia BH-BMPT'!$D$2,IF(J93=2,'[1]Equivalencia BH-BMPT'!$D$3,IF(J93=3,'[1]Equivalencia BH-BMPT'!$D$4,IF(J93=4,'[1]Equivalencia BH-BMPT'!$D$5,IF(J93=5,'[1]Equivalencia BH-BMPT'!$D$6,IF(J93=6,'[1]Equivalencia BH-BMPT'!$D$7,IF(J93=7,'[1]Equivalencia BH-BMPT'!$D$8,IF(J93=8,'[1]Equivalencia BH-BMPT'!$D$9,IF(J93=9,'[1]Equivalencia BH-BMPT'!$D$10,IF(J93=10,'[1]Equivalencia BH-BMPT'!$D$11,IF(J93=11,'[1]Equivalencia BH-BMPT'!$D$12,IF(J93=12,'[1]Equivalencia BH-BMPT'!$D$13,IF(J93=13,'[1]Equivalencia BH-BMPT'!$D$14,IF(J93=14,'[1]Equivalencia BH-BMPT'!$D$15,IF(J93=15,'[1]Equivalencia BH-BMPT'!$D$16,IF(J93=16,'[1]Equivalencia BH-BMPT'!$D$17,IF(J93=17,'[1]Equivalencia BH-BMPT'!$D$18,IF(J93=18,'[1]Equivalencia BH-BMPT'!$D$19,IF(J93=19,'[1]Equivalencia BH-BMPT'!$D$20,IF(J93=20,'[1]Equivalencia BH-BMPT'!$D$21,IF(J93=21,'[1]Equivalencia BH-BMPT'!$D$22,IF(J93=22,'[1]Equivalencia BH-BMPT'!$D$23,IF(J93=23,'[1]Equivalencia BH-BMPT'!#REF!,IF(J93=24,'[1]Equivalencia BH-BMPT'!$D$25,IF(J93=25,'[1]Equivalencia BH-BMPT'!$D$26,IF(J93=26,'[1]Equivalencia BH-BMPT'!$D$27,IF(J93=27,'[1]Equivalencia BH-BMPT'!$D$28,IF(J93=28,'[1]Equivalencia BH-BMPT'!$D$29,IF(J93=29,'[1]Equivalencia BH-BMPT'!$D$30,IF(J93=30,'[1]Equivalencia BH-BMPT'!$D$31,IF(J93=31,'[1]Equivalencia BH-BMPT'!$D$32,IF(J93=32,'[1]Equivalencia BH-BMPT'!$D$33,IF(J93=33,'[1]Equivalencia BH-BMPT'!$D$34,IF(J93=34,'[1]Equivalencia BH-BMPT'!$D$35,IF(J93=35,'[1]Equivalencia BH-BMPT'!$D$36,IF(J93=36,'[1]Equivalencia BH-BMPT'!$D$37,IF(J93=37,'[1]Equivalencia BH-BMPT'!$D$38,IF(J93=38,'[1]Equivalencia BH-BMPT'!#REF!,IF(J93=39,'[1]Equivalencia BH-BMPT'!$D$40,IF(J93=40,'[1]Equivalencia BH-BMPT'!$D$41,IF(J93=41,'[1]Equivalencia BH-BMPT'!$D$42,IF(J93=42,'[1]Equivalencia BH-BMPT'!$D$43,IF(J93=43,'[1]Equivalencia BH-BMPT'!$D$44,IF(J93=44,'[1]Equivalencia BH-BMPT'!$D$45,IF(J93=45,'[1]Equivalencia BH-BMPT'!$D$46,"No ha seleccionado un número de programa"))))))))))))))))))))))))))))))))))))))))))))) -> Gobernanza e influencia local, regional e internacional | L93: 1395 | M93: 1010175770 | N93: Teofilo Leornardo Ramirez Hernandez | O93: 33271037 | S93: 1512320 | T93: 34783357 | U93: 31254613 | V93: 2017-02-06 | W93: 2017-02-06 | X93: 2018-01-14 | Y93: 241 | AD93: X | AF93: 0.8985507926 | AG93: FALSE
A94: 32 | B94: 2017 | C94: 17-12-6331552 | D94: 5 | E94: =IF(D94=1,'[1]Tipo '!$B$2,IF(D94=2,'[1]Tipo '!$B$3,IF(D94=3,'[1]Tipo '!$B$4,IF(D94=4,'[1]Tipo '!$B$5,IF(D94=5,'[1]Tipo '!$B$6,IF(D94=6,'[1]Tipo '!$B$7,IF(D94=7,'[1]Tipo '!$B$8,IF(D94=8,'[1]Tipo '!$B$9,IF(D94=9,'[1]Tipo '!$B$10,IF(D94=10,'[1]Tipo '!$B$11,IF(D94=11,'[1]Tipo '!$B$12,IF(D94=12,'[1]Tipo '!$B$13,IF(D94=13,'[1]Tipo '!$B$14,IF(D94=14,'[1]Tipo '!$B$15,IF(D94=15,'[1]Tipo '!$B$16,IF(D94=16,'[1]Tipo '!$B$17,IF(D94=17,'[1]Tipo '!$B$18,IF(D94=18,'[1]Tipo '!$B$19,IF(D94=19,'[1]Tipo '!$B$20,"No ha seleccionado un tipo de contrato válido"))))))))))))))))))) -> CONTRATOS DE PRESTACIÓN DE SERVICIOS PROFESIONALES Y DE APOYO A LA GESTIÓN | F94: Contratación directa | G94: Prestación de servicios profesionales y de apoyo a la gestión, o para la ejecución de trabajos artísticos que sólo puedan encomendarse a determinadas personas naturales; | H94: Prestar los servicios de apoyo técnico y logístico en todos los eventos, actividades y temas de comunicaciones de la administración local de la localidad 17 de La Candelaria | I94: Inversión | J94: 45 | K94: =IF(J94=1,'[1]Equivalencia BH-BMPT'!$D$2,IF(J94=2,'[1]Equivalencia BH-BMPT'!$D$3,IF(J94=3,'[1]Equivalencia BH-BMPT'!$D$4,IF(J94=4,'[1]Equivalencia BH-BMPT'!$D$5,IF(J94=5,'[1]Equivalencia BH-BMPT'!$D$6,IF(J94=6,'[1]Equivalencia BH-BMPT'!$D$7,IF(J94=7,'[1]Equivalencia BH-BMPT'!$D$8,IF(J94=8,'[1]Equivalencia BH-BMPT'!$D$9,IF(J94=9,'[1]Equivalencia BH-BMPT'!$D$10,IF(J94=10,'[1]Equivalencia BH-BMPT'!$D$11,IF(J94=11,'[1]Equivalencia BH-BMPT'!$D$12,IF(J94=12,'[1]Equivalencia BH-BMPT'!$D$13,IF(J94=13,'[1]Equivalencia BH-BMPT'!$D$14,IF(J94=14,'[1]Equivalencia BH-BMPT'!$D$15,IF(J94=15,'[1]Equivalencia BH-BMPT'!$D$16,IF(J94=16,'[1]Equivalencia BH-BMPT'!$D$17,IF(J94=17,'[1]Equivalencia BH-BMPT'!$D$18,IF(J94=18,'[1]Equivalencia BH-BMPT'!$D$19,IF(J94=19,'[1]Equivalencia BH-BMPT'!$D$20,IF(J94=20,'[1]Equivalencia BH-BMPT'!$D$21,IF(J94=21,'[1]Equivalencia BH-BMPT'!$D$22,IF(J94=22,'[1]Equivalencia BH-BMPT'!$D$23,IF(J94=23,'[1]Equivalencia BH-BMPT'!#REF!,IF(J94=24,'[1]Equivalencia BH-BMPT'!$D$25,IF(J94=25,'[1]Equivalencia BH-BMPT'!$D$26,IF(J94=26,'[1]Equivalencia BH-BMPT'!$D$27,IF(J94=27,'[1]Equivalencia BH-BMPT'!$D$28,IF(J94=28,'[1]Equivalencia BH-BMPT'!$D$29,IF(J94=29,'[1]Equivalencia BH-BMPT'!$D$30,IF(J94=30,'[1]Equivalencia BH-BMPT'!$D$31,IF(J94=31,'[1]Equivalencia BH-BMPT'!$D$32,IF(J94=32,'[1]Equivalencia BH-BMPT'!$D$33,IF(J94=33,'[1]Equivalencia BH-BMPT'!$D$34,IF(J94=34,'[1]Equivalencia BH-BMPT'!$D$35,IF(J94=35,'[1]Equivalencia BH-BMPT'!$D$36,IF(J94=36,'[1]Equivalencia BH-BMPT'!$D$37,IF(J94=37,'[1]Equivalencia BH-BMPT'!$D$38,IF(J94=38,'[1]Equivalencia BH-BMPT'!#REF!,IF(J94=39,'[1]Equivalencia BH-BMPT'!$D$40,IF(J94=40,'[1]Equivalencia BH-BMPT'!$D$41,IF(J94=41,'[1]Equivalencia BH-BMPT'!$D$42,IF(J94=42,'[1]Equivalencia BH-BMPT'!$D$43,IF(J94=43,'[1]Equivalencia BH-BMPT'!$D$44,IF(J94=44,'[1]Equivalencia BH-BMPT'!$D$45,IF(J94=45,'[1]Equivalencia BH-BMPT'!$D$46,"No ha seleccionado un número de programa"))))))))))))))))))))))))))))))))))))))))))))) -> Gobernanza e influencia local, regional e internacional | L94: 1395 | M94: 80249660 | N94: Jhonnatan Acosta Herrada | O94: 24344661 | T94: 24344661 | U94: 19549500 | V94: 2017-02-06 | W94: 2017-02-13 | X94: 2018-02-07 | Y94: 369 | AC94: X | AF94: 0.8030302825 | AG94: FALSE
A95: 33 | B95: 2017 | C95: 17-12-6331631 | D95: 5 | E95: =IF(D95=1,'[1]Tipo '!$B$2,IF(D95=2,'[1]Tipo '!$B$3,IF(D95=3,'[1]Tipo '!$B$4,IF(D95=4,'[1]Tipo '!$B$5,IF(D95=5,'[1]Tipo '!$B$6,IF(D95=6,'[1]Tipo '!$B$7,IF(D95=7,'[1]Tipo '!$B$8,IF(D95=8,'[1]Tipo '!$B$9,IF(D95=9,'[1]Tipo '!$B$10,IF(D95=10,'[1]Tipo '!$B$11,IF(D95=11,'[1]Tipo '!$B$12,IF(D95=12,'[1]Tipo '!$B$13,IF(D95=13,'[1]Tipo '!$B$14,IF(D95=14,'[1]Tipo '!$B$15,IF(D95=15,'[1]Tipo '!$B$16,IF(D95=16,'[1]Tipo '!$B$17,IF(D95=17,'[1]Tipo '!$B$18,IF(D95=18,'[1]Tipo '!$B$19,IF(D95=19,'[1]Tipo '!$B$20,"No ha seleccionado un tipo de contrato válido"))))))))))))))))))) -> CONTRATOS DE PRESTACIÓN DE SERVICIOS PROFESIONALES Y DE APOYO A LA GESTIÓN | F95: Contratación directa | G95: Prestación de servicios profesionales y de apoyo a la gestión, o para la ejecución de trabajos artísticos que sólo puedan encomendarse a determinadas personas naturales; | H95: “PRESTAR LOS SERVICIOS DE APOYO EN EL ÁREA DE GESTIÓN DE DESARROLLO LOCAL DE LA ALCALDÍA LOCAL DE LA CANDELARIA EN TEMAS DE GESTIÓN DOCUMENTAL, NOTIFICACIÓN O DEMÁS NECESIDADES QUE SE REQUIERAN | I95: Inversión | J95: 45 | K95: =IF(J95=1,'[1]Equivalencia BH-BMPT'!$D$2,IF(J95=2,'[1]Equivalencia BH-BMPT'!$D$3,IF(J95=3,'[1]Equivalencia BH-BMPT'!$D$4,IF(J95=4,'[1]Equivalencia BH-BMPT'!$D$5,IF(J95=5,'[1]Equivalencia BH-BMPT'!$D$6,IF(J95=6,'[1]Equivalencia BH-BMPT'!$D$7,IF(J95=7,'[1]Equivalencia BH-BMPT'!$D$8,IF(J95=8,'[1]Equivalencia BH-BMPT'!$D$9,IF(J95=9,'[1]Equivalencia BH-BMPT'!$D$10,IF(J95=10,'[1]Equivalencia BH-BMPT'!$D$11,IF(J95=11,'[1]Equivalencia BH-BMPT'!$D$12,IF(J95=12,'[1]Equivalencia BH-BMPT'!$D$13,IF(J95=13,'[1]Equivalencia BH-BMPT'!$D$14,IF(J95=14,'[1]Equivalencia BH-BMPT'!$D$15,IF(J95=15,'[1]Equivalencia BH-BMPT'!$D$16,IF(J95=16,'[1]Equivalencia BH-BMPT'!$D$17,IF(J95=17,'[1]Equivalencia BH-BMPT'!$D$18,IF(J95=18,'[1]Equivalencia BH-BMPT'!$D$19,IF(J95=19,'[1]Equivalencia BH-BMPT'!$D$20,IF(J95=20,'[1]Equivalencia BH-BMPT'!$D$21,IF(J95=21,'[1]Equivalencia BH-BMPT'!$D$22,IF(J95=22,'[1]Equivalencia BH-BMPT'!$D$23,IF(J95=23,'[1]Equivalencia BH-BMPT'!#REF!,IF(J95=24,'[1]Equivalencia BH-BMPT'!$D$25,IF(J95=25,'[1]Equivalencia BH-BMPT'!$D$26,IF(J95=26,'[1]Equivalencia BH-BMPT'!$D$27,IF(J95=27,'[1]Equivalencia BH-BMPT'!$D$28,IF(J95=28,'[1]Equivalencia BH-BMPT'!$D$29,IF(J95=29,'[1]Equivalencia BH-BMPT'!$D$30,IF(J95=30,'[1]Equivalencia BH-BMPT'!$D$31,IF(J95=31,'[1]Equivalencia BH-BMPT'!$D$32,IF(J95=32,'[1]Equivalencia BH-BMPT'!$D$33,IF(J95=33,'[1]Equivalencia BH-BMPT'!$D$34,IF(J95=34,'[1]Equivalencia BH-BMPT'!$D$35,IF(J95=35,'[1]Equivalencia BH-BMPT'!$D$36,IF(J95=36,'[1]Equivalencia BH-BMPT'!$D$37,IF(J95=37,'[1]Equivalencia BH-BMPT'!$D$38,IF(J95=38,'[1]Equivalencia BH-BMPT'!#REF!,IF(J95=39,'[1]Equivalencia BH-BMPT'!$D$40,IF(J95=40,'[1]Equivalencia BH-BMPT'!$D$41,IF(J95=41,'[1]Equivalencia BH-BMPT'!$D$42,IF(J95=42,'[1]Equivalencia BH-BMPT'!$D$43,IF(J95=43,'[1]Equivalencia BH-BMPT'!$D$44,IF(J95=44,'[1]Equivalencia BH-BMPT'!$D$45,IF(J95=45,'[1]Equivalencia BH-BMPT'!$D$46,"No ha seleccionado un número de programa"))))))))))))))))))))))))))))))))))))))))))))) -> Gobernanza e influencia local, regional e internacional | L95: 1395 | M95: 51620077 | N95: María Victoria Torres Torres | O95: 23754487 | S95: 1796525 | T95: 25551012 | U95: 22242837 | V95: 2017-02-06 | W95: 2017-02-07 | X95: 2018-01-24 | Y95: 350 | AC95: X | AF95: 0.8705266547 | AG95: FALSE
A96: 36 | B96: 2017 | C96: 17-12-6332275 | D96: 5 | E96: =IF(D96=1,'[1]Tipo '!$B$2,IF(D96=2,'[1]Tipo '!$B$3,IF(D96=3,'[1]Tipo '!$B$4,IF(D96=4,'[1]Tipo '!$B$5,IF(D96=5,'[1]Tipo '!$B$6,IF(D96=6,'[1]Tipo '!$B$7,IF(D96=7,'[1]Tipo '!$B$8,IF(D96=8,'[1]Tipo '!$B$9,IF(D96=9,'[1]Tipo '!$B$10,IF(D96=10,'[1]Tipo '!$B$11,IF(D96=11,'[1]Tipo '!$B$12,IF(D96=12,'[1]Tipo '!$B$13,IF(D96=13,'[1]Tipo '!$B$14,IF(D96=14,'[1]Tipo '!$B$15,IF(D96=15,'[1]Tipo '!$B$16,IF(D96=16,'[1]Tipo '!$B$17,IF(D96=17,'[1]Tipo '!$B$18,IF(D96=18,'[1]Tipo '!$B$19,IF(D96=19,'[1]Tipo '!$B$20,"No ha seleccionado un tipo de contrato válido"))))))))))))))))))) -> CONTRATOS DE PRESTACIÓN DE SERVICIOS PROFESIONALES Y DE APOYO A LA GESTIÓN | F96: Contratación directa | G96: Prestación de servicios profesionales y de apoyo a la gestión, o para la ejecución de trabajos artísticos que sólo puedan encomendarse a determinadas personas naturales; | H96: PRESTAR LOS SERVICIOS DE APOYO AL DESPACHO DEL ALCALDE LOCAL DE LA CANDELARIA EN TEMAS DE ARCHIVO DE DOCUMENTOS EN LOS EXPEDIENTES DE COMPETENCIA DEL ÁREA DE GESTIÓN POLICIVA Y ÁREA DE GESTIÓN DE DESARROLLO LOCAL | I96: Inversión | J96: 45 | K96: =IF(J96=1,'[1]Equivalencia BH-BMPT'!$D$2,IF(J96=2,'[1]Equivalencia BH-BMPT'!$D$3,IF(J96=3,'[1]Equivalencia BH-BMPT'!$D$4,IF(J96=4,'[1]Equivalencia BH-BMPT'!$D$5,IF(J96=5,'[1]Equivalencia BH-BMPT'!$D$6,IF(J96=6,'[1]Equivalencia BH-BMPT'!$D$7,IF(J96=7,'[1]Equivalencia BH-BMPT'!$D$8,IF(J96=8,'[1]Equivalencia BH-BMPT'!$D$9,IF(J96=9,'[1]Equivalencia BH-BMPT'!$D$10,IF(J96=10,'[1]Equivalencia BH-BMPT'!$D$11,IF(J96=11,'[1]Equivalencia BH-BMPT'!$D$12,IF(J96=12,'[1]Equivalencia BH-BMPT'!$D$13,IF(J96=13,'[1]Equivalencia BH-BMPT'!$D$14,IF(J96=14,'[1]Equivalencia BH-BMPT'!$D$15,IF(J96=15,'[1]Equivalencia BH-BMPT'!$D$16,IF(J96=16,'[1]Equivalencia BH-BMPT'!$D$17,IF(J96=17,'[1]Equivalencia BH-BMPT'!$D$18,IF(J96=18,'[1]Equivalencia BH-BMPT'!$D$19,IF(J96=19,'[1]Equivalencia BH-BMPT'!$D$20,IF(J96=20,'[1]Equivalencia BH-BMPT'!$D$21,IF(J96=21,'[1]Equivalencia BH-BMPT'!$D$22,IF(J96=22,'[1]Equivalencia BH-BMPT'!$D$23,IF(J96=23,'[1]Equivalencia BH-BMPT'!#REF!,IF(J96=24,'[1]Equivalencia BH-BMPT'!$D$25,IF(J96=25,'[1]Equivalencia BH-BMPT'!$D$26,IF(J96=26,'[1]Equivalencia BH-BMPT'!$D$27,IF(J96=27,'[1]Equivalencia BH-BMPT'!$D$28,IF(J96=28,'[1]Equivalencia BH-BMPT'!$D$29,IF(J96=29,'[1]Equivalencia BH-BMPT'!$D$30,IF(J96=30,'[1]Equivalencia BH-BMPT'!$D$31,IF(J96=31,'[1]Equivalencia BH-BMPT'!$D$32,IF(J96=32,'[1]Equivalencia BH-BMPT'!$D$33,IF(J96=33,'[1]Equivalencia BH-BMPT'!$D$34,IF(J96=34,'[1]Equivalencia BH-BMPT'!$D$35,IF(J96=35,'[1]Equivalencia BH-BMPT'!$D$36,IF(J96=36,'[1]Equivalencia BH-BMPT'!$D$37,IF(J96=37,'[1]Equivalencia BH-BMPT'!$D$38,IF(J96=38,'[1]Equivalencia BH-BMPT'!#REF!,IF(J96=39,'[1]Equivalencia BH-BMPT'!$D$40,IF(J96=40,'[1]Equivalencia BH-BMPT'!$D$41,IF(J96=41,'[1]Equivalencia BH-BMPT'!$D$42,IF(J96=42,'[1]Equivalencia BH-BMPT'!$D$43,IF(J96=43,'[1]Equivalencia BH-BMPT'!$D$44,IF(J96=44,'[1]Equivalencia BH-BMPT'!$D$45,IF(J96=45,'[1]Equivalencia BH-BMPT'!$D$46,"No ha seleccionado un número de programa"))))))))))))))))))))))))))))))))))))))))))))) -> Gobernanza e influencia local, regional e internacional | L96: 1395 | M96: 80188460 | N96: JEFFERSON ORLANDO MARQUEZ SILVA | O96: 21301578 | S96: 8114888 | T96: 29416466 | U96: 20828212 | V96: 2017-02-07 | W96: 2017-02-08 | X96: 2018-04-21 | Y96: 444 | AC96: X | AF96: 0.7080460311 | AG96: FALSE
A97: 38 | B97: 2017 | C97: 17-12-6332674 | D97: 5 | E97: =IF(D97=1,'[1]Tipo '!$B$2,IF(D97=2,'[1]Tipo '!$B$3,IF(D97=3,'[1]Tipo '!$B$4,IF(D97=4,'[1]Tipo '!$B$5,IF(D97=5,'[1]Tipo '!$B$6,IF(D97=6,'[1]Tipo '!$B$7,IF(D97=7,'[1]Tipo '!$B$8,IF(D97=8,'[1]Tipo '!$B$9,IF(D97=9,'[1]Tipo '!$B$10,IF(D97=10,'[1]Tipo '!$B$11,IF(D97=11,'[1]Tipo '!$B$12,IF(D97=12,'[1]Tipo '!$B$13,IF(D97=13,'[1]Tipo '!$B$14,IF(D97=14,'[1]Tipo '!$B$15,IF(D97=15,'[1]Tipo '!$B$16,IF(D97=16,'[1]Tipo '!$B$17,IF(D97=17,'[1]Tipo '!$B$18,IF(D97=18,'[1]Tipo '!$B$19,IF(D97=19,'[1]Tipo '!$B$20,"No ha seleccionado un tipo de contrato válido"))))))))))))))))))) -> CONTRATOS DE PRESTACIÓN DE SERVICIOS PROFESIONALES Y DE APOYO A LA GESTIÓN | F97: Contratación directa | G97: Prestación de servicios profesionales y de apoyo a la gestión, o para la ejecución de trabajos artísticos que sólo puedan encomendarse a determinadas personas naturales; | H97: PRESTAR SUS SERVICIOS PROFESIONALES DE APOYO JURIDÍCO DE LOS PROCESOS A CARGO DEL ÁREA DE GESTIÓN POLICIVA DE LA ALCALDÍA LOCAL DE LA CANDELARÍA PARA TEMAS DE ESTABLECIMIENTOS DE COMERCIO, PROPIEDAD HORIZONTAL, ACCIONES CONSTITUCIONALES, OBRAS Y DERECHO DE PETICIÓN SEGUN REPARTO | I97: Inversión | J97: 45 | K97: =IF(J97=1,'[1]Equivalencia BH-BMPT'!$D$2,IF(J97=2,'[1]Equivalencia BH-BMPT'!$D$3,IF(J97=3,'[1]Equivalencia BH-BMPT'!$D$4,IF(J97=4,'[1]Equivalencia BH-BMPT'!$D$5,IF(J97=5,'[1]Equivalencia BH-BMPT'!$D$6,IF(J97=6,'[1]Equivalencia BH-BMPT'!$D$7,IF(J97=7,'[1]Equivalencia BH-BMPT'!$D$8,IF(J97=8,'[1]Equivalencia BH-BMPT'!$D$9,IF(J97=9,'[1]Equivalencia BH-BMPT'!$D$10,IF(J97=10,'[1]Equivalencia BH-BMPT'!$D$11,IF(J97=11,'[1]Equivalencia BH-BMPT'!$D$12,IF(J97=12,'[1]Equivalencia BH-BMPT'!$D$13,IF(J97=13,'[1]Equivalencia BH-BMPT'!$D$14,IF(J97=14,'[1]Equivalencia BH-BMPT'!$D$15,IF(J97=15,'[1]Equivalencia BH-BMPT'!$D$16,IF(J97=16,'[1]Equivalencia BH-BMPT'!$D$17,IF(J97=17,'[1]Equivalencia BH-BMPT'!$D$18,IF(J97=18,'[1]Equivalencia BH-BMPT'!$D$19,IF(J97=19,'[1]Equivalencia BH-BMPT'!$D$20,IF(J97=20,'[1]Equivalencia BH-BMPT'!$D$21,IF(J97=21,'[1]Equivalencia BH-BMPT'!$D$22,IF(J97=22,'[1]Equivalencia BH-BMPT'!$D$23,IF(J97=23,'[1]Equivalencia BH-BMPT'!#REF!,IF(J97=24,'[1]Equivalencia BH-BMPT'!$D$25,IF(J97=25,'[1]Equivalencia BH-BMPT'!$D$26,IF(J97=26,'[1]Equivalencia BH-BMPT'!$D$27,IF(J97=27,'[1]Equivalencia BH-BMPT'!$D$28,IF(J97=28,'[1]Equivalencia BH-BMPT'!$D$29,IF(J97=29,'[1]Equivalencia BH-BMPT'!$D$30,IF(J97=30,'[1]Equivalencia BH-BMPT'!$D$31,IF(J97=31,'[1]Equivalencia BH-BMPT'!$D$32,IF(J97=32,'[1]Equivalencia BH-BMPT'!$D$33,IF(J97=33,'[1]Equivalencia BH-BMPT'!$D$34,IF(J97=34,'[1]Equivalencia BH-BMPT'!$D$35,IF(J97=35,'[1]Equivalencia BH-BMPT'!$D$36,IF(J97=36,'[1]Equivalencia BH-BMPT'!$D$37,IF(J97=37,'[1]Equivalencia BH-BMPT'!$D$38,IF(J97=38,'[1]Equivalencia BH-BMPT'!#REF!,IF(J97=39,'[1]Equivalencia BH-BMPT'!$D$40,IF(J97=40,'[1]Equivalencia BH-BMPT'!$D$41,IF(J97=41,'[1]Equivalencia BH-BMPT'!$D$42,IF(J97=42,'[1]Equivalencia BH-BMPT'!$D$43,IF(J97=43,'[1]Equivalencia BH-BMPT'!$D$44,IF(J97=44,'[1]Equivalencia BH-BMPT'!$D$45,IF(J97=45,'[1]Equivalencia BH-BMPT'!$D$46,"No ha seleccionado un número de programa"))))))))))))))))))))))))))))))))))))))))))))) -> Gobernanza e influencia local, regional e internacional | L97: 1395 | M97: 79690696 | N97: CESAR JOSE SANINT GONZALEZ | O97: 49500811 | S97: 2250037 | T97: 51750848 | U97: 46050757 | V97: 2017-02-07 | W97: 2017-02-09 | X97: 2018-01-14 | Y97: 338 | AD97: X | AF97: =SUM(U97/T97) -> 0.8898551189 | AG97: FALSE
A98: 40 | B98: 2017 | C98: 17-12-6332890 | D98: 5 | E98: =IF(D98=1,'[1]Tipo '!$B$2,IF(D98=2,'[1]Tipo '!$B$3,IF(D98=3,'[1]Tipo '!$B$4,IF(D98=4,'[1]Tipo '!$B$5,IF(D98=5,'[1]Tipo '!$B$6,IF(D98=6,'[1]Tipo '!$B$7,IF(D98=7,'[1]Tipo '!$B$8,IF(D98=8,'[1]Tipo '!$B$9,IF(D98=9,'[1]Tipo '!$B$10,IF(D98=10,'[1]Tipo '!$B$11,IF(D98=11,'[1]Tipo '!$B$12,IF(D98=12,'[1]Tipo '!$B$13,IF(D98=13,'[1]Tipo '!$B$14,IF(D98=14,'[1]Tipo '!$B$15,IF(D98=15,'[1]Tipo '!$B$16,IF(D98=16,'[1]Tipo '!$B$17,IF(D98=17,'[1]Tipo '!$B$18,IF(D98=18,'[1]Tipo '!$B$19,IF(D98=19,'[1]Tipo '!$B$20,"No ha seleccionado un tipo de contrato válido"))))))))))))))))))) -> CONTRATOS DE PRESTACIÓN DE SERVICIOS PROFESIONALES Y DE APOYO A LA GESTIÓN | F98: Contratación directa | G98: Prestación de servicios profesionales y de apoyo a la gestión, o para la ejecución de trabajos artísticos que sólo puedan encomendarse a determinadas personas naturales; | H98: PRESTAR SUS SERVICIOS PROFESIONALES DE APOYO JURIDÍCO DE LOS PROCESOS A CARGO DEL ÁREA DE GESTIÓN POLICIVA DE LA ALCALDÍA LOCAL DE LA CANDELARÍA PARA TEMAS DE ESTABLECIMIENTOS DE COMERCIO, PROPIEDAD HORIZONTAL, ACCIONES CONSTITUCIONALES, OBRAS Y DERECHO DE PETICIÓN SEGUN REPARTO | I98: Inversión | J98: 45 | K98: =IF(J98=1,'[1]Equivalencia BH-BMPT'!$D$2,IF(J98=2,'[1]Equivalencia BH-BMPT'!$D$3,IF(J98=3,'[1]Equivalencia BH-BMPT'!$D$4,IF(J98=4,'[1]Equivalencia BH-BMPT'!$D$5,IF(J98=5,'[1]Equivalencia BH-BMPT'!$D$6,IF(J98=6,'[1]Equivalencia BH-BMPT'!$D$7,IF(J98=7,'[1]Equivalencia BH-BMPT'!$D$8,IF(J98=8,'[1]Equivalencia BH-BMPT'!$D$9,IF(J98=9,'[1]Equivalencia BH-BMPT'!$D$10,IF(J98=10,'[1]Equivalencia BH-BMPT'!$D$11,IF(J98=11,'[1]Equivalencia BH-BMPT'!$D$12,IF(J98=12,'[1]Equivalencia BH-BMPT'!$D$13,IF(J98=13,'[1]Equivalencia BH-BMPT'!$D$14,IF(J98=14,'[1]Equivalencia BH-BMPT'!$D$15,IF(J98=15,'[1]Equivalencia BH-BMPT'!$D$16,IF(J98=16,'[1]Equivalencia BH-BMPT'!$D$17,IF(J98=17,'[1]Equivalencia BH-BMPT'!$D$18,IF(J98=18,'[1]Equivalencia BH-BMPT'!$D$19,IF(J98=19,'[1]Equivalencia BH-BMPT'!$D$20,IF(J98=20,'[1]Equivalencia BH-BMPT'!$D$21,IF(J98=21,'[1]Equivalencia BH-BMPT'!$D$22,IF(J98=22,'[1]Equivalencia BH-BMPT'!$D$23,IF(J98=23,'[1]Equivalencia BH-BMPT'!#REF!,IF(J98=24,'[1]Equivalencia BH-BMPT'!$D$25,IF(J98=25,'[1]Equivalencia BH-BMPT'!$D$26,IF(J98=26,'[1]Equivalencia BH-BMPT'!$D$27,IF(J98=27,'[1]Equivalencia BH-BMPT'!$D$28,IF(J98=28,'[1]Equivalencia BH-BMPT'!$D$29,IF(J98=29,'[1]Equivalencia BH-BMPT'!$D$30,IF(J98=30,'[1]Equivalencia BH-BMPT'!$D$31,IF(J98=31,'[1]Equivalencia BH-BMPT'!$D$32,IF(J98=32,'[1]Equivalencia BH-BMPT'!$D$33,IF(J98=33,'[1]Equivalencia BH-BMPT'!$D$34,IF(J98=34,'[1]Equivalencia BH-BMPT'!$D$35,IF(J98=35,'[1]Equivalencia BH-BMPT'!$D$36,IF(J98=36,'[1]Equivalencia BH-BMPT'!$D$37,IF(J98=37,'[1]Equivalencia BH-BMPT'!$D$38,IF(J98=38,'[1]Equivalencia BH-BMPT'!#REF!,IF(J98=39,'[1]Equivalencia BH-BMPT'!$D$40,IF(J98=40,'[1]Equivalencia BH-BMPT'!$D$41,IF(J98=41,'[1]Equivalencia BH-BMPT'!$D$42,IF(J98=42,'[1]Equivalencia BH-BMPT'!$D$43,IF(J98=43,'[1]Equivalencia BH-BMPT'!$D$44,IF(J98=44,'[1]Equivalencia BH-BMPT'!$D$45,IF(J98=45,'[1]Equivalencia BH-BMPT'!$D$46,"No ha seleccionado un número de programa"))))))))))))))))))))))))))))))))))))))))))))) -> Gobernanza e influencia local, regional e internacional | L98: 1395 | M98: 51875915 | N98: Luz Sofia Amaya Castañeda | O98: 49500811 | S98: 2250037 | T98: 51750848 | U98: 46200749 | V98: 2017-02-07 | W98: 2017-02-08 | X98: 2018-01-14 | Y98: 339 | AC98: X | AF98: 0.8927534675 | AG98: FALSE
A99: 41 | B99: 2017 | C99: 17-12-6333074 | D99: 5 | E99: =IF(D99=1,'[1]Tipo '!$B$2,IF(D99=2,'[1]Tipo '!$B$3,IF(D99=3,'[1]Tipo '!$B$4,IF(D99=4,'[1]Tipo '!$B$5,IF(D99=5,'[1]Tipo '!$B$6,IF(D99=6,'[1]Tipo '!$B$7,IF(D99=7,'[1]Tipo '!$B$8,IF(D99=8,'[1]Tipo '!$B$9,IF(D99=9,'[1]Tipo '!$B$10,IF(D99=10,'[1]Tipo '!$B$11,IF(D99=11,'[1]Tipo '!$B$12,IF(D99=12,'[1]Tipo '!$B$13,IF(D99=13,'[1]Tipo '!$B$14,IF(D99=14,'[1]Tipo '!$B$15,IF(D99=15,'[1]Tipo '!$B$16,IF(D99=16,'[1]Tipo '!$B$17,IF(D99=17,'[1]Tipo '!$B$18,IF(D99=18,'[1]Tipo '!$B$19,IF(D99=19,'[1]Tipo '!$B$20,"No ha seleccionado un tipo de contrato válido"))))))))))))))))))) -> CONTRATOS DE PRESTACIÓN DE SERVICIOS PROFESIONALES Y DE APOYO A LA GESTIÓN | F99: Contratación directa | G99: Prestación de servicios profesionales y de apoyo a la gestión, o para la ejecución de trabajos artísticos que sólo puedan encomendarse a determinadas personas naturales; | H99: PRESTAR LOS SERVICIOS DE APOYO AL ÁREA DE GESTIÓN DE DESARROLLO LOCAL, PARA EL FORTALECIMIENTO INSTITUCIONAL EN TEMAS DE CONTABILIDAD Y PRESUPUESTO EN LA ALCALDÍA LOCAL DE LA CANDELARIA | I99: Inversión | J99: 45 | K99: =IF(J99=1,'[1]Equivalencia BH-BMPT'!$D$2,IF(J99=2,'[1]Equivalencia BH-BMPT'!$D$3,IF(J99=3,'[1]Equivalencia BH-BMPT'!$D$4,IF(J99=4,'[1]Equivalencia BH-BMPT'!$D$5,IF(J99=5,'[1]Equivalencia BH-BMPT'!$D$6,IF(J99=6,'[1]Equivalencia BH-BMPT'!$D$7,IF(J99=7,'[1]Equivalencia BH-BMPT'!$D$8,IF(J99=8,'[1]Equivalencia BH-BMPT'!$D$9,IF(J99=9,'[1]Equivalencia BH-BMPT'!$D$10,IF(J99=10,'[1]Equivalencia BH-BMPT'!$D$11,IF(J99=11,'[1]Equivalencia BH-BMPT'!$D$12,IF(J99=12,'[1]Equivalencia BH-BMPT'!$D$13,IF(J99=13,'[1]Equivalencia BH-BMPT'!$D$14,IF(J99=14,'[1]Equivalencia BH-BMPT'!$D$15,IF(J99=15,'[1]Equivalencia BH-BMPT'!$D$16,IF(J99=16,'[1]Equivalencia BH-BMPT'!$D$17,IF(J99=17,'[1]Equivalencia BH-BMPT'!$D$18,IF(J99=18,'[1]Equivalencia BH-BMPT'!$D$19,IF(J99=19,'[1]Equivalencia BH-BMPT'!$D$20,IF(J99=20,'[1]Equivalencia BH-BMPT'!$D$21,IF(J99=21,'[1]Equivalencia BH-BMPT'!$D$22,IF(J99=22,'[1]Equivalencia BH-BMPT'!$D$23,IF(J99=23,'[1]Equivalencia BH-BMPT'!#REF!,IF(J99=24,'[1]Equivalencia BH-BMPT'!$D$25,IF(J99=25,'[1]Equivalencia BH-BMPT'!$D$26,IF(J99=26,'[1]Equivalencia BH-BMPT'!$D$27,IF(J99=27,'[1]Equivalencia BH-BMPT'!$D$28,IF(J99=28,'[1]Equivalencia BH-BMPT'!$D$29,IF(J99=29,'[1]Equivalencia BH-BMPT'!$D$30,IF(J99=30,'[1]Equivalencia BH-BMPT'!$D$31,IF(J99=31,'[1]Equivalencia BH-BMPT'!$D$32,IF(J99=32,'[1]Equivalencia BH-BMPT'!$D$33,IF(J99=33,'[1]Equivalencia BH-BMPT'!$D$34,IF(J99=34,'[1]Equivalencia BH-BMPT'!$D$35,IF(J99=35,'[1]Equivalencia BH-BMPT'!$D$36,IF(J99=36,'[1]Equivalencia BH-BMPT'!$D$37,IF(J99=37,'[1]Equivalencia BH-BMPT'!$D$38,IF(J99=38,'[1]Equivalencia BH-BMPT'!#REF!,IF(J99=39,'[1]Equivalencia BH-BMPT'!$D$40,IF(J99=40,'[1]Equivalencia BH-BMPT'!$D$41,IF(J99=41,'[1]Equivalencia BH-BMPT'!$D$42,IF(J99=42,'[1]Equivalencia BH-BMPT'!$D$43,IF(J99=43,'[1]Equivalencia BH-BMPT'!$D$44,IF(J99=44,'[1]Equivalencia BH-BMPT'!$D$45,IF(J99=45,'[1]Equivalencia BH-BMPT'!$D$46,"No ha seleccionado un número de programa"))))))))))))))))))))))))))))))))))))))))))))) -> Gobernanza e influencia local, regional e internacional | L99: 1395 | M99: 1013615359 | N99: CAROL ANDREA LEIVA HERNÁNDEZ | O99: 33271037 | S99: 12098560 | T99: 45369597 | U99: 30548864 | V99: 2017-02-08 | W99: 2017-02-13 | X99: 2018-04-29 | Y99: 450 | AC99: X | AF99: 0.6733333779 | AG99: FALSE
A100: 43 | B100: 2017 | C100: 17-13-6072314 | D100: 5 | E100: =IF(D100=1,'[1]Tipo '!$B$2,IF(D100=2,'[1]Tipo '!$B$3,IF(D100=3,'[1]Tipo '!$B$4,IF(D100=4,'[1]Tipo '!$B$5,IF(D100=5,'[1]Tipo '!$B$6,IF(D100=6,'[1]Tipo '!$B$7,IF(D100=7,'[1]Tipo '!$B$8,IF(D100=8,'[1]Tipo '!$B$9,IF(D100=9,'[1]Tipo '!$B$10,IF(D100=10,'[1]Tipo '!$B$11,IF(D100=11,'[1]Tipo '!$B$12,IF(D100=12,'[1]Tipo '!$B$13,IF(D100=13,'[1]Tipo '!$B$14,IF(D100=14,'[1]Tipo '!$B$15,IF(D100=15,'[1]Tipo '!$B$16,IF(D100=16,'[1]Tipo '!$B$17,IF(D100=17,'[1]Tipo '!$B$18,IF(D100=18,'[1]Tipo '!$B$19,IF(D100=19,'[1]Tipo '!$B$20,"No ha seleccionado un tipo de contrato válido"))))))))))))))))))) -> CONTRATOS DE PRESTACIÓN DE SERVICIOS PROFESIONALES Y DE APOYO A LA GESTIÓN | F100: Contratación directa | G100: Prestación de servicios profesionales y de apoyo a la gestión, o para la ejecución de trabajos artísticos que sólo puedan encomendarse a determinadas personas naturales; | H100: Prestar los servicios de apoyo a la administración local en la gestión de las casas comunitarias de la localidad de la candelaria de conformidad con el Acuerdo local 006 de 2013 | I100: Inversión | J100: 45 | K100: =IF(J100=1,'[1]Equivalencia BH-BMPT'!$D$2,IF(J100=2,'[1]Equivalencia BH-BMPT'!$D$3,IF(J100=3,'[1]Equivalencia BH-BMPT'!$D$4,IF(J100=4,'[1]Equivalencia BH-BMPT'!$D$5,IF(J100=5,'[1]Equivalencia BH-BMPT'!$D$6,IF(J100=6,'[1]Equivalencia BH-BMPT'!$D$7,IF(J100=7,'[1]Equivalencia BH-BMPT'!$D$8,IF(J100=8,'[1]Equivalencia BH-BMPT'!$D$9,IF(J100=9,'[1]Equivalencia BH-BMPT'!$D$10,IF(J100=10,'[1]Equivalencia BH-BMPT'!$D$11,IF(J100=11,'[1]Equivalencia BH-BMPT'!$D$12,IF(J100=12,'[1]Equivalencia BH-BMPT'!$D$13,IF(J100=13,'[1]Equivalencia BH-BMPT'!$D$14,IF(J100=14,'[1]Equivalencia BH-BMPT'!$D$15,IF(J100=15,'[1]Equivalencia BH-BMPT'!$D$16,IF(J100=16,'[1]Equivalencia BH-BMPT'!$D$17,IF(J100=17,'[1]Equivalencia BH-BMPT'!$D$18,IF(J100=18,'[1]Equivalencia BH-BMPT'!$D$19,IF(J100=19,'[1]Equivalencia BH-BMPT'!$D$20,IF(J100=20,'[1]Equivalencia BH-BMPT'!$D$21,IF(J100=21,'[1]Equivalencia BH-BMPT'!$D$22,IF(J100=22,'[1]Equivalencia BH-BMPT'!$D$23,IF(J100=23,'[1]Equivalencia BH-BMPT'!#REF!,IF(J100=24,'[1]Equivalencia BH-BMPT'!$D$25,IF(J100=25,'[1]Equivalencia BH-BMPT'!$D$26,IF(J100=26,'[1]Equivalencia BH-BMPT'!$D$27,IF(J100=27,'[1]Equivalencia BH-BMPT'!$D$28,IF(J100=28,'[1]Equivalencia BH-BMPT'!$D$29,IF(J100=29,'[1]Equivalencia BH-BMPT'!$D$30,IF(J100=30,'[1]Equivalencia BH-BMPT'!$D$31,IF(J100=31,'[1]Equivalencia BH-BMPT'!$D$32,IF(J100=32,'[1]Equivalencia BH-BMPT'!$D$33,IF(J100=33,'[1]Equivalencia BH-BMPT'!$D$34,IF(J100=34,'[1]Equivalencia BH-BMPT'!$D$35,IF(J100=35,'[1]Equivalencia BH-BMPT'!$D$36,IF(J100=36,'[1]Equivalencia BH-BMPT'!$D$37,IF(J100=37,'[1]Equivalencia BH-BMPT'!$D$38,IF(J100=38,'[1]Equivalencia BH-BMPT'!#REF!,IF(J100=39,'[1]Equivalencia BH-BMPT'!$D$40,IF(J100=40,'[1]Equivalencia BH-BMPT'!$D$41,IF(J100=41,'[1]Equivalencia BH-BMPT'!$D$42,IF(J100=42,'[1]Equivalencia BH-BMPT'!$D$43,IF(J100=43,'[1]Equivalencia BH-BMPT'!$D$44,IF(J100=44,'[1]Equivalencia BH-BMPT'!$D$45,IF(J100=45,'[1]Equivalencia BH-BMPT'!$D$46,"No ha seleccionado un número de programa"))))))))))))))))))))))))))))))))))))))))))))) -> Gobernanza e influencia local, regional e internacional | L100: 1395 | M100: 41560087 | N100: Marta María Castro Ferreira | O100: 27590616 | S100: 1254119 | T100: 28844735 | U100: 25667636 | V100: 2017-02-08 | W100: 2017-02-09 | X100: 2018-01-14 | Y100: 338 | AD100: X | AF100: 0.8898551503 | AG100: FALSE
A101: 45 | B101: 2017 | C101: 17-12-6333958 | D101: 5 | E101: =IF(D101=1,'[1]Tipo '!$B$2,IF(D101=2,'[1]Tipo '!$B$3,IF(D101=3,'[1]Tipo '!$B$4,IF(D101=4,'[1]Tipo '!$B$5,IF(D101=5,'[1]Tipo '!$B$6,IF(D101=6,'[1]Tipo '!$B$7,IF(D101=7,'[1]Tipo '!$B$8,IF(D101=8,'[1]Tipo '!$B$9,IF(D101=9,'[1]Tipo '!$B$10,IF(D101=10,'[1]Tipo '!$B$11,IF(D101=11,'[1]Tipo '!$B$12,IF(D101=12,'[1]Tipo '!$B$13,IF(D101=13,'[1]Tipo '!$B$14,IF(D101=14,'[1]Tipo '!$B$15,IF(D101=15,'[1]Tipo '!$B$16,IF(D101=16,'[1]Tipo '!$B$17,IF(D101=17,'[1]Tipo '!$B$18,IF(D101=18,'[1]Tipo '!$B$19,IF(D101=19,'[1]Tipo '!$B$20,"No ha seleccionado un tipo de contrato válido"))))))))))))))))))) -> CONTRATOS DE PRESTACIÓN DE SERVICIOS PROFESIONALES Y DE APOYO A LA GESTIÓN | F101: Contratación directa | G101: Prestación de servicios profesionales y de apoyo a la gestión, o para la ejecución de trabajos artísticos que sólo puedan encomendarse a determinadas personas naturales; | H101: PRESTAR LOS SERVICIOS COMO CONDUCTOR DE APOYO DE LOS VEHICULOS DE PROPIEDAD DEL FONDO DE DESARROLLO LOCAL DE LA CANDELARIA | I101: Inversión | J101: 45 | K101: =IF(J101=1,'[1]Equivalencia BH-BMPT'!$D$2,IF(J101=2,'[1]Equivalencia BH-BMPT'!$D$3,IF(J101=3,'[1]Equivalencia BH-BMPT'!$D$4,IF(J101=4,'[1]Equivalencia BH-BMPT'!$D$5,IF(J101=5,'[1]Equivalencia BH-BMPT'!$D$6,IF(J101=6,'[1]Equivalencia BH-BMPT'!$D$7,IF(J101=7,'[1]Equivalencia BH-BMPT'!$D$8,IF(J101=8,'[1]Equivalencia BH-BMPT'!$D$9,IF(J101=9,'[1]Equivalencia BH-BMPT'!$D$10,IF(J101=10,'[1]Equivalencia BH-BMPT'!$D$11,IF(J101=11,'[1]Equivalencia BH-BMPT'!$D$12,IF(J101=12,'[1]Equivalencia BH-BMPT'!$D$13,IF(J101=13,'[1]Equivalencia BH-BMPT'!$D$14,IF(J101=14,'[1]Equivalencia BH-BMPT'!$D$15,IF(J101=15,'[1]Equivalencia BH-BMPT'!$D$16,IF(J101=16,'[1]Equivalencia BH-BMPT'!$D$17,IF(J101=17,'[1]Equivalencia BH-BMPT'!$D$18,IF(J101=18,'[1]Equivalencia BH-BMPT'!$D$19,IF(J101=19,'[1]Equivalencia BH-BMPT'!$D$20,IF(J101=20,'[1]Equivalencia BH-BMPT'!$D$21,IF(J101=21,'[1]Equivalencia BH-BMPT'!$D$22,IF(J101=22,'[1]Equivalencia BH-BMPT'!$D$23,IF(J101=23,'[1]Equivalencia BH-BMPT'!#REF!,IF(J101=24,'[1]Equivalencia BH-BMPT'!$D$25,IF(J101=25,'[1]Equivalencia BH-BMPT'!$D$26,IF(J101=26,'[1]Equivalencia BH-BMPT'!$D$27,IF(J101=27,'[1]Equivalencia BH-BMPT'!$D$28,IF(J101=28,'[1]Equivalencia BH-BMPT'!$D$29,IF(J101=29,'[1]Equivalencia BH-BMPT'!$D$30,IF(J101=30,'[1]Equivalencia BH-BMPT'!$D$31,IF(J101=31,'[1]Equivalencia BH-BMPT'!$D$32,IF(J101=32,'[1]Equivalencia BH-BMPT'!$D$33,IF(J101=33,'[1]Equivalencia BH-BMPT'!$D$34,IF(J101=34,'[1]Equivalencia BH-BMPT'!$D$35,IF(J101=35,'[1]Equivalencia BH-BMPT'!$D$36,IF(J101=36,'[1]Equivalencia BH-BMPT'!$D$37,IF(J101=37,'[1]Equivalencia BH-BMPT'!$D$38,IF(J101=38,'[1]Equivalencia BH-BMPT'!#REF!,IF(J101=39,'[1]Equivalencia BH-BMPT'!$D$40,IF(J101=40,'[1]Equivalencia BH-BMPT'!$D$41,IF(J101=41,'[1]Equivalencia BH-BMPT'!$D$42,IF(J101=42,'[1]Equivalencia BH-BMPT'!$D$43,IF(J101=43,'[1]Equivalencia BH-BMPT'!$D$44,IF(J101=44,'[1]Equivalencia BH-BMPT'!$D$45,IF(J101=45,'[1]Equivalencia BH-BMPT'!$D$46,"No ha seleccionado un número de programa"))))))))))))))))))))))))))))))))))))))))))))) -> Gobernanza e influencia local, regional e internacional | L101: 1395 | M101: 80280056 | N101: Ricardo Ardila Acosta | O101: 22721684 | P101: 22721684 | T101: =O101+Q101+S101-P101 -> 0 | V101: 2017-02-09 | W101: 2017-02-09 | X101: 2017-12-30 | Y101: 323 | AA101: x | AG101: FALSE
A102: 46 | B102: 2017 | C102: 17-12-6334038 | D102: 5 | E102: =IF(D102=1,'[1]Tipo '!$B$2,IF(D102=2,'[1]Tipo '!$B$3,IF(D102=3,'[1]Tipo '!$B$4,IF(D102=4,'[1]Tipo '!$B$5,IF(D102=5,'[1]Tipo '!$B$6,IF(D102=6,'[1]Tipo '!$B$7,IF(D102=7,'[1]Tipo '!$B$8,IF(D102=8,'[1]Tipo '!$B$9,IF(D102=9,'[1]Tipo '!$B$10,IF(D102=10,'[1]Tipo '!$B$11,IF(D102=11,'[1]Tipo '!$B$12,IF(D102=12,'[1]Tipo '!$B$13,IF(D102=13,'[1]Tipo '!$B$14,IF(D102=14,'[1]Tipo '!$B$15,IF(D102=15,'[1]Tipo '!$B$16,IF(D102=16,'[1]Tipo '!$B$17,IF(D102=17,'[1]Tipo '!$B$18,IF(D102=18,'[1]Tipo '!$B$19,IF(D102=19,'[1]Tipo '!$B$20,"No ha seleccionado un tipo de contrato válido"))))))))))))))))))) -> CONTRATOS DE PRESTACIÓN DE SERVICIOS PROFESIONALES Y DE APOYO A LA GESTIÓN | F102: Contratación directa | G102: Prestación de servicios profesionales y de apoyo a la gestión, o para la ejecución de trabajos artísticos que sólo puedan encomendarse a determinadas personas naturales; | H102: Servicios profesionales como arquitecto en los procesos a cargo del Área dse Gestión Policiva de la Alcaldia Local de La Candelaria para temas de establecimientos de comercio, propiedad horizontal, acciones constitucionales, obras y derecho de petición | I102: Inversión | J102: 45 | K102: =IF(J102=1,'[1]Equivalencia BH-BMPT'!$D$2,IF(J102=2,'[1]Equivalencia BH-BMPT'!$D$3,IF(J102=3,'[1]Equivalencia BH-BMPT'!$D$4,IF(J102=4,'[1]Equivalencia BH-BMPT'!$D$5,IF(J102=5,'[1]Equivalencia BH-BMPT'!$D$6,IF(J102=6,'[1]Equivalencia BH-BMPT'!$D$7,IF(J102=7,'[1]Equivalencia BH-BMPT'!$D$8,IF(J102=8,'[1]Equivalencia BH-BMPT'!$D$9,IF(J102=9,'[1]Equivalencia BH-BMPT'!$D$10,IF(J102=10,'[1]Equivalencia BH-BMPT'!$D$11,IF(J102=11,'[1]Equivalencia BH-BMPT'!$D$12,IF(J102=12,'[1]Equivalencia BH-BMPT'!$D$13,IF(J102=13,'[1]Equivalencia BH-BMPT'!$D$14,IF(J102=14,'[1]Equivalencia BH-BMPT'!$D$15,IF(J102=15,'[1]Equivalencia BH-BMPT'!$D$16,IF(J102=16,'[1]Equivalencia BH-BMPT'!$D$17,IF(J102=17,'[1]Equivalencia BH-BMPT'!$D$18,IF(J102=18,'[1]Equivalencia BH-BMPT'!$D$19,IF(J102=19,'[1]Equivalencia BH-BMPT'!$D$20,IF(J102=20,'[1]Equivalencia BH-BMPT'!$D$21,IF(J102=21,'[1]Equivalencia BH-BMPT'!$D$22,IF(J102=22,'[1]Equivalencia BH-BMPT'!$D$23,IF(J102=23,'[1]Equivalencia BH-BMPT'!#REF!,IF(J102=24,'[1]Equivalencia BH-BMPT'!$D$25,IF(J102=25,'[1]Equivalencia BH-BMPT'!$D$26,IF(J102=26,'[1]Equivalencia BH-BMPT'!$D$27,IF(J102=27,'[1]Equivalencia BH-BMPT'!$D$28,IF(J102=28,'[1]Equivalencia BH-BMPT'!$D$29,IF(J102=29,'[1]Equivalencia BH-BMPT'!$D$30,IF(J102=30,'[1]Equivalencia BH-BMPT'!$D$31,IF(J102=31,'[1]Equivalencia BH-BMPT'!$D$32,IF(J102=32,'[1]Equivalencia BH-BMPT'!$D$33,IF(J102=33,'[1]Equivalencia BH-BMPT'!$D$34,IF(J102=34,'[1]Equivalencia BH-BMPT'!$D$35,IF(J102=35,'[1]Equivalencia BH-BMPT'!$D$36,IF(J102=36,'[1]Equivalencia BH-BMPT'!$D$37,IF(J102=37,'[1]Equivalencia BH-BMPT'!$D$38,IF(J102=38,'[1]Equivalencia BH-BMPT'!#REF!,IF(J102=39,'[1]Equivalencia BH-BMPT'!$D$40,IF(J102=40,'[1]Equivalencia BH-BMPT'!$D$41,IF(J102=41,'[1]Equivalencia BH-BMPT'!$D$42,IF(J102=42,'[1]Equivalencia BH-BMPT'!$D$43,IF(J102=43,'[1]Equivalencia BH-BMPT'!$D$44,IF(J102=44,'[1]Equivalencia BH-BMPT'!$D$45,IF(J102=45,'[1]Equivalencia BH-BMPT'!$D$46,"No ha seleccionado un número de programa"))))))))))))))))))))))))))))))))))))))))))))) -> Gobernanza e influencia local, regional e internacional | L102: 1395 | M102: 19487206 | N102: DARIO PLAZAS MONTAÑEZ | O102: 44631879 | S102: 2028722 | T102: =O102+Q102+S102 -> 46660601 | U102: 41382929 | V102: 2017-02-10 | W102: 2017-02-10 | X102: 2018-01-14 | Y102: 337 | AC102: X | AF102: 0.886892327 | AG102: FALSE
A103: 47 | B103: 2017 | C103: 17-12-6334271 | D103: 5 | E103: =IF(D103=1,'[1]Tipo '!$B$2,IF(D103=2,'[1]Tipo '!$B$3,IF(D103=3,'[1]Tipo '!$B$4,IF(D103=4,'[1]Tipo '!$B$5,IF(D103=5,'[1]Tipo '!$B$6,IF(D103=6,'[1]Tipo '!$B$7,IF(D103=7,'[1]Tipo '!$B$8,IF(D103=8,'[1]Tipo '!$B$9,IF(D103=9,'[1]Tipo '!$B$10,IF(D103=10,'[1]Tipo '!$B$11,IF(D103=11,'[1]Tipo '!$B$12,IF(D103=12,'[1]Tipo '!$B$13,IF(D103=13,'[1]Tipo '!$B$14,IF(D103=14,'[1]Tipo '!$B$15,IF(D103=15,'[1]Tipo '!$B$16,IF(D103=16,'[1]Tipo '!$B$17,IF(D103=17,'[1]Tipo '!$B$18,IF(D103=18,'[1]Tipo '!$B$19,IF(D103=19,'[1]Tipo '!$B$20,"No ha seleccionado un tipo de contrato válido"))))))))))))))))))) -> CONTRATOS DE PRESTACIÓN DE SERVICIOS PROFESIONALES Y DE APOYO A LA GESTIÓN | F103: Contratación directa | G103: Prestación de servicios profesionales y de apoyo a la gestión, o para la ejecución de trabajos artísticos que sólo puedan encomendarse a determinadas personas naturales; | H103: PRESTAR SUS SERVICIOS PROFESIONALES COMO ARQUITECTO EN LOS PROCESOS A CARGO DEL ÁREA DE GESTIÓN POLICIVA DE LA ALCALDÍA LOCAL LA CANDELARIA PARA TEMAS DE ESTABLECIMIENTOS DE COMERCIO, PROPIEDAD HORIZONTAL, ACCIONES CONSTITUCIONALES, OBRAS Y DERECHOS DE PETICIÓN | I103: Inversión | J103: 45 | K103: =IF(J103=1,'[1]Equivalencia BH-BMPT'!$D$2,IF(J103=2,'[1]Equivalencia BH-BMPT'!$D$3,IF(J103=3,'[1]Equivalencia BH-BMPT'!$D$4,IF(J103=4,'[1]Equivalencia BH-BMPT'!$D$5,IF(J103=5,'[1]Equivalencia BH-BMPT'!$D$6,IF(J103=6,'[1]Equivalencia BH-BMPT'!$D$7,IF(J103=7,'[1]Equivalencia BH-BMPT'!$D$8,IF(J103=8,'[1]Equivalencia BH-BMPT'!$D$9,IF(J103=9,'[1]Equivalencia BH-BMPT'!$D$10,IF(J103=10,'[1]Equivalencia BH-BMPT'!$D$11,IF(J103=11,'[1]Equivalencia BH-BMPT'!$D$12,IF(J103=12,'[1]Equivalencia BH-BMPT'!$D$13,IF(J103=13,'[1]Equivalencia BH-BMPT'!$D$14,IF(J103=14,'[1]Equivalencia BH-BMPT'!$D$15,IF(J103=15,'[1]Equivalencia BH-BMPT'!$D$16,IF(J103=16,'[1]Equivalencia BH-BMPT'!$D$17,IF(J103=17,'[1]Equivalencia BH-BMPT'!$D$18,IF(J103=18,'[1]Equivalencia BH-BMPT'!$D$19,IF(J103=19,'[1]Equivalencia BH-BMPT'!$D$20,IF(J103=20,'[1]Equivalencia BH-BMPT'!$D$21,IF(J103=21,'[1]Equivalencia BH-BMPT'!$D$22,IF(J103=22,'[1]Equivalencia BH-BMPT'!$D$23,IF(J103=23,'[1]Equivalencia BH-BMPT'!#REF!,IF(J103=24,'[1]Equivalencia BH-BMPT'!$D$25,IF(J103=25,'[1]Equivalencia BH-BMPT'!$D$26,IF(J103=26,'[1]Equivalencia BH-BMPT'!$D$27,IF(J103=27,'[1]Equivalencia BH-BMPT'!$D$28,IF(J103=28,'[1]Equivalencia BH-BMPT'!$D$29,IF(J103=29,'[1]Equivalencia BH-BMPT'!$D$30,IF(J103=30,'[1]Equivalencia BH-BMPT'!$D$31,IF(J103=31,'[1]Equivalencia BH-BMPT'!$D$32,IF(J103=32,'[1]Equivalencia BH-BMPT'!$D$33,IF(J103=33,'[1]Equivalencia BH-BMPT'!$D$34,IF(J103=34,'[1]Equivalencia BH-BMPT'!$D$35,IF(J103=35,'[1]Equivalencia BH-BMPT'!$D$36,IF(J103=36,'[1]Equivalencia BH-BMPT'!$D$37,IF(J103=37,'[1]Equivalencia BH-BMPT'!$D$38,IF(J103=38,'[1]Equivalencia BH-BMPT'!#REF!,IF(J103=39,'[1]Equivalencia BH-BMPT'!$D$40,IF(J103=40,'[1]Equivalencia BH-BMPT'!$D$41,IF(J103=41,'[1]Equivalencia BH-BMPT'!$D$42,IF(J103=42,'[1]Equivalencia BH-BMPT'!$D$43,IF(J103=43,'[1]Equivalencia BH-BMPT'!$D$44,IF(J103=44,'[1]Equivalencia BH-BMPT'!$D$45,IF(J103=45,'[1]Equivalencia BH-BMPT'!$D$46,"No ha seleccionado un número de programa"))))))))))))))))))))))))))))))))))))))))))))) -> Gobernanza e influencia local, regional e internacional | L103: 1395 | M103: 79692123 | N103: CAMPO ELIAS GUTIERREZ GARCIA | O103: 44631879 | T103: 44631879 | U103: 39762949 | V103: 2017-02-10 | W103: 2017-02-10 | X103: 2017-12-30 | Y103: 322 | AD103: X | AF103: 0.8909091414 | AG103: FALSE
A104: 48 | B104: 2017 | C104: 17-12-6334830 | D104: 5 | E104: =IF(D104=1,'[1]Tipo '!$B$2,IF(D104=2,'[1]Tipo '!$B$3,IF(D104=3,'[1]Tipo '!$B$4,IF(D104=4,'[1]Tipo '!$B$5,IF(D104=5,'[1]Tipo '!$B$6,IF(D104=6,'[1]Tipo '!$B$7,IF(D104=7,'[1]Tipo '!$B$8,IF(D104=8,'[1]Tipo '!$B$9,IF(D104=9,'[1]Tipo '!$B$10,IF(D104=10,'[1]Tipo '!$B$11,IF(D104=11,'[1]Tipo '!$B$12,IF(D104=12,'[1]Tipo '!$B$13,IF(D104=13,'[1]Tipo '!$B$14,IF(D104=14,'[1]Tipo '!$B$15,IF(D104=15,'[1]Tipo '!$B$16,IF(D104=16,'[1]Tipo '!$B$17,IF(D104=17,'[1]Tipo '!$B$18,IF(D104=18,'[1]Tipo '!$B$19,IF(D104=19,'[1]Tipo '!$B$20,"No ha seleccionado un tipo de contrato válido"))))))))))))))))))) -> CONTRATOS DE PRESTACIÓN DE SERVICIOS PROFESIONALES Y DE APOYO A LA GESTIÓN | F104: Contratación directa | G104: Prestación de servicios profesionales y de apoyo a la gestión, o para la ejecución de trabajos artísticos que sólo puedan encomendarse a determinadas personas naturales; | H104: PRESTAR SERVICIOS PROFESIONALES PARA LA ESTRUCTURACIÓN DE LOS PROCESOS PRE-CONTRACTUALES, CONTRACTUALES, POS- CONTRACTUALES Y DEMÁS PROCEDIMIENTOS JURÍDICOS RELACIONADOS DEL FONDO DE DESARROLLO LOCAL DE LA CANDELARIA | I104: Inversión | J104: 45 | K104: =IF(J104=1,'[1]Equivalencia BH-BMPT'!$D$2,IF(J104=2,'[1]Equivalencia BH-BMPT'!$D$3,IF(J104=3,'[1]Equivalencia BH-BMPT'!$D$4,IF(J104=4,'[1]Equivalencia BH-BMPT'!$D$5,IF(J104=5,'[1]Equivalencia BH-BMPT'!$D$6,IF(J104=6,'[1]Equivalencia BH-BMPT'!$D$7,IF(J104=7,'[1]Equivalencia BH-BMPT'!$D$8,IF(J104=8,'[1]Equivalencia BH-BMPT'!$D$9,IF(J104=9,'[1]Equivalencia BH-BMPT'!$D$10,IF(J104=10,'[1]Equivalencia BH-BMPT'!$D$11,IF(J104=11,'[1]Equivalencia BH-BMPT'!$D$12,IF(J104=12,'[1]Equivalencia BH-BMPT'!$D$13,IF(J104=13,'[1]Equivalencia BH-BMPT'!$D$14,IF(J104=14,'[1]Equivalencia BH-BMPT'!$D$15,IF(J104=15,'[1]Equivalencia BH-BMPT'!$D$16,IF(J104=16,'[1]Equivalencia BH-BMPT'!$D$17,IF(J104=17,'[1]Equivalencia BH-BMPT'!$D$18,IF(J104=18,'[1]Equivalencia BH-BMPT'!$D$19,IF(J104=19,'[1]Equivalencia BH-BMPT'!$D$20,IF(J104=20,'[1]Equivalencia BH-BMPT'!$D$21,IF(J104=21,'[1]Equivalencia BH-BMPT'!$D$22,IF(J104=22,'[1]Equivalencia BH-BMPT'!$D$23,IF(J104=23,'[1]Equivalencia BH-BMPT'!#REF!,IF(J104=24,'[1]Equivalencia BH-BMPT'!$D$25,IF(J104=25,'[1]Equivalencia BH-BMPT'!$D$26,IF(J104=26,'[1]Equivalencia BH-BMPT'!$D$27,IF(J104=27,'[1]Equivalencia BH-BMPT'!$D$28,IF(J104=28,'[1]Equivalencia BH-BMPT'!$D$29,IF(J104=29,'[1]Equivalencia BH-BMPT'!$D$30,IF(J104=30,'[1]Equivalencia BH-BMPT'!$D$31,IF(J104=31,'[1]Equivalencia BH-BMPT'!$D$32,IF(J104=32,'[1]Equivalencia BH-BMPT'!$D$33,IF(J104=33,'[1]Equivalencia BH-BMPT'!$D$34,IF(J104=34,'[1]Equivalencia BH-BMPT'!$D$35,IF(J104=35,'[1]Equivalencia BH-BMPT'!$D$36,IF(J104=36,'[1]Equivalencia BH-BMPT'!$D$37,IF(J104=37,'[1]Equivalencia BH-BMPT'!$D$38,IF(J104=38,'[1]Equivalencia BH-BMPT'!#REF!,IF(J104=39,'[1]Equivalencia BH-BMPT'!$D$40,IF(J104=40,'[1]Equivalencia BH-BMPT'!$D$41,IF(J104=41,'[1]Equivalencia BH-BMPT'!$D$42,IF(J104=42,'[1]Equivalencia BH-BMPT'!$D$43,IF(J104=43,'[1]Equivalencia BH-BMPT'!$D$44,IF(J104=44,'[1]Equivalencia BH-BMPT'!$D$45,IF(J104=45,'[1]Equivalencia BH-BMPT'!$D$46,"No ha seleccionado un número de programa"))))))))))))))))))))))))))))))))))))))))))))) -> Gobernanza e influencia local, regional e internacional | L104: 1395 | M104: 1015437538 | N104: WENDY LORENA RAMIREZ ESPITIA | O104: 42197412 | S104: 3324645 | T104: 45522057 | U104: 38744892 | V104: 2017-02-13 | W104: 2017-02-13 | X104: 2018-01-25 | Y104: 339 | AC104: X | AF104: 0.8511234894 | AG104: FALSE
A105: 49 | B105: 2017 | C105: 17-12-6335179 | D105: 5 | E105: =IF(D105=1,'[1]Tipo '!$B$2,IF(D105=2,'[1]Tipo '!$B$3,IF(D105=3,'[1]Tipo '!$B$4,IF(D105=4,'[1]Tipo '!$B$5,IF(D105=5,'[1]Tipo '!$B$6,IF(D105=6,'[1]Tipo '!$B$7,IF(D105=7,'[1]Tipo '!$B$8,IF(D105=8,'[1]Tipo '!$B$9,IF(D105=9,'[1]Tipo '!$B$10,IF(D105=10,'[1]Tipo '!$B$11,IF(D105=11,'[1]Tipo '!$B$12,IF(D105=12,'[1]Tipo '!$B$13,IF(D105=13,'[1]Tipo '!$B$14,IF(D105=14,'[1]Tipo '!$B$15,IF(D105=15,'[1]Tipo '!$B$16,IF(D105=16,'[1]Tipo '!$B$17,IF(D105=17,'[1]Tipo '!$B$18,IF(D105=18,'[1]Tipo '!$B$19,IF(D105=19,'[1]Tipo '!$B$20,"No ha seleccionado un tipo de contrato válido"))))))))))))))))))) -> CONTRATOS DE PRESTACIÓN DE SERVICIOS PROFESIONALES Y DE APOYO A LA GESTIÓN | F105: Contratación directa | G105: Prestación de servicios profesionales y de apoyo a la gestión, o para la ejecución de trabajos artísticos que sólo puedan encomendarse a determinadas personas naturales; | H105: PRESTAR SUS SERVICIOS PROFESIONALES PARA APOYAR AL DESPACHO DEL ALCALDE LOCAL, EN LA DEFINICION E IMPLEMENTACION DE LAS ESTRATEGIAS INTEGRALES DE COMUNICACIÓN EN LA LOCALIDAD DE LA CANDELARIA | I105: Inversión | J105: 45 | K105: =IF(J105=1,'[1]Equivalencia BH-BMPT'!$D$2,IF(J105=2,'[1]Equivalencia BH-BMPT'!$D$3,IF(J105=3,'[1]Equivalencia BH-BMPT'!$D$4,IF(J105=4,'[1]Equivalencia BH-BMPT'!$D$5,IF(J105=5,'[1]Equivalencia BH-BMPT'!$D$6,IF(J105=6,'[1]Equivalencia BH-BMPT'!$D$7,IF(J105=7,'[1]Equivalencia BH-BMPT'!$D$8,IF(J105=8,'[1]Equivalencia BH-BMPT'!$D$9,IF(J105=9,'[1]Equivalencia BH-BMPT'!$D$10,IF(J105=10,'[1]Equivalencia BH-BMPT'!$D$11,IF(J105=11,'[1]Equivalencia BH-BMPT'!$D$12,IF(J105=12,'[1]Equivalencia BH-BMPT'!$D$13,IF(J105=13,'[1]Equivalencia BH-BMPT'!$D$14,IF(J105=14,'[1]Equivalencia BH-BMPT'!$D$15,IF(J105=15,'[1]Equivalencia BH-BMPT'!$D$16,IF(J105=16,'[1]Equivalencia BH-BMPT'!$D$17,IF(J105=17,'[1]Equivalencia BH-BMPT'!$D$18,IF(J105=18,'[1]Equivalencia BH-BMPT'!$D$19,IF(J105=19,'[1]Equivalencia BH-BMPT'!$D$20,IF(J105=20,'[1]Equivalencia BH-BMPT'!$D$21,IF(J105=21,'[1]Equivalencia BH-BMPT'!$D$22,IF(J105=22,'[1]Equivalencia BH-BMPT'!$D$23,IF(J105=23,'[1]Equivalencia BH-BMPT'!#REF!,IF(J105=24,'[1]Equivalencia BH-BMPT'!$D$25,IF(J105=25,'[1]Equivalencia BH-BMPT'!$D$26,IF(J105=26,'[1]Equivalencia BH-BMPT'!$D$27,IF(J105=27,'[1]Equivalencia BH-BMPT'!$D$28,IF(J105=28,'[1]Equivalencia BH-BMPT'!$D$29,IF(J105=29,'[1]Equivalencia BH-BMPT'!$D$30,IF(J105=30,'[1]Equivalencia BH-BMPT'!$D$31,IF(J105=31,'[1]Equivalencia BH-BMPT'!$D$32,IF(J105=32,'[1]Equivalencia BH-BMPT'!$D$33,IF(J105=33,'[1]Equivalencia BH-BMPT'!$D$34,IF(J105=34,'[1]Equivalencia BH-BMPT'!$D$35,IF(J105=35,'[1]Equivalencia BH-BMPT'!$D$36,IF(J105=36,'[1]Equivalencia BH-BMPT'!$D$37,IF(J105=37,'[1]Equivalencia BH-BMPT'!$D$38,IF(J105=38,'[1]Equivalencia BH-BMPT'!#REF!,IF(J105=39,'[1]Equivalencia BH-BMPT'!$D$40,IF(J105=40,'[1]Equivalencia BH-BMPT'!$D$41,IF(J105=41,'[1]Equivalencia BH-BMPT'!$D$42,IF(J105=42,'[1]Equivalencia BH-BMPT'!$D$43,IF(J105=43,'[1]Equivalencia BH-BMPT'!$D$44,IF(J105=44,'[1]Equivalencia BH-BMPT'!$D$45,IF(J105=45,'[1]Equivalencia BH-BMPT'!$D$46,"No ha seleccionado un número de programa"))))))))))))))))))))))))))))))))))))))))))))) -> Gobernanza e influencia local, regional e internacional | L105: 1395 | M105: 36306305 | N105: PILIA ALEJANDRA SOLANO POLANIA | O105: 64240398 | S105: 3098411 | T105: 67338809 | U105: 61141987 | V105: 2017-02-20 | W105: 2017-02-20 | X105: 2018-01-14 | Y105: 327 | AC105: X | AF105: 0.9079754737 | AG105: FALSE
A106: 50 | B106: 2017 | C106: 17-12-6336157 | D106: 5 | E106: =IF(D106=1,'[1]Tipo '!$B$2,IF(D106=2,'[1]Tipo '!$B$3,IF(D106=3,'[1]Tipo '!$B$4,IF(D106=4,'[1]Tipo '!$B$5,IF(D106=5,'[1]Tipo '!$B$6,IF(D106=6,'[1]Tipo '!$B$7,IF(D106=7,'[1]Tipo '!$B$8,IF(D106=8,'[1]Tipo '!$B$9,IF(D106=9,'[1]Tipo '!$B$10,IF(D106=10,'[1]Tipo '!$B$11,IF(D106=11,'[1]Tipo '!$B$12,IF(D106=12,'[1]Tipo '!$B$13,IF(D106=13,'[1]Tipo '!$B$14,IF(D106=14,'[1]Tipo '!$B$15,IF(D106=15,'[1]Tipo '!$B$16,IF(D106=16,'[1]Tipo '!$B$17,IF(D106=17,'[1]Tipo '!$B$18,IF(D106=18,'[1]Tipo '!$B$19,IF(D106=19,'[1]Tipo '!$B$20,"No ha seleccionado un tipo de contrato válido"))))))))))))))))))) -> CONTRATOS DE PRESTACIÓN DE SERVICIOS PROFESIONALES Y DE APOYO A LA GESTIÓN | F106: Contratación directa | G106: Prestación de servicios profesionales y de apoyo a la gestión, o para la ejecución de trabajos artísticos que sólo puedan encomendarse a determinadas personas naturales; | H106: PRESTAR LOS SERVICIOS DE APOYO A LA ADMINISTRACION LOCAL EN LA GESTION DE LAS CASAS COMUNITARIAS DE LA LOCLAIDAD DE LA CANDELARIA DE CONFORMIDAD CON EL ACUREDO LOCAL 006 DE 2013 | I106: Inversión | J106: 45 | K106: =IF(J106=1,'[1]Equivalencia BH-BMPT'!$D$2,IF(J106=2,'[1]Equivalencia BH-BMPT'!$D$3,IF(J106=3,'[1]Equivalencia BH-BMPT'!$D$4,IF(J106=4,'[1]Equivalencia BH-BMPT'!$D$5,IF(J106=5,'[1]Equivalencia BH-BMPT'!$D$6,IF(J106=6,'[1]Equivalencia BH-BMPT'!$D$7,IF(J106=7,'[1]Equivalencia BH-BMPT'!$D$8,IF(J106=8,'[1]Equivalencia BH-BMPT'!$D$9,IF(J106=9,'[1]Equivalencia BH-BMPT'!$D$10,IF(J106=10,'[1]Equivalencia BH-BMPT'!$D$11,IF(J106=11,'[1]Equivalencia BH-BMPT'!$D$12,IF(J106=12,'[1]Equivalencia BH-BMPT'!$D$13,IF(J106=13,'[1]Equivalencia BH-BMPT'!$D$14,IF(J106=14,'[1]Equivalencia BH-BMPT'!$D$15,IF(J106=15,'[1]Equivalencia BH-BMPT'!$D$16,IF(J106=16,'[1]Equivalencia BH-BMPT'!$D$17,IF(J106=17,'[1]Equivalencia BH-BMPT'!$D$18,IF(J106=18,'[1]Equivalencia BH-BMPT'!$D$19,IF(J106=19,'[1]Equivalencia BH-BMPT'!$D$20,IF(J106=20,'[1]Equivalencia BH-BMPT'!$D$21,IF(J106=21,'[1]Equivalencia BH-BMPT'!$D$22,IF(J106=22,'[1]Equivalencia BH-BMPT'!$D$23,IF(J106=23,'[1]Equivalencia BH-BMPT'!#REF!,IF(J106=24,'[1]Equivalencia BH-BMPT'!$D$25,IF(J106=25,'[1]Equivalencia BH-BMPT'!$D$26,IF(J106=26,'[1]Equivalencia BH-BMPT'!$D$27,IF(J106=27,'[1]Equivalencia BH-BMPT'!$D$28,IF(J106=28,'[1]Equivalencia BH-BMPT'!$D$29,IF(J106=29,'[1]Equivalencia BH-BMPT'!$D$30,IF(J106=30,'[1]Equivalencia BH-BMPT'!$D$31,IF(J106=31,'[1]Equivalencia BH-BMPT'!$D$32,IF(J106=32,'[1]Equivalencia BH-BMPT'!$D$33,IF(J106=33,'[1]Equivalencia BH-BMPT'!$D$34,IF(J106=34,'[1]Equivalencia BH-BMPT'!$D$35,IF(J106=35,'[1]Equivalencia BH-BMPT'!$D$36,IF(J106=36,'[1]Equivalencia BH-BMPT'!$D$37,IF(J106=37,'[1]Equivalencia BH-BMPT'!$D$38,IF(J106=38,'[1]Equivalencia BH-BMPT'!#REF!,IF(J106=39,'[1]Equivalencia BH-BMPT'!$D$40,IF(J106=40,'[1]Equivalencia BH-BMPT'!$D$41,IF(J106=41,'[1]Equivalencia BH-BMPT'!$D$42,IF(J106=42,'[1]Equivalencia BH-BMPT'!$D$43,IF(J106=43,'[1]Equivalencia BH-BMPT'!$D$44,IF(J106=44,'[1]Equivalencia BH-BMPT'!$D$45,IF(J106=45,'[1]Equivalencia BH-BMPT'!$D$46,"No ha seleccionado un número de programa"))))))))))))))))))))))))))))))))))))))))))))) -> Gobernanza e influencia local, regional e internacional | L106: 1395 | M106: 21070860 | N106: DORIS ELENA GUEVARA PALACIOS | O106: 25751243 | S106: 1254119 | T106: 27005362 | U106: 24497124 | V106: 2017-02-23 | W106: 2017-02-23 | X106: 2018-01-14 | Y106: 324 | AC106: X | AF106: 0.9071207414 | AG106: FALSE
